Workbook

Sheet Introduction

Sheet STEPS

Sheet DISCLAIMER

Sheet INPUT - DATA
B3: Jurisdiction
B4: Turlock
B7: Base Year
B8: 2010
B10: Planning Horizon Year
B11: 2030
B14: Land Use Alternative Scenarios Names
B15: Year | C15: =B8 -> 2010 | D15: =B11 -> 2030
B16: Scenario | C16: NA | D16: Scenario 1 | E16: Scenario 2 | F16: Scenario 3 | G16: Scenario 4
B17: Name | C17: Existing | D17: Alternative A | E17: Alternative B | F17: Alternative C | G17: Alternative D
B20: Demographics Baseline and Horizon Year
C21: =$B$8 -> 2010 | D21: =B11 -> 2030
C22: Existing | D22: =D17 -> Alternative A | E22: =E17 -> Alternative B | F22: =F17 -> Alternative C | G22: =G17 -> Alternative D
B23: Residents | C23: =IF($B$4="Turlock",C481,"Enter Data") -> 71100 | D23: =AB54 -> 32211.23462 | E23: =AC54 -> 35601.96049 | F23: 31978.65949 | G23: 36411.78049 | H23: IF PREEXISTING RESIDENTS ESTIMATE EXISTS, ADJUST VARIABLES TO IN "RESIDENTIAL USE FACTORS" CELLS BELOW UNTIL APPROXIMATLEY MATCHED
B24: Jobs | C24: =IF($B$4="Turlock",C482,"Enter Data") -> 28260 | D24: =AN54 -> 25447.9335 | E24: =AO54 -> 30439.5102 | F24: 24919.587 | G24: 30433.4118 | H24: IF PREEXISTING JOBS ESTIMATE EXISTS, ADJUST VARIABLES TO IN "NON-RESIDENTIAL USE FACTORS" CELLS BELOW UNTIL APPROXIMATLEY MATCHED
B25: Service Population | C25: =SUM(C23:C24) -> 99360 | D25: =SUM(D23:D24) -> 57659.16812 | E25: =SUM(E23:E24) -> 66041.47069 | F25: =SUM(F23:F24) -> 56898.24649 | G25: =SUM(G23:G24) -> 66845.19229
D26: ADDITIONAL RESIDENTS AND JOBS
B28: Land Use Data for Alternatives and Existing Conditions (Acres) | U28: Residential Units | AA28: Residential Population | AG28: Non-Residential Square Feet | AM28: Non-Residential Employees | AS28: Residential Acres
C29: ='INPUT - DATA'!$B$8 -> 2010 | D29: ='INPUT - DATA'!$B$11 -> 2030 | I29: Residential Use Density Factors | N29: Non-Residential Use Intensity Factors | U29: ='INPUT - DATA'!$B$8 -> 2010 | V29: ='INPUT - DATA'!$B$11 -> 2030 | AA29: ='INPUT - DATA'!$B$8 -> 2010 | AB29: ='INPUT - DATA'!$B$11 -> 2030 | AG29: ='INPUT - DATA'!$B$8 -> 2010 | AH29: ='INPUT - DATA'!$B$11 -> 2030 | AM29: ='INPUT - DATA'!$B$8 -> 2010 | AN29: ='INPUT - DATA'!$B$11 -> 2030 | AS29: ='INPUT - DATA'!$B$11 -> 2030
B30: Land Use | C30: =C17 -> Existing | D30: =D17 -> Alternative A | E30: =E17 -> Alternative B | F30: =F17 -> Alternative C | G30: =G17 -> Alternative D | I30: DU/Acre | J30: Vacancy Rate | K30: People per Household | L30: % Residential | N30: Floor Area Ratio (FAR) | O30: Sq.Ft./ Employee | P30: % Non-Res | Q30: % of Non-Res that is Office | R30: % of Non-Res that is Retail | T30: Land Use | U30: =C30 -> Existing | V30: =D30 -> Alternative A | W30: =E30 -> Alternative B | X30: =F30 -> Alternative C | Y30: =G30 -> Alternative D | AA30: =U30 -> Existing | AB30: =V30 -> Alternative A | AC30: =W30 -> Alternative B | AD30: =X30 -> Alternative C | AE30: =Y30 -> Alternative D | AG30: =AA30 -> Existing | AH30: =AB30 -> Alternative A | AI30: =AC30 -> Alternative B | AJ30: =AD30 -> Alternative C | AK30: =AE30 -> Alternative D | AM30: =AG30 -> Existing | AN30: =AH30 -> Alternative A | AO30: =AI30 -> Alternative B | AP30: =AJ30 -> Alternative C | AQ30: =AK30 -> Alternative D | AS30: =AN30 -> Alternative A | AT30: =AO30 -> Alternative B | AU30: Alternative C | AV30: Alternative D
B31: Rural Residential | C31: 601.7 | D31: ='[6]Old Alternatives Land Use'!B33 -> 0 | E31: ='[6]Old Alternatives Land Use'!C33 -> 18.4 | F31: ='[6]Old Alternatives Land Use'!D33 -> 18.4 | G31: ='[6]Old Alternatives Land Use'!E33 -> 18.4 | H31: Rural Residential | I31: 0.5 | J31: 0.01 | K31: 2.8 | L31: 1 | N31: =VLOOKUP(B31,$B$84:$E$93,4,FALSE) -> 0.01721763085 | O31: 0 | P31: =100%-L31 -> 0 | Q31: 0 | R31: 0 | T31: Rural Residential | U31: =C31*$I31*$L31 -> 300.85 | V31: =D31*$I31*$L31 -> 0 | W31: =E31*$I31*$L31 -> 9.2 | X31: =F31*$I31*$L31 -> 9.2 | Y31: =G31*$I31*$L31 -> 9.2 | AA31: =U31*(1-$J31)*$K31 -> 833.9562 | AB31: =V31*(1-$J31)*$K31 -> 0 | AC31: =W31*(1-$J31)*$K31 -> 25.5024 | AD31: =X31*(1-$J31)*$K31 -> 25.5024 | AE31: =Y31*(1-$J31)*$K31 -> 25.5024 | AG31: =C31*$N31*43560*$P31 -> 0 | AH31: =D31*$N31*43560*$P31 -> 0 | AI31: =E31*$N31*43560*$P31 -> 0 | AJ31: =F31*$N31*43560*$P31 -> 0 | AK31: =G31*$N31*43560*$P31 -> 0 | AM31: =IFERROR(AG31/$O31,0) -> 0 | AN31: =IFERROR(AH31/$O31,0) -> 0 | AO31: =IFERROR(AI31/$O31,0) -> 0 | AP31: =IFERROR(AJ31/$O31,0) -> 0 | AQ31: =IFERROR(AK31/$O31,0) -> 0 | AS31: =D31*$L31 -> 0 | AT31: =E31*$L31 -> 18.4 | AU31: =F31*$L31 -> 18.4 | AV31: =G31*$L31 -> 18.4
B32: Very Low Density Residential | C32: =IF($B$4="Turlock",C491,"Enter Data") -> 132.7 | D32: ='[6]Old Alternatives Land Use'!B34 -> 162 | E32: ='[6]Old Alternatives Land Use'!C34 -> 162 | F32: ='[6]Old Alternatives Land Use'!D34 -> 162 | G32: ='[6]Old Alternatives Land Use'!E34 -> 162 | H32: Very Low Density Residential | I32: 1.6 | J32: 0.01 | K32: 2.8 | L32: 1 | N32: 0.05509641873 | O32: 0 | P32: 0 | Q32: 0 | R32: 0 | T32: Very Low Density Residential | U32: 212.32 | V32: 259.2 | W32: 259.2 | X32: 259.2 | Y32: 259.2 | AA32: 588.55104 | AB32: 718.5024 | AC32: 718.5024 | AD32: 718.5024 | AE32: 718.5024 | AG32: 0 | AH32: 0 | AI32: 0 | AJ32: 0 | AK32: 0 | AM32: 0 | AN32: 0 | AO32: 0 | AP32: 0 | AQ32: 0 | AS32: 162 | AT32: 162 | AU32: 162 | AV32: 162
B33: Low Density Residential | C33: 2293.579517 | D33: ='[6]Old Alternatives Land Use'!B35 -> 320.2 | E33: ='[6]Old Alternatives Land Use'!C35 -> 107.2 | F33: ='[6]Old Alternatives Land Use'!D35 -> 169.2 | G33: ='[6]Old Alternatives Land Use'!E35 -> 432.2 | H33: Low Density Residential | I33: 5 | J33: 0.01 | K33: 2.8 | L33: 1 | N33: 0.1721763085 | O33: 0 | P33: 0 | Q33: 0 | R33: 0 | T33: Low Density Residential | U33: 11467.89759 | V33: 1601 | W33: 536 | X33: 846 | Y33: 2161 | AA33: 31789.01211 | AB33: 4437.972 | AC33: 1485.792 | AD33: 2345.112 | AE33: 5990.292 | AG33: 0 | AH33: 0 | AI33: 0 | AJ33: 0 | AK33: 0 | AM33: 0 | AN33: 0 | AO33: 0 | AP33: 0 | AQ33: 0 | AS33: 320.2 | AT33: 107.2 | AU33: 169.2 | AV33: 432.2
B34: Low-Medium Density Residential | C34: 317.0119582 | D34: ='[6]Old Alternatives Land Use'!B36 -> 250 | E34: ='[6]Old Alternatives Land Use'!C36 -> 341 | F34: ='[6]Old Alternatives Land Use'!D36 -> 188 | G34: ='[6]Old Alternatives Land Use'!E36 -> 675 | H34: Low-Medium Density Residential | I34: 7.5 | J34: 0.01 | K34: 2.5 | L34: 1 | N34: 0.1721763085 | O34: 0 | P34: 0 | Q34: 0 | R34: 0 | T34: Low-Medium Density Residential | U34: 2377.589686 | V34: 1875 | W34: 2557.5 | X34: 1410 | Y34: 5062.5 | AA34: 5884.534473 | AB34: 4640.625 | AC34: 6329.8125 | AD34: 3489.75 | AE34: 12529.6875 | AG34: 0 | AH34: 0 | AI34: 0 | AJ34: 0 | AK34: 0 | AM34: 0 | AN34: 0 | AO34: 0 | AP34: 0 | AQ34: 0 | AS34: 250 | AT34: 341 | AU34: 188 | AV34: 675
B35: Medium Density Residential | C35: 686.5085247 | D35: ='[6]Old Alternatives Land Use'!B37 -> 570 | E35: ='[6]Old Alternatives Land Use'!C37 -> 681 | F35: ='[6]Old Alternatives Land Use'!D37 -> 632 | G35: ='[6]Old Alternatives Land Use'!E37 -> 280 | H35: Medium Density Residential | I35: 11 | J35: 0.01 | K35: 2.25 | L35: 1 | N35: 0.2525252525 | O35: 0 | P35: 0 | Q35: 0 | R35: 0 | T35: Medium Density Residential | U35: 7551.593772 | V35: 6270 | W35: 7491 | X35: 6952 | Y35: 3080 | AA35: 16821.17513 | AB35: 13966.425 | AC35: 16686.2025 | AD35: 15485.58 | AE35: 6860.7 | AG35: 0 | AH35: 0 | AI35: 0 | AJ35: 0 | AK35: 0 | AM35: 0 | AN35: 0 | AO35: 0 | AP35: 0 | AQ35: 0 | AS35: 570 | AT35: 681 | AU35: 632 | AV35: 280
B36: High Density Residential | C36: 228.9 | D36: ='[6]Old Alternatives Land Use'!B38 -> 227.5 | E36: ='[6]Old Alternatives Land Use'!C38 -> 272.5 | F36: ='[6]Old Alternatives Land Use'!D38 -> 264.5 | G36: ='[6]Old Alternatives Land Use'!E38 -> 270.5 | H36: High Density Residential | I36: 22.5 | J36: 0.01 | K36: 1.55 | L36: 1 | N36: 0.3099173554 | O36: 0 | P36: 0 | Q36: 0 | R36: 0 | T36: High Density Residential | U36: 5150.25 | V36: 5118.75 | W36: 6131.25 | X36: 5951.25 | Y36: 6086.25 | AA36: 7903.058625 | AB36: 7854.721875 | AC36: 9408.403125 | AD36: 9132.193125 | AE36: 9339.350625 | AG36: 0 | AH36: 0 | AI36: 0 | AJ36: 0 | AK36: 0 | AM36: 0 | AN36: 0 | AO36: 0 | AP36: 0 | AQ36: 0 | AS36: 227.5 | AT36: 272.5 | AU36: 264.5 | AV36: 270.5
B37: High Density Residential/Office | C37: 0 | D37: ='[6]Old Alternatives Land Use'!B39 -> 29.6 | E37: ='[6]Old Alternatives Land Use'!C39 -> 30 | F37: ='[6]Old Alternatives Land Use'!D39 -> 30 | G37: ='[6]Old Alternatives Land Use'!E39 -> 30 | H37: High Density Residential/Office | I37: 22.5 | J37: 0.01 | K37: 1.55 | L37: 0.5 | N37: 0.35 | O37: ='MODEL ASSUMPTIONS'!D38 -> 300 | P37: =100%-L37 -> 0.5 | Q37: 1 | R37: 0 | T37: High Density Residential/Office | U37: 0 | V37: 333 | W37: 337.5 | X37: 337.5 | Y37: 337.5 | AA37: 0 | AB37: 510.9885 | AC37: 517.89375 | AD37: 517.89375 | AE37: 517.89375 | AG37: 0 | AH37: 225640.8 | AI37: 228690 | AJ37: 228690 | AK37: 228690 | AM37: 0 | AN37: 752.136 | AO37: 762.3 | AP37: 762.3 | AQ37: 762.3 | AS37: 14.8 | AT37: 15 | AU37: 15 | AV37: 15
B38: Office | C38: 57.38518061 | D38: ='[6]Old Alternatives Land Use'!B40 -> 6 | E38: ='[6]Old Alternatives Land Use'!C40 -> 6 | F38: ='[6]Old Alternatives Land Use'!D40 -> 6 | G38: ='[6]Old Alternatives Land Use'!E40 -> 6 | H38: Office | I38: 0 | J38: 0 | K38: 0 | L38: 0 | N38: 0.35 | O38: ='MODEL ASSUMPTIONS'!D38 -> 300 | P38: =100%-L38 -> 1 | Q38: 1 | R38: 0 | T38: Office | U38: 0 | V38: 0 | W38: 0 | X38: 0 | Y38: 0 | AA38: 0 | AB38: 0 | AC38: 0 | AD38: 0 | AE38: 0 | AG38: =C38*$N38*43560*$P38 -> 874894.4636 | AH38: =D38*$N38*43560*$P38 -> 91476 | AI38: =E38*$N38*43560*$P38 -> 91476 | AJ38: =F38*$N38*43560*$P38 -> 91476 | AK38: 91476 | AM38: 2916.314879 | AN38: 304.92 | AO38: 304.92 | AP38: 304.92 | AQ38: 304.92 | AS38: 0 | AT38: 0 | AU38: 0 | AV38: 0
B39: Business Park | C39: 60.61481939 | D39: ='[6]Old Alternatives Land Use'!B41 -> 0 | E39: ='[6]Old Alternatives Land Use'!C41 -> 0 | F39: ='[6]Old Alternatives Land Use'!D41 -> 0 | G39: ='[6]Old Alternatives Land Use'!E41 -> 0 | H39: Business Park | I39: 0 | J39: 0 | K39: 0 | L39: 0 | N39: 0.35 | O39: ='MODEL ASSUMPTIONS'!D39 -> 300 | P39: 1 | Q39: 1 | R39: 0 | T39: Business Park | U39: 0 | V39: 0 | W39: 0 | X39: 0 | Y39: 0 | AA39: 0 | AB39: 0 | AC39: 0 | AD39: 0 | AE39: 0 | AG39: 924133.5364 | AH39: 0 | AI39: 0 | AJ39: 0 | AK39: 0 | AM39: 3080.445121 | AN39: 0 | AO39: 0 | AP39: 0 | AQ39: 0 | AS39: 0 | AT39: 0 | AU39: 0 | AV39: 0
B40: Community Commercial/Office | C40: 69.4 | D40: ='[6]Old Alternatives Land Use'!B42 -> 32.3 | E40: ='[6]Old Alternatives Land Use'!C42 -> 32.3 | F40: ='[6]Old Alternatives Land Use'!D42 -> 32.1 | G40: ='[6]Old Alternatives Land Use'!E42 -> 32.1 | H40: Community Commercial/Office | I40: 0 | J40: 0 | K40: 0 | L40: 0 | N40: 0.35 | O40: ='MODEL ASSUMPTIONS'!D40 -> 500 | P40: 1 | Q40: 0.5 | R40: 0.5 | T40: Community Commercial/Office | U40: 0 | V40: 0 | W40: 0 | X40: 0 | Y40: 0 | AA40: 0 | AB40: 0 | AC40: 0 | AD40: 0 | AE40: 0 | AG40: 1058072.4 | AH40: 492445.8 | AI40: 492445.8 | AJ40: 489396.6 | AK40: 489396.6 | AM40: 2116.1448 | AN40: 984.8916 | AO40: 984.8916 | AP40: 978.7932 | AQ40: 978.7932 | AS40: 0 | AT40: 0 | AU40: 0 | AV40: 0
B41: Community Commercial | C41: 741.3 | D41: ='[6]Old Alternatives Land Use'!B43 -> 138.1 | E41: ='[6]Old Alternatives Land Use'!C43 -> 302.1 | F41: ='[6]Old Alternatives Land Use'!D43 -> 154.5 | G41: ='[6]Old Alternatives Land Use'!E43 -> 302.1 | H41: Community Commercial | I41: 0 | J41: 0 | K41: 0 | L41: 0 | N41: 0.25 | O41: ='MODEL ASSUMPTIONS'!D40 -> 500 | P41: 1 | Q41: 0 | R41: 1 | T41: Community Commercial | U41: 0 | V41: 0 | W41: 0 | X41: 0 | Y41: 0 | AA41: 0 | AB41: 0 | AC41: 0 | AD41: 0 | AE41: 0 | AG41: 8072757 | AH41: 1503909 | AI41: 3289869 | AJ41: 1682505 | AK41: 3289869 | AM41: 16145.514 | AN41: 3007.818 | AO41: 6579.738 | AP41: 3365.01 | AQ41: 6579.738 | AS41: 0 | AT41: 0 | AU41: 0 | AV41: 0
B42: Community Commercial/High Density Residential | C42: 0 | D42: ='[6]Old Alternatives Land Use'!B44 -> 0 | E42: ='[6]Old Alternatives Land Use'!C44 -> 0 | F42: ='[6]Old Alternatives Land Use'!D44 -> 0 | G42: ='[6]Old Alternatives Land Use'!E44 -> 0 | H42: Community Commercial/High Density Residential | I42: 22.5 | J42: 0.01 | K42: 1.55 | L42: 0.33 | N42: 0.6 | O42: ='MODEL ASSUMPTIONS'!D40 -> 500 | P42: 0.67 | Q42: 0.5 | R42: 0.5 | T42: Community Commercial/High Density Residential | U42: 0 | V42: 0 | W42: 0 | X42: 0 | Y42: 0 | AA42: 0 | AB42: 0 | AC42: 0 | AD42: 0 | AE42: 0 | AG42: 0 | AH42: 0 | AI42: 0 | AJ42: 0 | AK42: 0 | AM42: 0 | AN42: 0 | AO42: 0 | AP42: 0 | AQ42: 0 | AS42: 0 | AT42: 0 | AU42: 0 | AV42: 0
B43: Downtown | C43: 0 | D43: ='[6]Old Alternatives Land Use'!B45 -> 0 | E43: ='[6]Old Alternatives Land Use'!C45 -> 0 | F43: ='[6]Old Alternatives Land Use'!D45 -> 0 | G43: ='[6]Old Alternatives Land Use'!E45 -> 0 | H43: Downtown | I43: 22.5 | J43: 0.01 | K43: 1.55 | L43: 0.25 | N43: 3 | O43: ='MODEL ASSUMPTIONS'!D40 -> 500 | P43: 0.75 | Q43: 0.5 | R43: 0.5 | T43: Downtown | U43: 0 | V43: 0 | W43: 0 | X43: 0 | Y43: 0 | AA43: 0 | AB43: 0 | AC43: 0 | AD43: 0 | AE43: 0 | AG43: 0 | AH43: 0 | AI43: 0 | AJ43: 0 | AK43: 0 | AM43: 0 | AN43: 0 | AO43: 0 | AP43: 0 | AQ43: 0 | AS43: 0 | AT43: 0 | AU43: 0 | AV43: 0
B44: Heavy Commercial | C44: 0 | D44: ='[6]Old Alternatives Land Use'!B46 -> 99.3 | E44: ='[6]Old Alternatives Land Use'!C46 -> 115.3 | F44: ='[6]Old Alternatives Land Use'!D46 -> 54.3 | G44: ='[6]Old Alternatives Land Use'!E46 -> 115.3 | H44: Heavy Commercial | I44: 0 | J44: 0 | K44: 0 | L44: 0 | N44: 0.35 | O44: ='MODEL ASSUMPTIONS'!D41 -> 500 | P44: 1 | Q44: 0 | R44: 1 | T44: Heavy Commercial | U44: 0 | V44: 0 | W44: 0 | X44: 0 | Y44: 0 | AA44: 0 | AB44: 0 | AC44: 0 | AD44: 0 | AE44: 0 | AG44: 0 | AH44: 1513927.8 | AI44: 1757863.8 | AJ44: 827857.8 | AK44: 1757863.8 | AM44: 0 | AN44: 3027.8556 | AO44: 3515.7276 | AP44: 1655.7156 | AQ44: 3515.7276 | AS44: 0 | AT44: 0 | AU44: 0 | AV44: 0
B45: Highway Commercial | C45: 0 | D45: ='[6]Old Alternatives Land Use'!B47 -> 0 | E45: ='[6]Old Alternatives Land Use'!C47 -> 0 | F45: ='[6]Old Alternatives Land Use'!D47 -> 0 | G45: ='[6]Old Alternatives Land Use'!E47 -> 0 | H45: Highway Commercial | I45: 0 | J45: 0 | K45: 0 | L45: 0 | N45: 0.35 | O45: ='MODEL ASSUMPTIONS'!D42 -> 500 | P45: 1 | Q45: 0 | R45: 1 | T45: Highway Commercial | U45: 0 | V45: 0 | W45: 0 | X45: 0 | Y45: 0 | AA45: 0 | AB45: 0 | AC45: 0 | AD45: 0 | AE45: 0 | AG45: 0 | AH45: 0 | AI45: 0 | AJ45: 0 | AK45: 0 | AM45: 0 | AN45: 0 | AO45: 0 | AP45: 0 | AQ45: 0 | AS45: 0 | AT45: 0 | AU45: 0 | AV45: 0
B46: Neighborhood Center | C46: 0 | D46: ='[6]Old Alternatives Land Use'!B48 -> 9.5 | E46: ='[6]Old Alternatives Land Use'!C48 -> 49.8 | F46: ='[6]Old Alternatives Land Use'!D48 -> 30.6 | G46: ='[6]Old Alternatives Land Use'!E48 -> 49.8 | H46: Neighborhood Center | I46: 22.5 | J46: 0.01 | K46: 1.55 | L46: 0.25 | N46: 0.35 | O46: ='MODEL ASSUMPTIONS'!D40 -> 500 | P46: 0.75 | Q46: 0.5 | R46: 0.5 | T46: Neighborhood Center | U46: 0 | V46: 53.4375 | W46: 280.125 | X46: 172.125 | Y46: 280.125 | AA46: 0 | AB46: 81.99984375 | AC46: 429.8518125 | AD46: 264.1258125 | AE46: 429.8518125 | AG46: 0 | AH46: 108627.75 | AI46: 569438.1 | AJ46: 349895.7 | AK46: 569438.1 | AM46: 0 | AN46: 217.2555 | AO46: 1138.8762 | AP46: 699.7914 | AQ46: 1138.8762 | AS46: 2.375 | AT46: 12.45 | AU46: 7.65 | AV46: 12.45
B47: Industrial | C47: 1126.3 | D47: ='[6]Old Alternatives Land Use'!B49 -> 656.3 | E47: ='[6]Old Alternatives Land Use'!C49 -> 656.3 | F47: ='[6]Old Alternatives Land Use'!D49 -> 656.3 | G47: ='[6]Old Alternatives Land Use'!E49 -> 656.3 | H47: Industrial | I47: 0 | J47: 0 | K47: 0 | L47: 0 | N47: 0.6 | O47: ='MODEL ASSUMPTIONS'!D43 -> 1000 | P47: 1 | Q47: 0.02 | R47: 0.02 | T47: Industrial | U47: 0 | V47: 0 | W47: 0 | X47: 0 | Y47: 0 | AA47: 0 | AB47: 0 | AC47: 0 | AD47: 0 | AE47: 0 | AG47: 29436976.8 | AH47: 17153056.8 | AI47: 17153056.8 | AJ47: 17153056.8 | AK47: 17153056.8 | AM47: 29436.9768 | AN47: 17153.0568 | AO47: 17153.0568 | AP47: 17153.0568 | AQ47: 17153.0568 | AS47: 0 | AT47: 0 | AU47: 0 | AV47: 0
B48: Public | C48: 696 | D48: ='[6]Old Alternatives Land Use'!B50 -> 45 | E48: ='[6]Old Alternatives Land Use'!C50 -> 54 | F48: ='[6]Old Alternatives Land Use'!D50 -> 38 | G48: ='[6]Old Alternatives Land Use'!E50 -> 54 | H48: Public | I48: 0 | J48: 0 | K48: 0 | L48: 0 | N48: 0 | O48: 0 | P48: 1 | Q48: 0 | R48: 0 | T48: Public | U48: 0 | V48: 0 | W48: 0 | X48: 0 | Y48: 0 | AA48: 0 | AB48: 0 | AC48: 0 | AD48: 0 | AE48: 0 | AG48: 0 | AH48: 0 | AI48: 0 | AJ48: 0 | AK48: 0 | AM48: 0 | AN48: 0 | AO48: 0 | AP48: 0 | AQ48: 0 | AS48: 0 | AT48: 0 | AU48: 0 | AV48: 0
B49: Park | C49: 209.2 | D49: ='[6]Old Alternatives Land Use'!B51 -> 145 | E49: ='[6]Old Alternatives Land Use'!C51 -> 252 | F49: ='[6]Old Alternatives Land Use'!D51 -> 201 | G49: ='[6]Old Alternatives Land Use'!E51 -> 332 | H49: Park | I49: 0 | J49: 0 | K49: 0 | L49: 0 | N49: 0 | O49: 0 | P49: 1 | Q49: 0 | R49: 0 | T49: Park | U49: 0 | V49: 0 | W49: 0 | X49: 0 | Y49: 0 | AA49: 0 | AB49: 0 | AC49: 0 | AD49: 0 | AE49: 0 | AG49: 0 | AH49: 0 | AI49: 0 | AJ49: 0 | AK49: 0 | AM49: 0 | AN49: 0 | AO49: 0 | AP49: 0 | AQ49: 0 | AS49: 0 | AT49: 0 | AU49: 0 | AV49: 0
B50: Detention Basin | C50: 0 | D50: ='[6]Old Alternatives Land Use'!B52 -> 20 | E50: ='[6]Old Alternatives Land Use'!C52 -> 20 | F50: ='[6]Old Alternatives Land Use'!D52 -> 20 | G50: ='[6]Old Alternatives Land Use'!E52 -> 20 | H50: Detention Basin | I50: 0 | J50: 0 | K50: 0 | L50: 0 | N50: 0 | O50: 0 | P50: 1 | Q50: 0 | R50: 0 | T50: Detention Basin | U50: 0 | V50: 0 | W50: 0 | X50: 0 | Y50: 0 | AA50: 0 | AB50: 0 | AC50: 0 | AD50: 0 | AE50: 0 | AG50: 0 | AH50: 0 | AI50: 0 | AJ50: 0 | AK50: 0 | AM50: 0 | AN50: 0 | AO50: 0 | AP50: 0 | AQ50: 0 | AS50: 0 | AT50: 0 | AU50: 0 | AV50: 0
B51: Urban Reserve | C51: 1129.3 | D51: ='[6]Old Alternatives Land Use'!B53 -> 1277 | E51: ='[6]Old Alternatives Land Use'!C53 -> 1099.4 | F51: ='[6]Old Alternatives Land Use'!D53 -> 1333.2 | G51: ='[6]Old Alternatives Land Use'!E53 -> 763 | H51: Urban Reserve | I51: 0 | J51: 0 | K51: 0 | L51: 0 | N51: 0 | O51: 0 | P51: 1 | Q51: 0 | R51: 0 | T51: Urban Reserve | U51: 0 | V51: 0 | W51: 0 | X51: 0 | Y51: 0 | AA51: 0 | AB51: 0 | AC51: 0 | AD51: 0 | AE51: 0 | AG51: 0 | AH51: 0 | AI51: 0 | AJ51: 0 | AK51: 0 | AM51: 0 | AN51: 0 | AO51: 0 | AP51: 0 | AQ51: 0 | AS51: 0 | AT51: 0 | AU51: 0 | AV51: 0
B52: No Designation, ROW | C52: 0 | D52: ='[6]Old Alternatives Land Use'!B54 -> 0 | E52: ='[6]Old Alternatives Land Use'!C54 -> 0 | F52: ='[6]Old Alternatives Land Use'!D54 -> 0 | G52: ='[6]Old Alternatives Land Use'!E54 -> 0 | H52: No Designation, ROW | I52: 0 | J52: 0 | K52: 0 | L52: 0 | N52: 0 | O52: 0 | P52: 1 | Q52: 0 | R52: 0 | T52: No Designation, ROW | U52: 0 | V52: 0 | W52: 0 | X52: 0 | Y52: 0 | AA52: 0 | AB52: 0 | AC52: 0 | AD52: 0 | AE52: 0 | AG52: 0 | AH52: 0 | AI52: 0 | AJ52: 0 | AK52: 0 | AM52: 0 | AN52: 0 | AO52: 0 | AP52: 0 | AQ52: 0 | AS52: 0 | AT52: 0 | AU52: 0 | AV52: 0
B53: Agriculture | C53: 6298.2 | D53: ='[6]Old Alternatives Land Use'!B55 -> 0 | E53: ='[6]Old Alternatives Land Use'!C55 -> 0 | F53: ='[6]Old Alternatives Land Use'!D55 -> 0 | G53: ='[6]Old Alternatives Land Use'!E55 -> 0 | H53: Agriculture | I53: 0 | J53: 0 | K53: 0 | L53: 0 | N53: 0 | O53: 0 | P53: 1 | Q53: 0 | R53: 0 | T53: Agriculture | U53: 0 | V53: 0 | W53: 0 | X53: 0 | Y53: 0 | AA53: 0 | AB53: 0 | AC53: 0 | AD53: 0 | AE53: 0 | AG53: 0 | AH53: 0 | AI53: 0 | AJ53: 0 | AK53: 0 | AM53: 0 | AN53: 0 | AO53: 0 | AP53: 0 | AQ53: 0 | AS53: 0 | AT53: 0 | AU53: 0 | AV53: 0
B54: Total | C54: =SUM(C31:C53) -> 14648.1 | D54: =SUM(D31:D53) -> 3987.8 | E54: =SUM(E31:E53) -> 4199.3 | F54: =SUM(F31:F53) -> 3990.1 | G54: =SUM(G31:G53) -> 4198.7 | T54: Total Additional | U54: =SUM(U31:U53) -> 27060.50104 | V54: =SUM(V31:V53) -> 15510.3875 | W54: =SUM(W31:W53) -> 17601.775 | X54: =SUM(X31:X53) -> 15937.275 | Y54: =SUM(Y31:Y53) -> 17275.775 | AA54: =SUM(AA31:AA53) -> 63820.28757 | AB54: =SUM(AB31:AB53) -> 32211.23462 | AC54: =SUM(AC31:AC53) -> 35601.96049 | AD54: =SUM(AD31:AD53) -> 31978.65949 | AE54: =SUM(AE31:AE53) -> 36411.78049 | AG54: =SUM(AG31:AG53) -> 40366834.2 | AH54: =SUM(AH31:AH53) -> 21089083.95 | AI54: =SUM(AI31:AI53) -> 23582839.5 | AJ54: =SUM(AJ31:AJ53) -> 20822877.9 | AK54: =SUM(AK31:AK53) -> 23579790.3 | AM54: =SUM(AM31:AM53) -> 53695.3956 | AN54: =SUM(AN31:AN53) -> 25447.9335 | AO54: =SUM(AO31:AO53) -> 30439.5102 | AP54: =SUM(AP31:AP53) -> 24919.587 | AQ54: =SUM(AQ31:AQ53) -> 30433.4118 | AS54: =SUM(AS31:AS47) -> 1546.875 | AT54: =SUM(AT31:AT47) -> 1609.55 | AU54: =SUM(AU31:AU47) -> 1456.75 | AV54: =SUM(AV31:AV47) -> 1865.55
B55: Acres of Urban Area | C55: =SUM(C31:C52) -> 8349.9 | D55: =SUM(D31:D52) -> 3987.8 | E55: =SUM(E31:E52) -> 4199.3 | F55: =SUM(F31:F52) -> 3990.1 | G55: =SUM(G31:G52) -> 4198.7
B56: Acres of Commercial, Office, Mixed Use, Industrial Uses | C56: =IFERROR((SUM(C38:C41,C43:C47))+(50%*C37)+(50%*C42),0) -> 2055 | D56: =IFERROR((SUM(D38:D41,D43:D47))+(50%*D37)+(50%*D42),0) -> 956.3 | E56: =IFERROR((SUM(E38:E41,E43:E47))+(50%*E37)+(50%*E42),0) -> 1176.8 | F56: =IFERROR((SUM(F38:F41,F43:F47))+(50%*F37)+(50%*F42),0) -> 948.8 | G56: =IFERROR((SUM(G38:G41,G43:G47))+(50%*G37)+(50%*G42),0) -> 1176.6
B57: Acres of Commercial Uses | C57: =IFERROR((SUM(C46,C45,C44,C43,C41))+(50%*C40)+(50%*C42),0) -> 776 | D57: =IFERROR((SUM(D46,D45,D44,D43,D41))+(50%*D40)+(50%*D42),0) -> 263.05 | E57: =IFERROR((SUM(E46,E45,E44,E43,E41))+(50%*E40)+(50%*E42),0) -> 483.35 | F57: =IFERROR((SUM(F46,F45,F44,F43,F41))+(50%*F40)+(50%*F42),0) -> 255.45 | G57: =IFERROR((SUM(G46,G45,G44,G43,G41))+(50%*G40)+(50%*G42),0) -> 483.25
D58: ENTER ADDITIONAL ACRES [DO NOT INCLUDE EXISTING]
AG59: Office Square Feet | AH59: =AH37+AH38+(AH40*$Q$40)+(AH46*$Q$46) -> 617653.575 | AI59: =AI37+AI38+(AI40*$Q$40)+(AI46*$Q$46) -> 851107.95 | AJ59: 739812.15 | AK59: 849583.35
B60: Percentage of Acreage to be Annexed from County (0utside City Limits) | H60: Percentage of Acreage to be Annexed from County (Unincorporated Islands) | AG60: Retail Square Feet | AH60: =(AH40*$R$40)+AH41+AH44+(AH46*$R$46) -> 3318373.575 | AI60: =(AI40*$R$40)+AI41+AI44+(AI46*$R$46) -> 5578674.75 | AJ60: 2930008.95 | AK60: 5577150.15
C61: ='INPUT - DATA'!$B$11 -> 2030 | I61: ='INPUT - DATA'!$B$11 -> 2030 | AG61: Industrial Square Feet | AH61: =AH47 -> 17153056.8 | AI61: =AI47 -> 17153056.8 | AJ61: 17153056.8 | AK61: 17153056.8
B62: Land Use | C62: =D$17 -> Alternative A | D62: =E$17 -> Alternative B | E62: =F$17 -> Alternative C | F62: =G$17 -> Alternative D | H62: Land Use | I62: =D$17 -> Alternative A | J62: =E$17 -> Alternative B | K62: Alternative C | L62: Alternative D | AG62: Total Non-Residential Square Feet | AH62: =SUM(AH59:AH61) -> 21089083.95 | AI62: =SUM(AI59:AI61) -> 23582839.5 | AJ62: 20822877.9 | AK62: 23579790.3
B63: Rural Residential | C63: 1 | D63: 1 | E63: 1 | F63: 1 | H63: Rural Residential | I63: 0 | J63: 0 | K63: 0 | L63: 0
B64: Very Low Density Residential | C64: 1 | D64: 1 | E64: 1 | F64: 1 | H64: Very Low Density Residential | I64: 0 | J64: 0 | K64: 0 | L64: 0
B65: Low Density Residential | C65: 0.93 | D65: 0.75 | E65: 0.87 | F65: 0.95 | H65: Low Density Residential | I65: 0.02 | J65: 0.05 | K65: 0.04 | L65: 0.015
B66: Low-Medium Density Residential | C66: 0.6 | D66: 0.7 | E66: 0.465 | F66: 0.85 | H66: Low-Medium Density Residential | I66: 0.01 | J66: 0.005 | K66: 0.015 | L66: 0.035
B67: Medium Density Residential | C67: 0.93 | D67: 0.945 | E67: 0.96 | F67: 0.85 | H67: Medium Density Residential | I67: 0.02 | J67: 0.01 | K67: 0.01 | L67: 0.04
B68: High Density Residential | C68: 0.79 | D68: 0.83 | E68: 0.82 | F68: 0.82 | H68: High Density Residential | I68: 0.01 | J68: 0.005 | K68: 0.01 | L68: 0.01
B69: High Density Residential/Office | C69: 0 | D69: 0 | E69: 0 | F69: 0 | H69: High Density Residential/Office | I69: 0 | J69: 0 | K69: 0 | L69: 0
B70: Office | C70: 1 | D70: 1 | E70: 1 | F70: 1 | H70: Office | I70: 0 | J70: 0 | K70: 0 | L70: 0
B71: Business Park | C71: 1 | D71: 1 | E71: 1 | F71: 1 | H71: Business Park | I71: 0 | J71: 0 | K71: 0 | L71: 0
B72: Community Commercial/Office | C72: 0 | D72: 0 | E72: 0 | F72: 0 | H72: Community Commercial/Office | I72: 0 | J72: 0 | K72: 0 | L72: 0
B73: Community Commercial | C73: 0.5 | D73: 0.77 | E73: 0.55 | F73: 0.77 | H73: Community Commercial | I73: 0 | J73: 0 | K73: 0 | L73: 0
B74: Community Commercial/High Density Residential | C74: 0 | D74: 0 | E74: 0 | F74: 0 | H74: Community Commercial/High Density Residential | I74: 0 | J74: 0 | K74: 0 | L74: 0
B75: Downtown | C75: 0 | D75: 0 | E75: 0 | F75: 0 | H75: Downtown | I75: 0 | J75: 0 | K75: 0 | L75: 0
B76: Heavy Commercial | C76: 0.6 | D76: 0.65 | E76: 0.1 | F76: 0.65 | H76: Heavy Commercial | I76: 0 | J76: 0 | K76: 0 | L76: 0
B77: Highway Commercial | C77: 0 | D77: 0 | E77: 0 | F77: 0 | H77: Highway Commercial | I77: 0 | J77: 0 | K77: 0 | L77: 0
B78: Neighborhood Center | C78: 1 | D78: 1 | E78: 1 | F78: 1 | H78: Neighborhood Center | I78: 0 | J78: 0 | K78: 0 | L78: 0
B79: Industrial | C79: 0.8 | D79: 0.8 | E79: 0.8 | F79: 0.8 | H79: Industrial | I79: 0 | J79: 0 | K79: 0 | L79: 0
C80: ADDITIONAL ACRES ONLY [DO NOT INCLUDE EXISTING] | I80: ADDITIONAL ACRES ONLY [DO NOT INCLUDE EXISTING]
B82: Residential Unit Square Footage Assumptions
B83: Land Use | C83: Unit Size | D83: Lot Size | E83: FAR
B84: Rural Residential | C84: 1500 | D84: =43560/I31 -> 87120 | E84: =C84/D84 -> 0.01721763085
B85: Very Low Density Residential | C85: 1500 | D85: 27225 | E85: 0.05509641873
B86: Low Density Residential | C86: 1500 | D86: 8712 | E86: 0.1721763085
B87: Low-Medium Density Residential | C87: 1000 | D87: 5808 | E87: 0.1721763085
B88: Medium Density Residential | C88: 1000 | D88: 3960 | E88: 0.2525252525
B89: High Density Residential | C89: 600 | D89: 1936 | E89: 0.3099173554
B90: High Density Residential/Office | C90: 600 | D90: 1936 | E90: 0.3099173554
B91: Community Commercial/High Density Residential | C91: 600 | D91: =43560/I42 -> 1936 | E91: 0.3099173554
B92: Downtown | C92: 600 | D92: =43560/I43 -> 1936 | E92: 0.3099173554
B93: Neighborhood Center | C93: 600 | D93: =43560/I46 -> 1936 | E93: 0.3099173554
C94: * in SF of living area
C95: total SF = Acres*43560*FAR
B97: Other Development-Related Recurring General Fund Revenues for | C97: ='INPUT - DATA'!B8 -> 2010
B98: Item | C98: Amount
B99: Transient Lodging Taxes | C99: ='T4 Fiscal Factors'!Q9 -> 699555
B100: Franchises | C100: ='T4 Fiscal Factors'!Q10 -> 2046355
B101: Business License Taxes | C101: ='T4 Fiscal Factors'!Q11 -> 1038069
B102: Other Fines, Forfeitures, and Penalties | C102: ='T4 Fiscal Factors'!Q12 -> 273263
B103: State Motor Vehicle In-Lieu Tax | C103: ='T4 Fiscal Factors'!Q13 -> 323820
B104: Fees and Charges per Service | C104: ='T4 Fiscal Factors'!Q14 -> 3143817
B105: Total General Fund Revenues | C105: =SUM(C99:C104) -> 7524879
B109: Development-Related General Fund Expenditures for | C109: ='INPUT - DATA'!B8 -> 2010
B110: Item | C110: Amount
B111: General Government | C111: ='T4 Fiscal Factors'!V9 -> 3458270
B112: Public Safety | C112: ='T4 Fiscal Factors'!V10 -> 23132804
B113: Public Ways and Facilities/Transportation | C113: ='T4 Fiscal Factors'!V11 -> 8126569
B114: Recreation, Parks, Culture | C114: ='T4 Fiscal Factors'!V12 -> 2829782
B115: Community Development | C115: ='T4 Fiscal Factors'!V13 -> 6464170
B116: Total Expenses | C116: =SUM(C111:C115) -> 44011595
B160: Service Mitigation Fees
B161: Land Use Category | C161: Per Unit Per Year
B162: Single Family - Detached | C162: 500
B163: Single Family - Attached | C163: 394
B164: Multi-Family | C164: 394
B165: Mixed Use | C165: 394
B167: Non-Residential Service Mitigation Fees
B168: Land Use Category | C168: Per Sq Ft Per Year
B169: Non-Residential (Office) | C169: 0
B170: Non-Residential (Commercial) | C170: 0
B171: Non-Residential (Heavy Commercial) | C171: 0
B172: Non-Residential (Industrial) | C172: 0
B478: Demographics Baseline and Horizon Year - TURLOCK USE ONLY
C479: =$B$8 -> 2010 | D479: =B476 -> 0
C480: Existing | D480: Alt. 1 | E480: Alt. 2 | F480: Alt. 3 | G480: Alt. 4
B481: Residents | C481: 71100 | D481: 104490 | E481: 114790 | F481: 101630 | G481: 126770
B482: Jobs | C482: 28260 | D482: 53800 | E482: 57680 | F482: 49130 | G482: 60260
B483: Service Population | C483: 99360 | D483: 158290 | E483: 172470 | F483: 150760 | G483: 187030
B484: Additional Residents | C484: ='INPUT - DATA'!C481-'INPUT - DATA'!$C$481 -> 0 | D484: ='INPUT - DATA'!D481-'INPUT - DATA'!$C$481 -> 33390 | E484: ='INPUT - DATA'!E481-'INPUT - DATA'!$C$481 -> 43690 | F484: ='INPUT - DATA'!F481-'INPUT - DATA'!$C$481 -> 30530 | G484: ='INPUT - DATA'!G481-'INPUT - DATA'!$C$481 -> 55670
B487: Land Use Data for Alternatives and Existing Conditons - TURLOCK USE ONLY
C488: ='INPUT - DATA'!$B$8 -> 2010 | D488: ='INPUT - DATA'!$B$11 -> 2030
B489: Land Use | C489: =$C$17 -> Existing | D489: =$D$17 -> Alternative A | E489: =$E$17 -> Alternative B | F489: =$F$17 -> Alternative C | G489: =$G$17 -> Alternative D
B490: Rural Residential | C490: 676.5 | D490: 0 | E490: 0 | F490: 0 | G490: 18.439
B491: Very Low Density Residential | C491: 132.7 | D491: 289.591 | E491: 289.591 | F491: 289.5913536 | G491: 289.591 | P491: =D491-$C491 -> 156.891 | Q491: =E491-$C491 -> 156.891 | R491: 156.8913536 | S491: 156.891
B492: Low Density Residential | C492: =L492 -> 2293.579517 | D492: 2906.883 | E492: 2995.866 | F492: 3849.394277 | G492: 2995.866 | J492: =D492 -> 2906.883 | K492: =J492/$I$493 -> 0.6956354121 | L492: =$H$493*K492 -> 2293.579517 | P492: =D492-$C492 -> 613.3034829 | Q492: =E492-$C492 -> 702.2864829 | R492: =F492-$C492 -> 1555.814759 | S492: =G492-$C492 -> 702.2864829
B493: Low-Medium Density Residential | C493: =L493 -> 317.0119582 | D493: 401.781 | E493: 685.967 | F493: 198.2543333 | G493: 793.462 | H493: 3297.1 | I493: =SUM(D492:D494) -> 4178.745 | J493: =D493 -> 401.781 | K493: =J493/$I$493 -> 0.09614872408 | L493: =$H$493*K493 -> 317.0119582 | P493: 84.76904184 | Q493: 368.9550418 | R493: -118.7576248 | S493: 476.4500418
B494: Medium Density Residential | C494: 686.5085247 | D494: 870.081 | E494: 918.706 | F494: 756.8695466 | G494: 1112.0545 | J494: 870.081 | K494: 0.2082158639 | L494: 686.5085247 | P494: 183.5724753 | Q494: 232.1974753 | R494: 70.36102192 | S494: 425.5459753
B495: High Density Residential | C495: 228.9 | D495: 366.571 | E495: 390.907 | F495: 286.4381941 | G495: 442.496 | P495: 137.671 | Q495: 162.007 | R495: 57.53819412 | S495: 213.596
B496: High Density Residential/Office | C496: 0 | D496: 14.261 | E496: 14.261 | F496: 14.26112959 | G496: 14.261 | P496: 14.261 | Q496: 14.261 | R496: 14.26112959 | S496: 14.261
B497: Office | C497: =L497 -> 57.38518061 | D497: 257.587 | E497: 257.587 | F497: 311.9441953 | G497: 254.4795 | H497: 118 | I497: =SUM(D497:D498) -> 529.671 | J497: =D497 -> 257.587 | K497: =J497/$I$497 -> 0.4863150899 | L497: =$H$497*K497 -> 57.38518061 | P497: 200.2018194 | Q497: 200.2018194 | R497: 254.5590147 | S497: 197.0943194
B498: Business Park | C498: =L498 -> 60.61481939 | D498: 272.084 | E498: 272.084 | F498: 282.1156642 | G498: 272.084 | J498: =D498 -> 272.084 | K498: =J498/$I$497 -> 0.5136849101 | L498: =$H$497*K498 -> 60.61481939 | P498: 211.4691806 | Q498: 211.4691806 | R498: 221.5008448 | S498: 211.4691806
B499: Community Commercial/Office | C499: 69.4 | D499: 15.224 | E499: 15.224 | F499: 23.80580091 | G499: 15.224 | H499: 69.4 | I499: =SUM(D496,D499,D501,D505) -> 60.03 | P499: =D499-$C499 -> -54.176 | Q499: -54.176 | R499: -45.59419909 | S499: -54.176
B500: Community Commercial | C500: 699.5 | D500: 530.334 | E500: 530.334 | F500: 754.2488316 | G500: 588.96 | P500: =D500-$C500 -> -169.166 | Q500: -169.166 | R500: 54.74883158 | S500: -110.54
B501: Community Commercial/High Density Residential | C501: 0 | D501: 8.582 | E501: 8.582 | F501: 0 | G501: 8.582 | I501: HDR/O | J501: =D496 -> 14.261 | K501: =J501/$I$499 -> 0.2375645511 | L501: =$H$499*K501 -> 16.48697984 | P501: 8.582 | Q501: 8.582 | R501: 0 | S501: 8.582
B502: Downtown | C502: 0 | D502: 167.73 | E502: 167.73 | F502: 0 | G502: 167.73 | I502: CC/O | J502: =D499 -> 15.224 | K502: =J502/$I$499 -> 0.2536065301 | L502: =$H$499*K502 -> 17.60029319 | P502: 167.73 | Q502: 167.73 | R502: 0 | S502: 167.73
B503: Heavy Commercial | C503: 0 | D503: 365.977 | E503: 475.564 | F503: 564.9121255 | G503: 475.564 | I503: CC/HDR | J503: =D501 -> 8.582 | K503: =J503/$I$499 -> 0.1429618524 | L503: =$H$499*K503 -> 9.921552557 | P503: =D503-$C503 -> 365.977 | Q503: 475.564 | R503: 564.9121255 | S503: 475.564
B504: Highway Commercial | C504: 0 | D504: 75.279 | E504: 105.553 | F504: 0 | G504: 133.867 | I504: NC | J504: =D505 -> 21.963 | K504: =J504/$I$499 -> 0.3658670665 | L504: 25.39117441 | P504: 75.279 | Q504: 105.553 | R504: 0 | S504: 133.867
B505: Neighborhood Center | C505: 0 | D505: 21.963 | E505: 21.963 | F505: 0 | G505: 39.938 | P505: 21.963 | Q505: 21.963 | R505: 0 | S505: 39.938
B506: Industrial | C506: 1220.5 | D506: 1871.26 | E506: 1918.876 | F506: 1897.81779 | G506: 1918.876 | P506: 650.76 | Q506: 698.376 | R506: 677.3177899 | S506: 698.376
B507: Public | C507: 701.4 | D507: 973.995 | E507: 996.105 | F507: 802.3563633 | G507: 1013.191 | I507: =D500+D503+D504+D505 -> 993.553 | J507: =D500 -> 530.334
B508: Park | C508: 209.2 | D508: 349.474 | E508: 360.837 | F508: 349.6023191 | G508: 396.163 | J508: =D503 -> 365.977
B509: Detention Basin | C509: 0 | D509: 88.5 | E509: 103.871 | F509: 0 | G509: 124.468
B510: Urban Reserve | C510: 1234.1 | D510: 3421.937 | E510: 3421.937 | F510: 4010.249347 | G510: 3421.937
B511: No Designation, ROW | C511: 0 | D511: 199.605 | E511: 199.605 | F511: 215.5023105 | G511: 199.605
B512: Agriculture | C512: 4934.7 | D512: 0 | E512: 0 | F512: 92.91603702 | G512: 0
B513: Total | C513: =SUM(C490:C512) -> 13522 | D513: =SUM(D490:D512) -> 13468.699 | E513: =SUM(E490:E512) -> 14151.15 | F513: =SUM(F490:F512) -> 14700.27962 | G513: =SUM(G490:G512) -> 14696.838 | K513: 14597
B514: Acres of Additional Urban Area | C514: =SUM(C490:C511) -> 8587.3 | D514: =SUM(D490:D511) -> 13468.699 | E514: =SUM(E490:E511) -> 14151.15 | F514: =SUM(F490:F511) -> 14607.36358 | G514: =SUM(G490:G511) -> 14696.838
B515: Acres of Additional Commercial, Office, Mixed Use, Industrial Uses | C515: =(SUM(C497:C500,C502:C506))+(50%*C496)+(50%*C501) -> 2107.4 | D515: =(SUM(D497:D500,D502:D506))+(50%*D496)+(50%*D501) -> 3588.8595 | E515: =(SUM(E497:E500,E502:E506))+(50%*E496)+(50%*E501) -> 3776.3365 | F515: =(SUM(F497:F500,F502:F506))+(50%*F496)+(50%*F501) -> 3841.974972 | G515: =(SUM(G497:G500,G502:G506))+(50%*G496)+(50%*G501) -> 3878.144
B516: Acres of Additional Commercial Uses | C516: =(SUM(C505,C504,C503,C502,C500))+(50%*C499)+(50%*C501) -> 734.2 | D516: =(SUM(D505,D504,D503,D502,D500))+(50%*D499)+(50%*D501) -> 1173.186 | E516: =(SUM(E505,E504,E503,E502,E500))+(50%*E499)+(50%*E501) -> 1313.047 | F516: =(SUM(F505,F504,F503,F502,F500))+(50%*F499)+(50%*F501) -> 1331.063857 | G516: =(SUM(G505,G504,G503,G502,G500))+(50%*G499)+(50%*G501) -> 1417.962
B518: 2012 City of Turlock Wet Infrastructure O&M Costs per Acre Data
B519: Land Use | C519: Water | D519: Wastewater Treatment | E519: Sewer Collection | F519: Stormwater
B520: Residential-Low and Medium | C520: 1602.668786 | D520: 1489.821397 | E520: 170.0061188 | F520: 204.3462889
B521: Residential-High | C521: 2286.194193 | D521: 3465.351843 | E521: 395.4373448 | F521: 475.3132089
B522: Agriculture | C522: 0 | D522: 0 | E522: 0 | F522: 0
B523: Industrial | C523: 480.457452 | D523: 5214.304234 | E523: 595.0133534 | F523: 715.20232
B524: Commercial | C524: 738.0711516 | D524: 2635.438547 | E524: 300.7344906 | F524: 361.480972
B525: Public | C525: 328.5119035 | D525: 471.5039146 | E525: 53.80413431 | F525: 64.67223208
B526: Parks & Open Space | C526: 1073.558039 | D526: 0 | E526: 0 | F526: 0
B527: Office | C527: 958.8616671 | D527: 2635.438547 | E527: 300.7344906 | F527: 361.480972
B528: Source: Default from City of Turlock, Public Works 2012
D993: Ceres | E993: 2000 | F993: Database | G993: Turlock
D994: Hughson | E994: 2001 | F994: Custom Input | G994: Custom Input
D995: Modesto | E995: 2002
D996: Newman | E996: 2003
D997: Oakdale | E997: 2004
D998: Patterson | E998: 2005
D999: Riverbank | E999: 2006
D1000: Turlock | E1000: 2007
D1001: Waterford | E1001: 2008
E1002: 2009
E1003: 2010
E1004: 2011
E1005: 2012
E1006: 2013
E1007: 2014
E1008: 2015
E1009: 2016
E1010: 2017
E1011: 2018
E1012: 2019
E1013: 2020
E1014: 2021
E1015: 2022
E1016: 2023
E1017: 2024
E1018: 2025
E1019: 2026
E1020: 2027
E1021: 2028
E1022: 2029
E1023: 2030
E1024: 2031
E1025: 2032
E1026: 2033
E1027: 2034
E1028: 2035
E1029: 2036
E1030: 2037
E1031: 2038
... 30 more rows

Sheet MODEL ASSUMPTIONS
B3: Expenditure Variability per Growth in Service Population
B4: Expenditure Category | C4: % Variable
B5: General Government | C5: 0.5
B6: Public Safety | C6: 0.9
B7: Public Ways and Facilities/Transportation | C7: 0.9
B8: Recreation, Parks, Culture | C8: 0.9
B9: Community Development | C9: 0.5
B11: Revenue Variability per Growth in Service Population
B12: Revenue Category | C12: % Variable
B13: Transient Lodging Taxes | C13: 1
B14: Franchises | C14: 0.66
B15: Business License Taxes | C15: 0.9
B16: Other Fines, Forfeitures, and Penalties | C16: 0.66
B17: State Motor Vehicle In-Lieu Tax | C17: 0.9
B18: Fees and Charges per Service | C18: 0.66
B21: Compact Development Service Provision Efficiency Factor (Dispersed Growth vs Compact)
B22: Expenditure Category | C22: Efficiency Factor
B23: General Government | C23: -0.1
B24: Public Safety | C24: -0.1
B25: Public Ways and Facilities/Transportation | C25: -0.174
B26: Recreation, Parks, Culture | C26: -0.1
B27: Community Development | C27: -0.1
B30: Compact Development Threshold
B31: Land Use Type | C31: Service Population per Acre
B32: Residential | C32: 30
B33: Mixed Use | C33: 40
B34: Commercial | C34: 90
B37: Employee Density Factors
B38: Small Office Square Feet Per Employee | C38: sf/employee | D38: 300
B39: Business Park Office Square Feet Per Employee | C39: sf/employee | D39: 300
B40: Small Commercial Retail Square Feet Per Employee | C40: sf/employee | D40: 500
B41: Heavy Commercial Retail Square Feet Per Employee | C41: sf/employee | D41: 500
B42: Highway Commercial Retail Square Feet Per Employee | C42: sf/employee | D42: 500
B43: Industrial Square Feet Per Employee | C43: sf/employee | D43: 1000
B46: Square Foot Value Factors
B47: Office / SF Value Factor | C47: dollars | D47: ='Property Price'!L4 -> 90
B48: Retail / SF Value Factor | C48: dollars | D48: ='Property Price'!L3 -> 124
B49: Warehouse / SF Value Factor | C49: dollars | D49: ='Property Price'!L5 -> 49
B50: Single Family Detached Residential / SF Value Factor | C50: dollars | D50: ='Property Price'!L19 -> 122.1958945
B51: Single Family Attached Residential / SF Value Factor | C51: dollars | D51: ='Property Price'!L20 -> 114.7667302
B52: Multi-Family Residential / SF Value Factor | C52: dollars | D52: ='Property Price'!L21 -> 71.66666667
B53: Taxable Retail Sales / SF | C53: dollars | D53: 160
B54: Taxable Business to Business Sales/SF | C54: dollars | D54: 10
B57: Average Pre-Annexation Land Value per Acre
B58: Land Value per Acre | C58: 30000
B61: Property Tax Rates
B62: Base Property Tax Rate of the Total Value | C62: 0.01
B63: General Fund Share of Base Property Tax Rate of the Total Value | C63: 0.1
B64: County Share of Base Property Tax Rate of the Total Value | C64: 0.11
B65: General Fund Share of County Share of the Tax Increment for Annexed New Lands | C65: 0.3
B66: City General Fund Share of the Tax Increment for Annexed New Lands | C66: =C64*C65 -> 0.033
B67: General Fund Share of County Share of the Total Value for Annexed Urban Islands | C67: 0.34
B68: City General Fund Share of the Total Value for Annexed Urban Islands | C68: =C64*C67 -> 0.0374
B69: Source: EPS 2010, AECOM 2013
B71: Sales Tax Assumptions
B72: Sales Tax Rate | C72: 0.0095
B73: Source: EPS 2010
B75: Transfer Tax Assumptions
B76: Transfer Tax Rate | C76: =1.1/1000 -> 0.0011
B77: Source: AECOM 2013
E448: Ceres | F448: 2000 | G448: Database | H448: Turlock
E449: Hughson | F449: 2001 | G449: Custom Input | H449: Average Stanislaus County
E450: Modesto | F450: 2002 | H450: Custom Input
E451: Newman | F451: 2003
E452: Oakdale | F452: 2004
E453: Patterson | F453: 2005
E454: Riverbank | F454: 2006
E455: Turlock | F455: 2007
E456: Waterford | F456: 2008
F457: 2009
F458: 2010
F459: 2011
F460: 2012
F461: 2013
F462: 2014
F463: 2015
F464: 2016
F465: 2017
F466: 2018
F467: 2019
F468: 2020
F469: 2021
F470: 2022
F471: 2023
F472: 2024
F473: 2025
F474: 2026
F475: 2027
F476: 2028
F477: 2029
F478: 2030
F479: 2031
F480: 2032
F481: 2033
F482: 2034
F483: 2035
F484: 2036
F485: 2037
F486: 2038
F487: 2039
F488: 2040
F489: 2041
F490: 2042
F491: 2043
F492: 2044
F493: 2045
F494: 2046
F495: 2047
F496: 2048
F497: 2049
F498: 2050

Sheet IMPACT
B4: Net Revenue per Acre by Land Use
B5: Land Use Category | C5: Total Revenue/Acre | D5: Total Expenses/Acre | E5: Net Revenue/Acre
B6: ='T14 GF Analysis'!A7 -> Rural Residential | C6: ='T11 Revenues Per Acre'!J7 -> 178.8832288 | D6: ='T13 Expense Per Acre'!G7 -> 497.1725329 | E6: =C6-D6 -> -318.2893041
B7: ='T14 GF Analysis'!A8 -> Very Low Density Residential | C7: ='T11 Revenues Per Acre'!J8 -> 572.4263321 | D7: ='T13 Expense Per Acre'!G8 -> 1590.952105 | E7: =C7-D7 -> -1018.525773
B8: ='T14 GF Analysis'!A9 -> Low Density Residential | C8: ='T11 Revenues Per Acre'!J9 -> 1788.832288 | D8: ='T13 Expense Per Acre'!G9 -> 4971.725329 | E8: -3182.893041
B9: ='T14 GF Analysis'!A10 -> Low-Medium Density Residential | C9: ='T11 Revenues Per Acre'!J10 -> 2050.608678 | D9: ='T13 Expense Per Acre'!G10 -> 6658.560708 | E9: -4607.95203
B10: ='T14 GF Analysis'!A11 -> Medium Density Residential | C10: ='T11 Revenues Per Acre'!J11 -> 2782.076126 | D10: ='T13 Expense Per Acre'!G11 -> 8789.300135 | E10: -6007.224008
B11: ='T14 GF Analysis'!A12 -> High Density Residential | C11: ='T11 Revenues Per Acre'!J12 -> 3662.364841 | D11: ='T13 Expense Per Acre'!G12 -> 10958.36073 | E11: -7295.995889
B12: ='T14 GF Analysis'!A13 -> High Density Residential/Office | C12: ='T11 Revenues Per Acre'!J13 -> 4745.899329 | D12: ='T13 Expense Per Acre'!G13 -> 9511.647634 | E12: -4765.748305
B13: ='T14 GF Analysis'!A14 -> Office | C13: ='T11 Revenues Per Acre'!J14 -> 5604.345314 | D13: ='T13 Expense Per Acre'!G14 -> 9114.829769 | E13: -3510.484455
B14: ='T14 GF Analysis'!A15 -> Business Park | C14: ='T11 Revenues Per Acre'!J15 -> 5604.345314 | D14: ='T13 Expense Per Acre'!G15 -> 9114.829769 | E14: -3510.484455
B15: ='T14 GF Analysis'!A16 -> Community Commercial/Office | C15: ='T11 Revenues Per Acre'!J16 -> 16922.68765 | D15: ='T13 Expense Per Acre'!G16 -> 6451.947631 | E15: 10470.74002
B16: ='T14 GF Analysis'!A17 -> Community Commercial | C16: ='T11 Revenues Per Acre'!J17 -> 19138.15878 | D16: ='T13 Expense Per Acre'!G17 -> 3906.355615 | E16: 15231.80316
B17: ='T14 GF Analysis'!A18 -> Community Commercial/High Density Residential | C17: ='T11 Revenues Per Acre'!J18 -> 20665.78448 | D17: ='T13 Expense Per Acre'!G18 -> 11026.78175 | E17: 9639.002733
B18: ='T14 GF Analysis'!A19 -> Downtown | C18: ='T11 Revenues Per Acre'!J19 -> 108827.8866 | D18: ='T13 Expense Per Acre'!G19 -> 44216.39638 | E18: 64611.49022
B19: ='T14 GF Analysis'!A20 -> Heavy Commercial | C19: ='T11 Revenues Per Acre'!J20 -> 26793.42229 | D19: ='T13 Expense Per Acre'!G20 -> 5468.897862 | E19: 21324.52443
B20: ='T14 GF Analysis'!A21 -> Highway Commercial | C20: ='T11 Revenues Per Acre'!J21 -> 26793.42229 | D20: ='T13 Expense Per Acre'!G21 -> 5468.897862 | E20: 21324.52443
B21: ='T14 GF Analysis'!A22 -> Neighborhood Center | C21: ='T11 Revenues Per Acre'!J22 -> 13121.02619 | D21: ='T13 Expense Per Acre'!G22 -> 8565.128591 | E21: 4555.897596
B22: ='T14 GF Analysis'!A23 -> Industrial | C22: ='T11 Revenues Per Acre'!J23 -> 1018.952634 | D22: ='T13 Expense Per Acre'!G23 -> 406.260984 | E22: 612.6916505
B28: Net Revenue per Service Population by Land Use
B29: Land Use Category | C29: Total Revenue per Service Population | D29: Total Expenditure per Service Population | E29: Net Revenue per Serivce Population
B30: =B6 -> Rural Residential | C30: =C6/'T5 Dev Prog'!G7 -> 129.0643786 | D30: =D6/'T5 Dev Prog'!G7 -> 358.7103412 | E30: =C30-D30 -> -229.6459625
B31: =B7 -> Very Low Density Residential | C31: =C7/'T5 Dev Prog'!G8 -> 129.0643786 | D31: =D7/'T5 Dev Prog'!G8 -> 358.7103412 | E31: -229.6459625
B32: Low Density Residential | C32: =C8/'T5 Dev Prog'!G9 -> 129.0643786 | D32: =D8/'T5 Dev Prog'!G9 -> 358.7103412 | E32: -229.6459625
B33: Low-Medium Density Residential | C33: =C9/'T5 Dev Prog'!G10 -> 110.4705012 | D33: =D9/'T5 Dev Prog'!G10 -> 358.7103412 | E33: -248.23984
B34: Medium Density Residential | C34: =C10/'T5 Dev Prog'!G11 -> 113.5425416 | D34: =D10/'T5 Dev Prog'!G11 -> 358.7103412 | E34: -245.1677995
B35: High Density Residential | C35: =C11/'T5 Dev Prog'!G12 -> 106.0747935 | D35: =D11/'T5 Dev Prog'!G12 -> 317.3921503 | E35: -211.3173568
B36: High Density Residential/Office | C36: =C12/'T5 Dev Prog'!G13 -> 111.2151812 | D36: =D12/'T5 Dev Prog'!G13 -> 222.8955024 | E36: -111.6803212
B37: Office | C37: =C13/'T5 Dev Prog'!G14 -> 110.2783415 | D37: =D13/'T5 Dev Prog'!G14 -> 179.3551706 | E37: -69.07682911
B38: Business Park | C38: =C14/'T5 Dev Prog'!G15 -> 110.2783415 | D38: =D14/'T5 Dev Prog'!G15 -> 179.3551706 | E38: -69.07682911
B39: Community Commercial/Office | C39: =C15/'T5 Dev Prog'!G16 -> 416.2408415 | D39: =D15/'T5 Dev Prog'!G16 -> 158.6960752 | E39: 257.5447663
B40: Community Commercial | C40: =C16/'T5 Dev Prog'!G17 -> 878.7033415 | D40: =D16/'T5 Dev Prog'!G17 -> 179.3551706 | E40: 699.3481709
B41: Community Commercial/High Density Residential | C41: =C17/'T5 Dev Prog'!G18 -> 355.7547032 | D41: =D17/'T5 Dev Prog'!G18 -> 189.8224319 | E41: 165.9322713
B42: Downtown | C42: =C18/'T5 Dev Prog'!G19 -> 403.0788429 | D42: =D18/'T5 Dev Prog'!G19 -> 163.7695489 | E42: 239.309294
B43: Heavy Commercial | C43: =C19/'T5 Dev Prog'!G20 -> 878.7033415 | D43: =D19/'T5 Dev Prog'!G20 -> 179.3551706 | E43: 699.3481709
B44: Highway Commercial | C44: =C20/'T5 Dev Prog'!G21 -> 878.7033415 | D44: =D20/'T5 Dev Prog'!G21 -> 179.3551706 | E44: 699.3481709
B45: Neighborhood Center | C45: =C21/'T5 Dev Prog'!G22 -> 335.3740137 | D45: =D21/'T5 Dev Prog'!G22 -> 218.9250683 | E45: 116.4489455
B46: Industrial | C46: =C22/'T5 Dev Prog'!G23 -> 449.8448799 | D46: =D22/'T5 Dev Prog'!G23 -> 179.3551706 | E46: 270.4897094

Sheet SUMMARY TAB
B3: Net General Fund Impact of Development Alternatives
B5: Land Use | C5: ='INPUT - DATA'!D17 -> Alternative A | D5: ='INPUT - DATA'!E17 -> Alternative B | E5: =IF('INPUT - DATA'!F17=0,"NA",'INPUT - DATA'!F17) -> Alternative C | F5: =IF('INPUT - DATA'!G17=0,"NA",'INPUT - DATA'!G17) -> Alternative D
B6: Acreage (Urban Uses) | C6: =SUM('INPUT - DATA'!D31:D47) -> 2500.8 | D6: =SUM('INPUT - DATA'!E31:E47) -> 2773.9 | E6: =SUM('INPUT - DATA'!F31:F47) -> 2397.9 | F6: =SUM('INPUT - DATA'!G31:G47) -> 3029.7
B7: Housing Units | C7: ='INPUT - DATA'!V54 -> 15510.3875 | D7: ='INPUT - DATA'!W54 -> 17601.775 | E7: ='INPUT - DATA'!X54 -> 15937.275 | F7: ='INPUT - DATA'!Y54 -> 17275.775
B8: Service Population (residents + employees) | C8: ='INPUT - DATA'!AB54+'INPUT - DATA'!AN54 -> 57659.16812 | D8: ='INPUT - DATA'!AC54+'INPUT - DATA'!AO54 -> 66041.47069 | E8: ='INPUT - DATA'!AD54+'INPUT - DATA'!AP54 -> 56898.24649 | F8: ='INPUT - DATA'!AE54+'INPUT - DATA'!AQ54 -> 66845.19229
B9: Service Population/Acre | C9: =IFERROR(C8/C6,0) -> 23.05628923 | D9: =IFERROR(D8/D6,0) -> 23.80816565 | E9: =IFERROR(E8/E6,0) -> 23.72836502 | F9: =IFERROR(F8/F6,0) -> 22.06330405
B10: Housing Units/Residential Acre | C10: =IFERROR('SUMMARY TAB'!C7/'INPUT - DATA'!AS54,0) -> 10.02691717 | D10: =IFERROR('SUMMARY TAB'!D7/'INPUT - DATA'!AT54,0) -> 10.9358361 | E10: =IFERROR('SUMMARY TAB'!E7/'INPUT - DATA'!AU54,0) -> 10.94029518 | F10: =IFERROR('SUMMARY TAB'!F7/'INPUT - DATA'!AV54,0) -> 9.260419179
B12: Revenue | C12: =C5 -> Alternative A | D12: =D5 -> Alternative B | E12: Alternative C | F12: Alternative D
B13: Property Tax | C13: ='REVENUE DETAIL'!F24 -> 1073664.893 | D13: ='REVENUE DETAIL'!G24 -> 1222246.782 | E13: ='REVENUE DETAIL'!H24 -> 1052057.596 | F13: ='REVENUE DETAIL'!I24 -> 1223180.609
B14: Transfer Tax | C14: ='REVENUE DETAIL'!D68 -> 156005.7186 | D14: ='REVENUE DETAIL'!E68 -> 173804.8111 | E14: ='REVENUE DETAIL'!F68 -> 141168.42 | F14: ='REVENUE DETAIL'!G68 -> 210387.3768
B15: Sales Tax | C15: ='REVENUE DETAIL'!D46 -> 5656648.658 | D15: ='REVENUE DETAIL'!E46 -> 9114484.61 | E15: ='REVENUE DETAIL'!F46 -> 5077939.493 | F15: ='REVENUE DETAIL'!G46 -> 9112022.381
B16: Other Recurring Revenues | C16: ='REVENUE DETAIL'!D90 -> 2335761.672 | D16: ='REVENUE DETAIL'!E90 -> 2806904.768 | E16: ='REVENUE DETAIL'!F90 -> 2303121.096 | F16: ='REVENUE DETAIL'!G90 -> 2851552.079
B17: Impact Fees | C17: ='REVENUE DETAIL'!D112 -> 0 | D17: ='REVENUE DETAIL'!E112 -> 0 | E17: ='REVENUE DETAIL'!F112 -> 0 | F17: ='REVENUE DETAIL'!G112 -> 0
B18: Subtotal | C18: =SUM(C13:C17) -> 9222080.942 | D18: =SUM(D13:D17) -> 13317440.97 | E18: =SUM(E13:E17) -> 8574286.605 | F18: 13397142.45
B19: Per Acre | C19: =IFERROR(C18/C6,0) -> 3687.652328 | D19: 4800.980919 | E19: =IFERROR(E18/E6,0) -> 3575.748198 | F19: =IFERROR(F18/F6,0) -> 4421.936973
B20: Per Housing Unit | C20: =IFERROR(C18/C7,0) -> 594.5745032 | D20: 756.596478 | E20: =IFERROR(E18/E7,0) -> 538.002049 | F20: =IFERROR(F18/F7,0) -> 775.4872037
B22: Expenditure | C22: =C5 -> Alternative A | D22: =D5 -> Alternative B | E22: =E5 -> Alternative C | F22: =F5 -> Alternative D
B23: Expenditures | C23: ='EXPENSE DETAIL'!E23 -> 12992407.74 | D23: ='EXPENSE DETAIL'!F23 -> 15094369.82 | E23: ='EXPENSE DETAIL'!G23 -> 12789592.69 | F23: ='EXPENSE DETAIL'!H23 -> 15386423.37
B24: Per Acre | C24: =IFERROR(C23/C6,0) -> 5195.300601 | D24: 5441.569567 | E24: =IFERROR(E23/E6,0) -> 5333.663912 | F24: =IFERROR(F23/F6,0) -> 5078.530338
B25: Per Housing Unit | C25: =IFERROR(C23/C7,0) -> 837.658488 | D25: 857.5481633 | E25: =IFERROR(E23/E7,0) -> 802.4955768 | F25: =IFERROR(F23/F7,0) -> 890.6357813
B27: Net Revenue | C27: =C5 -> Alternative A | D27: =D5 -> Alternative B | E27: =E5 -> Alternative C | F27: =F5 -> Alternative D
B28: Net Revenue | C28: =C18-C23 -> -3770326.8 | D28: =D18-D23 -> -1776928.851 | E28: =E18-E23 -> -4215306.09 | F28: =F18-F23 -> -1989280.919
B30: Performance Metrics | C30: =C5 -> Alternative A | D30: =D5 -> Alternative B | E30: Alternative C | F30: Alternative D
B31: Net Revenue per Acre | C31: =IFERROR(C28/C6,0) -> -1507.648272 | D31: -640.5886481 | E31: =IFERROR(E28/E6,0) -> -1757.915714 | F31: =IFERROR(F28/F6,0) -> -656.5933654
B32: Net Revenue per Service Population | C32: =IFERROR(C28/C8,0) -> -65.38989241 | D32: =IFERROR(D28/D8,0) -> -26.90625803 | E32: =IFERROR(E28/E8,0) -> -74.08499119 | F32: =IFERROR(F28/F8,0) -> -29.75952123
B33: Net Revenue as Percentage of Total Revenue | C33: =C28/C18 -> -0.40883688 | D33: =D28/D18 -> -0.1334287011 | E33: =IFERROR(E28/E18,0) -> -0.4916217854 | F33: =IFERROR(F28/F18,0) -> -0.1484854645

Sheet General Fund Impact - Alt 1
A2: ALTERNATIVE 1
A3: ='INPUT - DATA'!$B$11 -> 2030
B4: FISCAL PERFORMANCE
B6: Net General Fund Impact of Alternative
B7: Revenue
B8: ='SUMMARY TAB'!B13 -> Property Tax | C8: ='SUMMARY TAB'!C13 -> 1073664.893
B9: ='SUMMARY TAB'!B14 -> Transfer Tax | C9: ='SUMMARY TAB'!C14 -> 156005.7186
B10: ='SUMMARY TAB'!B15 -> Sales Tax | C10: ='SUMMARY TAB'!C15 -> 5656648.658
B11: ='SUMMARY TAB'!B16 -> Other Recurring Revenues | C11: ='SUMMARY TAB'!C16 -> 2335761.672
B12: TOTAL REVENUE | C12: =SUM(C8:C11) -> 9222080.942
B13: Expenditure
B14: ='SUMMARY TAB'!B22 -> Expenditure | C14: ='SUMMARY TAB'!C23 -> 12992407.74
B15: TOTAL EXPENDITURE | C15: =C14 -> 12992407.74
B16: NET REVENUE | C16: =C12-C15 -> -3770326.8
B17: NET REVENUE AS % OF TOTAL REVENUE | C17: =C16/C12 -> -0.40883688
B20: REVENUE CATEGORIES | F20: EXPENDITURE CATEGORIES
AW22: General Government | AX22: =$C$14*'T12 Est Cty Expen'!J8*AY22 -> 617716.4103 | AY22: 0.98
AW23: Public Safety | AX23: =$C$14*'T12 Est Cty Expen'!J9*AY23 -> 6450952.96 | AY23: 0.85
AW24: Public Ways and Facilities/Transportation | AX24: =$C$14*'T12 Est Cty Expen'!J10*AY24 -> 2266223.945 | AY24: 0.85
AW25: Recreation, Parks, Culture | AX25: =$C$14*'T12 Est Cty Expen'!J11*AY25 -> 844833.338 | AY25: 0.91
AW26: Community Development | AX26: =$C$14*'T12 Est Cty Expen'!J12*AY26 -> 1072156.858 | AY26: 0.91
B35: LAND USE DETAILS
B37: Land Uses (Developed Only)
B38: Category | C38: Acres | D38: Percent | AX38: City | AY38: Annex New | AZ38: Annex Island
B39: Rural Residential | C39: ='INPUT - DATA'!D31 -> 0 | D39: =C39/$C$56 -> 0 | AW39: =VLOOKUP(B39,'T13 Expense Per Acre'!$A$7:$B$23,2,FALSE) -> Standard | AX39: =('INPUT - DATA'!D31*IFERROR(100%-'INPUT - DATA'!C63-'INPUT - DATA'!I63,0%)) -> 0 | AY39: =('INPUT - DATA'!D31*IFERROR('INPUT - DATA'!C63,0%)) -> 0 | AZ39: =('INPUT - DATA'!D31*IFERROR('INPUT - DATA'!I63,0%)) -> 0
B40: Very Low Density Residential | C40: ='INPUT - DATA'!D32 -> 162 | D40: =C40/$C$56 -> 0.06477927063 | AW40: =VLOOKUP(B40,'T13 Expense Per Acre'!$A$7:$B$23,2,FALSE) -> Standard | AX40: =('INPUT - DATA'!D32*IFERROR(100%-'INPUT - DATA'!C64-'INPUT - DATA'!I64,0%)) -> 0 | AY40: =('INPUT - DATA'!D32*IFERROR('INPUT - DATA'!C64,0%)) -> 162 | AZ40: =('INPUT - DATA'!D32*IFERROR('INPUT - DATA'!I64,0%)) -> 0
B41: Low Density Residential | C41: ='INPUT - DATA'!D33 -> 320.2 | D41: 0.1280390275 | AW41: =VLOOKUP(B41,'T13 Expense Per Acre'!$A$7:$B$23,2,FALSE) -> Standard | AX41: =('INPUT - DATA'!D33*IFERROR(100%-'INPUT - DATA'!C65-'INPUT - DATA'!I65,0%)) -> 16.01 | AY41: =('INPUT - DATA'!D33*IFERROR('INPUT - DATA'!C65,0%)) -> 297.786 | AZ41: =('INPUT - DATA'!D33*IFERROR('INPUT - DATA'!I65,0%)) -> 6.404
B42: Low-Medium Density Residential | C42: ='INPUT - DATA'!D34 -> 250 | D42: 0.09996801024 | AW42: =VLOOKUP(B42,'T13 Expense Per Acre'!$A$7:$B$23,2,FALSE) -> Standard | AX42: =('INPUT - DATA'!D34*IFERROR(100%-'INPUT - DATA'!C66-'INPUT - DATA'!I66,0%)) -> 97.5 | AY42: =('INPUT - DATA'!D34*IFERROR('INPUT - DATA'!C66,0%)) -> 150 | AZ42: =('INPUT - DATA'!D34*IFERROR('INPUT - DATA'!I66,0%)) -> 2.5
B43: Medium Density Residential | C43: ='INPUT - DATA'!D35 -> 570 | D43: 0.2279270633 | AW43: =VLOOKUP(B43,'T13 Expense Per Acre'!$A$7:$B$23,2,FALSE) -> Standard | AX43: =('INPUT - DATA'!D35*IFERROR(100%-'INPUT - DATA'!C67-'INPUT - DATA'!I67,0%)) -> 28.5 | AY43: =('INPUT - DATA'!D35*IFERROR('INPUT - DATA'!C67,0%)) -> 530.1 | AZ43: =('INPUT - DATA'!D35*IFERROR('INPUT - DATA'!I67,0%)) -> 11.4
B44: High Density Residential | C44: ='INPUT - DATA'!D36 -> 227.5 | D44: 0.09097088932 | AW44: =VLOOKUP(B44,'T13 Expense Per Acre'!$A$7:$B$23,2,FALSE) -> Compact | AX44: =('INPUT - DATA'!D36*IFERROR(100%-'INPUT - DATA'!C68-'INPUT - DATA'!I68,0%)) -> 45.5 | AY44: =('INPUT - DATA'!D36*IFERROR('INPUT - DATA'!C68,0%)) -> 179.725 | AZ44: =('INPUT - DATA'!D36*IFERROR('INPUT - DATA'!I68,0%)) -> 2.275
B45: High Density Residential/Office | C45: ='INPUT - DATA'!D37 -> 29.6 | D45: 0.01183621241 | AW45: =VLOOKUP(B45,'T13 Expense Per Acre'!$A$7:$B$23,2,FALSE) -> Compact | AX45: =('INPUT - DATA'!D37*IFERROR(100%-'INPUT - DATA'!C69-'INPUT - DATA'!I69,0%)) -> 29.6 | AY45: =('INPUT - DATA'!D37*IFERROR('INPUT - DATA'!C69,0%)) -> 0 | AZ45: =('INPUT - DATA'!D37*IFERROR('INPUT - DATA'!I69,0%)) -> 0
B46: Office | C46: ='INPUT - DATA'!D38 -> 6 | D46: 0.002399232246 | AW46: =VLOOKUP(B46,'T13 Expense Per Acre'!$A$7:$B$23,2,FALSE) -> Standard | AX46: =('INPUT - DATA'!D38*IFERROR(100%-'INPUT - DATA'!C70-'INPUT - DATA'!I70,0%)) -> 0 | AY46: =('INPUT - DATA'!D38*IFERROR('INPUT - DATA'!C70,0%)) -> 6 | AZ46: =('INPUT - DATA'!D38*IFERROR('INPUT - DATA'!I70,0%)) -> 0
B47: Business Park | C47: ='INPUT - DATA'!D39 -> 0 | D47: 0 | AW47: =VLOOKUP(B47,'T13 Expense Per Acre'!$A$7:$B$23,2,FALSE) -> Standard | AX47: =('INPUT - DATA'!D39*IFERROR(100%-'INPUT - DATA'!C71-'INPUT - DATA'!I71,0%)) -> 0 | AY47: =('INPUT - DATA'!D39*IFERROR('INPUT - DATA'!C71,0%)) -> 0 | AZ47: =('INPUT - DATA'!D39*IFERROR('INPUT - DATA'!I71,0%)) -> 0
B48: Community Commercial/Office | C48: ='INPUT - DATA'!D40 -> 32.3 | D48: 0.01291586692 | AW48: =VLOOKUP(B48,'T13 Expense Per Acre'!$A$7:$B$23,2,FALSE) -> Compact | AX48: =('INPUT - DATA'!D40*IFERROR(100%-'INPUT - DATA'!C72-'INPUT - DATA'!I72,0%)) -> 32.3 | AY48: =('INPUT - DATA'!D40*IFERROR('INPUT - DATA'!C72,0%)) -> 0 | AZ48: =('INPUT - DATA'!D40*IFERROR('INPUT - DATA'!I72,0%)) -> 0
B49: Community Commercial | C49: ='INPUT - DATA'!D41 -> 138.1 | D49: 0.05522232885 | AW49: =VLOOKUP(B49,'T13 Expense Per Acre'!$A$7:$B$23,2,FALSE) -> Standard | AX49: =('INPUT - DATA'!D41*IFERROR(100%-'INPUT - DATA'!C73-'INPUT - DATA'!I73,0%)) -> 69.05 | AY49: =('INPUT - DATA'!D41*IFERROR('INPUT - DATA'!C73,0%)) -> 69.05 | AZ49: =('INPUT - DATA'!D41*IFERROR('INPUT - DATA'!I73,0%)) -> 0
B50: Community Commercial/High Density Residential | C50: ='INPUT - DATA'!D42 -> 0 | D50: 0 | AW50: =VLOOKUP(B50,'T13 Expense Per Acre'!$A$7:$B$23,2,FALSE) -> Compact | AX50: =('INPUT - DATA'!D42*IFERROR(100%-'INPUT - DATA'!C74-'INPUT - DATA'!I74,0%)) -> 0 | AY50: =('INPUT - DATA'!D42*IFERROR('INPUT - DATA'!C74,0%)) -> 0 | AZ50: =('INPUT - DATA'!D42*IFERROR('INPUT - DATA'!I74,0%)) -> 0
B51: Downtown | C51: ='INPUT - DATA'!D43 -> 0 | D51: 0 | AW51: =VLOOKUP(B51,'T13 Expense Per Acre'!$A$7:$B$23,2,FALSE) -> Compact | AX51: =('INPUT - DATA'!D43*IFERROR(100%-'INPUT - DATA'!C75-'INPUT - DATA'!I75,0%)) -> 0 | AY51: =('INPUT - DATA'!D43*IFERROR('INPUT - DATA'!C75,0%)) -> 0 | AZ51: =('INPUT - DATA'!D43*IFERROR('INPUT - DATA'!I75,0%)) -> 0
B52: Heavy Commercial | C52: ='INPUT - DATA'!D44 -> 99.3 | D52: 0.03970729367 | AW52: =VLOOKUP(B52,'T13 Expense Per Acre'!$A$7:$B$23,2,FALSE) -> Standard | AX52: =('INPUT - DATA'!D44*IFERROR(100%-'INPUT - DATA'!C76-'INPUT - DATA'!I76,0%)) -> 39.72 | AY52: =('INPUT - DATA'!D44*IFERROR('INPUT - DATA'!C76,0%)) -> 59.58 | AZ52: =('INPUT - DATA'!D44*IFERROR('INPUT - DATA'!I76,0%)) -> 0
B53: Highway Commercial | C53: ='INPUT - DATA'!D45 -> 0 | D53: 0 | AW53: =VLOOKUP(B53,'T13 Expense Per Acre'!$A$7:$B$23,2,FALSE) -> Standard | AX53: =('INPUT - DATA'!D45*IFERROR(100%-'INPUT - DATA'!C77-'INPUT - DATA'!I77,0%)) -> 0 | AY53: =('INPUT - DATA'!D45*IFERROR('INPUT - DATA'!C77,0%)) -> 0 | AZ53: =('INPUT - DATA'!D45*IFERROR('INPUT - DATA'!I77,0%)) -> 0
B54: Neighborhood Center | C54: ='INPUT - DATA'!D46 -> 9.5 | D54: 0.003798784389 | AW54: =VLOOKUP(B54,'T13 Expense Per Acre'!$A$7:$B$23,2,FALSE) -> Standard | AX54: =('INPUT - DATA'!D46*IFERROR(100%-'INPUT - DATA'!C78-'INPUT - DATA'!I78,0%)) -> 0 | AY54: =('INPUT - DATA'!D46*IFERROR('INPUT - DATA'!C78,0%)) -> 9.5 | AZ54: =('INPUT - DATA'!D46*IFERROR('INPUT - DATA'!I78,0%)) -> 0
B55: Industrial | C55: ='INPUT - DATA'!D47 -> 656.3 | D55: 0.2624360205 | AW55: =VLOOKUP(B55,'T13 Expense Per Acre'!$A$7:$B$23,2,FALSE) -> Standard | AX55: =('INPUT - DATA'!D47*IFERROR(100%-'INPUT - DATA'!C79-'INPUT - DATA'!I79,0%)) -> 131.26 | AY55: =('INPUT - DATA'!D47*IFERROR('INPUT - DATA'!C79,0%)) -> 525.04 | AZ55: =('INPUT - DATA'!D47*IFERROR('INPUT - DATA'!I79,0%)) -> 0
B56: TOTAL | C56: =SUM(C39:C55) -> 2500.8 | D56: =SUM(D39:D55) -> 1 | AX56: =SUM(AX39:AX55) -> 489.44 | AY56: =SUM(AY39:AY55) -> 1988.781 | AZ56: =SUM(AZ39:AZ55) -> 22.579
B58: Portion of Alternative that is Compact Development | F58: COMPACT DEVELOPMENT DEFINITION
B59: Development Type | C59: Acres | D59: Percent | F59: Land Use Class | G59: Minimum Service Population/Acre Threshold
B60: Compact | C60: =SUMIFS($C$39:$C$55,$AW$39:$AW$55,B60) -> 289.4 | D60: =C60/$C$62 -> 0.1157229687 | F60: ='MODEL ASSUMPTIONS'!B32 -> Residential | G60: ='MODEL ASSUMPTIONS'!C32 -> 30
B61: Standard | C61: =SUMIFS($C$39:$C$55,$AW$39:$AW$55,B61) -> 2211.4 | D61: =C61/$C$62 -> 0.8842770313 | F61: ='MODEL ASSUMPTIONS'!B33 -> Mixed Use | G61: ='MODEL ASSUMPTIONS'!C33 -> 40
B62: TOTAL | C62: =SUM(C60:C61) -> 2500.8 | D62: =SUM(D60:D61) -> 1 | F62: ='MODEL ASSUMPTIONS'!B34 -> Commercial | G62: ='MODEL ASSUMPTIONS'!C34 -> 90
F63: Service Population = Residents + Employees
B64: Density Metrics
B65: ='SUMMARY TAB'!B9 -> Service Population/Acre | C65: ='SUMMARY TAB'!C9 -> 23.05628923
B66: ='SUMMARY TAB'!B10 -> Housing Units/Residential Acre | C66: ='SUMMARY TAB'!C10 -> 10.02691717
B68: Portion of Alternative to be Annexed from County
B69: ANNEXATION CATEGORY | C69: Acres | D69: Percent
B70: Within City (no annexation) | C70: =AX56 -> 489.44 | D70: =C70/$C$73 -> 0.1957133717
B71: Annexation County Land Outside City | C71: =AY56 -> 1988.781 | D71: =C71/$C$73 -> 0.7952579175
B72: Annexation of County Islands Inside City | C72: =AZ56 -> 22.579 | D72: 0.009028710813
B73: TOTAL | C73: =SUM(C70:C72) -> 2500.8 | D73: =SUM(D70:D72) -> 1

Sheet General Fund Impact - Alt 2
A2: ALTERNATIVE 2
A3: ='INPUT - DATA'!$B$11 -> 2030
B4: FISCAL PERFORMANCE
B6: Net General Fund Impact of Alternative
B7: Revenue
B8: ='SUMMARY TAB'!B13 -> Property Tax | C8: ='SUMMARY TAB'!D13 -> 1222246.782
B9: ='SUMMARY TAB'!B14 -> Transfer Tax | C9: ='SUMMARY TAB'!D14 -> 173804.8111
B10: ='SUMMARY TAB'!B15 -> Sales Tax | C10: ='SUMMARY TAB'!D15 -> 9114484.61
B11: ='SUMMARY TAB'!B16 -> Other Recurring Revenues | C11: ='SUMMARY TAB'!D16 -> 2806904.768
B12: TOTAL REVENUE | C12: =SUM(C8:C11) -> 13317440.97
B13: Expenditure
B14: ='SUMMARY TAB'!B22 -> Expenditure | C14: ='SUMMARY TAB'!D23 -> 15094369.82
B15: TOTAL EXPENDITURE | C15: =C14 -> 15094369.82
B16: NET REVENUE | C16: =C12-C15 -> -1776928.851
B17: NET REVENUE AS % OF TOTAL REVENUE | C17: =C16/C12 -> -0.1334287011
B20: REVENUE CATEGORIES | F20: EXPENDITURE CATEGORIES
AW22: General Government | AX22: =$C$14*'T12 Est Cty Expen'!J8*AY22 -> 724975.9548 | AY22: 0.99
AW23: Public Safety | AX23: =$C$14*'T12 Est Cty Expen'!J9*AY23 -> 8729020.001 | AY23: 0.99
AW24: Public Ways and Facilities/Transportation | AX24: =$C$14*'T12 Est Cty Expen'!J10*AY24 -> 3004560.665 | AY24: 0.97
AW25: Recreation, Parks, Culture | AX25: =$C$14*'T12 Est Cty Expen'!J11*AY25 -> 1046228.942 | AY25: 0.97
AW26: Community Development | AX26: =$C$14*'T12 Est Cty Expen'!J12*AY26 -> 1341431.053 | AY26: 0.98
B35: LAND USE DETAILS
B37: Land Uses (Developed Only)
B38: Category | C38: Acres | D38: Percent | AX38: City | AY38: Annex New | AZ38: Annex Island
B39: Rural Residential | C39: ='INPUT - DATA'!E31 -> 18.4 | D39: =C39/$C$56 -> 0.006633260031 | AW39: =VLOOKUP(B39,'T13 Expense Per Acre'!$A$7:$B$23,2,FALSE) -> Standard | AX39: =('INPUT - DATA'!E31*IFERROR(100%-'INPUT - DATA'!D63-'INPUT - DATA'!J63,0%)) -> 0 | AY39: =('INPUT - DATA'!E31*IFERROR('INPUT - DATA'!D63,0%)) -> 18.4 | AZ39: =('INPUT - DATA'!E31*IFERROR('INPUT - DATA'!J63,0%)) -> 0
B40: Very Low Density Residential | C40: ='INPUT - DATA'!E32 -> 162 | D40: =C40/$C$56 -> 0.05840152853 | AW40: =VLOOKUP(B40,'T13 Expense Per Acre'!$A$7:$B$23,2,FALSE) -> Standard | AX40: =('INPUT - DATA'!E32*IFERROR(100%-'INPUT - DATA'!D64-'INPUT - DATA'!J64,0%)) -> 0 | AY40: =('INPUT - DATA'!E32*IFERROR('INPUT - DATA'!D64,0%)) -> 162 | AZ40: =('INPUT - DATA'!E32*IFERROR('INPUT - DATA'!J64,0%)) -> 0
B41: Low Density Residential | C41: ='INPUT - DATA'!E33 -> 107.2 | D41: 0.03864594975 | AW41: =VLOOKUP(B41,'T13 Expense Per Acre'!$A$7:$B$23,2,FALSE) -> Standard | AX41: =('INPUT - DATA'!E33*IFERROR(100%-'INPUT - DATA'!D65-'INPUT - DATA'!J65,0%)) -> 21.44 | AY41: =('INPUT - DATA'!E33*IFERROR('INPUT - DATA'!D65,0%)) -> 80.4 | AZ41: =('INPUT - DATA'!E33*IFERROR('INPUT - DATA'!J65,0%)) -> 5.36
B42: Low-Medium Density Residential | C42: ='INPUT - DATA'!E34 -> 341 | D42: 0.1229316125 | AW42: =VLOOKUP(B42,'T13 Expense Per Acre'!$A$7:$B$23,2,FALSE) -> Standard | AX42: =('INPUT - DATA'!E34*IFERROR(100%-'INPUT - DATA'!D66-'INPUT - DATA'!J66,0%)) -> 100.595 | AY42: =('INPUT - DATA'!E34*IFERROR('INPUT - DATA'!D66,0%)) -> 238.7 | AZ42: =('INPUT - DATA'!E34*IFERROR('INPUT - DATA'!J66,0%)) -> 1.705
B43: Medium Density Residential | C43: ='INPUT - DATA'!E35 -> 681 | D43: 0.2455027218 | AW43: =VLOOKUP(B43,'T13 Expense Per Acre'!$A$7:$B$23,2,FALSE) -> Standard | AX43: =('INPUT - DATA'!E35*IFERROR(100%-'INPUT - DATA'!D67-'INPUT - DATA'!J67,0%)) -> 30.645 | AY43: =('INPUT - DATA'!E35*IFERROR('INPUT - DATA'!D67,0%)) -> 643.545 | AZ43: =('INPUT - DATA'!E35*IFERROR('INPUT - DATA'!J67,0%)) -> 6.81
B44: High Density Residential | C44: ='INPUT - DATA'!E36 -> 272.5 | D44: 0.09823713905 | AW44: =VLOOKUP(B44,'T13 Expense Per Acre'!$A$7:$B$23,2,FALSE) -> Compact | AX44: =('INPUT - DATA'!E36*IFERROR(100%-'INPUT - DATA'!D68-'INPUT - DATA'!J68,0%)) -> 44.9625 | AY44: =('INPUT - DATA'!E36*IFERROR('INPUT - DATA'!D68,0%)) -> 226.175 | AZ44: =('INPUT - DATA'!E36*IFERROR('INPUT - DATA'!J68,0%)) -> 1.3625
B45: High Density Residential/Office | C45: ='INPUT - DATA'!E37 -> 30 | D45: 0.01081509788 | AW45: =VLOOKUP(B45,'T13 Expense Per Acre'!$A$7:$B$23,2,FALSE) -> Compact | AX45: =('INPUT - DATA'!E37*IFERROR(100%-'INPUT - DATA'!D69-'INPUT - DATA'!J69,0%)) -> 30 | AY45: =('INPUT - DATA'!E37*IFERROR('INPUT - DATA'!D69,0%)) -> 0 | AZ45: =('INPUT - DATA'!E37*IFERROR('INPUT - DATA'!J69,0%)) -> 0
B46: Office | C46: ='INPUT - DATA'!E38 -> 6 | D46: 0.002163019575 | AW46: =VLOOKUP(B46,'T13 Expense Per Acre'!$A$7:$B$23,2,FALSE) -> Standard | AX46: =('INPUT - DATA'!E38*IFERROR(100%-'INPUT - DATA'!D70-'INPUT - DATA'!J70,0%)) -> 0 | AY46: =('INPUT - DATA'!E38*IFERROR('INPUT - DATA'!D70,0%)) -> 6 | AZ46: =('INPUT - DATA'!E38*IFERROR('INPUT - DATA'!J70,0%)) -> 0
B47: Business Park | C47: ='INPUT - DATA'!E39 -> 0 | D47: 0 | AW47: =VLOOKUP(B47,'T13 Expense Per Acre'!$A$7:$B$23,2,FALSE) -> Standard | AX47: =('INPUT - DATA'!E39*IFERROR(100%-'INPUT - DATA'!D71-'INPUT - DATA'!J71,0%)) -> 0 | AY47: =('INPUT - DATA'!E39*IFERROR('INPUT - DATA'!D71,0%)) -> 0 | AZ47: =('INPUT - DATA'!E39*IFERROR('INPUT - DATA'!J71,0%)) -> 0
B48: Community Commercial/Office | C48: ='INPUT - DATA'!E40 -> 32.3 | D48: 0.01164425538 | AW48: =VLOOKUP(B48,'T13 Expense Per Acre'!$A$7:$B$23,2,FALSE) -> Compact | AX48: =('INPUT - DATA'!E40*IFERROR(100%-'INPUT - DATA'!D72-'INPUT - DATA'!J72,0%)) -> 32.3 | AY48: =('INPUT - DATA'!E40*IFERROR('INPUT - DATA'!D72,0%)) -> 0 | AZ48: =('INPUT - DATA'!E40*IFERROR('INPUT - DATA'!J72,0%)) -> 0
B49: Community Commercial | C49: ='INPUT - DATA'!E41 -> 302.1 | D49: 0.1089080356 | AW49: =VLOOKUP(B49,'T13 Expense Per Acre'!$A$7:$B$23,2,FALSE) -> Standard | AX49: =('INPUT - DATA'!E41*IFERROR(100%-'INPUT - DATA'!D73-'INPUT - DATA'!J73,0%)) -> 69.483 | AY49: =('INPUT - DATA'!E41*IFERROR('INPUT - DATA'!D73,0%)) -> 232.617 | AZ49: =('INPUT - DATA'!E41*IFERROR('INPUT - DATA'!J73,0%)) -> 0
B50: Community Commercial/High Density Residential | C50: ='INPUT - DATA'!E42 -> 0 | D50: 0 | AW50: =VLOOKUP(B50,'T13 Expense Per Acre'!$A$7:$B$23,2,FALSE) -> Compact | AX50: =('INPUT - DATA'!E42*IFERROR(100%-'INPUT - DATA'!D74-'INPUT - DATA'!J74,0%)) -> 0 | AY50: =('INPUT - DATA'!E42*IFERROR('INPUT - DATA'!D74,0%)) -> 0 | AZ50: =('INPUT - DATA'!E42*IFERROR('INPUT - DATA'!J74,0%)) -> 0
B51: Downtown | C51: ='INPUT - DATA'!E43 -> 0 | D51: 0 | AW51: =VLOOKUP(B51,'T13 Expense Per Acre'!$A$7:$B$23,2,FALSE) -> Compact | AX51: =('INPUT - DATA'!E43*IFERROR(100%-'INPUT - DATA'!D75-'INPUT - DATA'!J75,0%)) -> 0 | AY51: =('INPUT - DATA'!E43*IFERROR('INPUT - DATA'!D75,0%)) -> 0 | AZ51: =('INPUT - DATA'!E43*IFERROR('INPUT - DATA'!J75,0%)) -> 0
B52: Heavy Commercial | C52: ='INPUT - DATA'!E44 -> 115.3 | D52: 0.04156602617 | AW52: =VLOOKUP(B52,'T13 Expense Per Acre'!$A$7:$B$23,2,FALSE) -> Standard | AX52: =('INPUT - DATA'!E44*IFERROR(100%-'INPUT - DATA'!D76-'INPUT - DATA'!J76,0%)) -> 40.355 | AY52: =('INPUT - DATA'!E44*IFERROR('INPUT - DATA'!D76,0%)) -> 74.945 | AZ52: =('INPUT - DATA'!E44*IFERROR('INPUT - DATA'!J76,0%)) -> 0
B53: Highway Commercial | C53: ='INPUT - DATA'!E45 -> 0 | D53: 0 | AW53: =VLOOKUP(B53,'T13 Expense Per Acre'!$A$7:$B$23,2,FALSE) -> Standard | AX53: =('INPUT - DATA'!E45*IFERROR(100%-'INPUT - DATA'!D77-'INPUT - DATA'!J77,0%)) -> 0 | AY53: =('INPUT - DATA'!E45*IFERROR('INPUT - DATA'!D77,0%)) -> 0 | AZ53: =('INPUT - DATA'!E45*IFERROR('INPUT - DATA'!J77,0%)) -> 0
B54: Neighborhood Center | C54: ='INPUT - DATA'!E46 -> 49.8 | D54: 0.01795306248 | AW54: =VLOOKUP(B54,'T13 Expense Per Acre'!$A$7:$B$23,2,FALSE) -> Standard | AX54: =('INPUT - DATA'!E46*IFERROR(100%-'INPUT - DATA'!D78-'INPUT - DATA'!J78,0%)) -> 0 | AY54: =('INPUT - DATA'!E46*IFERROR('INPUT - DATA'!D78,0%)) -> 49.8 | AZ54: =('INPUT - DATA'!E46*IFERROR('INPUT - DATA'!J78,0%)) -> 0
B55: Industrial | C55: ='INPUT - DATA'!E47 -> 656.3 | D55: 0.2365982912 | AW55: =VLOOKUP(B55,'T13 Expense Per Acre'!$A$7:$B$23,2,FALSE) -> Standard | AX55: =('INPUT - DATA'!E47*IFERROR(100%-'INPUT - DATA'!D79-'INPUT - DATA'!J79,0%)) -> 131.26 | AY55: =('INPUT - DATA'!E47*IFERROR('INPUT - DATA'!D79,0%)) -> 525.04 | AZ55: =('INPUT - DATA'!E47*IFERROR('INPUT - DATA'!J79,0%)) -> 0
B56: TOTAL | C56: =SUM(C39:C55) -> 2773.9 | D56: =SUM(D39:D55) -> 1 | AX56: =SUM(AX39:AX55) -> 501.0405 | AY56: =SUM(AY39:AY55) -> 2257.622 | AZ56: =SUM(AZ39:AZ55) -> 15.2375 | BA56: =SUM(AX56:AZ56) -> 2773.9
B58: Portion of Alternative that is Compact Development | F58: COMPACT DEVELOPMENT DEFINITION
B59: Development Type | C59: Acres | D59: Percent | F59: Land Use Class | G59: Minimum Service Population/Acre Threshold
B60: Compact | C60: =SUMIFS($C$39:$C$55,$AW$39:$AW$55,B60) -> 334.8 | D60: =C60/$C$62 -> 0.1206964923 | F60: ='MODEL ASSUMPTIONS'!B32 -> Residential | G60: ='MODEL ASSUMPTIONS'!C32 -> 30
B61: Standard | C61: =SUMIFS($C$39:$C$55,$AW$39:$AW$55,B61) -> 2439.1 | D61: =C61/$C$62 -> 0.8793035077 | F61: ='MODEL ASSUMPTIONS'!B33 -> Mixed Use | G61: ='MODEL ASSUMPTIONS'!C33 -> 40
B62: TOTAL | C62: =SUM(C60:C61) -> 2773.9 | D62: =SUM(D60:D61) -> 1 | F62: ='MODEL ASSUMPTIONS'!B34 -> Commercial | G62: ='MODEL ASSUMPTIONS'!C34 -> 90
F63: Service Population = Residents + Employees
B64: Density Metrics
B65: ='SUMMARY TAB'!B9 -> Service Population/Acre | C65: ='SUMMARY TAB'!D9 -> 23.80816565
B66: ='SUMMARY TAB'!B10 -> Housing Units/Residential Acre | C66: ='SUMMARY TAB'!D10 -> 10.9358361
B68: Portion of Alternative to be Annexed from County
B69: ANNEXATION CATEGORY | C69: Acres | D69: Percent
B70: Within City (no annexation) | C70: =AX56 -> 501.0405 | D70: =C70/$C$73 -> 0.1806267349
B71: Annexation County Land Outside City | C71: =AY56 -> 2257.622 | D71: =C71/$C$73 -> 0.8138800966
B72: Annexation of County Islands Inside City | C72: =AZ56 -> 15.2375 | D72: 0.005493168463
B73: TOTAL | C73: =SUM(C70:C72) -> 2773.9 | D73: =SUM(D70:D72) -> 1

Sheet General Fund Impact - Alt 3
A2: ALTERNATIVE 3
A3: ='INPUT - DATA'!$B$11 -> 2030
B4: FISCAL PERFORMANCE
B6: Net General Fund Impact of Alternative
B7: Revenue
B8: ='SUMMARY TAB'!B13 -> Property Tax | C8: ='SUMMARY TAB'!E13 -> 1052057.596
B9: ='SUMMARY TAB'!B14 -> Transfer Tax | C9: ='SUMMARY TAB'!E14 -> 141168.42
B10: ='SUMMARY TAB'!B15 -> Sales Tax | C10: ='SUMMARY TAB'!E15 -> 5077939.493
B11: ='SUMMARY TAB'!B16 -> Other Recurring Revenues | C11: ='SUMMARY TAB'!E16 -> 2303121.096
B12: TOTAL REVENUE | C12: =SUM(C8:C11) -> 8574286.605
B13: Expenditure
B14: ='SUMMARY TAB'!B22 -> Expenditure | C14: ='SUMMARY TAB'!E23 -> 12789592.69
B15: TOTAL EXPENDITURE | C15: =C14 -> 12789592.69
B16: NET REVENUE | C16: =C12-C15 -> -4215306.09
B17: NET REVENUE AS % OF TOTAL REVENUE | C17: =C16/C12 -> -0.4916217854
B20: REVENUE CATEGORIES | F20: EXPENDITURE CATEGORIES
AW22: General Government | AX22: =$C$14*'T12 Est Cty Expen'!J8 -> 620483.3549 | AY22: 0.99
AW23: Public Safety | AX23: =$C$14*'T12 Est Cty Expen'!J9 -> 7470884.489 | AY23: 0.99
AW24: Public Ways and Facilities/Transportation | AX24: =$C$14*'T12 Est Cty Expen'!J10 -> 2624526.551 | AY24: 0.99
AW25: Recreation, Parks, Culture | AX25: =$C$14*'T12 Est Cty Expen'!J11 -> 913895.8879 | AY25: 0.99
AW26: Community Development | AX26: =$C$14*'T12 Est Cty Expen'!J12 -> 1159802.412 | AY26: 0.99
B35: LAND USE DETAILS
B37: Land Uses (Developed Only)
B38: Category | C38: Acres | D38: Percent | AX38: City | AY38: Annex New | AZ38: Annex Island
B39: Rural Residential | C39: ='INPUT - DATA'!F31 -> 18.4 | D39: =C39/$C$56 -> 0.007673380875 | AW39: =VLOOKUP(B39,'T13 Expense Per Acre'!$A$7:$B$23,2,FALSE) -> Standard | AX39: =('INPUT - DATA'!F31*IFERROR(100%-'INPUT - DATA'!E63-'INPUT - DATA'!K63,0%)) -> 0 | AY39: =('INPUT - DATA'!F31*IFERROR('INPUT - DATA'!E63,0%)) -> 18.4 | AZ39: =('INPUT - DATA'!F31*IFERROR('INPUT - DATA'!K63,0%)) -> 0
B40: Very Low Density Residential | C40: ='INPUT - DATA'!F32 -> 162 | D40: =C40/$C$56 -> 0.06755911422 | AW40: =VLOOKUP(B40,'T13 Expense Per Acre'!$A$7:$B$23,2,FALSE) -> Standard | AX40: =('INPUT - DATA'!F32*IFERROR(100%-'INPUT - DATA'!E64-'INPUT - DATA'!K64,0%)) -> 0 | AY40: =('INPUT - DATA'!F32*IFERROR('INPUT - DATA'!E64,0%)) -> 162 | AZ40: =('INPUT - DATA'!F32*IFERROR('INPUT - DATA'!K64,0%)) -> 0
B41: Low Density Residential | C41: ='INPUT - DATA'!F33 -> 169.2 | D41: 0.07056174152 | AW41: =VLOOKUP(B41,'T13 Expense Per Acre'!$A$7:$B$23,2,FALSE) -> Standard | AX41: =('INPUT - DATA'!F33*IFERROR(100%-'INPUT - DATA'!E65-'INPUT - DATA'!K65,0%)) -> 15.228 | AY41: =('INPUT - DATA'!F33*IFERROR('INPUT - DATA'!E65,0%)) -> 147.204 | AZ41: =('INPUT - DATA'!F33*IFERROR('INPUT - DATA'!K65,0%)) -> 6.768
B42: Low-Medium Density Residential | C42: ='INPUT - DATA'!F34 -> 188 | D42: 0.07840193503 | AW42: =VLOOKUP(B42,'T13 Expense Per Acre'!$A$7:$B$23,2,FALSE) -> Standard | AX42: =('INPUT - DATA'!F34*IFERROR(100%-'INPUT - DATA'!E66-'INPUT - DATA'!K66,0%)) -> 97.76 | AY42: =('INPUT - DATA'!F34*IFERROR('INPUT - DATA'!E66,0%)) -> 87.42 | AZ42: =('INPUT - DATA'!F34*IFERROR('INPUT - DATA'!K66,0%)) -> 2.82
B43: Medium Density Residential | C43: ='INPUT - DATA'!F35 -> 632 | D43: 0.2635639518 | AW43: =VLOOKUP(B43,'T13 Expense Per Acre'!$A$7:$B$23,2,FALSE) -> Standard | AX43: =('INPUT - DATA'!F35*IFERROR(100%-'INPUT - DATA'!E67-'INPUT - DATA'!K67,0%)) -> 18.96 | AY43: =('INPUT - DATA'!F35*IFERROR('INPUT - DATA'!E67,0%)) -> 606.72 | AZ43: =('INPUT - DATA'!F35*IFERROR('INPUT - DATA'!K67,0%)) -> 6.32
B44: High Density Residential | C44: ='INPUT - DATA'!F36 -> 264.5 | D44: 0.1103048501 | AW44: =VLOOKUP(B44,'T13 Expense Per Acre'!$A$7:$B$23,2,FALSE) -> Compact | AX44: =('INPUT - DATA'!F36*IFERROR(100%-'INPUT - DATA'!E68-'INPUT - DATA'!K68,0%)) -> 44.965 | AY44: =('INPUT - DATA'!F36*IFERROR('INPUT - DATA'!E68,0%)) -> 216.89 | AZ44: =('INPUT - DATA'!F36*IFERROR('INPUT - DATA'!K68,0%)) -> 2.645
B45: High Density Residential/Office | C45: ='INPUT - DATA'!F37 -> 30 | D45: 0.01251094708 | AW45: =VLOOKUP(B45,'T13 Expense Per Acre'!$A$7:$B$23,2,FALSE) -> Compact | AX45: =('INPUT - DATA'!F37*IFERROR(100%-'INPUT - DATA'!E69-'INPUT - DATA'!K69,0%)) -> 30 | AY45: =('INPUT - DATA'!F37*IFERROR('INPUT - DATA'!E69,0%)) -> 0 | AZ45: =('INPUT - DATA'!F37*IFERROR('INPUT - DATA'!K69,0%)) -> 0
B46: Office | C46: ='INPUT - DATA'!F38 -> 6 | D46: 0.002502189416 | AW46: =VLOOKUP(B46,'T13 Expense Per Acre'!$A$7:$B$23,2,FALSE) -> Standard | AX46: =('INPUT - DATA'!F38*IFERROR(100%-'INPUT - DATA'!E70-'INPUT - DATA'!K70,0%)) -> 0 | AY46: =('INPUT - DATA'!F38*IFERROR('INPUT - DATA'!E70,0%)) -> 6 | AZ46: =('INPUT - DATA'!F38*IFERROR('INPUT - DATA'!K70,0%)) -> 0
B47: Business Park | C47: ='INPUT - DATA'!F39 -> 0 | D47: 0 | AW47: =VLOOKUP(B47,'T13 Expense Per Acre'!$A$7:$B$23,2,FALSE) -> Standard | AX47: =('INPUT - DATA'!F39*IFERROR(100%-'INPUT - DATA'!E71-'INPUT - DATA'!K71,0%)) -> 0 | AY47: =('INPUT - DATA'!F39*IFERROR('INPUT - DATA'!E71,0%)) -> 0 | AZ47: =('INPUT - DATA'!F39*IFERROR('INPUT - DATA'!K71,0%)) -> 0
B48: Community Commercial/Office | C48: ='INPUT - DATA'!F40 -> 32.1 | D48: 0.01338671337 | AW48: =VLOOKUP(B48,'T13 Expense Per Acre'!$A$7:$B$23,2,FALSE) -> Compact | AX48: =('INPUT - DATA'!F40*IFERROR(100%-'INPUT - DATA'!E72-'INPUT - DATA'!K72,0%)) -> 32.1 | AY48: =('INPUT - DATA'!F40*IFERROR('INPUT - DATA'!E72,0%)) -> 0 | AZ48: =('INPUT - DATA'!F40*IFERROR('INPUT - DATA'!K72,0%)) -> 0
B49: Community Commercial | C49: ='INPUT - DATA'!F41 -> 154.5 | D49: 0.06443137746 | AW49: =VLOOKUP(B49,'T13 Expense Per Acre'!$A$7:$B$23,2,FALSE) -> Standard | AX49: =('INPUT - DATA'!F41*IFERROR(100%-'INPUT - DATA'!E73-'INPUT - DATA'!K73,0%)) -> 69.525 | AY49: =('INPUT - DATA'!F41*IFERROR('INPUT - DATA'!E73,0%)) -> 84.975 | AZ49: =('INPUT - DATA'!F41*IFERROR('INPUT - DATA'!K73,0%)) -> 0
B50: Community Commercial/High Density Residential | C50: ='INPUT - DATA'!F42 -> 0 | D50: 0 | AW50: =VLOOKUP(B50,'T13 Expense Per Acre'!$A$7:$B$23,2,FALSE) -> Compact | AX50: =('INPUT - DATA'!F42*IFERROR(100%-'INPUT - DATA'!E74-'INPUT - DATA'!K74,0%)) -> 0 | AY50: =('INPUT - DATA'!F42*IFERROR('INPUT - DATA'!E74,0%)) -> 0 | AZ50: =('INPUT - DATA'!F42*IFERROR('INPUT - DATA'!K74,0%)) -> 0
B51: Downtown | C51: ='INPUT - DATA'!F43 -> 0 | D51: 0 | AW51: =VLOOKUP(B51,'T13 Expense Per Acre'!$A$7:$B$23,2,FALSE) -> Compact | AX51: =('INPUT - DATA'!F43*IFERROR(100%-'INPUT - DATA'!E75-'INPUT - DATA'!K75,0%)) -> 0 | AY51: =('INPUT - DATA'!F43*IFERROR('INPUT - DATA'!E75,0%)) -> 0 | AZ51: =('INPUT - DATA'!F43*IFERROR('INPUT - DATA'!K75,0%)) -> 0
B52: Heavy Commercial | C52: ='INPUT - DATA'!F44 -> 54.3 | D52: 0.02264481421 | AW52: =VLOOKUP(B52,'T13 Expense Per Acre'!$A$7:$B$23,2,FALSE) -> Standard | AX52: =('INPUT - DATA'!F44*IFERROR(100%-'INPUT - DATA'!E76-'INPUT - DATA'!K76,0%)) -> 48.87 | AY52: =('INPUT - DATA'!F44*IFERROR('INPUT - DATA'!E76,0%)) -> 5.43 | AZ52: =('INPUT - DATA'!F44*IFERROR('INPUT - DATA'!K76,0%)) -> 0
B53: Highway Commercial | C53: ='INPUT - DATA'!F45 -> 0 | D53: 0 | AW53: =VLOOKUP(B53,'T13 Expense Per Acre'!$A$7:$B$23,2,FALSE) -> Standard | AX53: =('INPUT - DATA'!F45*IFERROR(100%-'INPUT - DATA'!E77-'INPUT - DATA'!K77,0%)) -> 0 | AY53: =('INPUT - DATA'!F45*IFERROR('INPUT - DATA'!E77,0%)) -> 0 | AZ53: =('INPUT - DATA'!F45*IFERROR('INPUT - DATA'!K77,0%)) -> 0
B54: Neighborhood Center | C54: ='INPUT - DATA'!F46 -> 30.6 | D54: 0.01276116602 | AW54: =VLOOKUP(B54,'T13 Expense Per Acre'!$A$7:$B$23,2,FALSE) -> Standard | AX54: =('INPUT - DATA'!F46*IFERROR(100%-'INPUT - DATA'!E78-'INPUT - DATA'!K78,0%)) -> 0 | AY54: =('INPUT - DATA'!F46*IFERROR('INPUT - DATA'!E78,0%)) -> 30.6 | AZ54: =('INPUT - DATA'!F46*IFERROR('INPUT - DATA'!K78,0%)) -> 0
B55: Industrial | C55: ='INPUT - DATA'!F47 -> 656.3 | D55: 0.2736978189 | AW55: =VLOOKUP(B55,'T13 Expense Per Acre'!$A$7:$B$23,2,FALSE) -> Standard | AX55: =('INPUT - DATA'!F47*IFERROR(100%-'INPUT - DATA'!E79-'INPUT - DATA'!K79,0%)) -> 131.26 | AY55: =('INPUT - DATA'!F47*IFERROR('INPUT - DATA'!E79,0%)) -> 525.04 | AZ55: =('INPUT - DATA'!F47*IFERROR('INPUT - DATA'!K79,0%)) -> 0
B56: TOTAL | C56: =SUM(C39:C55) -> 2397.9 | D56: =SUM(D39:D55) -> 1 | AX56: =SUM(AX39:AX55) -> 488.668 | AY56: =SUM(AY39:AY55) -> 1890.679 | AZ56: =SUM(AZ39:AZ55) -> 18.553 | BA56: =SUM(AX56:AZ56) -> 2397.9
B58: Portion of Alternative that is Compact Development | F58: COMPACT DEVELOPMENT DEFINITION
B59: Development Type | C59: Acres | D59: Percent | F59: Land Use Class | G59: Minimum Service Population/Acre Threshold
B60: Compact | C60: =SUMIFS($C$39:$C$55,$AW$39:$AW$55,B60) -> 326.6 | D60: =C60/$C$62 -> 0.1362025105 | F60: ='MODEL ASSUMPTIONS'!B32 -> Residential | G60: ='MODEL ASSUMPTIONS'!C32 -> 30
B61: Standard | C61: =SUMIFS($C$39:$C$55,$AW$39:$AW$55,B61) -> 2071.3 | D61: =C61/$C$62 -> 0.8637974895 | F61: ='MODEL ASSUMPTIONS'!B33 -> Mixed Use | G61: ='MODEL ASSUMPTIONS'!C33 -> 40
B62: TOTAL | C62: =SUM(C60:C61) -> 2397.9 | D62: =SUM(D60:D61) -> 1 | F62: ='MODEL ASSUMPTIONS'!B34 -> Commercial | G62: ='MODEL ASSUMPTIONS'!C34 -> 90
F63: Service Population = Residents + Employees
B64: Density Metrics
B65: ='SUMMARY TAB'!B9 -> Service Population/Acre | C65: ='SUMMARY TAB'!E9 -> 23.72836502
B66: ='SUMMARY TAB'!B10 -> Housing Units/Residential Acre | C66: ='SUMMARY TAB'!E10 -> 10.94029518
B68: Portion of Alternative to be Annexed from County
B69: ANNEXATION CATEGORY | C69: Acres | D69: Percent
B70: Within City (no annexation) | C70: =AX56 -> 488.668 | D70: =C70/$C$73 -> 0.2037899829
B71: Annexation County Land Outside City | C71: =AY56 -> 1890.679 | D71: =C71/$C$73 -> 0.7884728304
B72: Annexation of County Islands Inside City | C72: =AZ56 -> 18.553 | D72: 0.007737186705
B73: TOTAL | C73: =SUM(C70:C72) -> 2397.9 | D73: =SUM(D70:D72) -> 1

Sheet General Fund Impact - Alt 4
A2: ALTERNATIVE 4
A3: ='INPUT - DATA'!$B$11 -> 2030
B4: FISCAL PERFORMANCE
B6: Net General Fund Impact of Alternative
B7: Revenue
B8: ='SUMMARY TAB'!B13 -> Property Tax | C8: ='SUMMARY TAB'!F13 -> 1223180.609
B9: ='SUMMARY TAB'!B14 -> Transfer Tax | C9: ='SUMMARY TAB'!F14 -> 210387.3768
B10: ='SUMMARY TAB'!B15 -> Sales Tax | C10: ='SUMMARY TAB'!F15 -> 9112022.381
B11: ='SUMMARY TAB'!B16 -> Other Recurring Revenues | C11: ='SUMMARY TAB'!F16 -> 2851552.079
B12: TOTAL REVENUE | C12: =SUM(C8:C11) -> 13397142.45
B13: Expenditure
B14: ='SUMMARY TAB'!B22 -> Expenditure | C14: ='SUMMARY TAB'!F23 -> 15386423.37
B15: TOTAL EXPENDITURE | C15: =C14 -> 15386423.37
B16: NET REVENUE | C16: =C12-C15 -> -1989280.919
B17: NET REVENUE AS % OF TOTAL REVENUE | C17: =C16/C12 -> -0.1484854645
B20: REVENUE CATEGORIES | F20: EXPENDITURE CATEGORIES
AW22: General Government | AX22: =$C$14*'T12 Est Cty Expen'!J8 -> 746467.8366
AW23: Public Safety | AX23: =$C$14*'T12 Est Cty Expen'!J9 -> 8987791.433
AW24: Public Ways and Facilities/Transportation | AX24: =$C$14*'T12 Est Cty Expen'!J10 -> 3157416.941
AW25: Recreation, Parks, Culture | AX25: =$C$14*'T12 Est Cty Expen'!J11 -> 1099455.579
AW26: Community Development | AX26: =$C$14*'T12 Est Cty Expen'!J12 -> 1395291.575
B35: LAND USE DETAILS
B37: Land Uses (Developed Only)
B38: Category | C38: Acres | D38: Percent | AX38: City | AY38: Annex New | AZ38: Annex Island
B39: Rural Residential | C39: ='INPUT - DATA'!G31 -> 18.4 | D39: =C39/$C$56 -> 0.006073208569 | AW39: =VLOOKUP(B39,'T13 Expense Per Acre'!$A$7:$B$23,2,FALSE) -> Standard | AX39: =('INPUT - DATA'!G31*IFERROR(100%-'INPUT - DATA'!F63-'INPUT - DATA'!L63,0%)) -> 0 | AY39: =('INPUT - DATA'!G31*IFERROR('INPUT - DATA'!F63,0%)) -> 18.4 | AZ39: =('INPUT - DATA'!G31*IFERROR('INPUT - DATA'!L63,0%)) -> 0
B40: Very Low Density Residential | C40: ='INPUT - DATA'!G32 -> 162 | D40: =C40/$C$56 -> 0.05347064066 | AW40: =VLOOKUP(B40,'T13 Expense Per Acre'!$A$7:$B$23,2,FALSE) -> Standard | AX40: =('INPUT - DATA'!G32*IFERROR(100%-'INPUT - DATA'!F64-'INPUT - DATA'!L64,0%)) -> 0 | AY40: =('INPUT - DATA'!G32*IFERROR('INPUT - DATA'!F64,0%)) -> 162 | AZ40: =('INPUT - DATA'!G32*IFERROR('INPUT - DATA'!L64,0%)) -> 0
B41: Low Density Residential | C41: ='INPUT - DATA'!G33 -> 432.2 | D41: 0.1426543882 | AW41: =VLOOKUP(B41,'T13 Expense Per Acre'!$A$7:$B$23,2,FALSE) -> Standard | AX41: =('INPUT - DATA'!G33*IFERROR(100%-'INPUT - DATA'!F65-'INPUT - DATA'!L65,0%)) -> 15.127 | AY41: =('INPUT - DATA'!G33*IFERROR('INPUT - DATA'!F65,0%)) -> 410.59 | AZ41: =('INPUT - DATA'!G33*IFERROR('INPUT - DATA'!L65,0%)) -> 6.483
B42: Low-Medium Density Residential | C42: ='INPUT - DATA'!G34 -> 675 | D42: 0.2227943361 | AW42: =VLOOKUP(B42,'T13 Expense Per Acre'!$A$7:$B$23,2,FALSE) -> Standard | AX42: =('INPUT - DATA'!G34*IFERROR(100%-'INPUT - DATA'!F66-'INPUT - DATA'!L66,0%)) -> 77.625 | AY42: =('INPUT - DATA'!G34*IFERROR('INPUT - DATA'!F66,0%)) -> 573.75 | AZ42: =('INPUT - DATA'!G34*IFERROR('INPUT - DATA'!L66,0%)) -> 23.625
B43: Medium Density Residential | C43: ='INPUT - DATA'!G35 -> 280 | D43: 0.09241839126 | AW43: =VLOOKUP(B43,'T13 Expense Per Acre'!$A$7:$B$23,2,FALSE) -> Standard | AX43: =('INPUT - DATA'!G35*IFERROR(100%-'INPUT - DATA'!F67-'INPUT - DATA'!L67,0%)) -> 30.8 | AY43: =('INPUT - DATA'!G35*IFERROR('INPUT - DATA'!F67,0%)) -> 238 | AZ43: =('INPUT - DATA'!G35*IFERROR('INPUT - DATA'!L67,0%)) -> 11.2
B44: High Density Residential | C44: ='INPUT - DATA'!G36 -> 270.5 | D44: 0.08928276727 | AW44: =VLOOKUP(B44,'T13 Expense Per Acre'!$A$7:$B$23,2,FALSE) -> Compact | AX44: =('INPUT - DATA'!G36*IFERROR(100%-'INPUT - DATA'!F68-'INPUT - DATA'!L68,0%)) -> 45.985 | AY44: =('INPUT - DATA'!G36*IFERROR('INPUT - DATA'!F68,0%)) -> 221.81 | AZ44: =('INPUT - DATA'!G36*IFERROR('INPUT - DATA'!L68,0%)) -> 2.705
B45: High Density Residential/Office | C45: ='INPUT - DATA'!G37 -> 30 | D45: 0.009901970492 | AW45: =VLOOKUP(B45,'T13 Expense Per Acre'!$A$7:$B$23,2,FALSE) -> Compact | AX45: =('INPUT - DATA'!G37*IFERROR(100%-'INPUT - DATA'!F69-'INPUT - DATA'!L69,0%)) -> 30 | AY45: =('INPUT - DATA'!G37*IFERROR('INPUT - DATA'!F69,0%)) -> 0 | AZ45: =('INPUT - DATA'!G37*IFERROR('INPUT - DATA'!L69,0%)) -> 0
B46: Office | C46: ='INPUT - DATA'!G38 -> 6 | D46: 0.001980394098 | AW46: =VLOOKUP(B46,'T13 Expense Per Acre'!$A$7:$B$23,2,FALSE) -> Standard | AX46: =('INPUT - DATA'!G38*IFERROR(100%-'INPUT - DATA'!F70-'INPUT - DATA'!L70,0%)) -> 0 | AY46: =('INPUT - DATA'!G38*IFERROR('INPUT - DATA'!F70,0%)) -> 6 | AZ46: =('INPUT - DATA'!G38*IFERROR('INPUT - DATA'!L70,0%)) -> 0
B47: Business Park | C47: ='INPUT - DATA'!G39 -> 0 | D47: 0 | AW47: =VLOOKUP(B47,'T13 Expense Per Acre'!$A$7:$B$23,2,FALSE) -> Standard | AX47: =('INPUT - DATA'!G39*IFERROR(100%-'INPUT - DATA'!F71-'INPUT - DATA'!L71,0%)) -> 0 | AY47: =('INPUT - DATA'!G39*IFERROR('INPUT - DATA'!F71,0%)) -> 0 | AZ47: =('INPUT - DATA'!G39*IFERROR('INPUT - DATA'!L71,0%)) -> 0
B48: Community Commercial/Office | C48: ='INPUT - DATA'!G40 -> 32.1 | D48: 0.01059510843 | AW48: =VLOOKUP(B48,'T13 Expense Per Acre'!$A$7:$B$23,2,FALSE) -> Compact | AX48: =('INPUT - DATA'!G40*IFERROR(100%-'INPUT - DATA'!F72-'INPUT - DATA'!L72,0%)) -> 32.1 | AY48: =('INPUT - DATA'!G40*IFERROR('INPUT - DATA'!F72,0%)) -> 0 | AZ48: =('INPUT - DATA'!G40*IFERROR('INPUT - DATA'!L72,0%)) -> 0
B49: Community Commercial | C49: ='INPUT - DATA'!G41 -> 302.1 | D49: 0.09971284286 | AW49: =VLOOKUP(B49,'T13 Expense Per Acre'!$A$7:$B$23,2,FALSE) -> Standard | AX49: =('INPUT - DATA'!G41*IFERROR(100%-'INPUT - DATA'!F73-'INPUT - DATA'!L73,0%)) -> 69.483 | AY49: =('INPUT - DATA'!G41*IFERROR('INPUT - DATA'!F73,0%)) -> 232.617 | AZ49: =('INPUT - DATA'!G41*IFERROR('INPUT - DATA'!L73,0%)) -> 0
B50: Community Commercial/High Density Residential | C50: ='INPUT - DATA'!G42 -> 0 | D50: 0 | AW50: =VLOOKUP(B50,'T13 Expense Per Acre'!$A$7:$B$23,2,FALSE) -> Compact | AX50: =('INPUT - DATA'!G42*IFERROR(100%-'INPUT - DATA'!F74-'INPUT - DATA'!L74,0%)) -> 0 | AY50: =('INPUT - DATA'!G42*IFERROR('INPUT - DATA'!F74,0%)) -> 0 | AZ50: =('INPUT - DATA'!G42*IFERROR('INPUT - DATA'!L74,0%)) -> 0
B51: Downtown | C51: ='INPUT - DATA'!G43 -> 0 | D51: 0 | AW51: =VLOOKUP(B51,'T13 Expense Per Acre'!$A$7:$B$23,2,FALSE) -> Compact | AX51: =('INPUT - DATA'!G43*IFERROR(100%-'INPUT - DATA'!F75-'INPUT - DATA'!L75,0%)) -> 0 | AY51: =('INPUT - DATA'!G43*IFERROR('INPUT - DATA'!F75,0%)) -> 0 | AZ51: =('INPUT - DATA'!G43*IFERROR('INPUT - DATA'!L75,0%)) -> 0
B52: Heavy Commercial | C52: ='INPUT - DATA'!G44 -> 115.3 | D52: 0.03805657326 | AW52: =VLOOKUP(B52,'T13 Expense Per Acre'!$A$7:$B$23,2,FALSE) -> Standard | AX52: =('INPUT - DATA'!G44*IFERROR(100%-'INPUT - DATA'!F76-'INPUT - DATA'!L76,0%)) -> 40.355 | AY52: =('INPUT - DATA'!G44*IFERROR('INPUT - DATA'!F76,0%)) -> 74.945 | AZ52: =('INPUT - DATA'!G44*IFERROR('INPUT - DATA'!L76,0%)) -> 0
B53: Highway Commercial | C53: ='INPUT - DATA'!G45 -> 0 | D53: 0 | AW53: =VLOOKUP(B53,'T13 Expense Per Acre'!$A$7:$B$23,2,FALSE) -> Standard | AX53: =('INPUT - DATA'!G45*IFERROR(100%-'INPUT - DATA'!F77-'INPUT - DATA'!L77,0%)) -> 0 | AY53: =('INPUT - DATA'!G45*IFERROR('INPUT - DATA'!F77,0%)) -> 0 | AZ53: =('INPUT - DATA'!G45*IFERROR('INPUT - DATA'!L77,0%)) -> 0
B54: Neighborhood Center | C54: ='INPUT - DATA'!G46 -> 49.8 | D54: 0.01643727102 | AW54: =VLOOKUP(B54,'T13 Expense Per Acre'!$A$7:$B$23,2,FALSE) -> Standard | AX54: =('INPUT - DATA'!G46*IFERROR(100%-'INPUT - DATA'!F78-'INPUT - DATA'!L78,0%)) -> 0 | AY54: =('INPUT - DATA'!G46*IFERROR('INPUT - DATA'!F78,0%)) -> 49.8 | AZ54: =('INPUT - DATA'!G46*IFERROR('INPUT - DATA'!L78,0%)) -> 0
B55: Industrial | C55: ='INPUT - DATA'!G47 -> 656.3 | D55: 0.2166221078 | AW55: =VLOOKUP(B55,'T13 Expense Per Acre'!$A$7:$B$23,2,FALSE) -> Standard | AX55: =('INPUT - DATA'!G47*IFERROR(100%-'INPUT - DATA'!F79-'INPUT - DATA'!L79,0%)) -> 131.26 | AY55: =('INPUT - DATA'!G47*IFERROR('INPUT - DATA'!F79,0%)) -> 525.04 | AZ55: =('INPUT - DATA'!G47*IFERROR('INPUT - DATA'!L79,0%)) -> 0
B56: TOTAL | C56: =SUM(C39:C55) -> 3029.7 | D56: =SUM(D39:D55) -> 1 | AX56: =SUM(AX39:AX55) -> 472.735 | AY56: =SUM(AY39:AY55) -> 2512.952 | AZ56: =SUM(AZ39:AZ55) -> 44.013 | BA56: =SUM(AX56:AZ56) -> 3029.7
B58: Portion of Alternative that is Compact Development | F58: COMPACT DEVELOPMENT DEFINITION
B59: Development Type | C59: Acres | D59: Percent | F59: Land Use Class | G59: Minimum Service Population/Acre Threshold
B60: Compact | C60: =SUMIFS($C$39:$C$55,$AW$39:$AW$55,B60) -> 332.6 | D60: =C60/$C$62 -> 0.1097798462 | F60: ='MODEL ASSUMPTIONS'!B32 -> Residential | G60: ='MODEL ASSUMPTIONS'!C32 -> 30
B61: Standard | C61: =SUMIFS($C$39:$C$55,$AW$39:$AW$55,B61) -> 2697.1 | D61: =C61/$C$62 -> 0.8902201538 | F61: ='MODEL ASSUMPTIONS'!B33 -> Mixed Use | G61: ='MODEL ASSUMPTIONS'!C33 -> 40
B62: TOTAL | C62: =SUM(C60:C61) -> 3029.7 | D62: =SUM(D60:D61) -> 1 | F62: ='MODEL ASSUMPTIONS'!B34 -> Commercial | G62: ='MODEL ASSUMPTIONS'!C34 -> 90
F63: Service Population = Residents + Employees
B64: Density Metrics
B65: ='SUMMARY TAB'!B9 -> Service Population/Acre | C65: ='SUMMARY TAB'!F9 -> 22.06330405
B66: ='SUMMARY TAB'!B10 -> Housing Units/Residential Acre | C66: ='SUMMARY TAB'!F10 -> 9.260419179
B68: Portion of Alternative to be Annexed from County
B69: ANNEXATION CATEGORY | C69: Acres | D69: Percent
B70: Within City (no annexation) | C70: =AX56 -> 472.735 | D70: =C70/$C$73 -> 0.1560336007
B71: Annexation County Land Outside City | C71: =AY56 -> 2512.952 | D71: =C71/$C$73 -> 0.8294392184
B72: Annexation of County Islands Inside City | C72: =AZ56 -> 44.013 | D72: 0.01452718091
B73: TOTAL | C73: =SUM(C70:C72) -> 3029.7 | D73: =SUM(D70:D72) -> 1

Sheet REVENUE DETAIL
B3: General Fund Revenue per Development Alternative by Land Use Category
B5: Property Taxes
B6: Land Use Category | C6: Property Tax per Acre (Non-Annex) | D6: Property Tax per Acre (Annex New) | E6: Property Tax per Acre (Annex Island) | F6: ='INPUT - DATA'!$D$22 -> Alternative A | G6: ='INPUT - DATA'!$E$22 -> Alternative B | H6: ='INPUT - DATA'!$F$22 -> Alternative C | I6: ='INPUT - DATA'!$G$22 -> Alternative D | AW6: Existing
B7: Rural Residential | C7: ='T8 Est Prop Tax'!H6 -> 91.64692087 | D7: ='T8 Est Prop Tax (Annex)'!J6 -> 20.34348389 | E7: ='T8 Est Prop Tax (Annex Is)'!H6 -> 31.1599531 | F7: =($C7*'INPUT - DATA'!D31*IFERROR(100%-'INPUT - DATA'!C63-'INPUT - DATA'!I63,0%))+($D7*'INPUT - DATA'!D31*IFERROR('INPUT - DATA'!C63,0%))+($E7*'INPUT - DATA'!D31*IFERROR('INPUT - DATA'!I63,0%)) -> 0 | G7: =($C7*'INPUT - DATA'!E31*IFERROR(100%-'INPUT - DATA'!D63-'INPUT - DATA'!J63,0%))+($D7*'INPUT - DATA'!E31*IFERROR('INPUT - DATA'!D63,0%))+($E7*'INPUT - DATA'!E31*IFERROR('INPUT - DATA'!J63,0%)) -> 374.3201035 | H7: =($C7*'INPUT - DATA'!F31*IFERROR(100%-'INPUT - DATA'!E63-'INPUT - DATA'!K63,0%))+($D7*'INPUT - DATA'!F31*IFERROR('INPUT - DATA'!E63,0%))+($E7*'INPUT - DATA'!F31*IFERROR('INPUT - DATA'!K63,0%)) -> 374.3201035 | I7: =($C7*'INPUT - DATA'!G31*IFERROR(100%-'INPUT - DATA'!F63-'INPUT - DATA'!L63,0%))+($D7*'INPUT - DATA'!G31*IFERROR('INPUT - DATA'!F63,0%))+($E7*'INPUT - DATA'!G31*IFERROR('INPUT - DATA'!L63,0%)) -> 374.3201035 | AW7: =$C7*'INPUT - DATA'!C31 -> 55143.95229
B8: Very Low Density Residential | C8: ='T8 Est Prop Tax'!H7 -> 293.2701468 | D8: ='T8 Est Prop Tax (Annex)'!J7 -> 86.87914844 | E8: ='T8 Est Prop Tax (Annex Is)'!H7 -> 99.71184991 | F8: =($C8*'INPUT - DATA'!D32*IFERROR(100%-'INPUT - DATA'!C64-'INPUT - DATA'!I64,0%))+($D8*'INPUT - DATA'!D32*IFERROR('INPUT - DATA'!C64,0%))+($E8*'INPUT - DATA'!D32*IFERROR('INPUT - DATA'!I64,0%)) -> 14074.42205 | G8: =($C8*'INPUT - DATA'!E32*IFERROR(100%-'INPUT - DATA'!D64-'INPUT - DATA'!J64,0%))+($D8*'INPUT - DATA'!E32*IFERROR('INPUT - DATA'!D64,0%))+($E8*'INPUT - DATA'!E32*IFERROR('INPUT - DATA'!J64,0%)) -> 14074.42205 | H8: =($C8*'INPUT - DATA'!F32*IFERROR(100%-'INPUT - DATA'!E64-'INPUT - DATA'!K64,0%))+($D8*'INPUT - DATA'!F32*IFERROR('INPUT - DATA'!E64,0%))+($E8*'INPUT - DATA'!F32*IFERROR('INPUT - DATA'!K64,0%)) -> 14074.42205 | I8: =($C8*'INPUT - DATA'!G32*IFERROR(100%-'INPUT - DATA'!F64-'INPUT - DATA'!L64,0%))+($D8*'INPUT - DATA'!G32*IFERROR('INPUT - DATA'!F64,0%))+($E8*'INPUT - DATA'!G32*IFERROR('INPUT - DATA'!L64,0%)) -> 14074.42205 | AW8: =$C8*'INPUT - DATA'!C32 -> 38916.94848
B9: Low Density Residential | C9: ='T8 Est Prop Tax'!H8 -> 916.4692087 | D9: ='T8 Est Prop Tax (Annex)'!J8 -> 292.5348389 | E9: ='T8 Est Prop Tax (Annex Is)'!H8 -> 311.599531 | F9: =($C9*'INPUT - DATA'!D33*IFERROR(100%-'INPUT - DATA'!C65-'INPUT - DATA'!I65,0%))+($D9*'INPUT - DATA'!D33*IFERROR('INPUT - DATA'!C65,0%))+($E9*'INPUT - DATA'!D33*IFERROR('INPUT - DATA'!I65,0%)) -> 103780.935 | G9: =($C9*'INPUT - DATA'!E33*IFERROR(100%-'INPUT - DATA'!D65-'INPUT - DATA'!J65,0%))+($D9*'INPUT - DATA'!E33*IFERROR('INPUT - DATA'!D65,0%))+($E9*'INPUT - DATA'!E33*IFERROR('INPUT - DATA'!J65,0%)) -> 44839.07437 | H9: =($C9*'INPUT - DATA'!F33*IFERROR(100%-'INPUT - DATA'!E65-'INPUT - DATA'!K65,0%))+($D9*'INPUT - DATA'!F33*IFERROR('INPUT - DATA'!E65,0%))+($E9*'INPUT - DATA'!F33*IFERROR('INPUT - DATA'!K65,0%)) -> 59127.19716 | I9: =($C9*'INPUT - DATA'!G33*IFERROR(100%-'INPUT - DATA'!F65-'INPUT - DATA'!L65,0%))+($D9*'INPUT - DATA'!G33*IFERROR('INPUT - DATA'!F65,0%))+($E9*'INPUT - DATA'!G33*IFERROR('INPUT - DATA'!L65,0%)) -> 135995.409 | AW9: =$C9*'INPUT - DATA'!C33 -> 2101995.005
B10: Low-Medium Density Residential | C10: ='T8 Est Prop Tax'!H9 -> 916.4692087 | D10: ='T8 Est Prop Tax (Annex)'!J9 -> 292.5348389 | E10: ='T8 Est Prop Tax (Annex Is)'!H9 -> 311.599531 | F10: =($C10*'INPUT - DATA'!D34*IFERROR(100%-'INPUT - DATA'!C66-'INPUT - DATA'!I66,0%))+($D10*'INPUT - DATA'!D34*IFERROR('INPUT - DATA'!C66,0%))+($E10*'INPUT - DATA'!D34*IFERROR('INPUT - DATA'!I66,0%)) -> 134014.9725 | G10: =($C10*'INPUT - DATA'!E34*IFERROR(100%-'INPUT - DATA'!D66-'INPUT - DATA'!J66,0%))+($D10*'INPUT - DATA'!E34*IFERROR('INPUT - DATA'!D66,0%))+($E10*'INPUT - DATA'!E34*IFERROR('INPUT - DATA'!J66,0%)) -> 162551.5633 | H10: =($C10*'INPUT - DATA'!F34*IFERROR(100%-'INPUT - DATA'!E66-'INPUT - DATA'!K66,0%))+($D10*'INPUT - DATA'!F34*IFERROR('INPUT - DATA'!E66,0%))+($E10*'INPUT - DATA'!F34*IFERROR('INPUT - DATA'!K66,0%)) -> 116046.1361 | I10: =($C10*'INPUT - DATA'!G34*IFERROR(100%-'INPUT - DATA'!F66-'INPUT - DATA'!L66,0%))+($D10*'INPUT - DATA'!G34*IFERROR('INPUT - DATA'!F66,0%))+($E10*'INPUT - DATA'!G34*IFERROR('INPUT - DATA'!L66,0%)) -> 246344.325 | AW10: =$C10*'INPUT - DATA'!C34 -> 290531.6984
B11: Medium Density Residential | C11: ='T8 Est Prop Tax'!H10 -> 1344.154839 | D11: ='T8 Est Prop Tax (Annex)'!J10 -> 433.671097 | E11: ='T8 Est Prop Tax (Annex Is)'!H10 -> 457.0126454 | F11: =($C11*'INPUT - DATA'!D35*IFERROR(100%-'INPUT - DATA'!C67-'INPUT - DATA'!I67,0%))+($D11*'INPUT - DATA'!D35*IFERROR('INPUT - DATA'!C67,0%))+($E11*'INPUT - DATA'!D35*IFERROR('INPUT - DATA'!I67,0%)) -> 273407.4056 | G11: =($C11*'INPUT - DATA'!E35*IFERROR(100%-'INPUT - DATA'!D67-'INPUT - DATA'!J67,0%))+($D11*'INPUT - DATA'!E35*IFERROR('INPUT - DATA'!D67,0%))+($E11*'INPUT - DATA'!E35*IFERROR('INPUT - DATA'!J67,0%)) -> 323390.7473 | H11: =($C11*'INPUT - DATA'!F35*IFERROR(100%-'INPUT - DATA'!E67-'INPUT - DATA'!K67,0%))+($D11*'INPUT - DATA'!F35*IFERROR('INPUT - DATA'!E67,0%))+($E11*'INPUT - DATA'!F35*IFERROR('INPUT - DATA'!K67,0%)) -> 291490.4237 | I11: =($C11*'INPUT - DATA'!G35*IFERROR(100%-'INPUT - DATA'!F67-'INPUT - DATA'!L67,0%))+($D11*'INPUT - DATA'!G35*IFERROR('INPUT - DATA'!F67,0%))+($E11*'INPUT - DATA'!G35*IFERROR('INPUT - DATA'!L67,0%)) -> 149732.2318 | AW11: =$C11*'INPUT - DATA'!C35 -> 922773.7558
B12: High Density Residential | C12: ='T8 Est Prop Tax'!H11 -> 1649.644576 | D12: ='T8 Est Prop Tax (Annex)'!J11 -> 534.48271 | E12: ='T8 Est Prop Tax (Annex Is)'!H11 -> 560.8791557 | F12: =($C12*'INPUT - DATA'!D36*IFERROR(100%-'INPUT - DATA'!C68-'INPUT - DATA'!I68,0%))+($D12*'INPUT - DATA'!D36*IFERROR('INPUT - DATA'!C68,0%))+($E12*'INPUT - DATA'!D36*IFERROR('INPUT - DATA'!I68,0%)) -> 172394.7333 | G12: =($C12*'INPUT - DATA'!E36*IFERROR(100%-'INPUT - DATA'!D68-'INPUT - DATA'!J68,0%))+($D12*'INPUT - DATA'!E36*IFERROR('INPUT - DATA'!D68,0%))+($E12*'INPUT - DATA'!E36*IFERROR('INPUT - DATA'!J68,0%)) -> 195822.969 | H12: =($C12*'INPUT - DATA'!F36*IFERROR(100%-'INPUT - DATA'!E68-'INPUT - DATA'!K68,0%))+($D12*'INPUT - DATA'!F36*IFERROR('INPUT - DATA'!E68,0%))+($E12*'INPUT - DATA'!F36*IFERROR('INPUT - DATA'!K68,0%)) -> 191583.7487 | I12: =($C12*'INPUT - DATA'!G36*IFERROR(100%-'INPUT - DATA'!F68-'INPUT - DATA'!L68,0%))+($D12*'INPUT - DATA'!G36*IFERROR('INPUT - DATA'!F68,0%))+($E12*'INPUT - DATA'!G36*IFERROR('INPUT - DATA'!L68,0%)) -> 195929.6938 | AW12: =$C12*'INPUT - DATA'!C36 -> 377603.6434
B13: High Density Residential/Office | C13: ='T8 Est Prop Tax'!H12 -> 1617.569304 | D13: ='T8 Est Prop Tax (Annex)'!J12 -> 523.8978702 | E13: ='T8 Est Prop Tax (Annex Is)'!H12 -> 549.9735633 | F13: =($C13*'INPUT - DATA'!D37*IFERROR(100%-'INPUT - DATA'!C69-'INPUT - DATA'!I69,0%))+($D13*'INPUT - DATA'!D37*IFERROR('INPUT - DATA'!C69,0%))+($E13*'INPUT - DATA'!D37*IFERROR('INPUT - DATA'!I69,0%)) -> 47880.05139 | G13: =($C13*'INPUT - DATA'!E37*IFERROR(100%-'INPUT - DATA'!D69-'INPUT - DATA'!J69,0%))+($D13*'INPUT - DATA'!E37*IFERROR('INPUT - DATA'!D69,0%))+($E13*'INPUT - DATA'!E37*IFERROR('INPUT - DATA'!J69,0%)) -> 48527.07911 | H13: =($C13*'INPUT - DATA'!F37*IFERROR(100%-'INPUT - DATA'!E69-'INPUT - DATA'!K69,0%))+($D13*'INPUT - DATA'!F37*IFERROR('INPUT - DATA'!E69,0%))+($E13*'INPUT - DATA'!F37*IFERROR('INPUT - DATA'!K69,0%)) -> 48527.07911 | I13: =($C13*'INPUT - DATA'!G37*IFERROR(100%-'INPUT - DATA'!F69-'INPUT - DATA'!L69,0%))+($D13*'INPUT - DATA'!G37*IFERROR('INPUT - DATA'!F69,0%))+($E13*'INPUT - DATA'!G37*IFERROR('INPUT - DATA'!L69,0%)) -> 48527.07911 | AW13: =$C13*'INPUT - DATA'!C37 -> 0
B14: Office | C14: ='T8 Est Prop Tax'!H13 -> 1372.14 | D14: ='T8 Est Prop Tax (Annex)'!J13 -> 442.9062 | E14: ='T8 Est Prop Tax (Annex Is)'!H13 -> 466.5276 | F14: =($C14*'INPUT - DATA'!D38*IFERROR(100%-'INPUT - DATA'!C70-'INPUT - DATA'!I70,0%))+($D14*'INPUT - DATA'!D38*IFERROR('INPUT - DATA'!C70,0%))+($E14*'INPUT - DATA'!D38*IFERROR('INPUT - DATA'!I70,0%)) -> 2657.4372 | G14: =($C14*'INPUT - DATA'!E38*IFERROR(100%-'INPUT - DATA'!D70-'INPUT - DATA'!J70,0%))+($D14*'INPUT - DATA'!E38*IFERROR('INPUT - DATA'!D70,0%))+($E14*'INPUT - DATA'!E38*IFERROR('INPUT - DATA'!J70,0%)) -> 2657.4372 | H14: =($C14*'INPUT - DATA'!F38*IFERROR(100%-'INPUT - DATA'!E70-'INPUT - DATA'!K70,0%))+($D14*'INPUT - DATA'!F38*IFERROR('INPUT - DATA'!E70,0%))+($E14*'INPUT - DATA'!F38*IFERROR('INPUT - DATA'!K70,0%)) -> 2657.4372 | I14: =($C14*'INPUT - DATA'!G38*IFERROR(100%-'INPUT - DATA'!F70-'INPUT - DATA'!L70,0%))+($D14*'INPUT - DATA'!G38*IFERROR('INPUT - DATA'!F70,0%))+($E14*'INPUT - DATA'!G38*IFERROR('INPUT - DATA'!L70,0%)) -> 2657.4372 | AW14: =$C14*'INPUT - DATA'!C38 -> 78740.50173
B15: Business Park | C15: ='T8 Est Prop Tax'!H14 -> 1372.14 | D15: ='T8 Est Prop Tax (Annex)'!J14 -> 442.9062 | E15: ='T8 Est Prop Tax (Annex Is)'!H14 -> 466.5276 | F15: =($C15*'INPUT - DATA'!D39*IFERROR(100%-'INPUT - DATA'!C71-'INPUT - DATA'!I71,0%))+($D15*'INPUT - DATA'!D39*IFERROR('INPUT - DATA'!C71,0%))+($E15*'INPUT - DATA'!D39*IFERROR('INPUT - DATA'!I71,0%)) -> 0 | G15: =($C15*'INPUT - DATA'!E39*IFERROR(100%-'INPUT - DATA'!D71-'INPUT - DATA'!J71,0%))+($D15*'INPUT - DATA'!E39*IFERROR('INPUT - DATA'!D71,0%))+($E15*'INPUT - DATA'!E39*IFERROR('INPUT - DATA'!J71,0%)) -> 0 | H15: =($C15*'INPUT - DATA'!F39*IFERROR(100%-'INPUT - DATA'!E71-'INPUT - DATA'!K71,0%))+($D15*'INPUT - DATA'!F39*IFERROR('INPUT - DATA'!E71,0%))+($E15*'INPUT - DATA'!F39*IFERROR('INPUT - DATA'!K71,0%)) -> 0 | I15: =($C15*'INPUT - DATA'!G39*IFERROR(100%-'INPUT - DATA'!F71-'INPUT - DATA'!L71,0%))+($D15*'INPUT - DATA'!G39*IFERROR('INPUT - DATA'!F71,0%))+($E15*'INPUT - DATA'!G39*IFERROR('INPUT - DATA'!L71,0%)) -> 0 | AW15: =$C15*'INPUT - DATA'!C39 -> 83172.01827
B16: Community Commercial/Office | C16: ='T8 Est Prop Tax'!H15 -> 2317.392 | D16: ='T8 Est Prop Tax (Annex)'!J15 -> 528.43626 | E16: ='T8 Est Prop Tax (Annex Is)'!H15 -> 554.64948 | F16: =($C16*'INPUT - DATA'!D40*IFERROR(100%-'INPUT - DATA'!C72-'INPUT - DATA'!I72,0%))+($D16*'INPUT - DATA'!D40*IFERROR('INPUT - DATA'!C72,0%))+($E16*'INPUT - DATA'!D40*IFERROR('INPUT - DATA'!I72,0%)) -> 74851.7616 | G16: =($C16*'INPUT - DATA'!E40*IFERROR(100%-'INPUT - DATA'!D72-'INPUT - DATA'!J72,0%))+($D16*'INPUT - DATA'!E40*IFERROR('INPUT - DATA'!D72,0%))+($E16*'INPUT - DATA'!E40*IFERROR('INPUT - DATA'!J72,0%)) -> 74851.7616 | H16: =($C16*'INPUT - DATA'!F40*IFERROR(100%-'INPUT - DATA'!E72-'INPUT - DATA'!K72,0%))+($D16*'INPUT - DATA'!F40*IFERROR('INPUT - DATA'!E72,0%))+($E16*'INPUT - DATA'!F40*IFERROR('INPUT - DATA'!K72,0%)) -> 74388.2832 | I16: =($C16*'INPUT - DATA'!G40*IFERROR(100%-'INPUT - DATA'!F72-'INPUT - DATA'!L72,0%))+($D16*'INPUT - DATA'!G40*IFERROR('INPUT - DATA'!F72,0%))+($E16*'INPUT - DATA'!G40*IFERROR('INPUT - DATA'!L72,0%)) -> 74388.2832 | AW16: =$C16*'INPUT - DATA'!C40 -> 160827.0048
B17: Community Commercial | C17: ='T8 Est Prop Tax'!H16 -> 1350.36 | D17: ='T8 Est Prop Tax (Annex)'!J16 -> 435.7188 | E17: ='T8 Est Prop Tax (Annex Is)'!H16 -> 459.1224 | F17: =($C17*'INPUT - DATA'!D41*IFERROR(100%-'INPUT - DATA'!C73-'INPUT - DATA'!I73,0%))+($D17*'INPUT - DATA'!D41*IFERROR('INPUT - DATA'!C73,0%))+($E17*'INPUT - DATA'!D41*IFERROR('INPUT - DATA'!I73,0%)) -> 123328.7411 | G17: =($C17*'INPUT - DATA'!E41*IFERROR(100%-'INPUT - DATA'!D73-'INPUT - DATA'!J73,0%))+($D17*'INPUT - DATA'!E41*IFERROR('INPUT - DATA'!D73,0%))+($E17*'INPUT - DATA'!E41*IFERROR('INPUT - DATA'!J73,0%)) -> 195182.664 | H17: =($C17*'INPUT - DATA'!F41*IFERROR(100%-'INPUT - DATA'!E73-'INPUT - DATA'!K73,0%))+($D17*'INPUT - DATA'!F41*IFERROR('INPUT - DATA'!E73,0%))+($E17*'INPUT - DATA'!F41*IFERROR('INPUT - DATA'!K73,0%)) -> 130908.984 | I17: =($C17*'INPUT - DATA'!G41*IFERROR(100%-'INPUT - DATA'!F73-'INPUT - DATA'!L73,0%))+($D17*'INPUT - DATA'!G41*IFERROR('INPUT - DATA'!F73,0%))+($E17*'INPUT - DATA'!G41*IFERROR('INPUT - DATA'!L73,0%)) -> 195182.664 | AW17: =$C17*'INPUT - DATA'!C41 -> 1001021.868
B18: Community Commercial/High Density Residential | C18: ='T8 Est Prop Tax'!H17 -> 3225.303806 | D18: ='T8 Est Prop Tax (Annex)'!J17 -> 1054.450256 | E18: ='T8 Est Prop Tax (Annex Is)'!H17 -> 1096.603294 | F18: =($C18*'INPUT - DATA'!D42*IFERROR(100%-'INPUT - DATA'!C74-'INPUT - DATA'!I74,0%))+($D18*'INPUT - DATA'!D42*IFERROR('INPUT - DATA'!C74,0%))+($E18*'INPUT - DATA'!D42*IFERROR('INPUT - DATA'!I74,0%)) -> 0 | G18: =($C18*'INPUT - DATA'!E42*IFERROR(100%-'INPUT - DATA'!D74-'INPUT - DATA'!J74,0%))+($D18*'INPUT - DATA'!E42*IFERROR('INPUT - DATA'!D74,0%))+($E18*'INPUT - DATA'!E42*IFERROR('INPUT - DATA'!J74,0%)) -> 0 | H18: =($C18*'INPUT - DATA'!F42*IFERROR(100%-'INPUT - DATA'!E74-'INPUT - DATA'!K74,0%))+($D18*'INPUT - DATA'!F42*IFERROR('INPUT - DATA'!E74,0%))+($E18*'INPUT - DATA'!F42*IFERROR('INPUT - DATA'!K74,0%)) -> 0 | I18: =($C18*'INPUT - DATA'!G42*IFERROR(100%-'INPUT - DATA'!F74-'INPUT - DATA'!L74,0%))+($D18*'INPUT - DATA'!G42*IFERROR('INPUT - DATA'!F74,0%))+($E18*'INPUT - DATA'!G42*IFERROR('INPUT - DATA'!L74,0%)) -> 0 | AW18: =$C18*'INPUT - DATA'!C42 -> 0
B19: Downtown | C19: ='T8 Est Prop Tax'!H18 -> 14479.20987 | D19: ='T8 Est Prop Tax (Annex)'!J18 -> 4768.239258 | E19: ='T8 Est Prop Tax (Annex Is)'!H18 -> 4922.931357 | F19: =($C19*'INPUT - DATA'!D43*IFERROR(100%-'INPUT - DATA'!C75-'INPUT - DATA'!I75,0%))+($D19*'INPUT - DATA'!D43*IFERROR('INPUT - DATA'!C75,0%))+($E19*'INPUT - DATA'!D43*IFERROR('INPUT - DATA'!I75,0%)) -> 0 | G19: =($C19*'INPUT - DATA'!E43*IFERROR(100%-'INPUT - DATA'!D75-'INPUT - DATA'!J75,0%))+($D19*'INPUT - DATA'!E43*IFERROR('INPUT - DATA'!D75,0%))+($E19*'INPUT - DATA'!E43*IFERROR('INPUT - DATA'!J75,0%)) -> 0 | H19: =($C19*'INPUT - DATA'!F43*IFERROR(100%-'INPUT - DATA'!E75-'INPUT - DATA'!K75,0%))+($D19*'INPUT - DATA'!F43*IFERROR('INPUT - DATA'!E75,0%))+($E19*'INPUT - DATA'!F43*IFERROR('INPUT - DATA'!K75,0%)) -> 0 | I19: =($C19*'INPUT - DATA'!G43*IFERROR(100%-'INPUT - DATA'!F75-'INPUT - DATA'!L75,0%))+($D19*'INPUT - DATA'!G43*IFERROR('INPUT - DATA'!F75,0%))+($E19*'INPUT - DATA'!G43*IFERROR('INPUT - DATA'!L75,0%)) -> 0 | AW19: =$C19*'INPUT - DATA'!C43 -> 0
B20: Heavy Commercial | C20: ='T8 Est Prop Tax'!H19 -> 1890.504 | D20: ='T8 Est Prop Tax (Annex)'!J19 -> 613.96632 | E20: ='T8 Est Prop Tax (Annex Is)'!H19 -> 642.77136 | F20: =($C20*'INPUT - DATA'!D44*IFERROR(100%-'INPUT - DATA'!C76-'INPUT - DATA'!I76,0%))+($D20*'INPUT - DATA'!D44*IFERROR('INPUT - DATA'!C76,0%))+($E20*'INPUT - DATA'!D44*IFERROR('INPUT - DATA'!I76,0%)) -> 111670.9322 | G20: =($C20*'INPUT - DATA'!E44*IFERROR(100%-'INPUT - DATA'!D76-'INPUT - DATA'!J76,0%))+($D20*'INPUT - DATA'!E44*IFERROR('INPUT - DATA'!D76,0%))+($E20*'INPUT - DATA'!E44*IFERROR('INPUT - DATA'!J76,0%)) -> 122304.9948 | H20: =($C20*'INPUT - DATA'!F44*IFERROR(100%-'INPUT - DATA'!E76-'INPUT - DATA'!K76,0%))+($D20*'INPUT - DATA'!F44*IFERROR('INPUT - DATA'!E76,0%))+($E20*'INPUT - DATA'!F44*IFERROR('INPUT - DATA'!K76,0%)) -> 95722.7676 | I20: =($C20*'INPUT - DATA'!G44*IFERROR(100%-'INPUT - DATA'!F76-'INPUT - DATA'!L76,0%))+($D20*'INPUT - DATA'!G44*IFERROR('INPUT - DATA'!F76,0%))+($E20*'INPUT - DATA'!G44*IFERROR('INPUT - DATA'!L76,0%)) -> 122304.9948 | AW20: =$C20*'INPUT - DATA'!C44 -> 0
B21: Highway Commercial | C21: ='T8 Est Prop Tax'!H20 -> 1890.504 | D21: ='T8 Est Prop Tax (Annex)'!J20 -> 613.96632 | E21: ='T8 Est Prop Tax (Annex Is)'!H20 -> 642.77136 | F21: =($C21*'INPUT - DATA'!D45*IFERROR(100%-'INPUT - DATA'!C77-'INPUT - DATA'!I77,0%))+($D21*'INPUT - DATA'!D45*IFERROR('INPUT - DATA'!C77,0%))+($E21*'INPUT - DATA'!D45*IFERROR('INPUT - DATA'!I77,0%)) -> 0 | G21: =($C21*'INPUT - DATA'!E45*IFERROR(100%-'INPUT - DATA'!D77-'INPUT - DATA'!J77,0%))+($D21*'INPUT - DATA'!E45*IFERROR('INPUT - DATA'!D77,0%))+($E21*'INPUT - DATA'!E45*IFERROR('INPUT - DATA'!J77,0%)) -> 0 | H21: =($C21*'INPUT - DATA'!F45*IFERROR(100%-'INPUT - DATA'!E77-'INPUT - DATA'!K77,0%))+($D21*'INPUT - DATA'!F45*IFERROR('INPUT - DATA'!E77,0%))+($E21*'INPUT - DATA'!F45*IFERROR('INPUT - DATA'!K77,0%)) -> 0 | I21: =($C21*'INPUT - DATA'!G45*IFERROR(100%-'INPUT - DATA'!F77-'INPUT - DATA'!L77,0%))+($D21*'INPUT - DATA'!G45*IFERROR('INPUT - DATA'!F77,0%))+($E21*'INPUT - DATA'!G45*IFERROR('INPUT - DATA'!L77,0%)) -> 0 | AW21: =$C21*'INPUT - DATA'!C45 -> 0
B22: Neighborhood Center | C22: ='T8 Est Prop Tax'!H21 -> 1689.241152 | D22: ='T8 Est Prop Tax (Annex)'!J21 -> 547.5495801 | E22: ='T8 Est Prop Tax (Annex Is)'!H21 -> 574.3419916 | F22: =($C22*'INPUT - DATA'!D46*IFERROR(100%-'INPUT - DATA'!C78-'INPUT - DATA'!I78,0%))+($D22*'INPUT - DATA'!D46*IFERROR('INPUT - DATA'!C78,0%))+($E22*'INPUT - DATA'!D46*IFERROR('INPUT - DATA'!I78,0%)) -> 5201.721011 | G22: =($C22*'INPUT - DATA'!E46*IFERROR(100%-'INPUT - DATA'!D78-'INPUT - DATA'!J78,0%))+($D22*'INPUT - DATA'!E46*IFERROR('INPUT - DATA'!D78,0%))+($E22*'INPUT - DATA'!E46*IFERROR('INPUT - DATA'!J78,0%)) -> 27267.96909 | H22: =($C22*'INPUT - DATA'!F46*IFERROR(100%-'INPUT - DATA'!E78-'INPUT - DATA'!K78,0%))+($D22*'INPUT - DATA'!F46*IFERROR('INPUT - DATA'!E78,0%))+($E22*'INPUT - DATA'!F46*IFERROR('INPUT - DATA'!K78,0%)) -> 16755.01715 | I22: =($C22*'INPUT - DATA'!G46*IFERROR(100%-'INPUT - DATA'!F78-'INPUT - DATA'!L78,0%))+($D22*'INPUT - DATA'!G46*IFERROR('INPUT - DATA'!F78,0%))+($E22*'INPUT - DATA'!G46*IFERROR('INPUT - DATA'!L78,0%)) -> 27267.96909 | AW22: =$C22*'INPUT - DATA'!C46 -> 0
B23: Industrial | C23: ='T8 Est Prop Tax'!H22 -> 51.22656 | D23: ='T8 Est Prop Tax (Annex)'!J22 -> 7.0047648 | E23: ='T8 Est Prop Tax (Annex Is)'!H22 -> 17.4170304 | F23: =($C23*'INPUT - DATA'!D47*IFERROR(100%-'INPUT - DATA'!C79-'INPUT - DATA'!I79,0%))+($D23*'INPUT - DATA'!D47*IFERROR('INPUT - DATA'!C79,0%))+($E23*'INPUT - DATA'!D47*IFERROR('INPUT - DATA'!I79,0%)) -> 10401.77998 | G23: =($C23*'INPUT - DATA'!E47*IFERROR(100%-'INPUT - DATA'!D79-'INPUT - DATA'!J79,0%))+($D23*'INPUT - DATA'!E47*IFERROR('INPUT - DATA'!D79,0%))+($E23*'INPUT - DATA'!E47*IFERROR('INPUT - DATA'!J79,0%)) -> 10401.77998 | H23: =($C23*'INPUT - DATA'!F47*IFERROR(100%-'INPUT - DATA'!E79-'INPUT - DATA'!K79,0%))+($D23*'INPUT - DATA'!F47*IFERROR('INPUT - DATA'!E79,0%))+($E23*'INPUT - DATA'!F47*IFERROR('INPUT - DATA'!K79,0%)) -> 10401.77998 | I23: =($C23*'INPUT - DATA'!G47*IFERROR(100%-'INPUT - DATA'!F79-'INPUT - DATA'!L79,0%))+($D23*'INPUT - DATA'!G47*IFERROR('INPUT - DATA'!F79,0%))+($E23*'INPUT - DATA'!G47*IFERROR('INPUT - DATA'!L79,0%)) -> 10401.77998 | AW23: =$C23*'INPUT - DATA'!C47 -> 57696.47453
B24: Total | F24: =SUM(F7:F23) -> 1073664.893 | G24: =SUM(G7:G23) -> 1222246.782 | H24: 1052057.596 | I24: 1223180.609 | AW24: =SUM(AW7:AW23) -> 5168422.871
B27: Sales Taxes
B28: Land Use Category | C28: Sales Tax per Acre | D28: ='INPUT - DATA'!$D$22 -> Alternative A | E28: ='INPUT - DATA'!$E$22 -> Alternative B | F28: ='INPUT - DATA'!$F$22 -> Alternative C | G28: ='INPUT - DATA'!$G$22 -> Alternative D | AW28: Existing
B29: Rural Residential | C29: ='T9 Est Sales Tax'!H7 -> 0 | D29: =$C29*'INPUT - DATA'!D31 -> 0 | E29: =$C29*'INPUT - DATA'!E31 -> 0 | F29: =$C29*'INPUT - DATA'!F31 -> 0 | G29: =$C29*'INPUT - DATA'!G31 -> 0 | AW29: =$C29*'INPUT - DATA'!C31 -> 0
B30: Very Low Density Residential | C30: ='T9 Est Sales Tax'!H8 -> 0 | D30: =$C30*'INPUT - DATA'!D32 -> 0 | E30: =$C30*'INPUT - DATA'!E32 -> 0 | F30: =$C30*'INPUT - DATA'!F32 -> 0 | G30: =$C30*'INPUT - DATA'!G32 -> 0 | AW30: =$C30*'INPUT - DATA'!C32 -> 0
B31: Low Density Residential | C31: ='T9 Est Sales Tax'!H9 -> 0 | D31: =$C31*'INPUT - DATA'!D33 -> 0 | E31: =$C31*'INPUT - DATA'!E33 -> 0 | F31: =$C31*'INPUT - DATA'!F33 -> 0 | G31: =$C31*'INPUT - DATA'!G33 -> 0 | AW31: =$C31*'INPUT - DATA'!C33 -> 0
B32: Low-Medium Density Residential | C32: ='T9 Est Sales Tax'!H10 -> 0 | D32: =$C32*'INPUT - DATA'!D34 -> 0 | E32: =$C32*'INPUT - DATA'!E34 -> 0 | F32: =$C32*'INPUT - DATA'!F34 -> 0 | G32: =$C32*'INPUT - DATA'!G34 -> 0 | AW32: =$C32*'INPUT - DATA'!C34 -> 0
B33: Medium Density Residential | C33: ='T9 Est Sales Tax'!H11 -> 0 | D33: =$C33*'INPUT - DATA'!D35 -> 0 | E33: =$C33*'INPUT - DATA'!E35 -> 0 | F33: =$C33*'INPUT - DATA'!F35 -> 0 | G33: =$C33*'INPUT - DATA'!G35 -> 0 | AW33: =$C33*'INPUT - DATA'!C35 -> 0
B34: High Density Residential | C34: ='T9 Est Sales Tax'!H12 -> 0 | D34: =$C34*'INPUT - DATA'!D36 -> 0 | E34: =$C34*'INPUT - DATA'!E36 -> 0 | F34: =$C34*'INPUT - DATA'!F36 -> 0 | G34: =$C34*'INPUT - DATA'!G36 -> 0 | AW34: =$C34*'INPUT - DATA'!C36 -> 0
B35: High Density Residential/Office | C35: ='T9 Est Sales Tax'!H13 -> 724.185 | D35: =$C35*'INPUT - DATA'!D37 -> 21435.876 | E35: =$C35*'INPUT - DATA'!E37 -> 21725.55 | F35: =$C35*'INPUT - DATA'!F37 -> 21725.55 | G35: =$C35*'INPUT - DATA'!G37 -> 21725.55 | AW35: =$C35*'INPUT - DATA'!C37 -> 0
B36: Office | C36: ='T9 Est Sales Tax'!H14 -> 1448.37 | D36: =$C36*'INPUT - DATA'!D38 -> 8690.22 | E36: =$C36*'INPUT - DATA'!E38 -> 8690.22 | F36: =$C36*'INPUT - DATA'!F38 -> 8690.22 | G36: =$C36*'INPUT - DATA'!G38 -> 8690.22 | AW36: =$C36*'INPUT - DATA'!C38 -> 83114.97404
B37: Business Park | C37: ='T9 Est Sales Tax'!H15 -> 1448.37 | D37: =$C37*'INPUT - DATA'!D39 -> 0 | E37: =$C37*'INPUT - DATA'!E39 -> 0 | F37: =$C37*'INPUT - DATA'!F39 -> 0 | G37: =$C37*'INPUT - DATA'!G39 -> 0 | AW37: =$C37*'INPUT - DATA'!C39 -> 87792.68596
B38: Community Commercial/Office | C38: ='T9 Est Sales Tax'!H16 -> 12311.145 | D38: =$C38*'INPUT - DATA'!D40 -> 397649.9835 | E38: =$C38*'INPUT - DATA'!E40 -> 397649.9835 | F38: =$C38*'INPUT - DATA'!F40 -> 395187.7545 | G38: =$C38*'INPUT - DATA'!G40 -> 395187.7545 | AW38: =$C38*'INPUT - DATA'!C40 -> 854393.463
B39: Community Commercial | C39: ='T9 Est Sales Tax'!H17 -> 16552.8 | D39: =$C39*'INPUT - DATA'!D41 -> 2285941.68 | E39: =$C39*'INPUT - DATA'!E41 -> 5000600.88 | F39: =$C39*'INPUT - DATA'!F41 -> 2557407.6 | G39: =$C39*'INPUT - DATA'!G41 -> 5000600.88 | AW39: =$C39*'INPUT - DATA'!C41 -> 12270590.64
B40: Community Commercial/High Density Residential | C40: ='T9 Est Sales Tax'!H18 -> 14140.2294 | D40: =$C40*'INPUT - DATA'!D42 -> 0 | E40: =$C40*'INPUT - DATA'!E42 -> 0 | F40: =$C40*'INPUT - DATA'!F42 -> 0 | G40: =$C40*'INPUT - DATA'!G42 -> 0 | AW40: =$C40*'INPUT - DATA'!C42 -> 0
B41: Downtown | C41: ='T9 Est Sales Tax'!H19 -> 79143.075 | D41: =$C41*'INPUT - DATA'!D43 -> 0 | E41: =$C41*'INPUT - DATA'!E43 -> 0 | F41: =$C41*'INPUT - DATA'!F43 -> 0 | G41: =$C41*'INPUT - DATA'!G43 -> 0 | AW41: =$C41*'INPUT - DATA'!C43 -> 0
B42: Heavy Commercial | C42: ='T9 Est Sales Tax'!H20 -> 23173.92 | D42: =$C42*'INPUT - DATA'!D44 -> 2301170.256 | E42: =$C42*'INPUT - DATA'!E44 -> 2671952.976 | F42: =$C42*'INPUT - DATA'!F44 -> 1258343.856 | G42: =$C42*'INPUT - DATA'!G44 -> 2671952.976 | AW42: =$C42*'INPUT - DATA'!C44 -> 0
B43: Highway Commercial | C43: ='T9 Est Sales Tax'!H21 -> 23173.92 | D43: =$C43*'INPUT - DATA'!D45 -> 0 | E43: =$C43*'INPUT - DATA'!E45 -> 0 | F43: =$C43*'INPUT - DATA'!F45 -> 0 | G43: =$C43*'INPUT - DATA'!G45 -> 0 | AW43: =$C43*'INPUT - DATA'!C45 -> 0
B44: Neighborhood Center | C44: ='T9 Est Sales Tax'!H22 -> 9233.35875 | D44: =$C44*'INPUT - DATA'!D46 -> 87716.90812 | E44: =$C44*'INPUT - DATA'!E46 -> 459821.2657 | F44: =$C44*'INPUT - DATA'!F46 -> 282540.7778 | G44: =$C44*'INPUT - DATA'!G46 -> 459821.2657 | AW44: =$C44*'INPUT - DATA'!C46 -> 0
B45: Industrial | C45: ='T9 Est Sales Tax'!H23 -> 844.1928 | D45: =$C45*'INPUT - DATA'!D47 -> 554043.7346 | E45: =$C45*'INPUT - DATA'!E47 -> 554043.7346 | F45: =$C45*'INPUT - DATA'!F47 -> 554043.7346 | G45: =$C45*'INPUT - DATA'!G47 -> 554043.7346 | AW45: =$C45*'INPUT - DATA'!C47 -> 950814.3506
B46: Total | D46: =SUM(D29:D45) -> 5656648.658 | E46: =SUM(E29:E45) -> 9114484.61 | F46: =SUM(F29:F45) -> 5077939.493 | G46: =SUM(G29:G45) -> 9112022.381 | AW46: =SUM(AW29:AW45) -> 14246706.11
B49: Transfer Taxes
B50: Land Use Category | C50: Property Transfer Tax per Acre | D50: ='INPUT - DATA'!$D$22 -> Alternative A | E50: ='INPUT - DATA'!$E$22 -> Alternative B | F50: ='INPUT - DATA'!$F$22 -> Alternative C | G50: ='INPUT - DATA'!$G$22 -> Alternative D | AW50: Existing
B51: Rural Residential | C51: ='T10 Est Prop Transfer'!G7 -> 10.0811613 | D51: =$C51*'INPUT - DATA'!D31 -> 0 | E51: =$C51*'INPUT - DATA'!E31 -> 185.4933678 | F51: =$C51*'INPUT - DATA'!F31 -> 185.4933678 | G51: =$C51*'INPUT - DATA'!G31 -> 185.4933678 | AW51: =$C51*'INPUT - DATA'!C31 -> 6065.834752
B52: Very Low Density Residential | C52: ='T10 Est Prop Transfer'!G8 -> 32.25971615 | D52: =$C52*'INPUT - DATA'!D32 -> 5226.074016 | E52: =$C52*'INPUT - DATA'!E32 -> 5226.074016 | F52: =$C52*'INPUT - DATA'!F32 -> 5226.074016 | G52: =$C52*'INPUT - DATA'!G32 -> 5226.074016 | AW52: =$C52*'INPUT - DATA'!C32 -> 4280.864333
B53: Low Density Residential | C53: ='T10 Est Prop Transfer'!G9 -> 100.811613 | D53: =$C53*'INPUT - DATA'!D33 -> 32279.87847 | E53: =$C53*'INPUT - DATA'!E33 -> 10807.00491 | F53: =$C53*'INPUT - DATA'!F33 -> 17057.32491 | G53: =$C53*'INPUT - DATA'!G33 -> 43570.77912 | AW53: =$C53*'INPUT - DATA'!C33 -> 231219.4506
B54: Low-Medium Density Residential | C54: ='T10 Est Prop Transfer'!G10 -> 100.811613 | D54: =$C54*'INPUT - DATA'!D34 -> 25202.90324 | E54: =$C54*'INPUT - DATA'!E34 -> 34376.76002 | F54: =$C54*'INPUT - DATA'!F34 -> 18952.58324 | G54: =$C54*'INPUT - DATA'!G34 -> 68047.83875 | AW54: =$C54*'INPUT - DATA'!C34 -> 31958.48683
B55: Medium Density Residential | C55: ='T10 Est Prop Transfer'!G11 -> 73.92851617 | D55: =$C55*'INPUT - DATA'!D35 -> 42139.25422 | E55: =$C55*'INPUT - DATA'!E35 -> 50345.31951 | F55: =$C55*'INPUT - DATA'!F35 -> 46722.82222 | G55: =$C55*'INPUT - DATA'!G35 -> 20699.98453 | AW55: =$C55*'INPUT - DATA'!C35 -> 50752.55657
B56: High Density Residential | C56: ='T10 Est Prop Transfer'!G12 -> 90.73045166 | D56: =$C56*'INPUT - DATA'!D36 -> 20641.17775 | E56: =$C56*'INPUT - DATA'!E36 -> 24724.04808 | F56: =$C56*'INPUT - DATA'!F36 -> 23998.20446 | G56: =$C56*'INPUT - DATA'!G36 -> 24542.58717 | AW56: =$C56*'INPUT - DATA'!C36 -> 20768.20039
B57: High Density Residential/Office | C57: ='T10 Est Prop Transfer'!G13 -> 88.9663117 | D57: =$C57*'INPUT - DATA'!D37 -> 2633.402826 | E57: =$C57*'INPUT - DATA'!E37 -> 2668.989351 | F57: =$C57*'INPUT - DATA'!F37 -> 2668.989351 | G57: =$C57*'INPUT - DATA'!G37 -> 2668.989351 | AW57: =$C57*'INPUT - DATA'!C37 -> 0
B58: Office | C58: ='T10 Est Prop Transfer'!G14 -> 75.4677 | D58: =$C58*'INPUT - DATA'!D38 -> 452.8062 | E58: =$C58*'INPUT - DATA'!E38 -> 452.8062 | F58: =$C58*'INPUT - DATA'!F38 -> 452.8062 | G58: =$C58*'INPUT - DATA'!G38 -> 452.8062 | AW58: =$C58*'INPUT - DATA'!C38 -> 4330.727595
B59: Business Park | C59: ='T10 Est Prop Transfer'!G15 -> 75.4677 | D59: =$C59*'INPUT - DATA'!D39 -> 0 | E59: =$C59*'INPUT - DATA'!E39 -> 0 | F59: =$C59*'INPUT - DATA'!F39 -> 0 | G59: =$C59*'INPUT - DATA'!G39 -> 0 | AW59: =$C59*'INPUT - DATA'!C39 -> 4574.461005
B60: Community Commercial/Office | C60: ='T10 Est Prop Transfer'!G16 -> 127.45656 | D60: =$C60*'INPUT - DATA'!D40 -> 4116.846888 | E60: =$C60*'INPUT - DATA'!E40 -> 4116.846888 | F60: =$C60*'INPUT - DATA'!F40 -> 4091.355576 | G60: =$C60*'INPUT - DATA'!G40 -> 4091.355576 | AW60: =$C60*'INPUT - DATA'!C40 -> 8845.485264
B61: Community Commercial | C61: ='T10 Est Prop Transfer'!G17 -> 74.2698 | D61: =$C61*'INPUT - DATA'!D41 -> 10256.65938 | E61: =$C61*'INPUT - DATA'!E41 -> 22436.90658 | F61: =$C61*'INPUT - DATA'!F41 -> 11474.6841 | G61: =$C61*'INPUT - DATA'!G41 -> 22436.90658 | AW61: =$C61*'INPUT - DATA'!C41 -> 55056.20274
B62: Community Commercial/High Density Residential | C62: ='T10 Est Prop Transfer'!G18 -> 177.3917094 | D62: =$C62*'INPUT - DATA'!D42 -> 0 | E62: =$C62*'INPUT - DATA'!E42 -> 0 | F62: =$C62*'INPUT - DATA'!F42 -> 0 | G62: =$C62*'INPUT - DATA'!G42 -> 0 | AW62: =$C62*'INPUT - DATA'!C42 -> 0
B63: Downtown | C63: ='T10 Est Prop Transfer'!G19 -> 796.356543 | D63: =$C63*'INPUT - DATA'!D43 -> 0 | E63: =$C63*'INPUT - DATA'!E43 -> 0 | F63: =$C63*'INPUT - DATA'!F43 -> 0 | G63: =$C63*'INPUT - DATA'!G43 -> 0 | AW63: =$C63*'INPUT - DATA'!C43 -> 0
B64: Heavy Commercial | C64: ='T10 Est Prop Transfer'!G20 -> 103.97772 | D64: =$C64*'INPUT - DATA'!D44 -> 10324.9876 | E64: =$C64*'INPUT - DATA'!E44 -> 11988.63112 | F64: =$C64*'INPUT - DATA'!F44 -> 5645.990196 | G64: =$C64*'INPUT - DATA'!G44 -> 11988.63112 | AW64: =$C64*'INPUT - DATA'!C44 -> 0
B65: Highway Commercial | C65: ='T10 Est Prop Transfer'!G21 -> 103.97772 | D65: =$C65*'INPUT - DATA'!D45 -> 0 | E65: =$C65*'INPUT - DATA'!E45 -> 0 | F65: =$C65*'INPUT - DATA'!F45 -> 0 | G65: =$C65*'INPUT - DATA'!G45 -> 0 | AW65: =$C65*'INPUT - DATA'!C45 -> 0
B66: Neighborhood Center | C66: ='T10 Est Prop Transfer'!G22 -> 92.90826335 | D66: =$C66*'INPUT - DATA'!D46 -> 882.6285018 | E66: =$C66*'INPUT - DATA'!E46 -> 4626.831515 | F66: =$C66*'INPUT - DATA'!F46 -> 2842.992859 | G66: =$C66*'INPUT - DATA'!G46 -> 4626.831515 | AW66: =$C66*'INPUT - DATA'!C46 -> 0
B67: Industrial | C67: ='T10 Est Prop Transfer'!G23 -> 2.8174608 | D67: =$C67*'INPUT - DATA'!D47 -> 1849.099523 | E67: =$C67*'INPUT - DATA'!E47 -> 1849.099523 | F67: =$C67*'INPUT - DATA'!F47 -> 1849.099523 | G67: =$C67*'INPUT - DATA'!G47 -> 1849.099523 | AW67: =$C67*'INPUT - DATA'!C47 -> 3173.306099
B68: Total | D68: =SUM(D51:D67) -> 156005.7186 | E68: =SUM(E51:E67) -> 173804.8111 | F68: =SUM(F51:F67) -> 141168.42 | G68: =SUM(G51:G67) -> 210387.3768 | AW68: =SUM(AW51:AW67) -> 421025.5761
B71: Other Development-Related Recurring Revenues
B72: Land Use Category | C72: Other Recurring Revenue Per Acre | D72: ='INPUT - DATA'!$D$22 -> Alternative A | E72: ='INPUT - DATA'!$E$22 -> Alternative B | F72: ='INPUT - DATA'!$F$22 -> Alternative C | G72: ='INPUT - DATA'!$G$22 -> Alternative D | AW72: Existing
B73: Rural Residential | C73: ='T11 Revenues Per Acre'!G7 -> 77.15514663 | D73: =$C73*'INPUT - DATA'!D31 -> 0 | E73: =$C73*'INPUT - DATA'!E31 -> 1419.654698 | F73: =$C73*'INPUT - DATA'!F31 -> 1419.654698 | G73: =$C73*'INPUT - DATA'!G31 -> 1419.654698 | AW73: =$C73*'INPUT - DATA'!C31 -> 46424.25173
B74: Very Low Density Residential | C74: ='T11 Revenues Per Acre'!G8 -> 246.8964692 | D74: =$C74*'INPUT - DATA'!D32 -> 39997.22801 | E74: =$C74*'INPUT - DATA'!E32 -> 39997.22801 | F74: =$C74*'INPUT - DATA'!F32 -> 39997.22801 | G74: =$C74*'INPUT - DATA'!G32 -> 39997.22801 | AW74: =$C74*'INPUT - DATA'!C32 -> 32763.16147
B75: Low Density Residential | C75: ='T11 Revenues Per Acre'!G9 -> 771.5514663 | D75: =$C75*'INPUT - DATA'!D33 -> 247050.7795 | E75: =$C75*'INPUT - DATA'!E33 -> 82710.31719 | F75: =$C75*'INPUT - DATA'!F33 -> 130546.5081 | G75: =$C75*'INPUT - DATA'!G33 -> 333464.5437 | AW75: =$C75*'INPUT - DATA'!C33 -> 1769614.64
B76: Low-Medium Density Residential | C76: ='T11 Revenues Per Acre'!G10 -> 1033.327857 | D76: =$C76*'INPUT - DATA'!D34 -> 258331.9642 | E76: =$C76*'INPUT - DATA'!E34 -> 352364.7991 | F76: =$C76*'INPUT - DATA'!F34 -> 194265.6371 | G76: =$C76*'INPUT - DATA'!G34 -> 697496.3032 | AW76: =$C76*'INPUT - DATA'!C34 -> 327577.2873
B77: Medium Density Residential | C77: ='T11 Revenues Per Acre'!G11 -> 1363.992771 | D77: =$C77*'INPUT - DATA'!D35 -> 777475.8793 | E77: =$C77*'INPUT - DATA'!E35 -> 928879.0769 | F77: =$C77*'INPUT - DATA'!F35 -> 862043.4311 | G77: =$C77*'INPUT - DATA'!G35 -> 381917.9758 | AW77: =$C77*'INPUT - DATA'!C35 -> 936392.6648
B78: High Density Residential | C78: ='T11 Revenues Per Acre'!G12 -> 1921.989813 | D78: =$C78*'INPUT - DATA'!D36 -> 437252.6825 | E78: =$C78*'INPUT - DATA'!E36 -> 523742.2241 | F78: =$C78*'INPUT - DATA'!F36 -> 508366.3056 | G78: =$C78*'INPUT - DATA'!G36 -> 519898.2445 | AW78: =$C78*'INPUT - DATA'!C36 -> 439943.4683
B79: High Density Residential/Office | C79: ='T11 Revenues Per Acre'!G13 -> 2315.178714 | D79: =$C79*'INPUT - DATA'!D37 -> 68529.28993 | E79: =$C79*'INPUT - DATA'!E37 -> 69455.36142 | F79: =$C79*'INPUT - DATA'!F37 -> 69455.36142 | G79: =$C79*'INPUT - DATA'!G37 -> 69455.36142 | AW79: =$C79*'INPUT - DATA'!C37 -> 0
B80: Office | C80: ='T11 Revenues Per Acre'!G14 -> 2708.367614 | D80: =$C80*'INPUT - DATA'!D38 -> 16250.20569 | E80: =$C80*'INPUT - DATA'!E38 -> 16250.20569 | F80: =$C80*'INPUT - DATA'!F38 -> 16250.20569 | G80: =$C80*'INPUT - DATA'!G38 -> 16250.20569 | AW80: =$C80*'INPUT - DATA'!C38 -> 155420.1647
B81: Business Park | C81: ='T11 Revenues Per Acre'!G15 -> 2708.367614 | D81: =$C81*'INPUT - DATA'!D39 -> 0 | E81: =$C81*'INPUT - DATA'!E39 -> 0 | F81: =$C81*'INPUT - DATA'!F39 -> 0 | G81: =$C81*'INPUT - DATA'!G39 -> 0 | AW81: =$C81*'INPUT - DATA'!C39 -> 164167.2138
B82: Community Commercial/Office | C82: ='T11 Revenues Per Acre'!G16 -> 2166.694091 | D82: =$C82*'INPUT - DATA'!D40 -> 69984.21915 | E82: =$C82*'INPUT - DATA'!E40 -> 69984.21915 | F82: =$C82*'INPUT - DATA'!F40 -> 69550.88034 | G82: =$C82*'INPUT - DATA'!G40 -> 69550.88034 | AW82: =$C82*'INPUT - DATA'!C40 -> 150368.5699
B83: Community Commercial | C83: ='T11 Revenues Per Acre'!G17 -> 1160.728978 | D83: =$C83*'INPUT - DATA'!D41 -> 160296.6718 | E83: =$C83*'INPUT - DATA'!E41 -> 350656.2241 | F83: =$C83*'INPUT - DATA'!F41 -> 179332.627 | G83: =$C83*'INPUT - DATA'!G41 -> 350656.2241 | AW83: =$C83*'INPUT - DATA'!C41 -> 860448.3911
B84: Community Commercial/High Density Residential | C84: ='T11 Revenues Per Acre'!G18 -> 3122.859566 | D84: =$C84*'INPUT - DATA'!D42 -> 0 | E84: =$C84*'INPUT - DATA'!E42 -> 0 | F84: =$C84*'INPUT - DATA'!F42 -> 0 | G84: =$C84*'INPUT - DATA'!G42 -> 0 | AW84: =$C84*'INPUT - DATA'!C42 -> 0
B85: Downtown | C85: ='T11 Revenues Per Acre'!G19 -> 14409.24518 | D85: =$C85*'INPUT - DATA'!D43 -> 0 | E85: =$C85*'INPUT - DATA'!E43 -> 0 | F85: =$C85*'INPUT - DATA'!F43 -> 0 | G85: =$C85*'INPUT - DATA'!G43 -> 0 | AW85: =$C85*'INPUT - DATA'!C43 -> 0
B86: Heavy Commercial | C86: ='T11 Revenues Per Acre'!G20 -> 1625.020569 | D86: =$C86*'INPUT - DATA'!D44 -> 161364.5425 | E86: =$C86*'INPUT - DATA'!E44 -> 187364.8716 | F86: =$C86*'INPUT - DATA'!F44 -> 88238.61687 | G86: =$C86*'INPUT - DATA'!G44 -> 187364.8716 | AW86: =$C86*'INPUT - DATA'!C44 -> 0
B87: Highway Commercial | C87: ='T11 Revenues Per Acre'!G21 -> 1625.020569 | D87: =$C87*'INPUT - DATA'!D45 -> 0 | E87: =$C87*'INPUT - DATA'!E45 -> 0 | F87: =$C87*'INPUT - DATA'!F45 -> 0 | G87: =$C87*'INPUT - DATA'!G45 -> 0 | AW87: =$C87*'INPUT - DATA'!C45 -> 0
B88: Neighborhood Center | C88: ='T11 Revenues Per Acre'!G22 -> 2105.518022 | D88: =$C88*'INPUT - DATA'!D46 -> 20002.42121 | E88: =$C88*'INPUT - DATA'!E46 -> 104854.7975 | F88: =$C88*'INPUT - DATA'!F46 -> 64428.85147 | G88: =$C88*'INPUT - DATA'!G46 -> 104854.7975 | AW88: =$C88*'INPUT - DATA'!C46 -> 0
B89: Industrial | C89: ='T11 Revenues Per Acre'!G23 -> 120.7158137 | D89: =$C89*'INPUT - DATA'!D47 -> 79225.78851 | E89: =$C89*'INPUT - DATA'!E47 -> 79225.78851 | F89: =$C89*'INPUT - DATA'!F47 -> 79225.78851 | G89: =$C89*'INPUT - DATA'!G47 -> 79225.78851 | AW89: =$C89*'INPUT - DATA'!C47 -> 135962.2209
B90: Total | D90: =SUM(D73:D89) -> 2335761.672 | E90: =SUM(E73:E89) -> 2806904.768 | F90: =SUM(F73:F89) -> 2303121.096 | G90: =SUM(G73:G89) -> 2851552.079 | AW90: =SUM(AW73:AW89) -> 5019082.033
B93: Impact Fees
B94: Land Use Category | C94: Other Recurring Revenue Per Acre | D94: ='INPUT - DATA'!$D$22 -> Alternative A | E94: ='INPUT - DATA'!$E$22 -> Alternative B | F94: ='INPUT - DATA'!$F$22 -> Alternative C | G94: ='INPUT - DATA'!$G$22 -> Alternative D | AW94: Existing
B95: Rural Residential | C95: =IF('T11 Revenues Per Acre'!$B$33=1,'T20 Services Mitigation Fee'!J7,0) -> 0 | D95: =$C95*'INPUT - DATA'!D31 -> 0 | E95: =$C95*'INPUT - DATA'!E31 -> 0 | F95: =$C95*'INPUT - DATA'!F31 -> 0 | G95: =$C95*'INPUT - DATA'!G31 -> 0 | AW95: =$C95*'INPUT - DATA'!C31 -> 0
B96: Very Low Density Residential | C96: =IF('T11 Revenues Per Acre'!$B$33=1,'T20 Services Mitigation Fee'!J8,0) -> 0 | D96: =$C96*'INPUT - DATA'!D32 -> 0 | E96: =$C96*'INPUT - DATA'!E32 -> 0 | F96: =$C96*'INPUT - DATA'!F32 -> 0 | G96: =$C96*'INPUT - DATA'!G32 -> 0 | AW96: =$C96*'INPUT - DATA'!C32 -> 0
B97: Low Density Residential | C97: =IF('T11 Revenues Per Acre'!$B$33=1,'T20 Services Mitigation Fee'!J9,0) -> 0 | D97: =$C97*'INPUT - DATA'!D33 -> 0 | E97: =$C97*'INPUT - DATA'!E33 -> 0 | F97: =$C97*'INPUT - DATA'!F33 -> 0 | G97: =$C97*'INPUT - DATA'!G33 -> 0 | AW97: =$C97*'INPUT - DATA'!C33 -> 0
B98: Low-Medium Density Residential | C98: =IF('T11 Revenues Per Acre'!$B$33=1,'T20 Services Mitigation Fee'!J10,0) -> 0 | D98: =$C98*'INPUT - DATA'!D34 -> 0 | E98: =$C98*'INPUT - DATA'!E34 -> 0 | F98: =$C98*'INPUT - DATA'!F34 -> 0 | G98: =$C98*'INPUT - DATA'!G34 -> 0 | AW98: =$C98*'INPUT - DATA'!C34 -> 0
B99: Medium Density Residential | C99: =IF('T11 Revenues Per Acre'!$B$33=1,'T20 Services Mitigation Fee'!J11,0) -> 0 | D99: =$C99*'INPUT - DATA'!D35 -> 0 | E99: =$C99*'INPUT - DATA'!E35 -> 0 | F99: =$C99*'INPUT - DATA'!F35 -> 0 | G99: =$C99*'INPUT - DATA'!G35 -> 0 | AW99: =$C99*'INPUT - DATA'!C35 -> 0
B100: High Density Residential | C100: =IF('T11 Revenues Per Acre'!$B$33=1,'T20 Services Mitigation Fee'!J12,0) -> 0 | D100: =$C100*'INPUT - DATA'!D36 -> 0 | E100: =$C100*'INPUT - DATA'!E36 -> 0 | F100: =$C100*'INPUT - DATA'!F36 -> 0 | G100: =$C100*'INPUT - DATA'!G36 -> 0 | AW100: =$C100*'INPUT - DATA'!C36 -> 0
B101: High Density Residential/Office | C101: =IF('T11 Revenues Per Acre'!$B$33=1,'T20 Services Mitigation Fee'!J13,0) -> 0 | D101: =$C101*'INPUT - DATA'!D37 -> 0 | E101: =$C101*'INPUT - DATA'!E37 -> 0 | F101: =$C101*'INPUT - DATA'!F37 -> 0 | G101: =$C101*'INPUT - DATA'!G37 -> 0 | AW101: =$C101*'INPUT - DATA'!C37 -> 0
B102: Office | C102: =IF('T11 Revenues Per Acre'!$B$33=1,'T20 Services Mitigation Fee'!J14,0) -> 0 | D102: =$C102*'INPUT - DATA'!D38 -> 0 | E102: =$C102*'INPUT - DATA'!E38 -> 0 | F102: =$C102*'INPUT - DATA'!F38 -> 0 | G102: =$C102*'INPUT - DATA'!G38 -> 0 | AW102: =$C102*'INPUT - DATA'!C38 -> 0
B103: Business Park | C103: =IF('T11 Revenues Per Acre'!$B$33=1,'T20 Services Mitigation Fee'!J15,0) -> 0 | D103: =$C103*'INPUT - DATA'!D39 -> 0 | E103: =$C103*'INPUT - DATA'!E39 -> 0 | F103: =$C103*'INPUT - DATA'!F39 -> 0 | G103: =$C103*'INPUT - DATA'!G39 -> 0 | AW103: =$C103*'INPUT - DATA'!C39 -> 0
B104: Community Commercial/Office | C104: =IF('T11 Revenues Per Acre'!$B$33=1,'T20 Services Mitigation Fee'!J16,0) -> 0 | D104: =$C104*'INPUT - DATA'!D40 -> 0 | E104: =$C104*'INPUT - DATA'!E40 -> 0 | F104: =$C104*'INPUT - DATA'!F40 -> 0 | G104: =$C104*'INPUT - DATA'!G40 -> 0 | AW104: =$C104*'INPUT - DATA'!C40 -> 0
B105: Community Commercial | C105: =IF('T11 Revenues Per Acre'!$B$33=1,'T20 Services Mitigation Fee'!J17,0) -> 0 | D105: =$C105*'INPUT - DATA'!D41 -> 0 | E105: =$C105*'INPUT - DATA'!E41 -> 0 | F105: =$C105*'INPUT - DATA'!F41 -> 0 | G105: =$C105*'INPUT - DATA'!G41 -> 0 | AW105: =$C105*'INPUT - DATA'!C41 -> 0
B106: Community Commercial/High Density Residential | C106: =IF('T11 Revenues Per Acre'!$B$33=1,'T20 Services Mitigation Fee'!J18,0) -> 0 | D106: =$C106*'INPUT - DATA'!D42 -> 0 | E106: =$C106*'INPUT - DATA'!E42 -> 0 | F106: =$C106*'INPUT - DATA'!F42 -> 0 | G106: =$C106*'INPUT - DATA'!G42 -> 0 | AW106: =$C106*'INPUT - DATA'!C42 -> 0
B107: Downtown | C107: =IF('T11 Revenues Per Acre'!$B$33=1,'T20 Services Mitigation Fee'!J19,0) -> 0 | D107: =$C107*'INPUT - DATA'!D43 -> 0 | E107: =$C107*'INPUT - DATA'!E43 -> 0 | F107: =$C107*'INPUT - DATA'!F43 -> 0 | G107: =$C107*'INPUT - DATA'!G43 -> 0 | AW107: =$C107*'INPUT - DATA'!C43 -> 0
B108: Heavy Commercial | C108: =IF('T11 Revenues Per Acre'!$B$33=1,'T20 Services Mitigation Fee'!J20,0) -> 0 | D108: =$C108*'INPUT - DATA'!D44 -> 0 | E108: =$C108*'INPUT - DATA'!E44 -> 0 | F108: =$C108*'INPUT - DATA'!F44 -> 0 | G108: =$C108*'INPUT - DATA'!G44 -> 0 | AW108: =$C108*'INPUT - DATA'!C44 -> 0
B109: Highway Commercial | C109: =IF('T11 Revenues Per Acre'!$B$33=1,'T20 Services Mitigation Fee'!J21,0) -> 0 | D109: =$C109*'INPUT - DATA'!D45 -> 0 | E109: =$C109*'INPUT - DATA'!E45 -> 0 | F109: =$C109*'INPUT - DATA'!F45 -> 0 | G109: =$C109*'INPUT - DATA'!G45 -> 0 | AW109: =$C109*'INPUT - DATA'!C45 -> 0
B110: Neighborhood Center | C110: =IF('T11 Revenues Per Acre'!$B$33=1,'T20 Services Mitigation Fee'!J22,0) -> 0 | D110: =$C110*'INPUT - DATA'!D46 -> 0 | E110: =$C110*'INPUT - DATA'!E46 -> 0 | F110: =$C110*'INPUT - DATA'!F46 -> 0 | G110: =$C110*'INPUT - DATA'!G46 -> 0 | AW110: =$C110*'INPUT - DATA'!C46 -> 0
B111: Industrial | C111: =IF('T11 Revenues Per Acre'!$B$33=1,'T20 Services Mitigation Fee'!J23,0) -> 0 | D111: =$C111*'INPUT - DATA'!D47 -> 0 | E111: =$C111*'INPUT - DATA'!E47 -> 0 | F111: =$C111*'INPUT - DATA'!F47 -> 0 | G111: =$C111*'INPUT - DATA'!G47 -> 0 | AW111: =$C111*'INPUT - DATA'!C47 -> 0
B112: Total | D112: =SUM(D95:D111) -> 0 | E112: 0 | F112: 0 | G112: 0 | AW112: =SUM(AW95:AW111) -> 0
B115: Total General Fund Revenue
B116: Land Use Category | C116: Other Recurring Revenue Per Acre | D116: ='INPUT - DATA'!$D$22 -> Alternative A | E116: ='INPUT - DATA'!$E$22 -> Alternative B | F116: ='INPUT - DATA'!$F$22 -> Alternative C | G116: ='INPUT - DATA'!$G$22 -> Alternative D | AW116: Existing
B117: Rural Residential | C117: =C7+C29+C51+C73+C95 -> 178.8832288 | D117: =F7+D29+D51+D73+D95 -> 0 | E117: =G7+E29+E51+E73+E95 -> 1979.468169 | F117: =H7+F29+F51+F73+F95 -> 1979.468169 | G117: =I7+G29+G51+G73+G95 -> 1979.468169 | AW117: =AW7+AW29+AW51+AW73+AW95 -> 107634.0388
B118: Very Low Density Residential | C118: 572.4263321 | D118: 59297.72408 | E118: 59297.72408 | F118: 59297.72408 | G118: 59297.72408 | AW118: 75960.97428
B119: Low Density Residential | C119: 1788.832288 | D119: 383111.5929 | E119: 138356.3965 | F119: 206731.0302 | G119: 513030.7318 | AW119: 4102829.095
B120: Low-Medium Density Residential | C120: 2050.608678 | D120: 417549.8399 | E120: 549293.1224 | F120: 329264.3564 | G120: 1011888.467 | AW120: 650067.4725
B121: Medium Density Residential | C121: 2782.076126 | D121: 1093022.539 | E121: 1302615.144 | F121: 1200256.677 | G121: 552350.1921 | AW121: 1909918.977
B122: High Density Residential | C122: 3662.364841 | D122: 630288.5936 | E122: 744289.2412 | F122: 723948.2588 | G122: 740370.5255 | AW122: 838315.312
B123: High Density Residential/Office | C123: 4745.899329 | D123: 140478.6201 | E123: 142376.9799 | F123: 142376.9799 | G123: 142376.9799 | AW123: 0
B124: Office | C124: 5604.345314 | D124: 28050.66909 | E124: 28050.66909 | F124: 28050.66909 | G124: 28050.66909 | AW124: 321606.3681
B125: Business Park | C125: 5604.345314 | D125: 0 | E125: 0 | F125: 0 | G125: 0 | AW125: 339706.379
B126: Community Commercial/Office | C126: 16922.68765 | D126: 546602.8111 | E126: 546602.8111 | F126: 543218.2736 | G126: 543218.2736 | AW126: 1174434.523
B127: Community Commercial | C127: 19138.15878 | D127: 2579823.752 | E127: 5568876.675 | F127: 2879123.895 | G127: 5568876.675 | AW127: 14187117.1
B128: Community Commercial/High Density Residential | C128: 20665.78448 | D128: 0 | E128: 0 | F128: 0 | G128: 0 | AW128: 0
B129: Downtown | C129: 108827.8866 | D129: 0 | E129: 0 | F129: 0 | G129: 0 | AW129: 0
B130: Heavy Commercial | C130: 26793.42229 | D130: 2584530.718 | E130: 2993611.473 | F130: 1447951.231 | G130: 2993611.473 | AW130: 0
B131: Highway Commercial | C131: 26793.42229 | D131: 0 | E131: 0 | F131: 0 | G131: 0 | AW131: 0
B132: Neighborhood Center | C132: 13121.02619 | D132: 113803.6788 | E132: 596570.8638 | F132: 366567.6392 | G132: 596570.8638 | AW132: 0
B133: Industrial | C133: 1018.952634 | D133: 645520.4026 | E133: 645520.4026 | F133: 645520.4026 | G133: 645520.4026 | AW133: 1147646.352
B134: Total | D134: =SUM(D117:D133) -> 9222080.942 | E134: =SUM(E117:E133) -> 13317440.97 | F134: =SUM(F117:F133) -> 8574286.605 | G134: =SUM(G117:G133) -> 13397142.45 | AW134: =SUM(AW117:AW133) -> 24855236.59

Sheet EXPENSE DETAIL
B3: General Fund Expenditure per Development Alternative by Land Use Category
B5: Land Use Category | C5: Expenditure per Acre | D5: Existing | E5: ='INPUT - DATA'!$D$22 -> Alternative A | F5: ='INPUT - DATA'!$E$22 -> Alternative B | G5: ='INPUT - DATA'!$F$22 -> Alternative C | H5: ='INPUT - DATA'!$G$22 -> Alternative D
B6: Rural Residential | C6: ='T13 Expense Per Acre'!G7 -> 497.1725329 | D6: =$C6*'INPUT - DATA'!C31 -> 299148.713 | E6: =$C6*'INPUT - DATA'!D31 -> 0 | F6: =$C6*'INPUT - DATA'!E31 -> 9147.974605 | G6: =$C6*'INPUT - DATA'!F31 -> 9147.974605 | H6: =$C6*'INPUT - DATA'!G31 -> 9147.974605
B7: Very Low Density Residential | C7: ='T13 Expense Per Acre'!G8 -> 1590.952105 | D7: =$C7*'INPUT - DATA'!C32 -> 211119.3444 | E7: =$C7*'INPUT - DATA'!D32 -> 257734.241 | F7: =$C7*'INPUT - DATA'!E32 -> 257734.241 | G7: =$C7*'INPUT - DATA'!F32 -> 257734.241 | H7: =$C7*'INPUT - DATA'!G32 -> 257734.241
B8: Low Density Residential | C8: ='T13 Expense Per Acre'!G9 -> 4971.725329 | D8: =$C8*'INPUT - DATA'!C33 -> 11403047.38 | E8: =$C8*'INPUT - DATA'!D33 -> 1591946.45 | F8: =$C8*'INPUT - DATA'!E33 -> 532968.9552 | G8: =$C8*'INPUT - DATA'!F33 -> 841215.9256 | H8: =$C8*'INPUT - DATA'!G33 -> 2148779.687
B9: Low-Medium Density Residential | C9: ='T13 Expense Per Acre'!G10 -> 6658.560708 | D9: =$C9*'INPUT - DATA'!C34 -> 2110843.369 | E9: =$C9*'INPUT - DATA'!D34 -> 1664640.177 | F9: =$C9*'INPUT - DATA'!E34 -> 2270569.202 | G9: =$C9*'INPUT - DATA'!F34 -> 1251809.413 | H9: =$C9*'INPUT - DATA'!G34 -> 4494528.478
B10: Medium Density Residential | C10: ='T13 Expense Per Acre'!G11 -> 8789.300135 | D10: =$C10*'INPUT - DATA'!C35 -> 6033929.469 | E10: =$C10*'INPUT - DATA'!D35 -> 5009901.077 | F10: =$C10*'INPUT - DATA'!E35 -> 5985513.392 | G10: =$C10*'INPUT - DATA'!F35 -> 5554837.685 | H10: =$C10*'INPUT - DATA'!G35 -> 2461004.038
B11: High Density Residential | C11: ='T13 Expense Per Acre'!G12 -> 10958.36073 | D11: =$C11*'INPUT - DATA'!C36 -> 2508368.771 | E11: =$C11*'INPUT - DATA'!D36 -> 2493027.066 | F11: =$C11*'INPUT - DATA'!E36 -> 2986153.299 | G11: =$C11*'INPUT - DATA'!F36 -> 2898486.413 | H11: =$C11*'INPUT - DATA'!G36 -> 2964236.577
B12: High Density Residential/Office | C12: ='T13 Expense Per Acre'!G13 -> 9511.647634 | D12: =$C12*'INPUT - DATA'!C37 -> 0 | E12: =$C12*'INPUT - DATA'!D37 -> 281544.77 | F12: =$C12*'INPUT - DATA'!E37 -> 285349.429 | G12: =$C12*'INPUT - DATA'!F37 -> 285349.429 | H12: =$C12*'INPUT - DATA'!G37 -> 285349.429
B13: Office | C13: ='T13 Expense Per Acre'!G14 -> 9114.829769 | D13: =$C13*'INPUT - DATA'!C38 -> 523056.1526 | E13: =$C13*'INPUT - DATA'!D38 -> 54688.97862 | F13: =$C13*'INPUT - DATA'!E38 -> 54688.97862 | G13: =$C13*'INPUT - DATA'!F38 -> 54688.97862 | H13: =$C13*'INPUT - DATA'!G38 -> 54688.97862
B14: Business Park | C14: ='T13 Expense Per Acre'!G15 -> 9114.829769 | D14: =$C14*'INPUT - DATA'!C39 -> 552493.7602 | E14: =$C14*'INPUT - DATA'!D39 -> 0 | F14: =$C14*'INPUT - DATA'!E39 -> 0 | G14: =$C14*'INPUT - DATA'!F39 -> 0 | H14: =$C14*'INPUT - DATA'!G39 -> 0
B15: Community Commercial/Office | C15: ='T13 Expense Per Acre'!G16 -> 6451.947631 | D15: =$C15*'INPUT - DATA'!C40 -> 447765.1656 | E15: =$C15*'INPUT - DATA'!D40 -> 208397.9085 | F15: =$C15*'INPUT - DATA'!E40 -> 208397.9085 | G15: =$C15*'INPUT - DATA'!F40 -> 207107.519 | H15: =$C15*'INPUT - DATA'!G40 -> 207107.519
B16: Community Commercial | C16: ='T13 Expense Per Acre'!G17 -> 3906.355615 | D16: =$C16*'INPUT - DATA'!C41 -> 2895781.418 | E16: =$C16*'INPUT - DATA'!D41 -> 539467.7105 | F16: =$C16*'INPUT - DATA'!E41 -> 1180110.031 | G16: =$C16*'INPUT - DATA'!F41 -> 603531.9426 | H16: =$C16*'INPUT - DATA'!G41 -> 1180110.031
B17: Community Commercial/High Density Residential | C17: ='T13 Expense Per Acre'!G18 -> 11026.78175 | D17: =$C17*'INPUT - DATA'!C42 -> 0 | E17: =$C17*'INPUT - DATA'!D42 -> 0 | F17: =$C17*'INPUT - DATA'!E42 -> 0 | G17: =$C17*'INPUT - DATA'!F42 -> 0 | H17: =$C17*'INPUT - DATA'!G42 -> 0
B18: Downtown | C18: ='T13 Expense Per Acre'!G19 -> 44216.39638 | D18: =$C18*'INPUT - DATA'!C43 -> 0 | E18: =$C18*'INPUT - DATA'!D43 -> 0 | F18: =$C18*'INPUT - DATA'!E43 -> 0 | G18: =$C18*'INPUT - DATA'!F43 -> 0 | H18: =$C18*'INPUT - DATA'!G43 -> 0
B19: Heavy Commercial | C19: ='T13 Expense Per Acre'!G20 -> 5468.897862 | D19: =$C19*'INPUT - DATA'!C44 -> 0 | E19: =$C19*'INPUT - DATA'!D44 -> 543061.5577 | F19: =$C19*'INPUT - DATA'!E44 -> 630563.9235 | G19: =$C19*'INPUT - DATA'!F44 -> 296961.1539 | H19: =$C19*'INPUT - DATA'!G44 -> 630563.9235
B20: Highway Commercial | C20: ='T13 Expense Per Acre'!G21 -> 5468.897862 | D20: =$C20*'INPUT - DATA'!C45 -> 0 | E20: =$C20*'INPUT - DATA'!D45 -> 0 | F20: =$C20*'INPUT - DATA'!E45 -> 0 | G20: =$C20*'INPUT - DATA'!F45 -> 0 | H20: =$C20*'INPUT - DATA'!G45 -> 0
B21: Neighborhood Center | C21: ='T13 Expense Per Acre'!G22 -> 8565.128591 | D21: =$C21*'INPUT - DATA'!C46 -> 0 | E21: =$C21*'INPUT - DATA'!D46 -> 81368.72161 | F21: =$C21*'INPUT - DATA'!E46 -> 426543.4038 | G21: =$C21*'INPUT - DATA'!F46 -> 262092.9349 | H21: =$C21*'INPUT - DATA'!G46 -> 426543.4038
B22: Industrial | C22: ='T13 Expense Per Acre'!G23 -> 406.260984 | D22: =$C22*'INPUT - DATA'!C47 -> 457571.7463 | E22: =$C22*'INPUT - DATA'!D47 -> 266629.0838 | F22: =$C22*'INPUT - DATA'!E47 -> 266629.0838 | G22: =$C22*'INPUT - DATA'!F47 -> 266629.0838 | H22: =$C22*'INPUT - DATA'!G47 -> 266629.0838
B23: Total | D23: =SUM(D6:D22) -> 27443125.29 | E23: =SUM(E6:E22) -> 12992407.74 | F23: 15094369.82 | G23: 12789592.69 | H23: 15386423.37

Sheet T12 Est Cty Expen
A2: City Expenditures per Resident and Employee (Standard Development)
A3: Expenditures | B3: ='INPUT - DATA'!B8 -> 2010
B5: Baseline FY Expenditures | C5: % Variable | D5: Variable Cost | E5: Service Population Factors | G5: Expenditures per Capita
A6: Category | E6: Resident | F6: Employee | G6: Resident | H6: Employee
A8: General Government | B8: ='INPUT - DATA'!C111 -> 3458270 | C8: ='MODEL ASSUMPTIONS'!C5 -> 0.5 | D8: =B8*C8 -> 1729135 | E8: 1 | F8: 0.5 | G8: =D8/($B$21/E8) -> 17.40272746 | H8: =D8/($B$21/F8) -> 8.701363728 | J8: =G8/$G$13 -> 0.04851470799
A9: Public Safety | B9: ='INPUT - DATA'!C112 -> 23132804 | C9: ='MODEL ASSUMPTIONS'!C6 -> 0.9 | D9: =B9*C9 -> 20819523.6 | E9: 1 | F9: 0.5 | G9: =D9/($B$21/E9) -> 209.5362681 | H9: =D9/($B$21/F9) -> 104.7681341 | J9: =G9/$G$13 -> 0.584137796
A10: Public Ways and Facilities/Transportation | B10: ='INPUT - DATA'!C113 -> 8126569 | C10: ='MODEL ASSUMPTIONS'!C7 -> 0.9 | D10: 7313912.1 | E10: 1 | F10: 0.5 | G10: =D10/($B$21/E10) -> 73.61022645 | H10: =D10/($B$21/F10) -> 36.80511322 | J10: 0.2052079854
A11: Recreation, Parks, Culture | B11: ='INPUT - DATA'!C114 -> 2829782 | C11: ='MODEL ASSUMPTIONS'!C8 -> 0.9 | D11: 2546803.8 | E11: 1 | F11: 0.5 | G11: =D11/($B$21/E11) -> 25.63208333 | H11: =D11/($B$21/F11) -> 12.81604167 | J11: 0.0714562152
A12: Community Development | B12: ='INPUT - DATA'!C115 -> 6464170 | C12: ='MODEL ASSUMPTIONS'!C9 -> 0.5 | D12: =B12*C12 -> 3232085 | E12: 1 | F12: 0.5 | G12: =D12/($B$21/E12) -> 32.52903583 | H12: =D12/($B$21/F12) -> 16.26451791 | J12: 0.09068329539
A13: Total | B13: =SUM(B8:B12) -> 44011595 | D13: =SUM(D8:D12) -> 35641459.5 | G13: =SUM(G8:G12) -> 358.7103412 | H13: =SUM(H8:H12) -> 179.3551706 | J13: 1
A16: Sources: State Contollers Annual Cities Report, AECOM
A18: Baseline Year Demographics
A19: Residents Served | B19: ='INPUT - DATA'!$C$23 -> 71100
A20: Employees | B20: ='INPUT - DATA'!$C$24 -> 28260
A21: Service Population | B21: ='INPUT - DATA'!$C$25 -> 99360

Sheet T12 Est Cty Expen (COMPACT)
A2: City Expenditures per Resident and Employee (Compact Development)
A3: Expenditures | B3: ='INPUT - DATA'!B8 -> 2010
B5: Baseline FY Expenditures | C5: % Variable | D5: Variable Cost | E5: Service Population Factors | G5: Compact Efficiency Factor | H5: Expenditures per Capita
A6: Category | E6: Resident | F6: Employee | H6: Resident | I6: Employee
A8: General Government | B8: ='INPUT - DATA'!C111 -> 3458270 | C8: ='MODEL ASSUMPTIONS'!C5 -> 0.5 | D8: =B8*C8 -> 1729135 | E8: 1 | F8: 0.5 | G8: ='MODEL ASSUMPTIONS'!C23 -> -0.1 | H8: =(D8/($B$21/E8))*(1+G8) -> 15.66245471 | I8: =(D8/($B$21/F8))*(1+G8) -> 7.831227355
A9: Public Safety | B9: ='INPUT - DATA'!C112 -> 23132804 | C9: ='MODEL ASSUMPTIONS'!C6 -> 0.9 | D9: =B9*C9 -> 20819523.6 | E9: 1 | F9: 0.5 | G9: ='MODEL ASSUMPTIONS'!C24 -> -0.1 | H9: =(D9/($B$21/E9))*(1+G9) -> 188.5826413 | I9: =(D9/($B$21/F9))*(1+G9) -> 94.29132065
A10: Public Ways and Facilities/Transportation | B10: ='INPUT - DATA'!C113 -> 8126569 | C10: ='MODEL ASSUMPTIONS'!C7 -> 0.9 | D10: 7313912.1 | E10: 1 | F10: 0.5 | G10: ='MODEL ASSUMPTIONS'!C25 -> -0.174 | H10: =(D10/($B$21/E10))*(1+G10) -> 60.80204705 | I10: =(D10/($B$21/F10))*(1+G10) -> 30.40102352
A11: Recreation, Parks, Culture | B11: ='INPUT - DATA'!C114 -> 2829782 | C11: ='MODEL ASSUMPTIONS'!C8 -> 0.9 | D11: 2546803.8 | E11: 1 | F11: 0.5 | G11: ='MODEL ASSUMPTIONS'!C26 -> -0.1 | H11: =(D11/($B$21/E11))*(1+G11) -> 23.068875 | I11: =(D11/($B$21/F11))*(1+G11) -> 11.5344375
A12: Community Development | B12: ='INPUT - DATA'!C115 -> 6464170 | C12: ='MODEL ASSUMPTIONS'!C9 -> 0.5 | D12: 3232085 | E12: 1 | F12: 0.5 | G12: ='MODEL ASSUMPTIONS'!C27 -> -0.1 | H12: =(D12/($B$21/E12))*(1+G12) -> 29.27613225 | I12: =(D12/($B$21/F12))*(1+G12) -> 14.63806612
A13: Total | B13: =SUM(B8:B12) -> 44011595 | D13: =SUM(D8:D12) -> 35641459.5 | H13: =SUM(H8:H12) -> 317.3921503 | I13: =SUM(I8:I12) -> 158.6960752
A16: Sources: State Contollers Annual Cities Report, AECOM
A18: Baseline Year Demographics
A19: Residents Served | B19: ='INPUT - DATA'!$C$23 -> 71100
A20: Employees | B20: ='INPUT - DATA'!$C$24 -> 28260
A21: Service Population | B21: ='INPUT - DATA'!$C$25 -> 99360

Sheet T7 Other Cty Revs
A2: Other Reccuring City Revenues per Resident and Employee
A3: Expenditures | B3: ='INPUT - DATA'!B8 -> 2010
B5: Baseline FY Revenues | C5: % Variable | D5: Variable Revenue | E5: Service Population Factors | G5: Revenues per Capita
A6: Revenue Item | E6: Resident | F6: Employee | G6: Resident | H6: Employee
A8: Transient Lodging Taxes | B8: ='T4 Fiscal Factors'!Q9 -> 699555 | C8: ='MODEL ASSUMPTIONS'!C13 -> 1 | D8: =B8*C8 -> 699555 | E8: 1 | F8: 1 | G8: =$D8/($B$22/E8) -> 7.040609903 | H8: 7.040609903
A9: Franchises | B9: ='T4 Fiscal Factors'!Q10 -> 2046355 | C9: ='MODEL ASSUMPTIONS'!C14 -> 0.66 | D9: =B9*C9 -> 1350594.3 | E9: 1 | F9: 1 | G9: 13.5929378 | H9: 13.5929378
A10: Business License Taxes | B10: ='T4 Fiscal Factors'!Q11 -> 1038069 | C10: ='MODEL ASSUMPTIONS'!C15 -> 0.9 | D10: 934262.1 | E10: 1 | F10: 1 | G10: 9.402798913 | H10: 9.402798913
A11: Other Fines, Forfeitures, and Penalties | B11: ='T4 Fiscal Factors'!Q12 -> 273263 | C11: ='MODEL ASSUMPTIONS'!C16 -> 0.66 | D11: 180353.58 | E11: 1 | F11: 0.5 | G11: 1.815152778 | H11: 0.9075763889
A12: State Motor Vehicle In-Lieu Tax | B12: ='T4 Fiscal Factors'!Q13 -> 323820 | C12: ='MODEL ASSUMPTIONS'!C17 -> 0.9 | D12: 291438 | E12: 1 | F12: 0.5 | G12: 2.933152174 | H12: 1.466576087
A13: Fees and Charges per Service | B13: ='T4 Fiscal Factors'!Q14 -> 3143817 | C13: ='MODEL ASSUMPTIONS'!C18 -> 0.66 | D13: 2074919.22 | E13: 1 | F13: 1 | G13: 20.88284239 | H13: 20.88284239
A14: TOTAL REVENUES | B14: =SUM(B8:B13) -> 7524879 | G14: =SUM(G8:G13) -> 55.66749396 | H14: =SUM(H8:H13) -> 53.29334149
A17: Sources: California Department of Finance, California EDD, Economics at AECOM
A19: Baseline Year Demographics
A20: Residents Served | B20: ='INPUT - DATA'!$C$23 -> 71100
A21: Employees | B21: ='INPUT - DATA'!$C$24 -> 28260
A22: Service Population | B22: ='INPUT - DATA'!$C$25 -> 99360

Sheet T13 Expense Per Acre
A1: Table 13
A2: Total Estimated Expenses
A3: ='[1]T2 Dev Assumptions'!A3 -> SACOG Fiscal Model
A5: Development Type | B5: Standard or Compact Development | C5: Expenditure Per Resident | D5: Residents Per Acre | E5: Expenditure Per Employee | F5: Employees Per Acre | G5: Total Expenses Per Acre
A7: ='T5 Dev Prog'!A7 -> Rural Residential | B7: =IF('T5 Dev Prog'!G7>'MODEL ASSUMPTIONS'!$C$32,"Compact","Standard") -> Standard | C7: =IF(B7="Compact",'T12 Est Cty Expen (COMPACT)'!$H$13,'T12 Est Cty Expen'!$G$13) -> 358.7103412 | D7: ='T5 Dev Prog'!E7 -> 1.386 | E7: =IF(B7="Compact",'T12 Est Cty Expen (COMPACT)'!$I$13,'T12 Est Cty Expen'!$H$13) -> 179.3551706 | F7: ='T5 Dev Prog'!F7 -> 0 | G7: =(D7*C7)+(E7*F7) -> 497.1725329
A8: ='T5 Dev Prog'!A8 -> Very Low Density Residential | B8: =IF('T5 Dev Prog'!G8>'MODEL ASSUMPTIONS'!$C$32,"Compact","Standard") -> Standard | C8: =IF(B8="Compact",'T12 Est Cty Expen (COMPACT)'!$H$13,'T12 Est Cty Expen'!$G$13) -> 358.7103412 | D8: ='T5 Dev Prog'!E8 -> 4.4352 | E8: =IF(B8="Compact",'T12 Est Cty Expen (COMPACT)'!$I$13,'T12 Est Cty Expen'!$H$13) -> 179.3551706 | F8: ='T5 Dev Prog'!F8 -> 0 | G8: =(D8*C8)+(E8*F8) -> 1590.952105
A9: ='T5 Dev Prog'!A9 -> Low Density Residential | B9: =IF('T5 Dev Prog'!G9>'MODEL ASSUMPTIONS'!$C$32,"Compact","Standard") -> Standard | C9: =IF(B9="Compact",'T12 Est Cty Expen (COMPACT)'!$H$13,'T12 Est Cty Expen'!$G$13) -> 358.7103412 | D9: ='T5 Dev Prog'!E9 -> 13.86 | E9: =IF(B9="Compact",'T12 Est Cty Expen (COMPACT)'!$I$13,'T12 Est Cty Expen'!$H$13) -> 179.3551706 | F9: ='T5 Dev Prog'!F9 -> 0 | G9: 4971.725329
A10: ='T5 Dev Prog'!A10 -> Low-Medium Density Residential | B10: =IF('T5 Dev Prog'!G10>'MODEL ASSUMPTIONS'!$C$32,"Compact","Standard") -> Standard | C10: =IF(B10="Compact",'T12 Est Cty Expen (COMPACT)'!$H$13,'T12 Est Cty Expen'!$G$13) -> 358.7103412 | D10: ='T5 Dev Prog'!E10 -> 18.5625 | E10: =IF(B10="Compact",'T12 Est Cty Expen (COMPACT)'!$I$13,'T12 Est Cty Expen'!$H$13) -> 179.3551706 | F10: ='T5 Dev Prog'!F10 -> 0 | G10: 6658.560708
A11: ='T5 Dev Prog'!A11 -> Medium Density Residential | B11: =IF('T5 Dev Prog'!G11>'MODEL ASSUMPTIONS'!$C$32,"Compact","Standard") -> Standard | C11: =IF(B11="Compact",'T12 Est Cty Expen (COMPACT)'!$H$13,'T12 Est Cty Expen'!$G$13) -> 358.7103412 | D11: ='T5 Dev Prog'!E11 -> 24.5025 | E11: =IF(B11="Compact",'T12 Est Cty Expen (COMPACT)'!$I$13,'T12 Est Cty Expen'!$H$13) -> 179.3551706 | F11: ='T5 Dev Prog'!F11 -> 0 | G11: 8789.300135
A12: ='T5 Dev Prog'!A12 -> High Density Residential | B12: =IF('T5 Dev Prog'!G12>'MODEL ASSUMPTIONS'!$C$32,"Compact","Standard") -> Compact | C12: =IF(B12="Compact",'T12 Est Cty Expen (COMPACT)'!$H$13,'T12 Est Cty Expen'!$G$13) -> 317.3921503 | D12: ='T5 Dev Prog'!E12 -> 34.52625 | E12: =IF(B12="Compact",'T12 Est Cty Expen (COMPACT)'!$I$13,'T12 Est Cty Expen'!$H$13) -> 158.6960752 | F12: ='T5 Dev Prog'!F12 -> 0 | G12: =(D12*C12)+(E12*F12) -> 10958.36073
A13: ='T5 Dev Prog'!A13 -> High Density Residential/Office | B13: =IF('T5 Dev Prog'!G13>'MODEL ASSUMPTIONS'!$C$33,"Compact","Standard") -> Compact | C13: =IF(B13="Compact",'T12 Est Cty Expen (COMPACT)'!$H$13,'T12 Est Cty Expen'!$G$13) -> 317.3921503 | D13: ='T5 Dev Prog'!E13 -> 17.263125 | E13: =IF(B13="Compact",'T12 Est Cty Expen (COMPACT)'!$I$13,'T12 Est Cty Expen'!$H$13) -> 158.6960752 | F13: ='T5 Dev Prog'!F13 -> 25.41 | G13: 9511.647634
A14: ='T5 Dev Prog'!A14 -> Office | B14: =IF('T5 Dev Prog'!G14>'MODEL ASSUMPTIONS'!$C$34,"Compact","Standard") -> Standard | C14: =IF(B14="Compact",'T12 Est Cty Expen (COMPACT)'!$H$13,'T12 Est Cty Expen'!$G$13) -> 358.7103412 | D14: ='T5 Dev Prog'!E14 -> 0 | E14: =IF(B14="Compact",'T12 Est Cty Expen (COMPACT)'!$I$13,'T12 Est Cty Expen'!$H$13) -> 179.3551706 | F14: ='T5 Dev Prog'!F14 -> 50.82 | G14: 9114.829769
A15: ='T5 Dev Prog'!A15 -> Business Park | B15: =IF('T5 Dev Prog'!G15>'MODEL ASSUMPTIONS'!$C$34,"Compact","Standard") -> Standard | C15: =IF(B15="Compact",'T12 Est Cty Expen (COMPACT)'!$H$13,'T12 Est Cty Expen'!$G$13) -> 358.7103412 | D15: ='T5 Dev Prog'!E15 -> 0 | E15: =IF(B15="Compact",'T12 Est Cty Expen (COMPACT)'!$I$13,'T12 Est Cty Expen'!$H$13) -> 179.3551706 | F15: ='T5 Dev Prog'!F15 -> 50.82 | G15: 9114.829769
A16: ='T5 Dev Prog'!A16 -> Community Commercial/Office | B16: =IF('T5 Dev Prog'!G16>'MODEL ASSUMPTIONS'!$C$33,"Compact","Standard") -> Compact | C16: =IF(B16="Compact",'T12 Est Cty Expen (COMPACT)'!$H$13,'T12 Est Cty Expen'!$G$13) -> 317.3921503 | D16: ='T5 Dev Prog'!E16 -> 0 | E16: =IF(B16="Compact",'T12 Est Cty Expen (COMPACT)'!$I$13,'T12 Est Cty Expen'!$H$13) -> 158.6960752 | F16: ='T5 Dev Prog'!F16 -> 40.656 | G16: 6451.947631
A17: ='T5 Dev Prog'!A17 -> Community Commercial | B17: =IF('T5 Dev Prog'!G17>'MODEL ASSUMPTIONS'!$C$34,"Compact","Standard") -> Standard | C17: =IF(B17="Compact",'T12 Est Cty Expen (COMPACT)'!$H$13,'T12 Est Cty Expen'!$G$13) -> 358.7103412 | D17: ='T5 Dev Prog'!E17 -> 0 | E17: =IF(B17="Compact",'T12 Est Cty Expen (COMPACT)'!$I$13,'T12 Est Cty Expen'!$H$13) -> 179.3551706 | F17: ='T5 Dev Prog'!F17 -> 21.78 | G17: 3906.355615
A18: ='T5 Dev Prog'!A18 -> Community Commercial/High Density Residential | B18: =IF('T5 Dev Prog'!G18>'MODEL ASSUMPTIONS'!$C$33,"Compact","Standard") -> Compact | C18: =IF(B18="Compact",'T12 Est Cty Expen (COMPACT)'!$H$13,'T12 Est Cty Expen'!$G$13) -> 317.3921503 | D18: ='T5 Dev Prog'!E18 -> 11.3936625 | E18: =IF(B18="Compact",'T12 Est Cty Expen (COMPACT)'!$I$13,'T12 Est Cty Expen'!$H$13) -> 158.6960752 | F18: ='T5 Dev Prog'!F18 -> 46.69632 | G18: 11026.78175
A19: ='T5 Dev Prog'!A19 -> Downtown | B19: =IF('T5 Dev Prog'!G19>'MODEL ASSUMPTIONS'!$C$33,"Compact","Standard") -> Compact | C19: =IF(B19="Compact",'T12 Est Cty Expen (COMPACT)'!$H$13,'T12 Est Cty Expen'!$G$13) -> 317.3921503 | D19: ='T5 Dev Prog'!E19 -> 8.6315625 | E19: =IF(B19="Compact",'T12 Est Cty Expen (COMPACT)'!$I$13,'T12 Est Cty Expen'!$H$13) -> 158.6960752 | F19: ='T5 Dev Prog'!F19 -> 261.36 | G19: 44216.39638
A20: ='T5 Dev Prog'!A20 -> Heavy Commercial | B20: =IF('T5 Dev Prog'!G20>'MODEL ASSUMPTIONS'!$C$34,"Compact","Standard") -> Standard | C20: =IF(B20="Compact",'T12 Est Cty Expen (COMPACT)'!$H$13,'T12 Est Cty Expen'!$G$13) -> 358.7103412 | D20: ='T5 Dev Prog'!E20 -> 0 | E20: =IF(B20="Compact",'T12 Est Cty Expen (COMPACT)'!$I$13,'T12 Est Cty Expen'!$H$13) -> 179.3551706 | F20: ='T5 Dev Prog'!F20 -> 30.492 | G20: 5468.897862
A21: ='T5 Dev Prog'!A21 -> Highway Commercial | B21: =IF('T5 Dev Prog'!G21>'MODEL ASSUMPTIONS'!$C$34,"Compact","Standard") -> Standard | C21: =IF(B21="Compact",'T12 Est Cty Expen (COMPACT)'!$H$13,'T12 Est Cty Expen'!$G$13) -> 358.7103412 | D21: ='T5 Dev Prog'!E21 -> 0 | E21: =IF(B21="Compact",'T12 Est Cty Expen (COMPACT)'!$I$13,'T12 Est Cty Expen'!$H$13) -> 179.3551706 | F21: ='T5 Dev Prog'!F21 -> 30.492 | G21: 5468.897862
A22: ='T5 Dev Prog'!A22 -> Neighborhood Center | B22: =IF('T5 Dev Prog'!G22>'MODEL ASSUMPTIONS'!$C$34,"Compact","Standard") -> Standard | C22: =IF(B22="Compact",'T12 Est Cty Expen (COMPACT)'!$H$13,'T12 Est Cty Expen'!$G$13) -> 358.7103412 | D22: ='T5 Dev Prog'!E22 -> 8.6315625 | E22: =IF(B22="Compact",'T12 Est Cty Expen (COMPACT)'!$I$13,'T12 Est Cty Expen'!$H$13) -> 179.3551706 | F22: ='T5 Dev Prog'!F22 -> 30.492 | G22: 8565.128591
A23: ='T5 Dev Prog'!A23 -> Industrial | B23: Standard | C23: =IF(B23="Compact",'T12 Est Cty Expen (COMPACT)'!$H$13,'T12 Est Cty Expen'!$G$13) -> 358.7103412 | D23: ='T5 Dev Prog'!E23 -> 0 | E23: =IF(B23="Compact",'T12 Est Cty Expen (COMPACT)'!$I$13,'T12 Est Cty Expen'!$H$13) -> 179.3551706 | F23: ='T5 Dev Prog'!F23 -> 2.26512 | G23: 406.260984
A26: Source: AECOM

Sheet T11 Revenues Per Acre
A1: Table 11
A2: Total Estimated Revenues
B5: Land Use Category | C5: Other Recurring Revenue Per Resident | D5: Residents Per Acre | E5: Other Recurring Revenue Per Employee | F5: Employees Per Acre | G5: Total Other Recurring Revenue Per Acre | H5: Tax Revenue Per Acre | I5: Services Mitigation Fees Per Acre | J5: Total Revenue Per Acre
B7: ='T8 Est Prop Tax'!A6 -> Rural Residential | C7: ='T7 Other Cty Revs'!$G$14 -> 55.66749396 | D7: ='T5 Dev Prog'!E7 -> 1.386 | E7: ='T7 Other Cty Revs'!$H$14 -> 53.29334149 | F7: ='T5 Dev Prog'!F7 -> 0 | G7: =(D7*C7)+(E7*F7) -> 77.15514663 | H7: =IF($B$30=1,'T8 Est Prop Tax'!H6+'T9 Est Sales Tax'!H7+'T10 Est Prop Transfer'!G7,0) -> 101.7280822 | I7: =IF($B$33=1,'T20 Services Mitigation Fee'!J7,0) -> 0 | J7: =SUM(G7:I7) -> 178.8832288
B8: ='T8 Est Prop Tax'!A7 -> Very Low Density Residential | C8: ='T7 Other Cty Revs'!$G$14 -> 55.66749396 | D8: ='T5 Dev Prog'!E8 -> 4.4352 | E8: ='T7 Other Cty Revs'!$H$14 -> 53.29334149 | F8: ='T5 Dev Prog'!F8 -> 0 | G8: =(D8*C8)+(E8*F8) -> 246.8964692 | H8: =IF($B$30=1,'T8 Est Prop Tax'!H7+'T9 Est Sales Tax'!H8+'T10 Est Prop Transfer'!G8,0) -> 325.5298629 | I8: =IF($B$33=1,'T20 Services Mitigation Fee'!J8,0) -> 0 | J8: =SUM(G8:I8) -> 572.4263321
B9: ='T8 Est Prop Tax'!A8 -> Low Density Residential | C9: ='T7 Other Cty Revs'!$G$14 -> 55.66749396 | D9: ='T5 Dev Prog'!E9 -> 13.86 | E9: ='T7 Other Cty Revs'!$H$14 -> 53.29334149 | F9: ='T5 Dev Prog'!F9 -> 0 | G9: 771.5514663 | H9: =IF($B$30=1,'T8 Est Prop Tax'!H8+'T9 Est Sales Tax'!H9+'T10 Est Prop Transfer'!G9,0) -> 1017.280822 | I9: =IF($B$33=1,'T20 Services Mitigation Fee'!J9,0) -> 0 | J9: 1788.832288
B10: ='T8 Est Prop Tax'!A9 -> Low-Medium Density Residential | C10: ='T7 Other Cty Revs'!$G$14 -> 55.66749396 | D10: ='T5 Dev Prog'!E10 -> 18.5625 | E10: ='T7 Other Cty Revs'!$H$14 -> 53.29334149 | F10: ='T5 Dev Prog'!F10 -> 0 | G10: 1033.327857 | H10: =IF($B$30=1,'T8 Est Prop Tax'!H9+'T9 Est Sales Tax'!H10+'T10 Est Prop Transfer'!G10,0) -> 1017.280822 | I10: =IF($B$33=1,'T20 Services Mitigation Fee'!J10,0) -> 0 | J10: 2050.608678
B11: ='T8 Est Prop Tax'!A10 -> Medium Density Residential | C11: ='T7 Other Cty Revs'!$G$14 -> 55.66749396 | D11: ='T5 Dev Prog'!E11 -> 24.5025 | E11: ='T7 Other Cty Revs'!$H$14 -> 53.29334149 | F11: ='T5 Dev Prog'!F11 -> 0 | G11: 1363.992771 | H11: =IF($B$30=1,'T8 Est Prop Tax'!H10+'T9 Est Sales Tax'!H11+'T10 Est Prop Transfer'!G11,0) -> 1418.083356 | I11: =IF($B$33=1,'T20 Services Mitigation Fee'!J11,0) -> 0 | J11: 2782.076126
B12: ='T8 Est Prop Tax'!A11 -> High Density Residential | C12: ='T7 Other Cty Revs'!$G$14 -> 55.66749396 | D12: ='T5 Dev Prog'!E12 -> 34.52625 | E12: ='T7 Other Cty Revs'!$H$14 -> 53.29334149 | F12: ='T5 Dev Prog'!F12 -> 0 | G12: 1921.989813 | H12: =IF($B$30=1,'T8 Est Prop Tax'!H11+'T9 Est Sales Tax'!H12+'T10 Est Prop Transfer'!G12,0) -> 1740.375027 | I12: =IF($B$33=1,'T20 Services Mitigation Fee'!J12,0) -> 0 | J12: 3662.364841
B13: ='T8 Est Prop Tax'!A12 -> High Density Residential/Office | C13: ='T7 Other Cty Revs'!$G$14 -> 55.66749396 | D13: ='T5 Dev Prog'!E13 -> 17.263125 | E13: ='T7 Other Cty Revs'!$H$14 -> 53.29334149 | F13: ='T5 Dev Prog'!F13 -> 25.41 | G13: 2315.178714 | H13: =IF($B$30=1,'T8 Est Prop Tax'!H12+'T9 Est Sales Tax'!H13+'T10 Est Prop Transfer'!G13,0) -> 2430.720615 | I13: =IF($B$33=1,'T20 Services Mitigation Fee'!J13,0) -> 0 | J13: 4745.899329
B14: ='T8 Est Prop Tax'!A13 -> Office | C14: ='T7 Other Cty Revs'!$G$14 -> 55.66749396 | D14: ='T5 Dev Prog'!E14 -> 0 | E14: ='T7 Other Cty Revs'!$H$14 -> 53.29334149 | F14: ='T5 Dev Prog'!F14 -> 50.82 | G14: 2708.367614 | H14: =IF($B$30=1,'T8 Est Prop Tax'!H13+'T9 Est Sales Tax'!H14+'T10 Est Prop Transfer'!G14,0) -> 2895.9777 | I14: =IF($B$33=1,'T20 Services Mitigation Fee'!J14,0) -> 0 | J14: 5604.345314
B15: ='T8 Est Prop Tax'!A14 -> Business Park | C15: ='T7 Other Cty Revs'!$G$14 -> 55.66749396 | D15: ='T5 Dev Prog'!E15 -> 0 | E15: ='T7 Other Cty Revs'!$H$14 -> 53.29334149 | F15: ='T5 Dev Prog'!F15 -> 50.82 | G15: 2708.367614 | H15: =IF($B$30=1,'T8 Est Prop Tax'!H14+'T9 Est Sales Tax'!H15+'T10 Est Prop Transfer'!G15,0) -> 2895.9777 | I15: =IF($B$33=1,'T20 Services Mitigation Fee'!J15,0) -> 0 | J15: 5604.345314
B16: ='T8 Est Prop Tax'!A15 -> Community Commercial/Office | C16: ='T7 Other Cty Revs'!$G$14 -> 55.66749396 | D16: ='T5 Dev Prog'!E16 -> 0 | E16: ='T7 Other Cty Revs'!$H$14 -> 53.29334149 | F16: ='T5 Dev Prog'!F16 -> 40.656 | G16: 2166.694091 | H16: =IF($B$30=1,'T8 Est Prop Tax'!H15+'T9 Est Sales Tax'!H16+'T10 Est Prop Transfer'!G16,0) -> 14755.99356 | I16: =IF($B$33=1,'T20 Services Mitigation Fee'!J16,0) -> 0 | J16: 16922.68765
B17: ='T8 Est Prop Tax'!A16 -> Community Commercial | C17: ='T7 Other Cty Revs'!$G$14 -> 55.66749396 | D17: ='T5 Dev Prog'!E17 -> 0 | E17: ='T7 Other Cty Revs'!$H$14 -> 53.29334149 | F17: ='T5 Dev Prog'!F17 -> 21.78 | G17: 1160.728978 | H17: =IF($B$30=1,'T8 Est Prop Tax'!H16+'T9 Est Sales Tax'!H17+'T10 Est Prop Transfer'!G17,0) -> 17977.4298 | I17: =IF($B$33=1,'T20 Services Mitigation Fee'!J17,0) -> 0 | J17: 19138.15878
B18: ='T8 Est Prop Tax'!A17 -> Community Commercial/High Density Residential | C18: ='T7 Other Cty Revs'!$G$14 -> 55.66749396 | D18: ='T5 Dev Prog'!E18 -> 11.3936625 | E18: ='T7 Other Cty Revs'!$H$14 -> 53.29334149 | F18: ='T5 Dev Prog'!F18 -> 46.69632 | G18: 3122.859566 | H18: =IF($B$30=1,'T8 Est Prop Tax'!H17+'T9 Est Sales Tax'!H18+'T10 Est Prop Transfer'!G18,0) -> 17542.92492 | I18: =IF($B$33=1,'T20 Services Mitigation Fee'!J18,0) -> 0 | J18: 20665.78448
B19: ='T8 Est Prop Tax'!A18 -> Downtown | C19: ='T7 Other Cty Revs'!$G$14 -> 55.66749396 | D19: ='T5 Dev Prog'!E19 -> 8.6315625 | E19: ='T7 Other Cty Revs'!$H$14 -> 53.29334149 | F19: ='T5 Dev Prog'!F19 -> 261.36 | G19: 14409.24518 | H19: =IF($B$30=1,'T8 Est Prop Tax'!H18+'T9 Est Sales Tax'!H19+'T10 Est Prop Transfer'!G19,0) -> 94418.64142 | I19: =IF($B$33=1,'T20 Services Mitigation Fee'!J19,0) -> 0 | J19: 108827.8866
B20: ='T8 Est Prop Tax'!A19 -> Heavy Commercial | C20: ='T7 Other Cty Revs'!$G$14 -> 55.66749396 | D20: ='T5 Dev Prog'!E20 -> 0 | E20: ='T7 Other Cty Revs'!$H$14 -> 53.29334149 | F20: ='T5 Dev Prog'!F20 -> 30.492 | G20: 1625.020569 | H20: =IF($B$30=1,'T8 Est Prop Tax'!H19+'T9 Est Sales Tax'!H20+'T10 Est Prop Transfer'!G20,0) -> 25168.40172 | I20: =IF($B$33=1,'T20 Services Mitigation Fee'!J20,0) -> 0 | J20: =SUM(G20:I20) -> 26793.42229
B21: ='T8 Est Prop Tax'!A20 -> Highway Commercial | C21: ='T7 Other Cty Revs'!$G$14 -> 55.66749396 | D21: ='T5 Dev Prog'!E21 -> 0 | E21: ='T7 Other Cty Revs'!$H$14 -> 53.29334149 | F21: ='T5 Dev Prog'!F21 -> 30.492 | G21: 1625.020569 | H21: =IF($B$30=1,'T8 Est Prop Tax'!H20+'T9 Est Sales Tax'!H21+'T10 Est Prop Transfer'!G21,0) -> 25168.40172 | I21: =IF($B$33=1,'T20 Services Mitigation Fee'!J21,0) -> 0 | J21: 26793.42229
B22: ='T8 Est Prop Tax'!A21 -> Neighborhood Center | C22: ='T7 Other Cty Revs'!$G$14 -> 55.66749396 | D22: ='T5 Dev Prog'!E22 -> 8.6315625 | E22: ='T7 Other Cty Revs'!$H$14 -> 53.29334149 | F22: ='T5 Dev Prog'!F22 -> 30.492 | G22: 2105.518022 | H22: =IF($B$30=1,'T8 Est Prop Tax'!H21+'T9 Est Sales Tax'!H22+'T10 Est Prop Transfer'!G22,0) -> 11015.50817 | I22: =IF($B$33=1,'T20 Services Mitigation Fee'!J22,0) -> 0 | J22: 13121.02619
B23: ='T8 Est Prop Tax'!A22 -> Industrial | C23: ='T7 Other Cty Revs'!$G$14 -> 55.66749396 | D23: ='T5 Dev Prog'!E23 -> 0 | E23: ='T7 Other Cty Revs'!$H$14 -> 53.29334149 | F23: ='T5 Dev Prog'!F23 -> 2.26512 | G23: 120.7158137 | H23: =IF($B$30=1,'T8 Est Prop Tax'!H22+'T9 Est Sales Tax'!H23+'T10 Est Prop Transfer'!G23,0) -> 898.2368208 | I23: =IF($B$33=1,'T20 Services Mitigation Fee'!J23,0) -> 0 | J23: 1018.952634
A26: Source: Yolo County, Economics at AECOM
B29: Boolean Switch for P,S, &T Tax Revenue AECOM CALC
B30: 1 | C30: 1= include AECOM CALC and omit database P,S,&T taxes and 0 = omit AECOM CALC and include database P,S,&T taxes
B32: Boolean Switch for Service Mitigation Fees AECOM CALC
B33: 0 | C33: 1= include AECOM CALC and 0 = omit AECOM CALC

Sheet T8 Est Prop Tax
A1: Table 8
A2: Estimated Property Tax Revenues (per acre) by Typology (Land Within City)
A3: ='T5 Dev Prog'!A3 -> StanCOG Fiscal Model
A4: Land Use | B4: Residential Square Feet Per Acre | C4: Residential Value Per Acre | D4: Commercial Square Feet Per Acre | E4: Commercial Value Per Acre | F4: Total Value per Acre | G4: Tax Rate | H4: Total Property Tax Revenue Per Acre
A6: ='T1 Placetype Assumptions'!A11 -> Rural Residential | B6: ='T1 Placetype Assumptions'!C11 -> 750 | C6: =B6*'MODEL ASSUMPTIONS'!D$50 -> 91646.92087 | D6: ='T1 Placetype Assumptions'!E11 -> 0 | E6: =D6*0 -> 0 | F6: =E6+C6 -> 91646.92087 | G6: ='MODEL ASSUMPTIONS'!$C$62*'MODEL ASSUMPTIONS'!$C$63 -> 0.001 | H6: =G6*F6 -> 91.64692087
A7: ='T1 Placetype Assumptions'!A12 -> Very Low Density Residential | B7: ='T1 Placetype Assumptions'!C12 -> 2400 | C7: =B7*'MODEL ASSUMPTIONS'!D$50 -> 293270.1468 | D7: ='T1 Placetype Assumptions'!E12 -> 0 | E7: =D7*0 -> 0 | F7: 293270.1468 | G7: ='MODEL ASSUMPTIONS'!$C$62*'MODEL ASSUMPTIONS'!$C$63 -> 0.001 | H7: 293.2701468
A8: ='T1 Placetype Assumptions'!A13 -> Low Density Residential | B8: ='T1 Placetype Assumptions'!C13 -> 7500 | C8: =B8*'MODEL ASSUMPTIONS'!D$50 -> 916469.2087 | D8: ='T1 Placetype Assumptions'!E13 -> 0 | E8: 0 | F8: 916469.2087 | G8: ='MODEL ASSUMPTIONS'!$C$62*'MODEL ASSUMPTIONS'!$C$63 -> 0.001 | H8: 916.4692087
A9: ='T1 Placetype Assumptions'!A14 -> Low-Medium Density Residential | B9: ='T1 Placetype Assumptions'!C14 -> 7500 | C9: =B9*'MODEL ASSUMPTIONS'!D$50 -> 916469.2087 | D9: ='T1 Placetype Assumptions'!E14 -> 0 | E9: 0 | F9: 916469.2087 | G9: ='MODEL ASSUMPTIONS'!$C$62*'MODEL ASSUMPTIONS'!$C$63 -> 0.001 | H9: 916.4692087
A10: ='T1 Placetype Assumptions'!A15 -> Medium Density Residential | B10: ='T1 Placetype Assumptions'!C15 -> 11000 | C10: =B10*'MODEL ASSUMPTIONS'!D$50 -> 1344154.839 | D10: ='T1 Placetype Assumptions'!E15 -> 0 | E10: 0 | F10: 1344154.839 | G10: ='MODEL ASSUMPTIONS'!$C$62*'MODEL ASSUMPTIONS'!$C$63 -> 0.001 | H10: 1344.154839
A11: ='T1 Placetype Assumptions'!A16 -> High Density Residential | B11: ='T1 Placetype Assumptions'!C16 -> 13500 | C11: =B11*'MODEL ASSUMPTIONS'!D$50 -> 1649644.576 | D11: ='T1 Placetype Assumptions'!E16 -> 0 | E11: 0 | F11: 1649644.576 | G11: ='MODEL ASSUMPTIONS'!$C$62*'MODEL ASSUMPTIONS'!$C$63 -> 0.001 | H11: 1649.644576
A12: ='T1 Placetype Assumptions'!A17 -> High Density Residential/Office | B12: ='T1 Placetype Assumptions'!C17-'T8 Est Prop Tax'!D12 -> 7623 | C12: =B12*'MODEL ASSUMPTIONS'!D$50 -> 931499.3037 | D12: ='T1 Placetype Assumptions'!E17+'T1 Placetype Assumptions'!F17 -> 7623 | E12: =D12*'MODEL ASSUMPTIONS'!$D$47 -> 686070 | F12: 1617569.304 | G12: ='MODEL ASSUMPTIONS'!$C$62*'MODEL ASSUMPTIONS'!$C$63 -> 0.001 | H12: 1617.569304
A13: ='T1 Placetype Assumptions'!A18 -> Office | B13: ='T1 Placetype Assumptions'!C18-'T8 Est Prop Tax'!D13 -> 0 | C13: =B13*'MODEL ASSUMPTIONS'!D$50 -> 0 | D13: ='T1 Placetype Assumptions'!E18+'T1 Placetype Assumptions'!F18 -> 15246 | E13: =D13*'MODEL ASSUMPTIONS'!D$47 -> 1372140 | F13: 1372140 | G13: ='MODEL ASSUMPTIONS'!$C$62*'MODEL ASSUMPTIONS'!$C$63 -> 0.001 | H13: 1372.14
A14: ='T1 Placetype Assumptions'!A19 -> Business Park | B14: ='T1 Placetype Assumptions'!C19-'T8 Est Prop Tax'!D14 -> 0 | C14: =B14*'MODEL ASSUMPTIONS'!D$50 -> 0 | D14: ='T1 Placetype Assumptions'!E19+'T1 Placetype Assumptions'!F19 -> 15246 | E14: =D14*'MODEL ASSUMPTIONS'!D$47 -> 1372140 | F14: 1372140 | G14: ='MODEL ASSUMPTIONS'!$C$62*'MODEL ASSUMPTIONS'!$C$63 -> 0.001 | H14: 1372.14
A15: ='T1 Placetype Assumptions'!A20 -> Community Commercial/Office | B15: ='T1 Placetype Assumptions'!C20-'T8 Est Prop Tax'!D15 -> 0 | C15: =B15*'MODEL ASSUMPTIONS'!D$50 -> 0 | D15: ='T1 Placetype Assumptions'!E20+'T1 Placetype Assumptions'!F20 -> 15246 | E15: =(D15*'INPUT - DATA'!Q37*'MODEL ASSUMPTIONS'!D$47)+(D15*50%*'MODEL ASSUMPTIONS'!D$48) -> 2317392 | F15: 2317392 | G15: ='MODEL ASSUMPTIONS'!$C$62*'MODEL ASSUMPTIONS'!$C$63 -> 0.001 | H15: 2317.392
A16: ='T1 Placetype Assumptions'!A21 -> Community Commercial | B16: ='T1 Placetype Assumptions'!C21-'T8 Est Prop Tax'!D16 -> 0 | C16: =B16*'MODEL ASSUMPTIONS'!D$50 -> 0 | D16: ='T1 Placetype Assumptions'!E21+'T1 Placetype Assumptions'!F21 -> 10890 | E16: =D16*'MODEL ASSUMPTIONS'!D$48 -> 1350360 | F16: 1350360 | G16: ='MODEL ASSUMPTIONS'!$C$62*'MODEL ASSUMPTIONS'!$C$63 -> 0.001 | H16: 1350.36
A17: ='T1 Placetype Assumptions'!A22 -> Community Commercial/High Density Residential | B17: ='T1 Placetype Assumptions'!C22-'T8 Est Prop Tax'!D17 -> 8624.88 | C17: =B17*'MODEL ASSUMPTIONS'!D$50 -> 1053924.926 | D17: ='T1 Placetype Assumptions'!E22+'T1 Placetype Assumptions'!F22 -> 17511.12 | E17: =D17*'MODEL ASSUMPTIONS'!D$48 -> 2171378.88 | F17: 3225303.806 | G17: ='MODEL ASSUMPTIONS'!$C$62*'MODEL ASSUMPTIONS'!$C$63 -> 0.001 | H17: 3225.303806
A18: ='T1 Placetype Assumptions'!A23 -> Downtown | B18: ='T1 Placetype Assumptions'!C23-'T8 Est Prop Tax'!D18 -> 32670 | C18: =B18*'MODEL ASSUMPTIONS'!D$50 -> 3992139.873 | D18: ='T1 Placetype Assumptions'!E23+'T1 Placetype Assumptions'!F23 -> 98010 | E18: =(D18*50%*'MODEL ASSUMPTIONS'!D$47)+(D18*50%*'MODEL ASSUMPTIONS'!D$48) -> 10487070 | F18: 14479209.87 | G18: ='MODEL ASSUMPTIONS'!$C$62*'MODEL ASSUMPTIONS'!$C$63 -> 0.001 | H18: 14479.20987
A19: ='T1 Placetype Assumptions'!A24 -> Heavy Commercial | B19: ='T1 Placetype Assumptions'!C24-'T8 Est Prop Tax'!D19 -> 0 | C19: =B19*'MODEL ASSUMPTIONS'!D$50 -> 0 | D19: ='T1 Placetype Assumptions'!E24+'T1 Placetype Assumptions'!F24 -> 15246 | E19: =D19*'MODEL ASSUMPTIONS'!D$48 -> 1890504 | F19: 1890504 | G19: ='MODEL ASSUMPTIONS'!$C$62*'MODEL ASSUMPTIONS'!$C$63 -> 0.001 | H19: 1890.504
A20: ='T1 Placetype Assumptions'!A25 -> Highway Commercial | B20: ='T1 Placetype Assumptions'!C25-'T8 Est Prop Tax'!D20 -> 0 | C20: =B20*'MODEL ASSUMPTIONS'!D$50 -> 0 | D20: ='T1 Placetype Assumptions'!E25+'T1 Placetype Assumptions'!F25 -> 15246 | E20: =D20*'MODEL ASSUMPTIONS'!D$48 -> 1890504 | F20: 1890504 | G20: ='MODEL ASSUMPTIONS'!$C$62*'MODEL ASSUMPTIONS'!$C$63 -> 0.001 | H20: 1890.504
A21: ='T1 Placetype Assumptions'!A26 -> Neighborhood Center | B21: ='T1 Placetype Assumptions'!C26-'T8 Est Prop Tax'!D21 -> 3811.5 | C21: =B21*'MODEL ASSUMPTIONS'!D$50 -> 465749.6519 | D21: ='T1 Placetype Assumptions'!E26+'T1 Placetype Assumptions'!F26 -> 11434.5 | E21: =(D21*50%*'MODEL ASSUMPTIONS'!D$47)+(D21*50%*'MODEL ASSUMPTIONS'!D$48) -> 1223491.5 | F21: 1689241.152 | G21: ='MODEL ASSUMPTIONS'!$C$62*'MODEL ASSUMPTIONS'!$C$63 -> 0.001 | H21: 1689.241152
A22: ='T1 Placetype Assumptions'!A27 -> Industrial | B22: 0 | C22: =B22*'MODEL ASSUMPTIONS'!D$50 -> 0 | D22: ='T1 Placetype Assumptions'!E27+'T1 Placetype Assumptions'!F27 -> 1045.44 | E22: =D22*'MODEL ASSUMPTIONS'!D$49 -> 51226.56 | F22: 51226.56 | G22: ='MODEL ASSUMPTIONS'!$C$62*'MODEL ASSUMPTIONS'!$C$63 -> 0.001 | H22: 51.22656
A25: Source: Economics at AECOM

Sheet T8 Est Prop Tax (Annex)
A1: Table 8
A2: Estimated Property Tax Revenues (per acre) by Typology (New County Land Annexed)
A3: ='T5 Dev Prog'!A3 -> StanCOG Fiscal Model
A4: Land Use | B4: Residential Square Feet Per Acre | C4: Residential Value Per Acre | D4: Commercial Square Feet Per Acre | E4: Commercial Value Per Acre | F4: Total Value per Acre | G4: Pre-Annexation Base Value per Acre | H4: Incremental Value per Acre | I4: Tax Rate | J4: Total Property Tax Revenue Per Acre
A6: ='T1 Placetype Assumptions'!A11 -> Rural Residential | B6: ='T1 Placetype Assumptions'!C11 -> 750 | C6: =B6*'MODEL ASSUMPTIONS'!D$50 -> 91646.92087 | D6: ='T1 Placetype Assumptions'!E11 -> 0 | E6: =D6*0 -> 0 | F6: =E6+C6 -> 91646.92087 | G6: ='MODEL ASSUMPTIONS'!$C$58 -> 30000 | H6: =F6-G6 -> 61646.92087 | I6: ='MODEL ASSUMPTIONS'!$C$62*'MODEL ASSUMPTIONS'!$C$64*'MODEL ASSUMPTIONS'!$C$65 -> 0.00033 | J6: =I6*H6 -> 20.34348389
A7: ='T1 Placetype Assumptions'!A12 -> Very Low Density Residential | B7: ='T1 Placetype Assumptions'!C12 -> 2400 | C7: =B7*'MODEL ASSUMPTIONS'!D$50 -> 293270.1468 | D7: ='T1 Placetype Assumptions'!E12 -> 0 | E7: =D7*0 -> 0 | F7: =E7+C7 -> 293270.1468 | G7: ='MODEL ASSUMPTIONS'!$C$58 -> 30000 | H7: =F7-G7 -> 263270.1468 | I7: =I6 -> 0.00033 | J7: =I7*H7 -> 86.87914844
A8: ='T1 Placetype Assumptions'!A13 -> Low Density Residential | B8: ='T1 Placetype Assumptions'!C13 -> 7500 | C8: =B8*'MODEL ASSUMPTIONS'!D$50 -> 916469.2087 | D8: ='T1 Placetype Assumptions'!E13 -> 0 | E8: 0 | F8: 916469.2087 | G8: ='MODEL ASSUMPTIONS'!$C$58 -> 30000 | H8: 886469.2087 | I8: 0.00033 | J8: 292.5348389
A9: ='T1 Placetype Assumptions'!A14 -> Low-Medium Density Residential | B9: ='T1 Placetype Assumptions'!C14 -> 7500 | C9: =B9*'MODEL ASSUMPTIONS'!D$50 -> 916469.2087 | D9: ='T1 Placetype Assumptions'!E14 -> 0 | E9: 0 | F9: 916469.2087 | G9: ='MODEL ASSUMPTIONS'!$C$58 -> 30000 | H9: 886469.2087 | I9: 0.00033 | J9: 292.5348389
A10: ='T1 Placetype Assumptions'!A15 -> Medium Density Residential | B10: ='T1 Placetype Assumptions'!C15 -> 11000 | C10: =B10*'MODEL ASSUMPTIONS'!D$50 -> 1344154.839 | D10: ='T1 Placetype Assumptions'!E15 -> 0 | E10: 0 | F10: 1344154.839 | G10: ='MODEL ASSUMPTIONS'!$C$58 -> 30000 | H10: 1314154.839 | I10: 0.00033 | J10: 433.671097
A11: ='T1 Placetype Assumptions'!A16 -> High Density Residential | B11: ='T1 Placetype Assumptions'!C16 -> 13500 | C11: =B11*'MODEL ASSUMPTIONS'!D$50 -> 1649644.576 | D11: ='T1 Placetype Assumptions'!E16 -> 0 | E11: 0 | F11: 1649644.576 | G11: ='MODEL ASSUMPTIONS'!$C$58 -> 30000 | H11: 1619644.576 | I11: 0.00033 | J11: 534.48271
A12: ='T1 Placetype Assumptions'!A17 -> High Density Residential/Office | B12: ='T1 Placetype Assumptions'!C17-'T8 Est Prop Tax (Annex)'!D12 -> 7623 | C12: =B12*'MODEL ASSUMPTIONS'!D$50 -> 931499.3037 | D12: ='T1 Placetype Assumptions'!E17+'T1 Placetype Assumptions'!F17 -> 7623 | E12: =D12*'MODEL ASSUMPTIONS'!$D$47 -> 686070 | F12: 1617569.304 | G12: ='MODEL ASSUMPTIONS'!$C$58 -> 30000 | H12: 1587569.304 | I12: 0.00033 | J12: 523.8978702
A13: ='T1 Placetype Assumptions'!A18 -> Office | B13: ='T1 Placetype Assumptions'!C18-'T8 Est Prop Tax (Annex)'!D13 -> 0 | C13: =B13*'MODEL ASSUMPTIONS'!D$50 -> 0 | D13: ='T1 Placetype Assumptions'!E18+'T1 Placetype Assumptions'!F18 -> 15246 | E13: =D13*'MODEL ASSUMPTIONS'!D$47 -> 1372140 | F13: 1372140 | G13: ='MODEL ASSUMPTIONS'!$C$58 -> 30000 | H13: 1342140 | I13: 0.00033 | J13: 442.9062
A14: ='T1 Placetype Assumptions'!A19 -> Business Park | B14: ='T1 Placetype Assumptions'!C19-'T8 Est Prop Tax (Annex)'!D14 -> 0 | C14: =B14*'MODEL ASSUMPTIONS'!D$50 -> 0 | D14: ='T1 Placetype Assumptions'!E19+'T1 Placetype Assumptions'!F19 -> 15246 | E14: =D14*'MODEL ASSUMPTIONS'!D$47 -> 1372140 | F14: 1372140 | G14: ='MODEL ASSUMPTIONS'!$C$58 -> 30000 | H14: 1342140 | I14: 0.00033 | J14: 442.9062
A15: ='T1 Placetype Assumptions'!A20 -> Community Commercial/Office | B15: ='T1 Placetype Assumptions'!C20-'T8 Est Prop Tax (Annex)'!D15 -> 0 | C15: =B15*'MODEL ASSUMPTIONS'!D$50 -> 0 | D15: ='T1 Placetype Assumptions'!E20+'T1 Placetype Assumptions'!F20 -> 15246 | E15: =(D15*50%*'MODEL ASSUMPTIONS'!D$47)+(D15*50%*'MODEL ASSUMPTIONS'!D$48) -> 1631322 | F15: 1631322 | G15: ='MODEL ASSUMPTIONS'!$C$58 -> 30000 | H15: 1601322 | I15: 0.00033 | J15: 528.43626
A16: ='T1 Placetype Assumptions'!A21 -> Community Commercial | B16: ='T1 Placetype Assumptions'!C21-'T8 Est Prop Tax (Annex)'!D16 -> 0 | C16: =B16*'MODEL ASSUMPTIONS'!D$50 -> 0 | D16: ='T1 Placetype Assumptions'!E21+'T1 Placetype Assumptions'!F21 -> 10890 | E16: =D16*'MODEL ASSUMPTIONS'!D$48 -> 1350360 | F16: 1350360 | G16: ='MODEL ASSUMPTIONS'!$C$58 -> 30000 | H16: 1320360 | I16: 0.00033 | J16: 435.7188
A17: ='T1 Placetype Assumptions'!A22 -> Community Commercial/High Density Residential | B17: ='T1 Placetype Assumptions'!C22-'T8 Est Prop Tax (Annex)'!D17 -> 8624.88 | C17: =B17*'MODEL ASSUMPTIONS'!D$50 -> 1053924.926 | D17: ='T1 Placetype Assumptions'!E22+'T1 Placetype Assumptions'!F22 -> 17511.12 | E17: =D17*'MODEL ASSUMPTIONS'!D$48 -> 2171378.88 | F17: 3225303.806 | G17: ='MODEL ASSUMPTIONS'!$C$58 -> 30000 | H17: 3195303.806 | I17: 0.00033 | J17: 1054.450256
A18: ='T1 Placetype Assumptions'!A23 -> Downtown | B18: ='T1 Placetype Assumptions'!C23-'T8 Est Prop Tax (Annex)'!D18 -> 32670 | C18: =B18*'MODEL ASSUMPTIONS'!D$50 -> 3992139.873 | D18: ='T1 Placetype Assumptions'!E23+'T1 Placetype Assumptions'!F23 -> 98010 | E18: =(D18*50%*'MODEL ASSUMPTIONS'!D$47)+(D18*50%*'MODEL ASSUMPTIONS'!D$48) -> 10487070 | F18: 14479209.87 | G18: ='MODEL ASSUMPTIONS'!$C$58 -> 30000 | H18: 14449209.87 | I18: 0.00033 | J18: 4768.239258
A19: ='T1 Placetype Assumptions'!A24 -> Heavy Commercial | B19: ='T1 Placetype Assumptions'!C24-'T8 Est Prop Tax (Annex)'!D19 -> 0 | C19: =B19*'MODEL ASSUMPTIONS'!D$50 -> 0 | D19: ='T1 Placetype Assumptions'!E24+'T1 Placetype Assumptions'!F24 -> 15246 | E19: =D19*'MODEL ASSUMPTIONS'!D$48 -> 1890504 | F19: 1890504 | G19: ='MODEL ASSUMPTIONS'!$C$58 -> 30000 | H19: 1860504 | I19: 0.00033 | J19: 613.96632
A20: ='T1 Placetype Assumptions'!A25 -> Highway Commercial | B20: ='T1 Placetype Assumptions'!C25-'T8 Est Prop Tax (Annex)'!D20 -> 0 | C20: =B20*'MODEL ASSUMPTIONS'!D$50 -> 0 | D20: ='T1 Placetype Assumptions'!E25+'T1 Placetype Assumptions'!F25 -> 15246 | E20: =D20*'MODEL ASSUMPTIONS'!D$48 -> 1890504 | F20: 1890504 | G20: ='MODEL ASSUMPTIONS'!$C$58 -> 30000 | H20: 1860504 | I20: 0.00033 | J20: 613.96632
A21: ='T1 Placetype Assumptions'!A26 -> Neighborhood Center | B21: ='T1 Placetype Assumptions'!C26-'T8 Est Prop Tax (Annex)'!D21 -> 3811.5 | C21: =B21*'MODEL ASSUMPTIONS'!D$50 -> 465749.6519 | D21: ='T1 Placetype Assumptions'!E26+'T1 Placetype Assumptions'!F26 -> 11434.5 | E21: =(D21*50%*'MODEL ASSUMPTIONS'!D$47)+(D21*50%*'MODEL ASSUMPTIONS'!D$48) -> 1223491.5 | F21: 1689241.152 | G21: ='MODEL ASSUMPTIONS'!$C$58 -> 30000 | H21: 1659241.152 | I21: 0.00033 | J21: 547.5495801
A22: ='T1 Placetype Assumptions'!A27 -> Industrial | B22: 0 | C22: =B22*'MODEL ASSUMPTIONS'!D$50 -> 0 | D22: ='T1 Placetype Assumptions'!E27+'T1 Placetype Assumptions'!F27 -> 1045.44 | E22: =D22*'MODEL ASSUMPTIONS'!D$49 -> 51226.56 | F22: 51226.56 | G22: ='MODEL ASSUMPTIONS'!$C$58 -> 30000 | H22: 21226.56 | I22: 0.00033 | J22: 7.0047648
A25: Source: Economics at AECOM

Sheet T8 Est Prop Tax (Annex Is)
A1: Table 8
A2: Estimated Property Tax Revenues (per acre) by Typology (County Urban Island Annexed)
A3: ='T5 Dev Prog'!A3 -> StanCOG Fiscal Model
A4: Land Use | B4: Residential Square Feet Per Acre | C4: Residential Value Per Acre | D4: Commercial Square Feet Per Acre | E4: Commercial Value Per Acre | F4: Total Value per Acre | G4: County Tax Rate | H4: Total Property Tax Revenue Per Acre
A6: ='T1 Placetype Assumptions'!A11 -> Rural Residential | B6: ='T1 Placetype Assumptions'!C11 -> 750 | C6: =B6*'MODEL ASSUMPTIONS'!D$50 -> 91646.92087 | D6: ='T1 Placetype Assumptions'!E11 -> 0 | E6: =D6*0 -> 0 | F6: =E6+C6 -> 91646.92087 | G6: ='MODEL ASSUMPTIONS'!$C$62*'MODEL ASSUMPTIONS'!$C$63*'MODEL ASSUMPTIONS'!$C$67 -> 0.00034 | H6: =G6*F6 -> 31.1599531
A7: ='T1 Placetype Assumptions'!A12 -> Very Low Density Residential | B7: ='T1 Placetype Assumptions'!C12 -> 2400 | C7: =B7*'MODEL ASSUMPTIONS'!D$50 -> 293270.1468 | D7: ='T1 Placetype Assumptions'!E12 -> 0 | E7: =D7*0 -> 0 | F7: 293270.1468 | G7: ='MODEL ASSUMPTIONS'!$C$62*'MODEL ASSUMPTIONS'!$C$63*'MODEL ASSUMPTIONS'!$C$67 -> 0.00034 | H7: 99.71184991
A8: ='T1 Placetype Assumptions'!A13 -> Low Density Residential | B8: ='T1 Placetype Assumptions'!C13 -> 7500 | C8: =B8*'MODEL ASSUMPTIONS'!D$50 -> 916469.2087 | D8: ='T1 Placetype Assumptions'!E13 -> 0 | E8: 0 | F8: 916469.2087 | G8: ='MODEL ASSUMPTIONS'!$C$62*'MODEL ASSUMPTIONS'!$C$63*'MODEL ASSUMPTIONS'!$C$67 -> 0.00034 | H8: 311.599531
A9: ='T1 Placetype Assumptions'!A14 -> Low-Medium Density Residential | B9: ='T1 Placetype Assumptions'!C14 -> 7500 | C9: =B9*'MODEL ASSUMPTIONS'!D$50 -> 916469.2087 | D9: ='T1 Placetype Assumptions'!E14 -> 0 | E9: 0 | F9: 916469.2087 | G9: ='MODEL ASSUMPTIONS'!$C$62*'MODEL ASSUMPTIONS'!$C$63*'MODEL ASSUMPTIONS'!$C$67 -> 0.00034 | H9: 311.599531
A10: ='T1 Placetype Assumptions'!A15 -> Medium Density Residential | B10: ='T1 Placetype Assumptions'!C15 -> 11000 | C10: =B10*'MODEL ASSUMPTIONS'!D$50 -> 1344154.839 | D10: ='T1 Placetype Assumptions'!E15 -> 0 | E10: 0 | F10: 1344154.839 | G10: ='MODEL ASSUMPTIONS'!$C$62*'MODEL ASSUMPTIONS'!$C$63*'MODEL ASSUMPTIONS'!$C$67 -> 0.00034 | H10: 457.0126454
A11: ='T1 Placetype Assumptions'!A16 -> High Density Residential | B11: ='T1 Placetype Assumptions'!C16 -> 13500 | C11: =B11*'MODEL ASSUMPTIONS'!D$50 -> 1649644.576 | D11: ='T1 Placetype Assumptions'!E16 -> 0 | E11: 0 | F11: 1649644.576 | G11: ='MODEL ASSUMPTIONS'!$C$62*'MODEL ASSUMPTIONS'!$C$63*'MODEL ASSUMPTIONS'!$C$67 -> 0.00034 | H11: 560.8791557
A12: ='T1 Placetype Assumptions'!A17 -> High Density Residential/Office | B12: ='T1 Placetype Assumptions'!C17-'T8 Est Prop Tax (Annex Is)'!D12 -> 7623 | C12: =B12*'MODEL ASSUMPTIONS'!D$50 -> 931499.3037 | D12: ='T1 Placetype Assumptions'!E17+'T1 Placetype Assumptions'!F17 -> 7623 | E12: =D12*'MODEL ASSUMPTIONS'!$D$47 -> 686070 | F12: 1617569.304 | G12: ='MODEL ASSUMPTIONS'!$C$62*'MODEL ASSUMPTIONS'!$C$63*'MODEL ASSUMPTIONS'!$C$67 -> 0.00034 | H12: 549.9735633
A13: ='T1 Placetype Assumptions'!A18 -> Office | B13: ='T1 Placetype Assumptions'!C18-'T8 Est Prop Tax (Annex Is)'!D13 -> 0 | C13: =B13*'MODEL ASSUMPTIONS'!D$50 -> 0 | D13: ='T1 Placetype Assumptions'!E18+'T1 Placetype Assumptions'!F18 -> 15246 | E13: =D13*'MODEL ASSUMPTIONS'!D$47 -> 1372140 | F13: 1372140 | G13: ='MODEL ASSUMPTIONS'!$C$62*'MODEL ASSUMPTIONS'!$C$63*'MODEL ASSUMPTIONS'!$C$67 -> 0.00034 | H13: 466.5276
A14: ='T1 Placetype Assumptions'!A19 -> Business Park | B14: ='T1 Placetype Assumptions'!C19-'T8 Est Prop Tax (Annex Is)'!D14 -> 0 | C14: =B14*'MODEL ASSUMPTIONS'!D$50 -> 0 | D14: ='T1 Placetype Assumptions'!E19+'T1 Placetype Assumptions'!F19 -> 15246 | E14: =D14*'MODEL ASSUMPTIONS'!D$47 -> 1372140 | F14: 1372140 | G14: ='MODEL ASSUMPTIONS'!$C$62*'MODEL ASSUMPTIONS'!$C$63*'MODEL ASSUMPTIONS'!$C$67 -> 0.00034 | H14: 466.5276
A15: ='T1 Placetype Assumptions'!A20 -> Community Commercial/Office | B15: ='T1 Placetype Assumptions'!C20-'T8 Est Prop Tax (Annex Is)'!D15 -> 0 | C15: =B15*'MODEL ASSUMPTIONS'!D$50 -> 0 | D15: ='T1 Placetype Assumptions'!E20+'T1 Placetype Assumptions'!F20 -> 15246 | E15: =(D15*50%*'MODEL ASSUMPTIONS'!D$47)+(D15*50%*'MODEL ASSUMPTIONS'!D$48) -> 1631322 | F15: 1631322 | G15: ='MODEL ASSUMPTIONS'!$C$62*'MODEL ASSUMPTIONS'!$C$63*'MODEL ASSUMPTIONS'!$C$67 -> 0.00034 | H15: 554.64948
A16: ='T1 Placetype Assumptions'!A21 -> Community Commercial | B16: ='T1 Placetype Assumptions'!C21-'T8 Est Prop Tax (Annex Is)'!D16 -> 0 | C16: =B16*'MODEL ASSUMPTIONS'!D$50 -> 0 | D16: ='T1 Placetype Assumptions'!E21+'T1 Placetype Assumptions'!F21 -> 10890 | E16: =D16*'MODEL ASSUMPTIONS'!D$48 -> 1350360 | F16: 1350360 | G16: ='MODEL ASSUMPTIONS'!$C$62*'MODEL ASSUMPTIONS'!$C$63*'MODEL ASSUMPTIONS'!$C$67 -> 0.00034 | H16: 459.1224
A17: ='T1 Placetype Assumptions'!A22 -> Community Commercial/High Density Residential | B17: ='T1 Placetype Assumptions'!C22-'T8 Est Prop Tax (Annex Is)'!D17 -> 8624.88 | C17: =B17*'MODEL ASSUMPTIONS'!D$50 -> 1053924.926 | D17: ='T1 Placetype Assumptions'!E22+'T1 Placetype Assumptions'!F22 -> 17511.12 | E17: =D17*'MODEL ASSUMPTIONS'!D$48 -> 2171378.88 | F17: 3225303.806 | G17: ='MODEL ASSUMPTIONS'!$C$62*'MODEL ASSUMPTIONS'!$C$63*'MODEL ASSUMPTIONS'!$C$67 -> 0.00034 | H17: 1096.603294
A18: ='T1 Placetype Assumptions'!A23 -> Downtown | B18: ='T1 Placetype Assumptions'!C23-'T8 Est Prop Tax (Annex Is)'!D18 -> 32670 | C18: =B18*'MODEL ASSUMPTIONS'!D$50 -> 3992139.873 | D18: ='T1 Placetype Assumptions'!E23+'T1 Placetype Assumptions'!F23 -> 98010 | E18: =(D18*50%*'MODEL ASSUMPTIONS'!D$47)+(D18*50%*'MODEL ASSUMPTIONS'!D$48) -> 10487070 | F18: 14479209.87 | G18: ='MODEL ASSUMPTIONS'!$C$62*'MODEL ASSUMPTIONS'!$C$63*'MODEL ASSUMPTIONS'!$C$67 -> 0.00034 | H18: 4922.931357
A19: ='T1 Placetype Assumptions'!A24 -> Heavy Commercial | B19: ='T1 Placetype Assumptions'!C24-'T8 Est Prop Tax (Annex Is)'!D19 -> 0 | C19: =B19*'MODEL ASSUMPTIONS'!D$50 -> 0 | D19: ='T1 Placetype Assumptions'!E24+'T1 Placetype Assumptions'!F24 -> 15246 | E19: =D19*'MODEL ASSUMPTIONS'!D$48 -> 1890504 | F19: 1890504 | G19: ='MODEL ASSUMPTIONS'!$C$62*'MODEL ASSUMPTIONS'!$C$63*'MODEL ASSUMPTIONS'!$C$67 -> 0.00034 | H19: 642.77136
A20: ='T1 Placetype Assumptions'!A25 -> Highway Commercial | B20: ='T1 Placetype Assumptions'!C25-'T8 Est Prop Tax (Annex Is)'!D20 -> 0 | C20: =B20*'MODEL ASSUMPTIONS'!D$50 -> 0 | D20: ='T1 Placetype Assumptions'!E25+'T1 Placetype Assumptions'!F25 -> 15246 | E20: =D20*'MODEL ASSUMPTIONS'!D$48 -> 1890504 | F20: 1890504 | G20: ='MODEL ASSUMPTIONS'!$C$62*'MODEL ASSUMPTIONS'!$C$63*'MODEL ASSUMPTIONS'!$C$67 -> 0.00034 | H20: 642.77136
A21: ='T1 Placetype Assumptions'!A26 -> Neighborhood Center | B21: ='T1 Placetype Assumptions'!C26-'T8 Est Prop Tax (Annex Is)'!D21 -> 3811.5 | C21: =B21*'MODEL ASSUMPTIONS'!D$50 -> 465749.6519 | D21: ='T1 Placetype Assumptions'!E26+'T1 Placetype Assumptions'!F26 -> 11434.5 | E21: =(D21*50%*'MODEL ASSUMPTIONS'!D$47)+(D21*50%*'MODEL ASSUMPTIONS'!D$48) -> 1223491.5 | F21: 1689241.152 | G21: ='MODEL ASSUMPTIONS'!$C$62*'MODEL ASSUMPTIONS'!$C$63*'MODEL ASSUMPTIONS'!$C$67 -> 0.00034 | H21: 574.3419916
A22: ='T1 Placetype Assumptions'!A27 -> Industrial | B22: 0 | C22: =B22*'MODEL ASSUMPTIONS'!D$50 -> 0 | D22: ='T1 Placetype Assumptions'!E27+'T1 Placetype Assumptions'!F27 -> 1045.44 | E22: =D22*'MODEL ASSUMPTIONS'!D$49 -> 51226.56 | F22: 51226.56 | G22: ='MODEL ASSUMPTIONS'!$C$62*'MODEL ASSUMPTIONS'!$C$63*'MODEL ASSUMPTIONS'!$C$67 -> 0.00034 | H22: =G22*F22 -> 17.4170304
A25: Source: Economics at AECOM

Sheet T9 Est Sales Tax
A1: Table 9
A2: Estimated Sales Tax Revenues
A3: ='[1]T2 Dev Assumptions'!A3 -> SACOG Fiscal Model
A5: Land Use | C5: Retail Square Feet per Acre | D5: Taxable Retail Sales Per Square Foot | E5: Office Square Feet per Acre | F5: Taxable Business to Business Sales Per Square Foot | G5: Sales Tax Rate | H5: Total Sales Taxes per Acre
B7: ='T8 Est Prop Tax'!A6 -> Rural Residential | C7: ='T5 Dev Prog'!D7 -> 0 | D7: ='MODEL ASSUMPTIONS'!D$53 -> 160 | E7: ='T5 Dev Prog'!C7 -> 0 | F7: ='MODEL ASSUMPTIONS'!D$54 -> 10 | G7: ='MODEL ASSUMPTIONS'!$C$72 -> 0.0095 | H7: =(G7*D7*C7)+(E7*F7*G7) -> 0
B8: ='T8 Est Prop Tax'!A7 -> Very Low Density Residential | C8: ='T5 Dev Prog'!D8 -> 0 | D8: ='MODEL ASSUMPTIONS'!D$53 -> 160 | E8: ='T5 Dev Prog'!C8 -> 0 | F8: ='MODEL ASSUMPTIONS'!D$54 -> 10 | G8: ='MODEL ASSUMPTIONS'!$C$72 -> 0.0095 | H8: =(G8*D8*C8)+(E8*F8*G8) -> 0
B9: ='T8 Est Prop Tax'!A8 -> Low Density Residential | C9: ='T5 Dev Prog'!D9 -> 0 | D9: ='MODEL ASSUMPTIONS'!D$53 -> 160 | E9: ='T5 Dev Prog'!C9 -> 0 | F9: ='MODEL ASSUMPTIONS'!D$54 -> 10 | G9: ='MODEL ASSUMPTIONS'!$C$72 -> 0.0095 | H9: 0
B10: ='T8 Est Prop Tax'!A9 -> Low-Medium Density Residential | C10: ='T5 Dev Prog'!D10 -> 0 | D10: ='MODEL ASSUMPTIONS'!D$53 -> 160 | E10: ='T5 Dev Prog'!C10 -> 0 | F10: ='MODEL ASSUMPTIONS'!D$54 -> 10 | G10: ='MODEL ASSUMPTIONS'!$C$72 -> 0.0095 | H10: 0
B11: ='T8 Est Prop Tax'!A10 -> Medium Density Residential | C11: ='T5 Dev Prog'!D11 -> 0 | D11: ='MODEL ASSUMPTIONS'!D$53 -> 160 | E11: ='T5 Dev Prog'!C11 -> 0 | F11: ='MODEL ASSUMPTIONS'!D$54 -> 10 | G11: ='MODEL ASSUMPTIONS'!$C$72 -> 0.0095 | H11: 0
B12: ='T8 Est Prop Tax'!A11 -> High Density Residential | C12: ='T5 Dev Prog'!D12 -> 0 | D12: ='MODEL ASSUMPTIONS'!D$53 -> 160 | E12: ='T5 Dev Prog'!C12 -> 0 | F12: ='MODEL ASSUMPTIONS'!D$54 -> 10 | G12: ='MODEL ASSUMPTIONS'!$C$72 -> 0.0095 | H12: 0
B13: ='T8 Est Prop Tax'!A12 -> High Density Residential/Office | C13: ='T5 Dev Prog'!D13 -> 0 | D13: ='MODEL ASSUMPTIONS'!D$53 -> 160 | E13: ='T5 Dev Prog'!C13 -> 7623 | F13: ='MODEL ASSUMPTIONS'!D$54 -> 10 | G13: ='MODEL ASSUMPTIONS'!$C$72 -> 0.0095 | H13: 724.185
B14: ='T8 Est Prop Tax'!A13 -> Office | C14: ='T5 Dev Prog'!D14 -> 0 | D14: ='MODEL ASSUMPTIONS'!D$53 -> 160 | E14: ='T5 Dev Prog'!C14 -> 15246 | F14: ='MODEL ASSUMPTIONS'!D$54 -> 10 | G14: ='MODEL ASSUMPTIONS'!$C$72 -> 0.0095 | H14: 1448.37
B15: ='T8 Est Prop Tax'!A14 -> Business Park | C15: ='T5 Dev Prog'!D15 -> 0 | D15: ='MODEL ASSUMPTIONS'!D$53 -> 160 | E15: ='T5 Dev Prog'!C15 -> 15246 | F15: ='MODEL ASSUMPTIONS'!D$54 -> 10 | G15: ='MODEL ASSUMPTIONS'!$C$72 -> 0.0095 | H15: 1448.37
B16: ='T8 Est Prop Tax'!A15 -> Community Commercial/Office | C16: ='T5 Dev Prog'!D16 -> 7623 | D16: ='MODEL ASSUMPTIONS'!D$53 -> 160 | E16: ='T5 Dev Prog'!C16 -> 7623 | F16: ='MODEL ASSUMPTIONS'!D$54 -> 10 | G16: ='MODEL ASSUMPTIONS'!$C$72 -> 0.0095 | H16: 12311.145
B17: ='T8 Est Prop Tax'!A16 -> Community Commercial | C17: ='T5 Dev Prog'!D17 -> 10890 | D17: ='MODEL ASSUMPTIONS'!D$53 -> 160 | E17: ='T5 Dev Prog'!C17 -> 0 | F17: ='MODEL ASSUMPTIONS'!D$54 -> 10 | G17: ='MODEL ASSUMPTIONS'!$C$72 -> 0.0095 | H17: 16552.8
B18: ='T8 Est Prop Tax'!A17 -> Community Commercial/High Density Residential | C18: ='T5 Dev Prog'!D18 -> 8755.56 | D18: ='MODEL ASSUMPTIONS'!D$53 -> 160 | E18: ='T5 Dev Prog'!C18 -> 8755.56 | F18: ='MODEL ASSUMPTIONS'!D$54 -> 10 | G18: ='MODEL ASSUMPTIONS'!$C$72 -> 0.0095 | H18: 14140.2294
B19: ='T8 Est Prop Tax'!A18 -> Downtown | C19: ='T5 Dev Prog'!D19 -> 49005 | D19: ='MODEL ASSUMPTIONS'!D$53 -> 160 | E19: ='T5 Dev Prog'!C19 -> 49005 | F19: ='MODEL ASSUMPTIONS'!D$54 -> 10 | G19: ='MODEL ASSUMPTIONS'!$C$72 -> 0.0095 | H19: 79143.075
B20: ='T8 Est Prop Tax'!A19 -> Heavy Commercial | C20: ='T5 Dev Prog'!D20 -> 15246 | D20: ='MODEL ASSUMPTIONS'!D$53 -> 160 | E20: ='T5 Dev Prog'!C20 -> 0 | F20: ='MODEL ASSUMPTIONS'!D$54 -> 10 | G20: ='MODEL ASSUMPTIONS'!$C$72 -> 0.0095 | H20: 23173.92
B21: ='T8 Est Prop Tax'!A20 -> Highway Commercial | C21: ='T5 Dev Prog'!D21 -> 15246 | D21: ='MODEL ASSUMPTIONS'!D$53 -> 160 | E21: ='T5 Dev Prog'!C21 -> 0 | F21: ='MODEL ASSUMPTIONS'!D$54 -> 10 | G21: ='MODEL ASSUMPTIONS'!$C$72 -> 0.0095 | H21: 23173.92
B22: ='T8 Est Prop Tax'!A21 -> Neighborhood Center | C22: ='T5 Dev Prog'!D22 -> 5717.25 | D22: ='MODEL ASSUMPTIONS'!D$53 -> 160 | E22: ='T5 Dev Prog'!C22 -> 5717.25 | F22: ='MODEL ASSUMPTIONS'!D$54 -> 10 | G22: ='MODEL ASSUMPTIONS'!$C$72 -> 0.0095 | H22: 9233.35875
B23: ='T8 Est Prop Tax'!A22 -> Industrial | C23: ='T5 Dev Prog'!D23 -> 522.72 | D23: ='MODEL ASSUMPTIONS'!D$53 -> 160 | E23: ='T5 Dev Prog'!C23 -> 522.72 | F23: ='MODEL ASSUMPTIONS'!D$54 -> 10 | G23: ='MODEL ASSUMPTIONS'!$C$72 -> 0.0095 | H23: 844.1928
A27: Source: California Board of Equalization, Economics at AECOM, EPS 2010
B70: =B71/C71 -> 4526.315789 | C70: =B70/1000 -> 4.526315789
B71: 43 | C71: 0.0095

Sheet T10 Est Prop Transfer
A1: Table 10
A2: Annual Estimated Real Property Transfer Tax Revenues
A3: ='[1]T2 Dev Assumptions'!A3 -> SACOG Fiscal Model
A5: Real Property Transfer Tax Estimate | C5: Assessed Value | D5: Average Turnover Period | E5: AV Turnover Per Year | F5: Transfer Tax Rate | G5: Annual Transfer Tax
B7: ='T9 Est Sales Tax'!B7 -> Rural Residential | C7: ='T8 Est Prop Tax'!F6 -> 91646.92087 | D7: 10 | E7: =C7/D7 -> 9164.692087 | F7: ='MODEL ASSUMPTIONS'!$C$76 -> 0.0011 | G7: =F7*E7 -> 10.0811613
B8: ='T9 Est Sales Tax'!B8 -> Very Low Density Residential | C8: ='T8 Est Prop Tax'!F7 -> 293270.1468 | D8: 10 | E8: =C8/D8 -> 29327.01468 | F8: ='MODEL ASSUMPTIONS'!$C$76 -> 0.0011 | G8: =F8*E8 -> 32.25971615
B9: ='T9 Est Sales Tax'!B9 -> Low Density Residential | C9: ='T8 Est Prop Tax'!F8 -> 916469.2087 | D9: 10 | E9: 91646.92087 | F9: ='MODEL ASSUMPTIONS'!$C$76 -> 0.0011 | G9: 100.811613
B10: ='T9 Est Sales Tax'!B10 -> Low-Medium Density Residential | C10: ='T8 Est Prop Tax'!F9 -> 916469.2087 | D10: 10 | E10: 91646.92087 | F10: ='MODEL ASSUMPTIONS'!$C$76 -> 0.0011 | G10: 100.811613
B11: ='T9 Est Sales Tax'!B11 -> Medium Density Residential | C11: ='T8 Est Prop Tax'!F10 -> 1344154.839 | D11: 20 | E11: 67207.74197 | F11: ='MODEL ASSUMPTIONS'!$C$76 -> 0.0011 | G11: 73.92851617
B12: ='T9 Est Sales Tax'!B12 -> High Density Residential | C12: ='T8 Est Prop Tax'!F11 -> 1649644.576 | D12: 20 | E12: 82482.22878 | F12: ='MODEL ASSUMPTIONS'!$C$76 -> 0.0011 | G12: 90.73045166
B13: ='T9 Est Sales Tax'!B13 -> High Density Residential/Office | C13: ='T8 Est Prop Tax'!F12 -> 1617569.304 | D13: 20 | E13: 80878.46519 | F13: ='MODEL ASSUMPTIONS'!$C$76 -> 0.0011 | G13: 88.9663117
B14: ='T9 Est Sales Tax'!B14 -> Office | C14: ='T8 Est Prop Tax'!F13 -> 1372140 | D14: 20 | E14: 68607 | F14: ='MODEL ASSUMPTIONS'!$C$76 -> 0.0011 | G14: 75.4677
B15: ='T9 Est Sales Tax'!B15 -> Business Park | C15: ='T8 Est Prop Tax'!F14 -> 1372140 | D15: 20 | E15: 68607 | F15: ='MODEL ASSUMPTIONS'!$C$76 -> 0.0011 | G15: 75.4677
B16: ='T9 Est Sales Tax'!B16 -> Community Commercial/Office | C16: ='T8 Est Prop Tax'!F15 -> 2317392 | D16: 20 | E16: 115869.6 | F16: ='MODEL ASSUMPTIONS'!$C$76 -> 0.0011 | G16: 127.45656
B17: ='T9 Est Sales Tax'!B17 -> Community Commercial | C17: ='T8 Est Prop Tax'!F16 -> 1350360 | D17: 20 | E17: 67518 | F17: ='MODEL ASSUMPTIONS'!$C$76 -> 0.0011 | G17: 74.2698
B18: ='T9 Est Sales Tax'!B18 -> Community Commercial/High Density Residential | C18: ='T8 Est Prop Tax'!F17 -> 3225303.806 | D18: 20 | E18: 161265.1903 | F18: ='MODEL ASSUMPTIONS'!$C$76 -> 0.0011 | G18: =F18*E18 -> 177.3917094
B19: ='T9 Est Sales Tax'!B19 -> Downtown | C19: ='T8 Est Prop Tax'!F18 -> 14479209.87 | D19: 20 | E19: 723960.4937 | F19: ='MODEL ASSUMPTIONS'!$C$76 -> 0.0011 | G19: 796.356543
B20: ='T9 Est Sales Tax'!B20 -> Heavy Commercial | C20: ='T8 Est Prop Tax'!F19 -> 1890504 | D20: 20 | E20: 94525.2 | F20: ='MODEL ASSUMPTIONS'!$C$76 -> 0.0011 | G20: 103.97772
B21: ='T9 Est Sales Tax'!B21 -> Highway Commercial | C21: ='T8 Est Prop Tax'!F20 -> 1890504 | D21: 20 | E21: 94525.2 | F21: ='MODEL ASSUMPTIONS'!$C$76 -> 0.0011 | G21: =F21*E21 -> 103.97772
B22: ='T9 Est Sales Tax'!B22 -> Neighborhood Center | C22: ='T8 Est Prop Tax'!F21 -> 1689241.152 | D22: 20 | E22: 84462.05759 | F22: ='MODEL ASSUMPTIONS'!$C$76 -> 0.0011 | G22: 92.90826335
B23: ='T9 Est Sales Tax'!B23 -> Industrial | C23: ='T8 Est Prop Tax'!F22 -> 51226.56 | D23: 20 | E23: 2561.328 | F23: ='MODEL ASSUMPTIONS'!$C$76 -> 0.0011 | G23: 2.8174608
A27: Source: Economics at AECOM

Sheet T1 Placetype Assumptions
A1: Table 1
A2: Land Use Typology Assumptions and Summary Results
A3: StanCOG Fiscal Model
A4: Land Use Source: INPUT tab
E7: Commercial | H7: Residential | L7: Results per Acre
A8: Development Type | B8: FAR | C8: Square Feet Per Acre | E8: Commercial Square Feet per Acre | F8: Retail Square Feet Per Acre | H8: Units Per Acre | I8: Unit Size | L8: Fiscal Revenues Per Acre | M8: Fiscal Expenditures Per Acre | N8: Net Revenues Per Acre
A11: Rural Residential | B11: =VLOOKUP(A11,LU_Variables_1,13,FALSE) -> 0.01721763085 | C11: =H11*I11 -> 750 | E11: 0 | F11: 0 | H11: =VLOOKUP(A11,LU_Variables_1,8,FALSE) -> 0.5 | I11: =VLOOKUP(A11,'INPUT - DATA'!$B$84:$C$93,2,FALSE) -> 1500 | L11: ='T14 GF Analysis'!B7 -> 178.8832288 | M11: ='T14 GF Analysis'!C7 -> 497.1725329 | N11: =L11-M11 -> -318.2893041
A12: Very Low Density Residential | B12: =VLOOKUP(A12,LU_Variables_1,13,FALSE) -> 0.05509641873 | C12: =H12*I12 -> 2400 | E12: 0 | F12: 0 | H12: 1.6 | I12: =VLOOKUP(A12,'INPUT - DATA'!$B$84:$C$93,2,FALSE) -> 1500 | L12: ='T14 GF Analysis'!B8 -> 572.4263321 | M12: ='T14 GF Analysis'!C8 -> 1590.952105 | N12: -1018.525773
A13: Low Density Residential | B13: 0.1721763085 | C13: =H13*I13 -> 7500 | E13: 0 | F13: 0 | H13: 5 | I13: =VLOOKUP(A13,'INPUT - DATA'!$B$84:$C$93,2,FALSE) -> 1500 | L13: ='T14 GF Analysis'!B9 -> 1788.832288 | M13: ='T14 GF Analysis'!C9 -> 4971.725329 | N13: -3182.893041
A14: Low-Medium Density Residential | B14: 0.1721763085 | C14: 7500 | E14: 0 | F14: 0 | H14: 7.5 | I14: =VLOOKUP(A14,'INPUT - DATA'!$B$84:$C$93,2,FALSE) -> 1000 | L14: ='T14 GF Analysis'!B10 -> 2050.608678 | M14: ='T14 GF Analysis'!C10 -> 6658.560708 | N14: -4607.95203
A15: Medium Density Residential | B15: 0.2525252525 | C15: 11000 | E15: 0 | F15: 0 | H15: 11 | I15: =VLOOKUP(A15,'INPUT - DATA'!$B$84:$C$93,2,FALSE) -> 1000 | L15: ='T14 GF Analysis'!B11 -> 2782.076126 | M15: ='T14 GF Analysis'!C11 -> 8789.300135 | N15: -6007.224008
A16: High Density Residential | B16: 0.3099173554 | C16: 13500 | E16: 0 | F16: 0 | H16: 22.5 | I16: =VLOOKUP(A16,'INPUT - DATA'!$B$84:$C$93,2,FALSE) -> 600 | L16: ='T14 GF Analysis'!B12 -> 3662.364841 | M16: ='T14 GF Analysis'!C12 -> 10958.36073 | N16: -7295.995889
A17: High Density Residential/Office | B17: 0.35 | C17: =43560*B17 -> 15246 | E17: =IFERROR(($C17)*'INPUT - DATA'!Q37*'INPUT - DATA'!$P37,0) -> 7623 | F17: =IFERROR(($C17)*'INPUT - DATA'!R37*'INPUT - DATA'!$P37,0) -> 0 | H17: 22.5 | I17: =VLOOKUP(A17,'INPUT - DATA'!$B$84:$C$93,2,FALSE) -> 600 | L17: ='T14 GF Analysis'!B13 -> 4745.899329 | M17: ='T14 GF Analysis'!C13 -> 9511.647634 | N17: -4765.748305
A18: Office | B18: 0.35 | C18: =43560*B18 -> 15246 | E18: =IFERROR(($C18)*'INPUT - DATA'!Q38*'INPUT - DATA'!$P38,0) -> 15246 | F18: =IFERROR(($C18)*'INPUT - DATA'!R38*'INPUT - DATA'!$P38,0) -> 0 | H18: 0 | I18: 0 | L18: ='T14 GF Analysis'!B14 -> 5604.345314 | M18: ='T14 GF Analysis'!C14 -> 9114.829769 | N18: -3510.484455
A19: Business Park | B19: 0.35 | C19: =43560*B19 -> 15246 | E19: =IFERROR(($C19)*'INPUT - DATA'!Q39*'INPUT - DATA'!$P39,0) -> 15246 | F19: =IFERROR(($C19)*'INPUT - DATA'!R39*'INPUT - DATA'!$P39,0) -> 0 | H19: 0 | I19: 0 | L19: ='T14 GF Analysis'!B15 -> 5604.345314 | M19: ='T14 GF Analysis'!C15 -> 9114.829769 | N19: -3510.484455
A20: Community Commercial/Office | B20: 0.35 | C20: 15246 | E20: =IFERROR(($C20)*'INPUT - DATA'!Q40*'INPUT - DATA'!$P40,0) -> 7623 | F20: =IFERROR(($C20)*'INPUT - DATA'!R40*'INPUT - DATA'!$P40,0) -> 7623 | H20: 0 | I20: 0 | L20: ='T14 GF Analysis'!B16 -> 16922.68765 | M20: ='T14 GF Analysis'!C16 -> 6451.947631 | N20: 10470.74002
A21: Community Commercial | B21: 0.25 | C21: 10890 | E21: =IFERROR(($C21)*'INPUT - DATA'!Q41*'INPUT - DATA'!$P41,0) -> 0 | F21: =IFERROR(($C21)*'INPUT - DATA'!R41*'INPUT - DATA'!$P41,0) -> 10890 | H21: 0 | I21: 0 | L21: ='T14 GF Analysis'!B17 -> 19138.15878 | M21: ='T14 GF Analysis'!C17 -> 3906.355615 | N21: 15231.80316
A22: Community Commercial/High Density Residential | B22: 0.6 | C22: 26136 | E22: =IFERROR(($C22)*'INPUT - DATA'!Q42*'INPUT - DATA'!$P42,0) -> 8755.56 | F22: =IFERROR(($C22)*'INPUT - DATA'!R42*'INPUT - DATA'!$P42,0) -> 8755.56 | H22: 22.5 | I22: =VLOOKUP(A22,'INPUT - DATA'!$B$84:$C$93,2,FALSE) -> 600 | L22: ='T14 GF Analysis'!B18 -> 20665.78448 | M22: ='T14 GF Analysis'!C18 -> 11026.78175 | N22: 9639.002733
A23: Downtown | B23: 3 | C23: =43560*B23 -> 130680 | E23: =IFERROR(($C23)*'INPUT - DATA'!Q43*'INPUT - DATA'!$P43,0) -> 49005 | F23: =IFERROR(($C23)*'INPUT - DATA'!R43*'INPUT - DATA'!$P43,0) -> 49005 | H23: 22.5 | I23: =VLOOKUP(A23,'INPUT - DATA'!$B$84:$C$93,2,FALSE) -> 600 | L23: ='T14 GF Analysis'!B19 -> 108827.8866 | M23: ='T14 GF Analysis'!C19 -> 44216.39638 | N23: 64611.49022
A24: Heavy Commercial | B24: 0.35 | C24: 15246 | E24: =IFERROR(($C24)*'INPUT - DATA'!Q44*'INPUT - DATA'!$P44,0) -> 0 | F24: =IFERROR(($C24)*'INPUT - DATA'!R44*'INPUT - DATA'!$P44,0) -> 15246 | H24: 0 | I24: 0 | L24: ='T14 GF Analysis'!B20 -> 26793.42229 | M24: ='T14 GF Analysis'!C20 -> 5468.897862 | N24: 21324.52443
A25: Highway Commercial | B25: 0.35 | C25: 15246 | E25: =IFERROR(($C25)*'INPUT - DATA'!Q45*'INPUT - DATA'!$P45,0) -> 0 | F25: =IFERROR(($C25)*'INPUT - DATA'!R45*'INPUT - DATA'!$P45,0) -> 15246 | H25: 0 | I25: 0 | L25: ='T14 GF Analysis'!B21 -> 26793.42229 | M25: ='T14 GF Analysis'!C21 -> 5468.897862 | N25: 21324.52443
A26: Neighborhood Center | B26: 0.35 | C26: 15246 | E26: =IFERROR(($C26)*'INPUT - DATA'!Q46*'INPUT - DATA'!$P46,0) -> 5717.25 | F26: =IFERROR(($C26)*'INPUT - DATA'!R46*'INPUT - DATA'!$P46,0) -> 5717.25 | H26: 22.5 | I26: =VLOOKUP(A26,'INPUT - DATA'!$B$84:$C$93,2,FALSE) -> 600 | L26: ='T14 GF Analysis'!B22 -> 13121.02619 | M26: ='T14 GF Analysis'!C22 -> 8565.128591 | N26: 4555.897596
A27: Industrial | B27: 0.6 | C27: 26136 | E27: =IFERROR(($C27)*'INPUT - DATA'!Q47*'INPUT - DATA'!$P47,0) -> 522.72 | F27: =IFERROR(($C27)*'INPUT - DATA'!R47*'INPUT - DATA'!$P47,0) -> 522.72 | H27: 0 | I27: 0 | L27: ='T14 GF Analysis'!B23 -> 1018.952634 | M27: ='T14 GF Analysis'!C23 -> 406.260984 | N27: 612.6916505
A31: AECOM, 2013
A33: see down for cross ref

Sheet T5 Dev Prog
A1: Table 1
A2: Development Types | B2: Note: All Values are per 1 acre
A3: ='T4 Fiscal Factors'!A3 -> StanCOG Fiscal Model
A5: Land Use | B5: Residential Units per Acre | C5: Commercial Square Feet per Acre | D5: Retail Square Feet per Acre | E5: Residents per Acre | F5: Employees per Acre | G5: Service Population per Acre
A7: ='T1 Placetype Assumptions'!A11 -> Rural Residential | B7: ='T1 Placetype Assumptions'!H11 -> 0.5 | C7: ='T1 Placetype Assumptions'!E11 -> 0 | D7: ='T1 Placetype Assumptions'!F11 -> 0 | E7: =B7*(1-'INPUT - DATA'!J31)*'INPUT - DATA'!K31*'INPUT - DATA'!L31 -> 1.386 | F7: =C7/'MODEL ASSUMPTIONS'!D$38+D7/'MODEL ASSUMPTIONS'!D$40 -> 0 | G7: =E7+F7 -> 1.386
A8: ='T1 Placetype Assumptions'!A12 -> Very Low Density Residential | B8: ='T1 Placetype Assumptions'!H12 -> 1.6 | C8: ='T1 Placetype Assumptions'!E12 -> 0 | D8: ='T1 Placetype Assumptions'!F12 -> 0 | E8: =B8*(1-'INPUT - DATA'!J32)*'INPUT - DATA'!K32*'INPUT - DATA'!L32 -> 4.4352 | F8: =C8/'MODEL ASSUMPTIONS'!D$38+D8/'MODEL ASSUMPTIONS'!D$40 -> 0 | G8: =E8+F8 -> 4.4352
A9: ='T1 Placetype Assumptions'!A13 -> Low Density Residential | B9: ='T1 Placetype Assumptions'!H13 -> 5 | C9: ='T1 Placetype Assumptions'!E13 -> 0 | D9: ='T1 Placetype Assumptions'!F13 -> 0 | E9: =B9*(1-'INPUT - DATA'!J33)*'INPUT - DATA'!K33*'INPUT - DATA'!L33 -> 13.86 | F9: =C9/'MODEL ASSUMPTIONS'!D$38+D9/'MODEL ASSUMPTIONS'!D$40 -> 0 | G9: 13.86
A10: ='T1 Placetype Assumptions'!A14 -> Low-Medium Density Residential | B10: ='T1 Placetype Assumptions'!H14 -> 7.5 | C10: ='T1 Placetype Assumptions'!E14 -> 0 | D10: ='T1 Placetype Assumptions'!F14 -> 0 | E10: =B10*(1-'INPUT - DATA'!J34)*'INPUT - DATA'!K34*'INPUT - DATA'!L34 -> 18.5625 | F10: =C10/'MODEL ASSUMPTIONS'!D$38+D10/'MODEL ASSUMPTIONS'!D$40 -> 0 | G10: 18.5625
A11: ='T1 Placetype Assumptions'!A15 -> Medium Density Residential | B11: ='T1 Placetype Assumptions'!H15 -> 11 | C11: ='T1 Placetype Assumptions'!E15 -> 0 | D11: ='T1 Placetype Assumptions'!F15 -> 0 | E11: =B11*(1-'INPUT - DATA'!J35)*'INPUT - DATA'!K35*'INPUT - DATA'!L35 -> 24.5025 | F11: =C11/'MODEL ASSUMPTIONS'!D$38+D11/'MODEL ASSUMPTIONS'!D$40 -> 0 | G11: 24.5025
A12: ='T1 Placetype Assumptions'!A16 -> High Density Residential | B12: ='T1 Placetype Assumptions'!H16 -> 22.5 | C12: ='T1 Placetype Assumptions'!E16 -> 0 | D12: ='T1 Placetype Assumptions'!F16 -> 0 | E12: =B12*(1-'INPUT - DATA'!J36)*'INPUT - DATA'!K36*'INPUT - DATA'!L36 -> 34.52625 | F12: =C12/'MODEL ASSUMPTIONS'!D$38+D12/'MODEL ASSUMPTIONS'!D$40 -> 0 | G12: 34.52625
A13: ='T1 Placetype Assumptions'!A17 -> High Density Residential/Office | B13: ='T1 Placetype Assumptions'!H17 -> 22.5 | C13: ='T1 Placetype Assumptions'!E17 -> 7623 | D13: ='T1 Placetype Assumptions'!F17 -> 0 | E13: =B13*(1-'INPUT - DATA'!J37)*'INPUT - DATA'!K37*'INPUT - DATA'!L37 -> 17.263125 | F13: =C13/'MODEL ASSUMPTIONS'!D$38+D13/'MODEL ASSUMPTIONS'!D$40 -> 25.41 | G13: 42.673125 | J13: D38 | K13: High Density Residential/Office
A14: ='T1 Placetype Assumptions'!A18 -> Office | B14: ='T1 Placetype Assumptions'!H18 -> 0 | C14: ='T1 Placetype Assumptions'!E18 -> 15246 | D14: ='T1 Placetype Assumptions'!F18 -> 0 | E14: =B14*(1-'INPUT - DATA'!J38)*'INPUT - DATA'!K38*'INPUT - DATA'!L38 -> 0 | F14: =C14/'MODEL ASSUMPTIONS'!D$38+D14/'MODEL ASSUMPTIONS'!D$40 -> 50.82 | G14: 50.82 | J14: D38 | K14: Office
A15: ='T1 Placetype Assumptions'!A19 -> Business Park | B15: ='T1 Placetype Assumptions'!H19 -> 0 | C15: ='T1 Placetype Assumptions'!E19 -> 15246 | D15: ='T1 Placetype Assumptions'!F19 -> 0 | E15: =B15*(1-'INPUT - DATA'!J39)*'INPUT - DATA'!K39*'INPUT - DATA'!L39 -> 0 | F15: =C15/'MODEL ASSUMPTIONS'!D$39+D15/'MODEL ASSUMPTIONS'!D$40 -> 50.82 | G15: 50.82 | J15: d39 | K15: Business Park
A16: ='T1 Placetype Assumptions'!A20 -> Community Commercial/Office | B16: ='T1 Placetype Assumptions'!H20 -> 0 | C16: ='T1 Placetype Assumptions'!E20 -> 7623 | D16: ='T1 Placetype Assumptions'!F20 -> 7623 | E16: =B16*(1-'INPUT - DATA'!J40)*'INPUT - DATA'!K40*'INPUT - DATA'!L40 -> 0 | F16: =C16/'MODEL ASSUMPTIONS'!D$38+D16/'MODEL ASSUMPTIONS'!D$40 -> 40.656 | G16: 40.656 | J16: d40 | K16: Community Commercial/Office
A17: ='T1 Placetype Assumptions'!A21 -> Community Commercial | B17: ='T1 Placetype Assumptions'!H21 -> 0 | C17: ='T1 Placetype Assumptions'!E21 -> 0 | D17: ='T1 Placetype Assumptions'!F21 -> 10890 | E17: =B17*(1-'INPUT - DATA'!J41)*'INPUT - DATA'!K41*'INPUT - DATA'!L41 -> 0 | F17: =C17/'MODEL ASSUMPTIONS'!D$38+D17/'MODEL ASSUMPTIONS'!D$40 -> 21.78 | G17: 21.78 | J17: d40 | K17: Community Commercial
A18: ='T1 Placetype Assumptions'!A22 -> Community Commercial/High Density Residential | B18: ='T1 Placetype Assumptions'!H22 -> 22.5 | C18: ='T1 Placetype Assumptions'!E22 -> 8755.56 | D18: ='T1 Placetype Assumptions'!F22 -> 8755.56 | E18: =B18*(1-'INPUT - DATA'!J42)*'INPUT - DATA'!K42*'INPUT - DATA'!L42 -> 11.3936625 | F18: =C18/'MODEL ASSUMPTIONS'!D$38+D18/'MODEL ASSUMPTIONS'!D$40 -> 46.69632 | G18: 58.0899825 | J18: d40 | K18: Community Commercial/High Density Residential
A19: ='T1 Placetype Assumptions'!A23 -> Downtown | B19: ='T1 Placetype Assumptions'!H23 -> 22.5 | C19: ='T1 Placetype Assumptions'!E23 -> 49005 | D19: ='T1 Placetype Assumptions'!F23 -> 49005 | E19: =B19*(1-'INPUT - DATA'!J43)*'INPUT - DATA'!K43*'INPUT - DATA'!L43 -> 8.6315625 | F19: =C19/'MODEL ASSUMPTIONS'!D$38+D19/'MODEL ASSUMPTIONS'!D$40 -> 261.36 | G19: 269.9915625 | J19: d40 | K19: Downtown
A20: ='T1 Placetype Assumptions'!A24 -> Heavy Commercial | B20: ='T1 Placetype Assumptions'!H24 -> 0 | C20: ='T1 Placetype Assumptions'!E24 -> 0 | D20: ='T1 Placetype Assumptions'!F24 -> 15246 | E20: =B20*(1-'INPUT - DATA'!J44)*'INPUT - DATA'!K44*'INPUT - DATA'!L44 -> 0 | F20: =C20/'MODEL ASSUMPTIONS'!D$39+D20/'MODEL ASSUMPTIONS'!D$41 -> 30.492 | G20: 30.492 | J20: d41 | K20: Heavy Commercial
A21: ='T1 Placetype Assumptions'!A25 -> Highway Commercial | B21: ='T1 Placetype Assumptions'!H25 -> 0 | C21: ='T1 Placetype Assumptions'!E25 -> 0 | D21: ='T1 Placetype Assumptions'!F25 -> 15246 | E21: =B21*(1-'INPUT - DATA'!J45)*'INPUT - DATA'!K45*'INPUT - DATA'!L45 -> 0 | F21: =C21/'MODEL ASSUMPTIONS'!D$39+D21/'MODEL ASSUMPTIONS'!D$42 -> 30.492 | G21: 30.492 | J21: d42 | K21: Highway Commercial
A22: ='T1 Placetype Assumptions'!A26 -> Neighborhood Center | B22: ='T1 Placetype Assumptions'!H26 -> 22.5 | C22: ='T1 Placetype Assumptions'!E26 -> 5717.25 | D22: ='T1 Placetype Assumptions'!F26 -> 5717.25 | E22: =B22*(1-'INPUT - DATA'!J46)*'INPUT - DATA'!K46*'INPUT - DATA'!L46 -> 8.6315625 | F22: =C22/'MODEL ASSUMPTIONS'!D$38+D22/'MODEL ASSUMPTIONS'!D$40 -> 30.492 | G22: 39.1235625 | J22: d40 | K22: Neighborhood Center
A23: ='T1 Placetype Assumptions'!A27 -> Industrial | B23: ='T1 Placetype Assumptions'!H27 -> 0 | C23: ='T1 Placetype Assumptions'!E27 -> 522.72 | D23: ='T1 Placetype Assumptions'!F27 -> 522.72 | E23: =B23*(1-'INPUT - DATA'!J47)*'INPUT - DATA'!K47*'INPUT - DATA'!L47 -> 0 | F23: =C23/'MODEL ASSUMPTIONS'!D$38+D23/'MODEL ASSUMPTIONS'!D$43 -> 2.26512 | G23: 2.26512 | K23: Industrial
A26: Source: AECOM 2013
A31: res = units/acre *(1-vacancy rate)*People per Household
A33: emp = Commercial Square Feet per Acre* Commercial Square Feet Per Employee + Retail Square Feet per Acre *

Sheet All City EXP REV Data
B1: City | C1: Statement | D1: Category | E1: Revenue Account | F1: Functional Revenues | G1: General Revenues | H1: Total Revenues | I1: Operating Expenditures | J1: Provider Code | K1: Capital Outlay | L1: Total Expenditures | M1: Functional Revenues | N1: Net Expenditures
B3: Ceres | C3: Revenues | D3: =IF('T11 Revenues Per Acre'!$B$30=0,"Taxes","Omitted") -> Omitted | E3: Secured and Unsecured Property Tax | F3: 0 | G3: 1816135 | H3: 1816135
B4: Ceres | C4: Revenues | D4: =IF('T11 Revenues Per Acre'!$B$30=0,"Taxes","Omitted") -> Omitted | E4: Voter Approved Indebtedness Property Tax | F4: 0 | G4: 0 | H4: 0
B5: Ceres | C5: Revenues | D5: =IF('T11 Revenues Per Acre'!$B$30=0,"Taxes","Omitted") -> Omitted | E5: Other Property Taxes | F5: 0 | G5: 2744956 | H5: 2744956
B6: Ceres | C6: Revenues | D6: =IF('T11 Revenues Per Acre'!$B$30=0,"Taxes","Omitted") -> Omitted | E6: Sales and Use Taxes | F6: 0 | G6: 2853255 | H6: 2853255
B7: Ceres | C7: Revenues | D7: Taxes | E7: Transportation Tax | F7: 2342445 | G7: 0 | H7: 2342445
B8: Ceres | C8: Revenues | D8: Taxes | E8: Transient Lodging Taxes | F8: 0 | G8: 59373 | H8: 59373
B9: Ceres | C9: Revenues | D9: Taxes | E9: Franchises | F9: 0 | G9: 703614 | H9: 703614
B10: Ceres | C10: Revenues | D10: Taxes | E10: Business License Taxes | F10: 0 | G10: 925399 | H10: 925399
B11: Ceres | C11: Revenues | D11: =IF('T11 Revenues Per Acre'!$B$30=0,"Taxes","Omitted") -> Omitted | E11: Real Property Transfer Taxes | F11: 0 | G11: 60944 | H11: 60944
B12: Ceres | C12: Revenues | D12: Taxes | E12: Utility Users Tax | F12: 0 | G12: 1364544 | H12: 1364544
B13: Ceres | C13: Revenues | D13: Taxes | E13: Other Non-Property Taxes | F13: 122226 | G13: 1150034 | H13: 1272260
B14: Ceres | C14: Revenues | D14: Special Benefits Assessments | E14: Fire and Paramedics | F14: 0 | G14: 0 | H14: 0
B15: Ceres | C15: Revenues | D15: Special Benefits Assessments | E15: Police | F15: 0 | G15: 0 | H15: 0
B16: Ceres | C16: Revenues | D16: Special Benefits Assessments | E16: Lighting | F16: 363222 | G16: 0 | H16: 363222
B17: Ceres | C17: Revenues | D17: Special Benefits Assessments | E17: Other | F17: 2520957 | G17: 0 | H17: 2520957
B18: Ceres | C18: Revenues | D18: Licenses and Permits | E18: Construction Permits | F18: 141262 | G18: 0 | H18: 141262
B19: Ceres | C19: Revenues | D19: Licenses and Permits | E19: Other Licenses and Permits | F19: 15305 | G19: 0 | H19: 15305
B20: Ceres | C20: Revenues | D20: Fines and Forfeitures | E20: Vehicle Code Fines | F20: 185036 | G20: 0 | H20: 185036
B21: Ceres | C21: Revenues | D21: Fines and Forfeitures | E21: Other Fines, Forfeitures, and Penalties | F21: 0 | G21: 337000 | H21: 337000
B22: Ceres | C22: Revenues | D22: Revenue From Use of Money and Property | E22: Investment Earnings | F22: 68182 | G22: 19534 | H22: 87716
B23: Ceres | C23: Revenues | D23: Revenue From Use of Money and Property | E23: Rents, Concessions, Royalties and Other | F23: 148260 | G23: 20192 | H23: 168452
B24: Ceres | C24: Revenues | D24: Intergovernmental | E24: State Motor Vehicle In-Lieu Tax | F24: 0 | G24: 199666 | H24: 199666
B25: Ceres | C25: Revenues | D25: Intergovernmental | E25: State Homeowners Property Tax Relief | F25: 0 | G25: 44210 | H25: 44210
B26: Ceres | C26: Revenues | D26: Intergovernmental | E26: State Gasoline Tax | F26: 1156555 | G26: 0 | H26: 1156555
B27: Ceres | C27: Revenues | D27: Intergovernmental | E27: Other State Grants | F27: 720423 | G27: 0 | H27: 720423
B28: Ceres | C28: Revenues | D28: Intergovernmental | E28: County Grants | F28: 0 | G28: 16195 | H28: 16195
B29: Ceres | C29: Revenues | D29: Intergovernmental | E29: Federal Grants | F29: 1821645 | G29: 0 | H29: 1821645
B30: Ceres | C30: Revenues | D30: Intergovernmental | E30: Other Taxes In-Lieu | F30: 0 | G30: 0 | H30: 0
B31: Ceres | C31: Revenues | D31: Current Service Charges | E31: Zoning, Subdivision, and Plan Checking Fees | F31: 50250 | G31: 0 | H31: 50250
B32: Ceres | C32: Revenues | D32: Current Service Charges | E32: Special Police Department Services | F32: 20909 | G32: 0 | H32: 20909
B33: Ceres | C33: Revenues | D33: Current Service Charges | E33: Special Fire Department Services and First Aid and Ambulance Charges | F33: 0 | G33: 0 | H33: 0
B34: Ceres | C34: Revenues | D34: Current Service Charges | E34: Engineering Fees, Inspections, and Other | F34: 12295 | G34: 0 | H34: 12295
B35: Ceres | C35: Revenues | D35: Omitted | E35: Sewer Service Charges and Connection Fees | F35: 7035611 | G35: 0 | H35: 7035611
B36: Ceres | C36: Revenues | D36: Omitted | E36: Solid Waste Revenues | F36: 0 | G36: 0 | H36: 0
B37: Ceres | C37: Revenues | D37: Current Service Charges | E37: Parking Facilities | F37: 0 | G37: 0 | H37: 0
B38: Ceres | C38: Revenues | D38: Current Service Charges | E38: Parks and Recreation Fees | F38: 146554 | G38: 0 | H38: 146554
B39: Ceres | C39: Revenues | D39: Current Service Charges | E39: Golf Course Fees | F39: 0 | G39: 0 | H39: 0
B40: Ceres | C40: Revenues | D40: Omitted | E40: Water Service Charges and Connection Fees | F40: 4760215 | G40: 0 | H40: 4760215
B41: Ceres | C41: Revenues | D41: Omitted | E41: Electric Revenues | F41: 0 | G41: 0 | H41: 0
B42: Ceres | C42: Revenues | D42: Omitted | E42: Gas Revenues | F42: 0 | G42: 0 | H42: 0
B43: Ceres | C43: Revenues | D43: Current Service Charges | E43: Airport Revenues | F43: 0 | G43: 0 | H43: 0
B44: Ceres | C44: Revenues | D44: Current Service Charges | E44: Port and Harbor Revenues | F44: 0 | G44: 0 | H44: 0
B45: Ceres | C45: Revenues | D45: Current Service Charges | E45: Hospital Revenues | F45: 0 | G45: 0 | H45: 0
B46: Ceres | C46: Revenues | D46: Current Service Charges | E46: Transit Revenues | F46: 131793 | G46: 0 | H46: 131793
B47: Ceres | C47: Revenues | D47: Current Service Charges | E47: Quasi-External Transactions | F47: 0 | G47: 0 | H47: 0
B48: Ceres | C48: Revenues | D48: Current Service Charges | E48: Other Current Service Charges | F48: 26639 | G48: 0 | H48: 26639
B49: Ceres | C49: Revenues | D49: Other Revenues | E49: Sale of Real and Personal Property | F49: 0 | G49: 0 | H49: 0
B50: Ceres | C50: Revenues | D50: Other Revenues | E50: Contributions from Non-Government Sources | F50: 0 | G50: 0 | H50: 0
B51: Ceres | C51: Revenues | D51: Other Revenues | E51: Other Sources of Revenues | F51: 66027 | G51: 0 | H51: 66027
B52: Ceres | C52: Revenues | D52: Other Financing Sources | E52: Sale of Bonds | F52: 0 | G52: 0 | H52: 0
B53: Ceres | C53: Revenues | D53: Other Financing Sources | E53: Notes and Other | F53: 0 | G53: 0 | H53: 0
B54: Ceres | C54: Revenues | D54: Total Revenues | E54: Total Functional and General Revenues | F54: 21855811 | G54: 12315051 | H54: 34170862
B55: Ceres | C55: Expenditures | D55: General Government | E55: Legislative | I55: 160271 | J55: — | K55: 0 | L55: 160271 | M55: 0 | N55: 160271
B56: Ceres | C56: Expenditures | D56: General Government | E56: Management and Support | I56: 783054 | J56: — | K56: 6357 | L56: 789411 | M56: 2620242 | N56: -1830831
B57: Ceres | C57: Expenditures | D57: Public Safety | E57: Police | I57: 10054258 | J57: AB | K57: 123085 | L57: 10177343 | M57: 799792 | N57: 9377551
B58: Ceres | C58: Expenditures | D58: Public Safety | E58: Fire | I58: 4701970 | J58: AB | K58: 11587 | L58: 4713557 | M58: 3325 | N58: 4710232
B59: Ceres | C59: Expenditures | D59: Public Safety | E59: Emergency Medical Services | I59: 0 | J59: E | K59: 0 | L59: 0 | M59: 0 | N59: 0
B60: Ceres | C60: Expenditures | D60: Public Safety | E60: Animal Regulation | I60: 228624 | J60: — | K60: 0 | L60: 228624 | M60: 0 | N60: 228624
B61: Ceres | C61: Expenditures | D61: Public Safety | E61: Weed Abatement | I61: 0 | J61: — | K61: 0 | L61: 0 | M61: 0 | N61: 0
B62: Ceres | C62: Expenditures | D62: Public Safety | E62: Street Lighting | I62: 377247 | J62: E | K62: 0 | L62: 377247 | M62: 363222 | N62: 14025
B63: Ceres | C63: Expenditures | D63: Public Safety | E63: Disaster Preparedness | I63: 0 | J63: — | K63: 0 | L63: 0 | M63: 0 | N63: 0
B64: Ceres | C64: Expenditures | D64: Public Safety | E64: Other | I64: 0 | J64: — | K64: 0 | L64: 0 | M64: 0 | N64: 0
B65: Ceres | C65: Expenditures | D65: Transportation | E65: Streets, Highways, and Storm Drains | I65: 3041076 | J65: — | K65: 850753 | L65: 3891829 | M65: 2404390 | N65: 1487439
B66: Ceres | C66: Expenditures | D66: Transportation | E66: Street Trees and Landscaping | I66: 1768 | J66: — | K66: 0 | L66: 1768 | M66: 315 | N66: 1453
B67: Ceres | C67: Expenditures | D67: Transportation | E67: Parking Facilities | I67: 0 | J67: — | K67: 0 | L67: 0 | M67: 0 | N67: 0
B68: Ceres | C68: Expenditures | D68: Transportation | E68: Public Transit | I68: 1015956 | J68: E | K68: 0 | L68: 1015956 | M68: 1203512 | N68: -187556
B69: Ceres | C69: Expenditures | D69: Transportation | E69: Airports | I69: 0 | J69: — | K69: 0 | L69: 0 | M69: 0 | N69: 0
B70: Ceres | C70: Expenditures | D70: Transportation | E70: Ports and Harbors | I70: 0 | J70: — | K70: 0 | L70: 0 | M70: 0 | N70: 0
B71: Ceres | C71: Expenditures | D71: Transportation | E71: Other | I71: 0 | J71: — | K71: 0 | L71: 0 | M71: 0 | N71: 0
B72: Ceres | C72: Expenditures | D72: Community Development | E72: Planning | I72: 228291 | J72: A | K72: 7112 | L72: 235403 | M72: 203345 | N72: 32058
B73: Ceres | C73: Expenditures | D73: Community Development | E73: Construction and Engineering Regulation Enforcement | I73: 397105 | J73: — | K73: 0 | L73: 397105 | M73: 1431505 | N73: -1034400
B74: Ceres | C74: Expenditures | D74: Community Development | E74: Redevelopment | I74: 158276 | J74: — | K74: 0 | L74: 158276 | M74: 377439 | N74: -219163
B75: Ceres | C75: Expenditures | D75: Community Development | E75: Housing | I75: 0 | J75: — | K75: 0 | L75: 0 | M75: 0 | N75: 0
B76: Ceres | C76: Expenditures | D76: Community Development | E76: Employment | I76: 0 | J76: — | K76: 0 | L76: 0 | M76: 0 | N76: 0
B77: Ceres | C77: Expenditures | D77: Community Development | E77: Community Promotion | I77: 0 | J77: — | K77: 0 | L77: 0 | M77: 0 | N77: 0
B78: Ceres | C78: Expenditures | D78: Community Development | E78: Other | I78: 0 | J78: — | K78: 0 | L78: 0 | M78: 0 | N78: 0
B79: Ceres | C79: Expenditures | D79: Health | E79: Physical and Mental Health | I79: 0 | J79: — | K79: 0 | L79: 0 | M79: 0 | N79: 0
B80: Ceres | C80: Expenditures | D80: Health | E80: Hospitals and Sanitariums | I80: 0 | J80: — | K80: 0 | L80: 0 | M80: 0 | N80: 0
B81: Ceres | C81: Expenditures | D81: Health | E81: Solid Waste | I81: 0 | J81: E | K81: 0 | L81: 0 | M81: 0 | N81: 0
B82: Ceres | C82: Expenditures | D82: Health | E82: Sewers | I82: 6944897 | J82: A | K82: 25571 | L82: 6970468 | M82: 7051846 | N82: -81378
B83: Ceres | C83: Expenditures | D83: Health | E83: Cemeteries | I83: 0 | J83: — | K83: 0 | L83: 0 | M83: 0 | N83: 0
B84: Ceres | C84: Expenditures | D84: Health | E84: Other | I84: 30795 | J84: — | K84: 0 | L84: 30795 | M84: 211041 | N84: -180246
B85: Ceres | C85: Expenditures | D85: Culture and Leisure | E85: Parks and Recreation | I85: 1637237 | J85: AB | K85: 31308 | L85: 1668545 | M85: 409979 | N85: 1258566
B86: Ceres | C86: Expenditures | D86: Culture and Leisure | E86: Marinas and Wharfs | I86: 0 | J86: — | K86: 0 | L86: 0 | M86: 0 | N86: 0
B87: Ceres | C87: Expenditures | D87: Culture and Leisure | E87: Libraries | I87: 0 | J87: D | K87: 0 | L87: 0 | M87: 0 | N87: 0
B88: Ceres | C88: Expenditures | D88: Culture and Leisure | E88: Museums | I88: 3642 | J88: — | K88: 0 | L88: 3642 | M88: 0 | N88: 3642
B89: Ceres | C89: Expenditures | D89: Culture and Leisure | E89: Golf Courses | I89: 0 | J89: — | K89: 0 | L89: 0 | M89: 0 | N89: 0
B90: Ceres | C90: Expenditures | D90: Culture and Leisure | E90: Sports Arenas and Stadiums | I90: 0 | J90: — | K90: 0 | L90: 0 | M90: 0 | N90: 0
B91: Ceres | C91: Expenditures | D91: Culture and Leisure | E91: Community Center and Auditoriums | I91: 0 | J91: — | K91: 0 | L91: 0 | M91: 0 | N91: 0
B92: Ceres | C92: Expenditures | D92: Culture and Leisure | E92: Other | I92: 0 | J92: — | K92: 0 | L92: 0 | M92: 0 | N92: 0
B93: Ceres | C93: Expenditures | D93: Public Utilities | E93: Water | I93: 5899410 | J93: A | K93: 349592 | L93: 6249002 | M93: 4775858 | N93: 1473144
B94: Ceres | C94: Expenditures | D94: Public Utilities | E94: Gas | I94: 0 | J94: — | K94: 0 | L94: 0 | M94: 0 | N94: 0
B95: Ceres | C95: Expenditures | D95: Public Utilities | E95: Electric | I95: 0 | J95: — | K95: 0 | L95: 0 | M95: 0 | N95: 0
B96: Ceres | C96: Expenditures | D96: Public Utilities | E96: Other | I96: 0 | J96: — | K96: 0 | L96: 0 | M96: 0 | N96: 0
B97: Ceres | C97: Expenditures | D97: Other | E97: Other | I97: 0 | J97: — | K97: 0 | L97: 0 | M97: 0 | N97: 0
B98: Ceres | C98: Expenditures | D98: Total | E98: Total Expenditures | I98: 35663877 | J98: — | K98: 1405365 | L98: 37069242 | M98: 21855811 | N98: 15213431
B99: Hughson | C99: Revenues | D99: =IF('T11 Revenues Per Acre'!$B$30=0,"Taxes","Omitted") -> Omitted | E99: Secured and Unsecured Property Tax | F99: 0 | G99: 167923 | H99: 167923
B100: Hughson | C100: Revenues | D100: =IF('T11 Revenues Per Acre'!$B$30=0,"Taxes","Omitted") -> Omitted | E100: Voter Approved Indebtedness Property Tax | F100: 0 | G100: 0 | H100: 0
B101: Hughson | C101: Revenues | D101: =IF('T11 Revenues Per Acre'!$B$30=0,"Taxes","Omitted") -> Omitted | E101: Other Property Taxes | F101: 0 | G101: 418166 | H101: 418166
B102: Hughson | C102: Revenues | D102: =IF('T11 Revenues Per Acre'!$B$30=0,"Taxes","Omitted") -> Omitted | E102: Sales and Use Taxes | F102: 0 | G102: 297744 | H102: 297744
B103: Hughson | C103: Revenues | D103: Taxes | E103: Transportation Tax | F103: 75197 | G103: 0 | H103: 75197
B104: Hughson | C104: Revenues | D104: Taxes | E104: Transient Lodging Taxes | F104: 0 | G104: 0 | H104: 0
B105: Hughson | C105: Revenues | D105: Taxes | E105: Franchises | F105: 0 | G105: 86090 | H105: 86090
B106: Hughson | C106: Revenues | D106: Taxes | E106: Business License Taxes | F106: 0 | G106: 23932 | H106: 23932
B107: Hughson | C107: Revenues | D107: =IF('T11 Revenues Per Acre'!$B$30=0,"Taxes","Omitted") -> Omitted | E107: Real Property Transfer Taxes | F107: 0 | G107: 7797 | H107: 7797
B108: Hughson | C108: Revenues | D108: Taxes | E108: Utility Users Tax | F108: 0 | G108: 0 | H108: 0
B109: Hughson | C109: Revenues | D109: Taxes | E109: Other Non-Property Taxes | F109: 260238 | G109: 96211 | H109: 356449
B110: Hughson | C110: Revenues | D110: Special Benefits Assessments | E110: Fire and Paramedics | F110: 0 | G110: 0 | H110: 0
B111: Hughson | C111: Revenues | D111: Special Benefits Assessments | E111: Police | F111: 0 | G111: 0 | H111: 0
B112: Hughson | C112: Revenues | D112: Special Benefits Assessments | E112: Lighting | F112: 0 | G112: 0 | H112: 0
B113: Hughson | C113: Revenues | D113: Special Benefits Assessments | E113: Other | F113: 147418 | G113: 0 | H113: 147418
B114: Hughson | C114: Revenues | D114: Licenses and Permits | E114: Construction Permits | F114: 60080 | G114: 0 | H114: 60080
B115: Hughson | C115: Revenues | D115: Licenses and Permits | E115: Other Licenses and Permits | F115: 16487 | G115: 0 | H115: 16487
B116: Hughson | C116: Revenues | D116: Fines and Forfeitures | E116: Vehicle Code Fines | F116: 31379 | G116: 0 | H116: 31379
B117: Hughson | C117: Revenues | D117: Fines and Forfeitures | E117: Other Fines, Forfeitures, and Penalties | F117: 0 | G117: 56107 | H117: 56107
B118: Hughson | C118: Revenues | D118: Revenue From Use of Money and Property | E118: Investment Earnings | F118: 69596 | G118: 3197 | H118: 72793
B119: Hughson | C119: Revenues | D119: Revenue From Use of Money and Property | E119: Rents, Concessions, Royalties and Other | F119: 0 | G119: 7818 | H119: 7818
B120: Hughson | C120: Revenues | D120: Intergovernmental | E120: State Motor Vehicle In-Lieu Tax | F120: 0 | G120: 28964 | H120: 28964
B121: Hughson | C121: Revenues | D121: Intergovernmental | E121: State Homeowners Property Tax Relief | F121: 0 | G121: 7869 | H121: 7869
B122: Hughson | C122: Revenues | D122: Intergovernmental | E122: State Gasoline Tax | F122: 102872 | G122: 0 | H122: 102872
B123: Hughson | C123: Revenues | D123: Intergovernmental | E123: Other State Grants | F123: 9841160 | G123: 0 | H123: 9841160
B124: Hughson | C124: Revenues | D124: Intergovernmental | E124: County Grants | F124: 0 | G124: 0 | H124: 0
B125: Hughson | C125: Revenues | D125: Intergovernmental | E125: Federal Grants | F125: 1568768 | G125: 0 | H125: 1568768
B126: Hughson | C126: Revenues | D126: Intergovernmental | E126: Other Taxes In-Lieu | F126: 0 | G126: 0 | H126: 0
B127: Hughson | C127: Revenues | D127: Current Service Charges | E127: Zoning, Subdivision, and Plan Checking Fees | F127: 83431 | G127: 0 | H127: 83431
B128: Hughson | C128: Revenues | D128: Current Service Charges | E128: Special Police Department Services | F128: 13872 | G128: 0 | H128: 13872
B129: Hughson | C129: Revenues | D129: Current Service Charges | E129: Special Fire Department Services and First Aid and Ambulance Charges | F129: 0 | G129: 0 | H129: 0
B130: Hughson | C130: Revenues | D130: Current Service Charges | E130: Engineering Fees, Inspections, and Other | F130: 0 | G130: 0 | H130: 0
B131: Hughson | C131: Revenues | D131: Omitted | E131: Sewer Service Charges and Connection Fees | F131: 2095247 | G131: 0 | H131: 2095247
B132: Hughson | C132: Revenues | D132: Omitted | E132: Solid Waste Revenues | F132: 421871 | G132: 0 | H132: 421871
B133: Hughson | C133: Revenues | D133: Current Service Charges | E133: Parking Facilities | F133: 0 | G133: 0 | H133: 0
B134: Hughson | C134: Revenues | D134: Current Service Charges | E134: Parks and Recreation Fees | F134: 0 | G134: 0 | H134: 0
B135: Hughson | C135: Revenues | D135: Current Service Charges | E135: Golf Course Fees | F135: 0 | G135: 0 | H135: 0
B136: Hughson | C136: Revenues | D136: Omitted | E136: Water Service Charges and Connection Fees | F136: 1106400 | G136: 0 | H136: 1106400
B137: Hughson | C137: Revenues | D137: Omitted | E137: Electric Revenues | F137: 0 | G137: 0 | H137: 0
B138: Hughson | C138: Revenues | D138: Omitted | E138: Gas Revenues | F138: 0 | G138: 0 | H138: 0
B139: Hughson | C139: Revenues | D139: Current Service Charges | E139: Airport Revenues | F139: 0 | G139: 0 | H139: 0
B140: Hughson | C140: Revenues | D140: Current Service Charges | E140: Port and Harbor Revenues | F140: 0 | G140: 0 | H140: 0
B141: Hughson | C141: Revenues | D141: Current Service Charges | E141: Hospital Revenues | F141: 0 | G141: 0 | H141: 0
B142: Hughson | C142: Revenues | D142: Current Service Charges | E142: Transit Revenues | F142: 0 | G142: 0 | H142: 0
B143: Hughson | C143: Revenues | D143: Current Service Charges | E143: Quasi-External Transactions | F143: 455187 | G143: 0 | H143: 455187
B144: Hughson | C144: Revenues | D144: Current Service Charges | E144: Other Current Service Charges | F144: 38516 | G144: 0 | H144: 38516
B145: Hughson | C145: Revenues | D145: Other Revenues | E145: Sale of Real and Personal Property | F145: 0 | G145: 58 | H145: 58
B146: Hughson | C146: Revenues | D146: Other Revenues | E146: Contributions from Non-Government Sources | F146: 0 | G146: 0 | H146: 0
B147: Hughson | C147: Revenues | D147: Other Revenues | E147: Other Sources of Revenues | F147: 0 | G147: 36616 | H147: 36616
B148: Hughson | C148: Revenues | D148: Other Financing Sources | E148: Sale of Bonds | F148: 0 | G148: 0 | H148: 0
B149: Hughson | C149: Revenues | D149: Other Financing Sources | E149: Notes and Other | F149: 9360817 | G149: 0 | H149: 9360817
B150: Hughson | C150: Revenues | D150: Total Revenues | E150: Total Functional and General Revenues | F150: 25748536 | G150: 1238492 | H150: 26987028
B151: Hughson | C151: Expenditures | D151: General Government | E151: Legislative | I151: 33036 | J151: — | K151: 0 | L151: 33036 | M151: 0 | N151: 33036
B152: Hughson | C152: Expenditures | D152: General Government | E152: Management and Support | I152: 613427 | J152: — | K152: 0 | L152: 613427 | M152: 485640 | N152: 127787
B153: Hughson | C153: Expenditures | D153: Public Safety | E153: Police | I153: 935402 | J153: I | K153: 1697 | L153: 937099 | M153: 151447 | N153: 785652
B154: Hughson | C154: Expenditures | D154: Public Safety | E154: Fire | I154: 0 | J154: H | K154: 0 | L154: 0 | M154: 0 | N154: 0
B155: Hughson | C155: Expenditures | D155: Public Safety | E155: Emergency Medical Services | I155: 0 | J155: E | K155: 0 | L155: 0 | M155: 0 | N155: 0
B156: Hughson | C156: Expenditures | D156: Public Safety | E156: Animal Regulation | I156: 19748 | J156: — | K156: 0 | L156: 19748 | M156: 0 | N156: 19748
B157: Hughson | C157: Expenditures | D157: Public Safety | E157: Weed Abatement | I157: 0 | J157: — | K157: 0 | L157: 0 | M157: 0 | N157: 0
B158: Hughson | C158: Expenditures | D158: Public Safety | E158: Street Lighting | I158: 155603 | J158: A | K158: 0 | L158: 155603 | M158: 147418 | N158: 8185
B159: Hughson | C159: Expenditures | D159: Public Safety | E159: Disaster Preparedness | I159: 0 | J159: — | K159: 0 | L159: 0 | M159: 0 | N159: 0
B160: Hughson | C160: Expenditures | D160: Public Safety | E160: Other | I160: 0 | J160: — | K160: 0 | L160: 0 | M160: 0 | N160: 0
B161: Hughson | C161: Expenditures | D161: Transportation | E161: Streets, Highways, and Storm Drains | I161: 453046 | J161: — | K161: 30000 | L161: 483046 | M161: 654201 | N161: -171155
B162: Hughson | C162: Expenditures | D162: Transportation | E162: Street Trees and Landscaping | I162: 0 | J162: — | K162: 0 | L162: 0 | M162: 0 | N162: 0
B163: Hughson | C163: Expenditures | D163: Transportation | E163: Parking Facilities | I163: 0 | J163: — | K163: 0 | L163: 0 | M163: 0 | N163: 0
B164: Hughson | C164: Expenditures | D164: Transportation | E164: Public Transit | I164: 0 | J164: K | K164: 0 | L164: 0 | M164: 0 | N164: 0
B165: Hughson | C165: Expenditures | D165: Transportation | E165: Airports | I165: 0 | J165: — | K165: 0 | L165: 0 | M165: 0 | N165: 0
B166: Hughson | C166: Expenditures | D166: Transportation | E166: Ports and Harbors | I166: 0 | J166: — | K166: 0 | L166: 0 | M166: 0 | N166: 0
B167: Hughson | C167: Expenditures | D167: Transportation | E167: Other | I167: 0 | J167: — | K167: 0 | L167: 0 | M167: 0 | N167: 0
B168: Hughson | C168: Expenditures | D168: Community Development | E168: Planning | I168: 223598 | J168: A | K168: 5875 | L168: 229473 | M168: 83431 | N168: 146042
B169: Hughson | C169: Expenditures | D169: Community Development | E169: Construction and Engineering Regulation Enforcement | I169: 8074 | J169: — | K169: 0 | L169: 8074 | M169: 60080 | N169: -52006
B170: Hughson | C170: Expenditures | D170: Community Development | E170: Redevelopment | I170: 0 | J170: — | K170: 0 | L170: 0 | M170: 0 | N170: 0
B171: Hughson | C171: Expenditures | D171: Community Development | E171: Housing | I171: 0 | J171: — | K171: 0 | L171: 0 | M171: 0 | N171: 0
B172: Hughson | C172: Expenditures | D172: Community Development | E172: Employment | I172: 0 | J172: — | K172: 0 | L172: 0 | M172: 0 | N172: 0
B173: Hughson | C173: Expenditures | D173: Community Development | E173: Community Promotion | I173: 0 | J173: — | K173: 0 | L173: 0 | M173: 0 | N173: 0
B174: Hughson | C174: Expenditures | D174: Community Development | E174: Other | I174: 1098 | J174: — | K174: 0 | L174: 1098 | M174: 89682 | N174: -88584
B175: Hughson | C175: Expenditures | D175: Health | E175: Physical and Mental Health | I175: 0 | J175: — | K175: 0 | L175: 0 | M175: 0 | N175: 0
B176: Hughson | C176: Expenditures | D176: Health | E176: Hospitals and Sanitariums | I176: 0 | J176: — | K176: 0 | L176: 0 | M176: 0 | N176: 0
B177: Hughson | C177: Expenditures | D177: Health | E177: Solid Waste | I177: 405121 | J177: E | K177: 0 | L177: 405121 | M177: 421871 | N177: -16750
B178: Hughson | C178: Expenditures | D178: Health | E178: Sewers | I178: 12358355 | J178: A | K178: 0 | L178: 12358355 | M178: 20877371 | N178: -8519016
B179: Hughson | C179: Expenditures | D179: Health | E179: Cemeteries | I179: 0 | J179: — | K179: 0 | L179: 0 | M179: 0 | N179: 0
B180: Hughson | C180: Expenditures | D180: Health | E180: Other | I180: 0 | J180: — | K180: 0 | L180: 0 | M180: 0 | N180: 0
B181: Hughson | C181: Expenditures | D181: Culture and Leisure | E181: Parks and Recreation | I181: 84174 | J181: A | K181: 231574 | L181: 315748 | M181: 295575 | N181: 20173
B182: Hughson | C182: Expenditures | D182: Culture and Leisure | E182: Marinas and Wharfs | I182: 0 | J182: — | K182: 0 | L182: 0 | M182: 0 | N182: 0
B183: Hughson | C183: Expenditures | D183: Culture and Leisure | E183: Libraries | I183: 0 | J183: I | K183: 0 | L183: 0 | M183: 0 | N183: 0
B184: Hughson | C184: Expenditures | D184: Culture and Leisure | E184: Museums | I184: 0 | J184: — | K184: 0 | L184: 0 | M184: 0 | N184: 0
B185: Hughson | C185: Expenditures | D185: Culture and Leisure | E185: Golf Courses | I185: 0 | J185: — | K185: 0 | L185: 0 | M185: 0 | N185: 0
B186: Hughson | C186: Expenditures | D186: Culture and Leisure | E186: Sports Arenas and Stadiums | I186: 0 | J186: — | K186: 0 | L186: 0 | M186: 0 | N186: 0
B187: Hughson | C187: Expenditures | D187: Culture and Leisure | E187: Community Center and Auditoriums | I187: 59730 | J187: — | K187: 0 | L187: 59730 | M187: 32302 | N187: 27428
B188: Hughson | C188: Expenditures | D188: Culture and Leisure | E188: Other | I188: 0 | J188: — | K188: 0 | L188: 0 | M188: 0 | N188: 0
B189: Hughson | C189: Expenditures | D189: Public Utilities | E189: Water | I189: 2714390 | J189: A | K189: 0 | L189: 2714390 | M189: 2449518 | N189: 264872
B190: Hughson | C190: Expenditures | D190: Public Utilities | E190: Gas | I190: 0 | J190: — | K190: 0 | L190: 0 | M190: 0 | N190: 0
B191: Hughson | C191: Expenditures | D191: Public Utilities | E191: Electric | I191: 0 | J191: — | K191: 0 | L191: 0 | M191: 0 | N191: 0
B192: Hughson | C192: Expenditures | D192: Public Utilities | E192: Other | I192: 0 | J192: — | K192: 0 | L192: 0 | M192: 0 | N192: 0
B193: Hughson | C193: Expenditures | D193: Other | E193: Other | I193: 0 | J193: — | K193: 0 | L193: 0 | M193: 0 | N193: 0
B194: Hughson | C194: Expenditures | D194: Total | E194: Total Expenditures | I194: 18064802 | K194: 269146 | L194: 18333948 | M194: 25748536 | N194: -7414588
B195: Modesto | C195: Revenues | D195: =IF('T11 Revenues Per Acre'!$B$30=0,"Taxes","Omitted") -> Omitted | E195: Secured and Unsecured Property Tax | G195: 11430978 | H195: 11430978
B196: Modesto | C196: Revenues | D196: =IF('T11 Revenues Per Acre'!$B$30=0,"Taxes","Omitted") -> Omitted | E196: Voter Approved Indebtedness Property Tax | F196: 0 | G196: 0 | H196: 0
B197: Modesto | C197: Revenues | D197: =IF('T11 Revenues Per Acre'!$B$30=0,"Taxes","Omitted") -> Omitted | E197: Other Property Taxes | F197: 0 | G197: 12713116 | H197: 12713116
B198: Modesto | C198: Revenues | D198: =IF('T11 Revenues Per Acre'!$B$30=0,"Taxes","Omitted") -> Omitted | E198: Sales and Use Taxes | F198: 0 | G198: 17711527 | H198: 17711527
B199: Modesto | C199: Revenues | D199: Taxes | E199: Transportation Tax | F199: 3227982 | G199: 0 | H199: 3227982
B200: Modesto | C200: Revenues | D200: Taxes | E200: Transient Lodging Taxes | F200: 0 | G200: 1639761 | H200: 1639761
B201: Modesto | C201: Revenues | D201: Taxes | E201: Franchises | F201: 0 | G201: 5721142 | H201: 5721142
... 665 more rows

Sheet T4 Fiscal Factors
A1: Table 4
A2: Budget Factors
A3: ='T1 Placetype Assumptions'!A3 -> StanCOG Fiscal Model
A5: Item | C5: Jurisdiction
C6: ='INPUT - DATA'!B4 -> Turlock
A8: Revenues | J8: Revenues | P8: Revenues | U8: Expenditures
B9: Taxes | C9: =K9 -> 8504962 | J9: Taxes | K9: =SUMIFS(Total_Revenue_City,Range_City_Name,$C$6,Range_Rev_Exp,$J$8,Range_Budget_Category,J9) -> 8504962 | L9: Prop, Sales and transfer Tax Omitted | P9: Transient Lodging Taxes | Q9: =SUMIFS(Total_Revenue_City,Range_City_Name,$C$6,Range_Rev_Exp,$J$8,Range_Budget_Rev_Account,P9) -> 699555 | U9: General Government | V9: =SUM(L24:L25) -> 3458270
B10: Licenses and Permits | C10: =K11 -> 229285 | J10: Special Benefits Assessments | K10: 2972273 | L10: omitted | P10: Franchises | Q10: =SUMIFS(Total_Revenue_City,Range_City_Name,$C$6,Range_Rev_Exp,$J$8,Range_Budget_Rev_Account,P10) -> 2046355 | U10: Public Safety | V10: =SUM(L26:L29) -> 23132804
B11: Lines, Forfeitures, and Penalties | C11: 581915 | J11: Licenses and Permits | K11: 229285 | P11: Business License Taxes | Q11: =SUMIFS(Total_Revenue_City,Range_City_Name,$C$6,Range_Rev_Exp,$J$8,Range_Budget_Rev_Account,P11) -> 1038069 | U11: Public Ways and Facilities/Transportation | V11: =SUM(L34:L37) -> 8126569
B12: Use of Money and Property | C12: 1348136 | J12: Fines and Forfeitures | K12: 581915 | P12: Other Fines, Forfeitures, and Penalties | Q12: =SUMIFS(Total_Revenue_City,Range_City_Name,$C$6,Range_Rev_Exp,$J$8,Range_Budget_Rev_Account,P12) -> 273263 | U12: Recreation, Parks, Culture | V12: =SUM(L54,L56,L57,L58,L60) -> 2829782
B13: Intergovernmental | C13: 13655358 | J13: Revenue From Use of Money and Property | K13: 1348136 | P13: State Motor Vehicle In-Lieu Tax | Q13: =SUMIFS(Total_Revenue_City,Range_City_Name,$C$6,Range_Rev_Exp,$J$8,Range_Budget_Rev_Account,P13) -> 323820 | U13: Community Development | V13: =SUM(L41:L42,L44:L47) -> 6464170
B14: Charges for Services | C14: 3143817 | J14: Intergovernmental | K14: 13655358 | P14: Current Service Charges | Q14: =SUMIFS(Total_Revenue_City,Range_City_Name,$C$6,Range_Rev_Exp,$J$8,Range_Budget_Category,P14) -> 3143817 | V14: =SUM(V9:V13) -> 44011595
B15: Other Revenues | C15: 1701809 | J15: Current Service Charges | K15: 3143817 | P15: Total | Q15: =SUM(Q9:Q14) -> 7524879
A16: TOTAL REVENUES | C16: =SUM(C9:C15) -> 29165282 | J16: Other Revenues | K16: 1701809
J17: Other Financing Sources | K17: 702136 | L17: omitted
J18: Total Revenues | K18: =SUMIFS(Total_Revenue_City,Range_City_Name,$C$6,Range_Rev_Exp,$J$8,Range_Budget_Category,J18) -> 72651298 | L18: omitted
J19: source: 2008 State Controllers Cities Report
A23: Expenditures | J23: Expenditures
B24: General Government | C24: Legislative | D24: =L24 -> 95504 | F24: to T12 Est Cty Expen'!$C$8 | J24: General Government | K24: Legislative | L24: =SUMIFS(Range_Budget_Oper_Exp,Range_City_Name,$C$6,Range_Rev_Exp,$J$23,Range_Budget_Category,J24,Range_Budget_Rev_Account,K24) -> 95504
B25: General Government | C25: Management and Support | D25: =L25 -> 3362766 | J25: General Government | K25: Management and Support | L25: 3362766
B26: Public Safety | C26: Police | D26: 15960704 | J26: Public Safety | K26: Police | L26: 15960704
B27: Public Safety | C27: Fire | D27: 6787773 | J27: Public Safety | K27: Fire | L27: 6787773
B28: Public Safety | C28: Emergency Medical Services | D28: 0 | J28: Public Safety | K28: Emergency Medical Services | L28: 0 | U28: General Government
B29: Public Safety | C29: Animal Regulation | D29: 384327 | J29: Public Safety | K29: Animal Regulation | L29: 384327 | U29: 41227
B30: Public Safety | C30: Weed Abatement | D30: 0 | J30: Public Safety | K30: Weed Abatement | L30: 0 | U30: 87399
B31: Public Safety | C31: Street Lighting | D31: 0 | J31: Public Safety | K31: Street Lighting | L31: 0 | U31: 163670
B32: Public Safety | C32: Disaster Preparedness | D32: 0 | J32: Public Safety | K32: Disaster Preparedness | L32: 0 | U32: 146923
B33: Public Safety | C33: Other | D33: 0 | J33: Public Safety | K33: Other | L33: 0 | U33: 1399
B34: Transportation | C34: Streets, Highways, and Storm Drains | D34: 2731240 | J34: Transportation | K34: Streets, Highways, and Storm Drains | L34: 2731240 | U34: 155982
B35: Transportation | C35: Street Trees and Landscaping | D35: 1379716 | J35: Transportation | K35: Street Trees and Landscaping | L35: 1379716 | U35: 51419
B36: Transportation | C36: Parking Facilities | D36: 0 | J36: Transportation | K36: Parking Facilities | L36: 0 | U36: =SUM(U29:U35) -> 648019
B37: Transportation | C37: Public Transit | D37: 4015613 | J37: Transportation | K37: Public Transit | L37: 4015613 | U37: Public Safety
B38: Transportation | C38: Airports | D38: 0 | J38: Transportation | K38: Airports | L38: 0 | U38: 774942
B39: Transportation | C39: Ports and Harbors | D39: 0 | J39: Transportation | K39: Ports and Harbors | L39: 0 | U39: 13065
B40: Transportation | C40: Other | D40: 0 | J40: Transportation | K40: Other | L40: 0 | U40: =SUM(U38:U39) -> 788007
B41: Community Development | C41: Planning | D41: 571080 | J41: Community Development | K41: Planning | L41: 571080 | U41: Public Ways and Facilities/Transportation
B42: Community Development | C42: Construction and Engineering Regulation Enforcement | D42: 865759 | J42: Community Development | K42: Construction and Engineering Regulation Enforcement | L42: 865759 | U42: 147627
B43: Community Development | C43: Redevelopment | D43: 0 | J43: Community Development | K43: Redevelopment | L43: 0 | U43: 136103
B44: Community Development | C44: Housing | D44: 0 | J44: Community Development | K44: Housing | L44: 0 | U44: 48099
B45: Community Development | C45: Employment | D45: 0 | J45: Community Development | K45: Employment | L45: 0 | U45: =SUM(U42:U44) -> 331829
B46: Community Development | C46: Community Promotion | D46: 5027331 | J46: Community Development | K46: Community Promotion | L46: 5027331 | U46: Recreation, Parks, Culture
B47: Community Development | C47: Other | D47: 0 | J47: Community Development | K47: Other | L47: 0 | U47: 66938
B48: Health | C48: Physical and Mental Health | D48: 0 | J48: Health | K48: Physical and Mental Health | L48: 0 | U48: =SUM(U47) -> 66938
B49: Health | C49: Hospitals and Sanitariums | D49: 0 | J49: Health | K49: Hospitals and Sanitariums | L49: 0 | U49: Community Development
B50: Health | C50: Solid Waste | D50: 0 | J50: Health | K50: Solid Waste | L50: 0 | U50: 191136
B51: Health | C51: Sewers | D51: 13921382 | J51: Health | K51: Sewers | L51: 13921382 | U51: =SUM(U50) -> 191136
B52: Health | C52: Cemeteries | D52: 0 | J52: Health | K52: Cemeteries | L52: 0
B53: Health | C53: Other | D53: 0 | J53: Health | K53: Other | L53: 0
B54: Culture and Leisure | C54: Parks and Recreation | D54: 2829782 | J54: Culture and Leisure | K54: Parks and Recreation | L54: 2829782
B55: Culture and Leisure | C55: Marinas and Wharfs | D55: 0 | J55: Culture and Leisure | K55: Marinas and Wharfs | L55: 0
B56: Culture and Leisure | C56: Libraries | D56: 0 | J56: Culture and Leisure | K56: Libraries | L56: 0
B57: Culture and Leisure | C57: Museums | D57: 0 | J57: Culture and Leisure | K57: Museums | L57: 0
B58: Culture and Leisure | C58: Golf Courses | D58: 0 | J58: Culture and Leisure | K58: Golf Courses | L58: 0
B59: Culture and Leisure | C59: Sports Arenas and Stadiums | D59: 0 | J59: Culture and Leisure | K59: Sports Arenas and Stadiums | L59: 0
B60: Culture and Leisure | C60: Community Center and Auditoriums | D60: 0 | J60: Culture and Leisure | K60: Community Center and Auditoriums | L60: 0
B61: Culture and Leisure | C61: Other | D61: 0 | J61: Culture and Leisure | K61: Other | L61: 0
B62: Public Utilities | C62: Water | D62: 8583162 | J62: Public Utilities | K62: Water | L62: 8583162
B63: Public Utilities | C63: Gas | D63: 0 | J63: Public Utilities | K63: Gas | L63: 0
B64: Public Utilities | C64: Electric | D64: 0 | J64: Public Utilities | K64: Electric | L64: 0
B65: Public Utilities | C65: Other | D65: 0 | J65: Public Utilities | K65: Other | L65: 0
B66: Other | C66: Other | D66: 0 | J66: Other | K66: Other | L66: 0
A67: TOTAL | D67: =SUM(D24:D66) -> 66516139

Sheet Property Price
C2: Price | K2: Type | L2: Sale $/SF
C3: 360000 | D3: 2225 | E3: =C3/D3 -> 161.7977528 | F3: office | G3: turlock | K3: retail | L3: 124 | M3: http://www.ctbt.com/Web/Download-Research-File.aspx?id=9001C012-1D91-41EA-B89D-3824C02076CC
C4: 525000 | D4: 4400 | E4: =C4/D4 -> 119.3181818 | F4: office | G4: turlock | K4: office | L4: 90 | M4: http://www.ctbt.com/Web/Download-Research-File.aspx?id=9001C012-1D91-41EA-B89D-3824C02076CC
C5: 699000 | D5: 2430 | E5: 230 | F5: retail | G5: ceres | H5: bank | K5: warehouse | L5: 49 | M5: http://www.ctbt.com/Web/Download-Research-File.aspx?id=9001C012-1D91-41EA-B89D-3824C02076CC
C6: 337000 | D6: 4700 | E6: =C6/D6 -> 71.70212766 | F6: retail | G6: ceres
C7: 120000 | D7: 2000 | E7: 60 | F7: warehouse | G7: turlock
C8: 264999 | D8: 5300 | E8: 49.99981132 | F8: warehouse | G8: turlock
C9: 1736000 | D9: 49600 | E9: 35 | F9: warehouse | G9: ceres
C10: 699000 | D10: 11200 | E10: 62.41071429 | F10: warehouse | G10: ceres
C11: 999000 | D11: 7320 | E11: 136.4754098 | F11: retail | G11: ceres | H11: resturant
C12: 325000 | D12: 4996 | E12: 65.05204163 | F12: retail | G12: modesto | H12: strip
C13: Source: Loopnet websearch 6/06/2013
C18: Residential raw data | K18: Type | L18: Sale $/SF | M18: Average SF | N18: Sale $/unit
C19: 249000 | D19: 2272 | E19: =C19/D19 -> 109.5950704 | F19: SFR | G19: Turlock | H19: suburban | K19: SFR | L19: =AVERAGE(E19:E22) -> 122.1958945 | M19: =AVERAGE(D19:D22) -> 2157.25 | N19: =L19*M19 -> 263607.0934
C20: 130000 | D20: 1558 | E20: =C20/D20 -> 83.44030809 | F20: SFR | G20: Turlock | H20: suburban | K20: Condo | L20: =AVERAGE(E24:E25) -> 114.7667302 | M20: =AVERAGE(D24:D25) -> 1392.5 | N20: =L20*M20 -> 159812.6718
C21: 459000 | D21: 3115 | E21: 147.3515249 | F21: SFR | G21: Turlock | H21: suburban | K21: MFR | L21: =N21/M21 -> 71.66666667 | M21: ='INPUT - DATA'!C89 -> 600 | N21: 43000 | O21: much higher that central valley Cassidy Turley data
C22: 249900 | D22: 1684 | E22: 148.3966746 | F22: SFR | G22: Turlock | H22: suburban
C24: 192000 | D24: 1549 | E24: 123.9509361 | F24: Condo | G24: Ceres
C25: 130500 | D25: 1236 | E25: 105.5825243 | F25: Condo | G25: Ceres
D27: units
C28: 299996 | D28: 4 | E28: =C28/D28 -> 74999 | F28: MFR | G28: Turlock | H28: 4 unit
C29: 1425000 | D29: 13 | E29: =C29/D29 -> 109615.3846 | F29: MFR | G29: Turlock | H29: 13 plex
C30: 410000 | D30: 8 | E30: =C30/D30 -> 51250 | F30: MFR | G30: Turlock | H30: 8 plex
C31: Source: Loopnet websearch 6/06/2013
D34: acres | K34: Type | L34: Sale $/Acre
C35: 499999 | D35: 9.81 | E35: =C35/D35 -> 50968.29766 | F35: ag rural | G35: newman | H35: within SOI | K35: Annexed | L35: =E35 -> 50968.29766
C36: 249500 | D36: 8.14 | E36: =C36/D36 -> 30651.10565 | F36: rural | G36: patterson
C37: 1181000 | D37: 43 | E37: =C37/D37 -> 27465.11628 | F37: ag | G37: modesto
C41: 230000 | D41: 1511 | E41: =C41/D41 -> 152.2170748 | F41: SFR
C42: 199900 | D42: 744 | E42: =C42/D42 -> 268.6827957 | F42: SFR
C43: 220000 | D43: 1681 | E43: =C43/D43 -> 130.8744795

Sheet Turlock Budget Input
E1: Program Revenues
B2: ﻿Governmental activities: | C2: Expenses | D2: Charges for Services | E2: Operating Grants and Contributions | F2: Capital Grants and Contributions
B3: General Government | C3: 3956620 | D3: 3557335 | E3: 87465 | F3: 238584 | G3: =C3 -> 3956620 | H3: =C3-D3-E3 -> 311820
B4: Public Safety | C4: 26204325 | D4: 2110880 | E4: 1018661 | F4: 284373 | G4: =C4 -> 26204325 | H4: =C4-D4-E4 -> 23074784
B5: Public Ways and Facilities/Transportation | C5: 11272363 | D5: 3094804 | E5: 1727201 | F5: 4797325 | G5: =C5 -> 11272363 | H5: 6450358
B6: Culture and Recreation | C6: 4296813 | D6: 1579969 | E6: 509104 | F6: 398779 | G6: =C6 -> 4296813 | H6: 2207740
B7: Community Development | C7: 5162734 | D7: 546089 | E7: 2208312 | F7: 53801 | G7: 5162734 | H7: 2408333
C8: =SUM(C3:C7) -> 50892855 | D8: =SUM(D3:D7) -> 10889077 | E8: =SUM(E3:E7) -> 5550743 | F8: =SUM(F3:F7) -> 5772862 | G8: 50892855 | H8: 34453035

Sheet Check Sheet
B3: Revenue
B5: Land Use Category | C5: Existing | D5: ='INPUT - DATA'!$D$22 -> Alternative A | E5: ='INPUT - DATA'!$E$22 -> Alternative B | F5: ='INPUT - DATA'!$F$22 -> Alternative C | G5: ='INPUT - DATA'!$G$22 -> Alternative D
B6: Rural Residential | C6: ='T11 Revenues Per Acre'!$J7*'INPUT - DATA'!C31 -> 107634.0388 | D6: ='T11 Revenues Per Acre'!$J7*'INPUT - DATA'!D31 -> 0 | E6: ='T11 Revenues Per Acre'!$J7*'INPUT - DATA'!E31 -> 3291.45141 | F6: ='T11 Revenues Per Acre'!$J7*'INPUT - DATA'!F31 -> 3291.45141 | G6: ='T11 Revenues Per Acre'!$J7*'INPUT - DATA'!G31 -> 3291.45141
B7: Very Low Density Residential | C7: ='T11 Revenues Per Acre'!$J8*'INPUT - DATA'!C32 -> 75960.97428 | D7: ='T11 Revenues Per Acre'!$J8*'INPUT - DATA'!D32 -> 92733.06581 | E7: ='T11 Revenues Per Acre'!$J8*'INPUT - DATA'!E32 -> 92733.06581 | F7: ='T11 Revenues Per Acre'!$J8*'INPUT - DATA'!F32 -> 92733.06581 | G7: ='T11 Revenues Per Acre'!$J8*'INPUT - DATA'!G32 -> 92733.06581
B8: Low Density Residential | C8: ='T11 Revenues Per Acre'!$J9*'INPUT - DATA'!C33 -> 4102829.095 | D8: ='T11 Revenues Per Acre'!$J9*'INPUT - DATA'!D33 -> 572784.0986 | E8: ='T11 Revenues Per Acre'!$J9*'INPUT - DATA'!E33 -> 191762.8213 | F8: ='T11 Revenues Per Acre'!$J9*'INPUT - DATA'!F33 -> 302670.4231 | G8: ='T11 Revenues Per Acre'!$J9*'INPUT - DATA'!G33 -> 773133.3149
B9: Low-Medium Density Residential | C9: ='T11 Revenues Per Acre'!$J10*'INPUT - DATA'!C34 -> 650067.4725 | D9: ='T11 Revenues Per Acre'!$J10*'INPUT - DATA'!D34 -> 512652.1696 | E9: ='T11 Revenues Per Acre'!$J10*'INPUT - DATA'!E34 -> 699257.5593 | F9: ='T11 Revenues Per Acre'!$J10*'INPUT - DATA'!F34 -> 385514.4315 | G9: ='T11 Revenues Per Acre'!$J10*'INPUT - DATA'!G34 -> 1384160.858
B10: Medium Density Residential | C10: ='T11 Revenues Per Acre'!$J11*'INPUT - DATA'!C35 -> 1909918.977 | D10: ='T11 Revenues Per Acre'!$J11*'INPUT - DATA'!D35 -> 1585783.392 | E10: ='T11 Revenues Per Acre'!$J11*'INPUT - DATA'!E35 -> 1894593.842 | F10: ='T11 Revenues Per Acre'!$J11*'INPUT - DATA'!F35 -> 1758272.112 | G10: ='T11 Revenues Per Acre'!$J11*'INPUT - DATA'!G35 -> 778981.3154
B11: High Density Residential | C11: ='T11 Revenues Per Acre'!$J12*'INPUT - DATA'!C36 -> 838315.312 | D11: ='T11 Revenues Per Acre'!$J12*'INPUT - DATA'!D36 -> 833188.0013 | E11: ='T11 Revenues Per Acre'!$J12*'INPUT - DATA'!E36 -> 997994.4191 | F11: ='T11 Revenues Per Acre'!$J12*'INPUT - DATA'!F36 -> 968695.5004 | G11: ='T11 Revenues Per Acre'!$J12*'INPUT - DATA'!G36 -> 990669.6894
B12: High Density Residential/Office | C12: ='T11 Revenues Per Acre'!$J13*'INPUT - DATA'!C37 -> 0 | D12: ='T11 Revenues Per Acre'!$J13*'INPUT - DATA'!D37 -> 140478.6201 | E12: ='T11 Revenues Per Acre'!$J13*'INPUT - DATA'!E37 -> 142376.9799 | F12: ='T11 Revenues Per Acre'!$J13*'INPUT - DATA'!F37 -> 142376.9799 | G12: ='T11 Revenues Per Acre'!$J13*'INPUT - DATA'!G37 -> 142376.9799
B13: Office | C13: ='T11 Revenues Per Acre'!$J14*'INPUT - DATA'!C38 -> 321606.3681 | D13: ='T11 Revenues Per Acre'!$J14*'INPUT - DATA'!D38 -> 33626.07189 | E13: ='T11 Revenues Per Acre'!$J14*'INPUT - DATA'!E38 -> 33626.07189 | F13: ='T11 Revenues Per Acre'!$J14*'INPUT - DATA'!F38 -> 33626.07189 | G13: ='T11 Revenues Per Acre'!$J14*'INPUT - DATA'!G38 -> 33626.07189
B14: Business Park | C14: ='T11 Revenues Per Acre'!$J15*'INPUT - DATA'!C39 -> 339706.379 | D14: ='T11 Revenues Per Acre'!$J15*'INPUT - DATA'!D39 -> 0 | E14: ='T11 Revenues Per Acre'!$J15*'INPUT - DATA'!E39 -> 0 | F14: ='T11 Revenues Per Acre'!$J15*'INPUT - DATA'!F39 -> 0 | G14: ='T11 Revenues Per Acre'!$J15*'INPUT - DATA'!G39 -> 0
B15: Community Commercial/Office | C15: ='T11 Revenues Per Acre'!$J16*'INPUT - DATA'!C40 -> 1174434.523 | D15: ='T11 Revenues Per Acre'!$J16*'INPUT - DATA'!D40 -> 546602.8111 | E15: ='T11 Revenues Per Acre'!$J16*'INPUT - DATA'!E40 -> 546602.8111 | F15: ='T11 Revenues Per Acre'!$J16*'INPUT - DATA'!F40 -> 543218.2736 | G15: ='T11 Revenues Per Acre'!$J16*'INPUT - DATA'!G40 -> 543218.2736
B16: Community Commercial | C16: ='T11 Revenues Per Acre'!$J17*'INPUT - DATA'!C41 -> 14187117.1 | D16: ='T11 Revenues Per Acre'!$J17*'INPUT - DATA'!D41 -> 2642979.727 | E16: ='T11 Revenues Per Acre'!$J17*'INPUT - DATA'!E41 -> 5781637.767 | F16: ='T11 Revenues Per Acre'!$J17*'INPUT - DATA'!F41 -> 2956845.531 | G16: ='T11 Revenues Per Acre'!$J17*'INPUT - DATA'!G41 -> 5781637.767
B17: Community Commercial/High Density Residential | C17: ='T11 Revenues Per Acre'!$J18*'INPUT - DATA'!C42 -> 0 | D17: ='T11 Revenues Per Acre'!$J18*'INPUT - DATA'!D42 -> 0 | E17: ='T11 Revenues Per Acre'!$J18*'INPUT - DATA'!E42 -> 0 | F17: ='T11 Revenues Per Acre'!$J18*'INPUT - DATA'!F42 -> 0 | G17: ='T11 Revenues Per Acre'!$J18*'INPUT - DATA'!G42 -> 0
B18: Downtown | C18: ='T11 Revenues Per Acre'!$J19*'INPUT - DATA'!C43 -> 0 | D18: ='T11 Revenues Per Acre'!$J19*'INPUT - DATA'!D43 -> 0 | E18: ='T11 Revenues Per Acre'!$J19*'INPUT - DATA'!E43 -> 0 | F18: ='T11 Revenues Per Acre'!$J19*'INPUT - DATA'!F43 -> 0 | G18: ='T11 Revenues Per Acre'!$J19*'INPUT - DATA'!G43 -> 0
B19: Heavy Commercial | C19: ='T11 Revenues Per Acre'!$J20*'INPUT - DATA'!C44 -> 0 | D19: ='T11 Revenues Per Acre'!$J20*'INPUT - DATA'!D44 -> 2660586.833 | E19: ='T11 Revenues Per Acre'!$J20*'INPUT - DATA'!E44 -> 3089281.59 | F19: ='T11 Revenues Per Acre'!$J20*'INPUT - DATA'!F44 -> 1454882.83 | G19: ='T11 Revenues Per Acre'!$J20*'INPUT - DATA'!G44 -> 3089281.59
B20: Highway Commercial | C20: ='T11 Revenues Per Acre'!$J21*'INPUT - DATA'!C45 -> 0 | D20: ='T11 Revenues Per Acre'!$J21*'INPUT - DATA'!D45 -> 0 | E20: ='T11 Revenues Per Acre'!$J21*'INPUT - DATA'!E45 -> 0 | F20: ='T11 Revenues Per Acre'!$J21*'INPUT - DATA'!F45 -> 0 | G20: ='T11 Revenues Per Acre'!$J21*'INPUT - DATA'!G45 -> 0
B21: Neighborhood Center | C21: ='T11 Revenues Per Acre'!$J22*'INPUT - DATA'!C46 -> 0 | D21: ='T11 Revenues Per Acre'!$J22*'INPUT - DATA'!D46 -> 124649.7488 | E21: ='T11 Revenues Per Acre'!$J22*'INPUT - DATA'!E46 -> 653427.1041 | F21: ='T11 Revenues Per Acre'!$J22*'INPUT - DATA'!F46 -> 401503.4013 | G21: ='T11 Revenues Per Acre'!$J22*'INPUT - DATA'!G46 -> 653427.1041
B22: Industrial | C22: ='T11 Revenues Per Acre'!$J23*'INPUT - DATA'!C47 -> 1147646.352 | D22: ='T11 Revenues Per Acre'!$J23*'INPUT - DATA'!D47 -> 668738.614 | E22: ='T11 Revenues Per Acre'!$J23*'INPUT - DATA'!E47 -> 668738.614 | F22: ='T11 Revenues Per Acre'!$J23*'INPUT - DATA'!F47 -> 668738.614 | G22: ='T11 Revenues Per Acre'!$J23*'INPUT - DATA'!G47 -> 668738.614
B23: Total | C23: =SUM(C6:C22) -> 24855236.59 | D23: =SUM(D6:D22) -> 10414803.15 | E23: =SUM(E6:E22) -> 14795324.1 | F23: =SUM(F6:F22) -> 9712368.686 | G23: =SUM(G6:G22) -> 14935276.09
B26: revenue/expenditure ratio | C26: =C23/'Check Sheet'!C50 -> 0.9056999279 | D26: =D23/'Check Sheet'!D50 -> 0.8016068584 | E26: =E23/'Check Sheet'!E50 -> 0.9801882603 | F26: =F23/'Check Sheet'!F50 -> 0.7593962465 | G26: =G23/'Check Sheet'!G50 -> 0.9706788732
B30: Expenditure
B32: Land Use Category | C32: Existing | D32: ='INPUT - DATA'!$D$22 -> Alternative A | E32: ='INPUT - DATA'!$E$22 -> Alternative B | F32: ='INPUT - DATA'!$F$22 -> Alternative C | G32: ='INPUT - DATA'!$G$22 -> Alternative D
B33: Rural Residential | C33: ='T13 Expense Per Acre'!$G7*'INPUT - DATA'!C31 -> 299148.713 | D33: ='T13 Expense Per Acre'!$G7*'INPUT - DATA'!D31 -> 0 | E33: ='T13 Expense Per Acre'!$G7*'INPUT - DATA'!E31 -> 9147.974605 | F33: ='T13 Expense Per Acre'!$G7*'INPUT - DATA'!F31 -> 9147.974605 | G33: ='T13 Expense Per Acre'!$G7*'INPUT - DATA'!G31 -> 9147.974605
B34: Very Low Density Residential | C34: ='T13 Expense Per Acre'!$G8*'INPUT - DATA'!C32 -> 211119.3444 | D34: ='T13 Expense Per Acre'!$G8*'INPUT - DATA'!D32 -> 257734.241 | E34: ='T13 Expense Per Acre'!$G8*'INPUT - DATA'!E32 -> 257734.241 | F34: ='T13 Expense Per Acre'!$G8*'INPUT - DATA'!F32 -> 257734.241 | G34: ='T13 Expense Per Acre'!$G8*'INPUT - DATA'!G32 -> 257734.241
B35: Low Density Residential | C35: ='T13 Expense Per Acre'!$G9*'INPUT - DATA'!C33 -> 11403047.38 | D35: ='T13 Expense Per Acre'!$G9*'INPUT - DATA'!D33 -> 1591946.45 | E35: ='T13 Expense Per Acre'!$G9*'INPUT - DATA'!E33 -> 532968.9552 | F35: ='T13 Expense Per Acre'!$G9*'INPUT - DATA'!F33 -> 841215.9256 | G35: ='T13 Expense Per Acre'!$G9*'INPUT - DATA'!G33 -> 2148779.687
B36: Low-Medium Density Residential | C36: ='T13 Expense Per Acre'!$G10*'INPUT - DATA'!C34 -> 2110843.369 | D36: ='T13 Expense Per Acre'!$G10*'INPUT - DATA'!D34 -> 1664640.177 | E36: ='T13 Expense Per Acre'!$G10*'INPUT - DATA'!E34 -> 2270569.202 | F36: ='T13 Expense Per Acre'!$G10*'INPUT - DATA'!F34 -> 1251809.413 | G36: ='T13 Expense Per Acre'!$G10*'INPUT - DATA'!G34 -> 4494528.478
B37: Medium Density Residential | C37: ='T13 Expense Per Acre'!$G11*'INPUT - DATA'!C35 -> 6033929.469 | D37: ='T13 Expense Per Acre'!$G11*'INPUT - DATA'!D35 -> 5009901.077 | E37: ='T13 Expense Per Acre'!$G11*'INPUT - DATA'!E35 -> 5985513.392 | F37: ='T13 Expense Per Acre'!$G11*'INPUT - DATA'!F35 -> 5554837.685 | G37: ='T13 Expense Per Acre'!$G11*'INPUT - DATA'!G35 -> 2461004.038
B38: High Density Residential | C38: ='T13 Expense Per Acre'!$G12*'INPUT - DATA'!C36 -> 2508368.771 | D38: ='T13 Expense Per Acre'!$G12*'INPUT - DATA'!D36 -> 2493027.066 | E38: ='T13 Expense Per Acre'!$G12*'INPUT - DATA'!E36 -> 2986153.299 | F38: ='T13 Expense Per Acre'!$G12*'INPUT - DATA'!F36 -> 2898486.413 | G38: ='T13 Expense Per Acre'!$G12*'INPUT - DATA'!G36 -> 2964236.577
B39: High Density Residential/Office | C39: ='T13 Expense Per Acre'!$G13*'INPUT - DATA'!C37 -> 0 | D39: ='T13 Expense Per Acre'!$G13*'INPUT - DATA'!D37 -> 281544.77 | E39: ='T13 Expense Per Acre'!$G13*'INPUT - DATA'!E37 -> 285349.429 | F39: ='T13 Expense Per Acre'!$G13*'INPUT - DATA'!F37 -> 285349.429 | G39: ='T13 Expense Per Acre'!$G13*'INPUT - DATA'!G37 -> 285349.429
B40: Office | C40: ='T13 Expense Per Acre'!$G14*'INPUT - DATA'!C38 -> 523056.1526 | D40: ='T13 Expense Per Acre'!$G14*'INPUT - DATA'!D38 -> 54688.97862 | E40: ='T13 Expense Per Acre'!$G14*'INPUT - DATA'!E38 -> 54688.97862 | F40: ='T13 Expense Per Acre'!$G14*'INPUT - DATA'!F38 -> 54688.97862 | G40: ='T13 Expense Per Acre'!$G14*'INPUT - DATA'!G38 -> 54688.97862
B41: Business Park | C41: ='T13 Expense Per Acre'!$G15*'INPUT - DATA'!C39 -> 552493.7602 | D41: ='T13 Expense Per Acre'!$G15*'INPUT - DATA'!D39 -> 0 | E41: ='T13 Expense Per Acre'!$G15*'INPUT - DATA'!E39 -> 0 | F41: ='T13 Expense Per Acre'!$G15*'INPUT - DATA'!F39 -> 0 | G41: ='T13 Expense Per Acre'!$G15*'INPUT - DATA'!G39 -> 0
B42: Community Commercial/Office | C42: ='T13 Expense Per Acre'!$G16*'INPUT - DATA'!C40 -> 447765.1656 | D42: ='T13 Expense Per Acre'!$G16*'INPUT - DATA'!D40 -> 208397.9085 | E42: ='T13 Expense Per Acre'!$G16*'INPUT - DATA'!E40 -> 208397.9085 | F42: ='T13 Expense Per Acre'!$G16*'INPUT - DATA'!F40 -> 207107.519 | G42: ='T13 Expense Per Acre'!$G16*'INPUT - DATA'!G40 -> 207107.519
B43: Community Commercial | C43: ='T13 Expense Per Acre'!$G17*'INPUT - DATA'!C41 -> 2895781.418 | D43: ='T13 Expense Per Acre'!$G17*'INPUT - DATA'!D41 -> 539467.7105 | E43: ='T13 Expense Per Acre'!$G17*'INPUT - DATA'!E41 -> 1180110.031 | F43: ='T13 Expense Per Acre'!$G17*'INPUT - DATA'!F41 -> 603531.9426 | G43: ='T13 Expense Per Acre'!$G17*'INPUT - DATA'!G41 -> 1180110.031
B44: Community Commercial/High Density Residential | C44: ='T13 Expense Per Acre'!$G18*'INPUT - DATA'!C42 -> 0 | D44: ='T13 Expense Per Acre'!$G18*'INPUT - DATA'!D42 -> 0 | E44: ='T13 Expense Per Acre'!$G18*'INPUT - DATA'!E42 -> 0 | F44: ='T13 Expense Per Acre'!$G18*'INPUT - DATA'!F42 -> 0 | G44: ='T13 Expense Per Acre'!$G18*'INPUT - DATA'!G42 -> 0
B45: Downtown | C45: ='T13 Expense Per Acre'!$G19*'INPUT - DATA'!C43 -> 0 | D45: ='T13 Expense Per Acre'!$G19*'INPUT - DATA'!D43 -> 0 | E45: ='T13 Expense Per Acre'!$G19*'INPUT - DATA'!E43 -> 0 | F45: ='T13 Expense Per Acre'!$G19*'INPUT - DATA'!F43 -> 0 | G45: ='T13 Expense Per Acre'!$G19*'INPUT - DATA'!G43 -> 0
B46: Heavy Commercial | C46: ='T13 Expense Per Acre'!$G20*'INPUT - DATA'!C44 -> 0 | D46: ='T13 Expense Per Acre'!$G20*'INPUT - DATA'!D44 -> 543061.5577 | E46: ='T13 Expense Per Acre'!$G20*'INPUT - DATA'!E44 -> 630563.9235 | F46: ='T13 Expense Per Acre'!$G20*'INPUT - DATA'!F44 -> 296961.1539 | G46: ='T13 Expense Per Acre'!$G20*'INPUT - DATA'!G44 -> 630563.9235
B47: Highway Commercial | C47: ='T13 Expense Per Acre'!$G21*'INPUT - DATA'!C45 -> 0 | D47: ='T13 Expense Per Acre'!$G21*'INPUT - DATA'!D45 -> 0 | E47: ='T13 Expense Per Acre'!$G21*'INPUT - DATA'!E45 -> 0 | F47: ='T13 Expense Per Acre'!$G21*'INPUT - DATA'!F45 -> 0 | G47: ='T13 Expense Per Acre'!$G21*'INPUT - DATA'!G45 -> 0
B48: Neighborhood Center | C48: ='T13 Expense Per Acre'!$G22*'INPUT - DATA'!C46 -> 0 | D48: ='T13 Expense Per Acre'!$G22*'INPUT - DATA'!D46 -> 81368.72161 | E48: ='T13 Expense Per Acre'!$G22*'INPUT - DATA'!E46 -> 426543.4038 | F48: ='T13 Expense Per Acre'!$G22*'INPUT - DATA'!F46 -> 262092.9349 | G48: ='T13 Expense Per Acre'!$G22*'INPUT - DATA'!G46 -> 426543.4038
B49: Industrial | C49: ='T13 Expense Per Acre'!$G23*'INPUT - DATA'!C47 -> 457571.7463 | D49: ='T13 Expense Per Acre'!$G23*'INPUT - DATA'!D47 -> 266629.0838 | E49: ='T13 Expense Per Acre'!$G23*'INPUT - DATA'!E47 -> 266629.0838 | F49: ='T13 Expense Per Acre'!$G23*'INPUT - DATA'!F47 -> 266629.0838 | G49: ='T13 Expense Per Acre'!$G23*'INPUT - DATA'!G47 -> 266629.0838
B50: Total | C50: =SUM(C33:C49) -> 27443125.29 | D50: =SUM(D33:D49) -> 12992407.74 | E50: =SUM(E33:E49) -> 15094369.82 | F50: =SUM(F33:F49) -> 12789592.69 | G50: =SUM(G33:G49) -> 15386423.37
B55: Land Use Program Total Acreage
B57: Land Use Category | C57: Existing | D57: ='INPUT - DATA'!$D$22 -> Alternative A | E57: ='INPUT - DATA'!$E$22 -> Alternative B | F57: ='INPUT - DATA'!$F$22 -> Alternative C | G57: ='INPUT - DATA'!$G$22 -> Alternative D
B58: Rural Residential | C58: ='INPUT - DATA'!C31 -> 601.7 | D58: ='INPUT - DATA'!D31 -> 0 | E58: ='INPUT - DATA'!E31 -> 18.4 | F58: ='INPUT - DATA'!F31 -> 18.4 | G58: ='INPUT - DATA'!G31 -> 18.4
B59: Very Low Density Residential | C59: ='INPUT - DATA'!C32 -> 132.7 | D59: ='INPUT - DATA'!D32 -> 162 | E59: ='INPUT - DATA'!E32 -> 162 | F59: ='INPUT - DATA'!F32 -> 162 | G59: ='INPUT - DATA'!G32 -> 162
B60: Low Density Residential | C60: ='INPUT - DATA'!C33 -> 2293.579517 | D60: ='INPUT - DATA'!D33 -> 320.2 | E60: ='INPUT - DATA'!E33 -> 107.2 | F60: ='INPUT - DATA'!F33 -> 169.2 | G60: ='INPUT - DATA'!G33 -> 432.2
B61: Low-Medium Density Residential | C61: ='INPUT - DATA'!C34 -> 317.0119582 | D61: ='INPUT - DATA'!D34 -> 250 | E61: ='INPUT - DATA'!E34 -> 341 | F61: ='INPUT - DATA'!F34 -> 188 | G61: ='INPUT - DATA'!G34 -> 675
B62: Medium Density Residential | C62: ='INPUT - DATA'!C35 -> 686.5085247 | D62: ='INPUT - DATA'!D35 -> 570 | E62: ='INPUT - DATA'!E35 -> 681 | F62: ='INPUT - DATA'!F35 -> 632 | G62: ='INPUT - DATA'!G35 -> 280
B63: High Density Residential | C63: ='INPUT - DATA'!C36 -> 228.9 | D63: ='INPUT - DATA'!D36 -> 227.5 | E63: ='INPUT - DATA'!E36 -> 272.5 | F63: ='INPUT - DATA'!F36 -> 264.5 | G63: ='INPUT - DATA'!G36 -> 270.5
B64: High Density Residential/Office | C64: ='INPUT - DATA'!C37 -> 0 | D64: ='INPUT - DATA'!D37 -> 29.6 | E64: ='INPUT - DATA'!E37 -> 30 | F64: ='INPUT - DATA'!F37 -> 30 | G64: ='INPUT - DATA'!G37 -> 30
B65: Office | C65: ='INPUT - DATA'!C38 -> 57.38518061 | D65: ='INPUT - DATA'!D38 -> 6 | E65: ='INPUT - DATA'!E38 -> 6 | F65: ='INPUT - DATA'!F38 -> 6 | G65: ='INPUT - DATA'!G38 -> 6
B66: Business Park | C66: ='INPUT - DATA'!C39 -> 60.61481939 | D66: ='INPUT - DATA'!D39 -> 0 | E66: ='INPUT - DATA'!E39 -> 0 | F66: ='INPUT - DATA'!F39 -> 0 | G66: ='INPUT - DATA'!G39 -> 0
B67: Community Commercial/Office | C67: ='INPUT - DATA'!C40 -> 69.4 | D67: ='INPUT - DATA'!D40 -> 32.3 | E67: ='INPUT - DATA'!E40 -> 32.3 | F67: ='INPUT - DATA'!F40 -> 32.1 | G67: ='INPUT - DATA'!G40 -> 32.1
B68: Community Commercial | C68: ='INPUT - DATA'!C41 -> 741.3 | D68: ='INPUT - DATA'!D41 -> 138.1 | E68: ='INPUT - DATA'!E41 -> 302.1 | F68: ='INPUT - DATA'!F41 -> 154.5 | G68: ='INPUT - DATA'!G41 -> 302.1
B69: Community Commercial/High Density Residential | C69: ='INPUT - DATA'!C42 -> 0 | D69: ='INPUT - DATA'!D42 -> 0 | E69: ='INPUT - DATA'!E42 -> 0 | F69: ='INPUT - DATA'!F42 -> 0 | G69: ='INPUT - DATA'!G42 -> 0
B70: Downtown | C70: ='INPUT - DATA'!C43 -> 0 | D70: ='INPUT - DATA'!D43 -> 0 | E70: ='INPUT - DATA'!E43 -> 0 | F70: ='INPUT - DATA'!F43 -> 0 | G70: ='INPUT - DATA'!G43 -> 0
B71: Heavy Commercial | C71: ='INPUT - DATA'!C44 -> 0 | D71: ='INPUT - DATA'!D44 -> 99.3 | E71: ='INPUT - DATA'!E44 -> 115.3 | F71: ='INPUT - DATA'!F44 -> 54.3 | G71: ='INPUT - DATA'!G44 -> 115.3
B72: Highway Commercial | C72: ='INPUT - DATA'!C45 -> 0 | D72: ='INPUT - DATA'!D45 -> 0 | E72: ='INPUT - DATA'!E45 -> 0 | F72: ='INPUT - DATA'!F45 -> 0 | G72: ='INPUT - DATA'!G45 -> 0
B73: Neighborhood Center | C73: ='INPUT - DATA'!C46 -> 0 | D73: ='INPUT - DATA'!D46 -> 9.5 | E73: ='INPUT - DATA'!E46 -> 49.8 | F73: ='INPUT - DATA'!F46 -> 30.6 | G73: ='INPUT - DATA'!G46 -> 49.8
B74: Industrial | C74: ='INPUT - DATA'!C47 -> 1126.3 | D74: ='INPUT - DATA'!D47 -> 656.3 | E74: ='INPUT - DATA'!E47 -> 656.3 | F74: ='INPUT - DATA'!F47 -> 656.3 | G74: ='INPUT - DATA'!G47 -> 656.3
B75: Total | C75: =SUM(C58:C74) -> 6315.4 | D75: =SUM(D58:D74) -> 2500.8 | E75: =SUM(E58:E74) -> 2773.9 | F75: =SUM(F58:F74) -> 2397.9 | G75: =SUM(G58:G74) -> 3029.7

Sheet T14 GF Analysis
A1: Table 14
A2: General Fund Impact Analysis by Type
A3: ='T1 Placetype Assumptions'!A3 -> StanCOG Fiscal Model
B4: Total Revenue | C4: Total Expenses | D4: Net Revenues
A7: ='T1 Placetype Assumptions'!A11 -> Rural Residential | B7: ='T11 Revenues Per Acre'!J7 -> 178.8832288 | C7: ='T13 Expense Per Acre'!G7 -> 497.1725329 | D7: =B7-C7 -> -318.2893041
A8: ='T1 Placetype Assumptions'!A12 -> Very Low Density Residential | B8: ='T11 Revenues Per Acre'!J8 -> 572.4263321 | C8: ='T13 Expense Per Acre'!G8 -> 1590.952105 | D8: -1018.525773
A9: ='T1 Placetype Assumptions'!A13 -> Low Density Residential | B9: ='T11 Revenues Per Acre'!J9 -> 1788.832288 | C9: ='T13 Expense Per Acre'!G9 -> 4971.725329 | D9: -3182.893041
A10: ='T1 Placetype Assumptions'!A14 -> Low-Medium Density Residential | B10: ='T11 Revenues Per Acre'!J10 -> 2050.608678 | C10: ='T13 Expense Per Acre'!G10 -> 6658.560708 | D10: -4607.95203
A11: ='T1 Placetype Assumptions'!A15 -> Medium Density Residential | B11: ='T11 Revenues Per Acre'!J11 -> 2782.076126 | C11: ='T13 Expense Per Acre'!G11 -> 8789.300135 | D11: -6007.224008
A12: ='T1 Placetype Assumptions'!A16 -> High Density Residential | B12: ='T11 Revenues Per Acre'!J12 -> 3662.364841 | C12: ='T13 Expense Per Acre'!G12 -> 10958.36073 | D12: -7295.995889
A13: ='T1 Placetype Assumptions'!A17 -> High Density Residential/Office | B13: ='T11 Revenues Per Acre'!J13 -> 4745.899329 | C13: ='T13 Expense Per Acre'!G13 -> 9511.647634 | D13: -4765.748305
A14: ='T1 Placetype Assumptions'!A18 -> Office | B14: ='T11 Revenues Per Acre'!J14 -> 5604.345314 | C14: ='T13 Expense Per Acre'!G14 -> 9114.829769 | D14: -3510.484455
A15: ='T1 Placetype Assumptions'!A19 -> Business Park | B15: ='T11 Revenues Per Acre'!J15 -> 5604.345314 | C15: ='T13 Expense Per Acre'!G15 -> 9114.829769 | D15: -3510.484455
A16: ='T1 Placetype Assumptions'!A20 -> Community Commercial/Office | B16: ='T11 Revenues Per Acre'!J16 -> 16922.68765 | C16: ='T13 Expense Per Acre'!G16 -> 6451.947631 | D16: 10470.74002
A17: ='T1 Placetype Assumptions'!A21 -> Community Commercial | B17: ='T11 Revenues Per Acre'!J17 -> 19138.15878 | C17: ='T13 Expense Per Acre'!G17 -> 3906.355615 | D17: 15231.80316
A18: ='T1 Placetype Assumptions'!A22 -> Community Commercial/High Density Residential | B18: ='T11 Revenues Per Acre'!J18 -> 20665.78448 | C18: ='T13 Expense Per Acre'!G18 -> 11026.78175 | D18: 9639.002733
A19: ='T1 Placetype Assumptions'!A23 -> Downtown | B19: ='T11 Revenues Per Acre'!J19 -> 108827.8866 | C19: ='T13 Expense Per Acre'!G19 -> 44216.39638 | D19: 64611.49022
A20: ='T1 Placetype Assumptions'!A24 -> Heavy Commercial | B20: ='T11 Revenues Per Acre'!J20 -> 26793.42229 | C20: ='T13 Expense Per Acre'!G20 -> 5468.897862 | D20: 21324.52443
A21: ='T1 Placetype Assumptions'!A25 -> Highway Commercial | B21: ='T11 Revenues Per Acre'!J21 -> 26793.42229 | C21: ='T13 Expense Per Acre'!G21 -> 5468.897862 | D21: 21324.52443
A22: ='T1 Placetype Assumptions'!A26 -> Neighborhood Center | B22: ='T11 Revenues Per Acre'!J22 -> 13121.02619 | C22: ='T13 Expense Per Acre'!G22 -> 8565.128591 | D22: 4555.897596
A23: ='T1 Placetype Assumptions'!A27 -> Industrial | B23: ='T11 Revenues Per Acre'!J23 -> 1018.952634 | C23: ='T13 Expense Per Acre'!G23 -> 406.260984 | D23: 612.6916505
A27: Source: AECOM 2013

Sheet T20 Services Mitigation Fee
A2: Estimated Services Mitigation Fee Revenues (per acre) by Typology
A5: Land Use | B5: Residential Unit Class | C5: Non-Residential Class | D5: Residential Units per Acre | E5: Commercial Square Feet per Acre | F5: Residential Service Mitigation Fee per Unit | G5: Non-Residential Service Mitigation Fee per Sq Ft | H5: Residential Service Mitigation Fee per Acre | I5: Non-Residential Service Mitigation Fee per Acre | J5: Total Service Mitigation Fee per Acre
A7: ='T1 Placetype Assumptions'!A11 -> Rural Residential | B7: Single Family - Detached | C7: N/A | D7: ='T5 Dev Prog'!B7 -> 0.5 | E7: ='T5 Dev Prog'!C7 -> 0 | F7: ='INPUT - DATA'!$C$162 -> 500 | G7: 0 | H7: =D7*F7 -> 250 | I7: =E7*G7 -> 0 | J7: =H7+I7 -> 250
A8: ='T1 Placetype Assumptions'!A12 -> Very Low Density Residential | B8: Single Family - Detached | C8: N/A | D8: ='T5 Dev Prog'!B8 -> 1.6 | E8: ='T5 Dev Prog'!C8 -> 0 | F8: ='INPUT - DATA'!$C$162 -> 500 | G8: 0 | H8: =D8*F8 -> 800 | I8: =E8*G8 -> 0 | J8: =H8+I8 -> 800
A9: ='T1 Placetype Assumptions'!A13 -> Low Density Residential | B9: Single Family - Detached | C9: N/A | D9: ='T5 Dev Prog'!B9 -> 5 | E9: ='T5 Dev Prog'!C9 -> 0 | F9: ='INPUT - DATA'!$C$162 -> 500 | G9: 0 | H9: 2500 | I9: 0 | J9: 2500
A10: ='T1 Placetype Assumptions'!A14 -> Low-Medium Density Residential | B10: Single Family - Attached | C10: N/A | D10: ='T5 Dev Prog'!B10 -> 7.5 | E10: ='T5 Dev Prog'!C10 -> 0 | F10: ='INPUT - DATA'!$C$163 -> 394 | G10: 0 | H10: 2955 | I10: 0 | J10: 2955
A11: ='T1 Placetype Assumptions'!A15 -> Medium Density Residential | B11: Multi-Family | C11: N/A | D11: ='T5 Dev Prog'!B11 -> 11 | E11: ='T5 Dev Prog'!C11 -> 0 | F11: ='INPUT - DATA'!$C$164 -> 394 | G11: 0 | H11: 4334 | I11: 0 | J11: 4334
A12: ='T1 Placetype Assumptions'!A16 -> High Density Residential | B12: Multi-Family | C12: N/A | D12: ='T5 Dev Prog'!B12 -> 22.5 | E12: ='T5 Dev Prog'!C12 -> 0 | F12: ='INPUT - DATA'!$C$164 -> 394 | G12: 0 | H12: 8865 | I12: 0 | J12: 8865
A13: ='T1 Placetype Assumptions'!A17 -> High Density Residential/Office | B13: Mixed Use | C13: Non-Residential (Office) | D13: ='T5 Dev Prog'!B13 -> 22.5 | E13: ='T5 Dev Prog'!C13 -> 7623 | F13: ='INPUT - DATA'!$C$165 -> 394 | G13: ='INPUT - DATA'!C169 -> 0 | H13: 8865 | I13: 0 | J13: 8865
A14: ='T1 Placetype Assumptions'!A18 -> Office | B14: Mixed Use | C14: Non-Residential (Office) | D14: ='T5 Dev Prog'!B14 -> 0 | E14: ='T5 Dev Prog'!C14 -> 15246 | F14: ='INPUT - DATA'!$C$165 -> 394 | G14: ='INPUT - DATA'!C169 -> 0 | H14: 0 | I14: 0 | J14: 0
A15: ='T1 Placetype Assumptions'!A19 -> Business Park | B15: Mixed Use | C15: Non-Residential (Office) | D15: ='T5 Dev Prog'!B15 -> 0 | E15: ='T5 Dev Prog'!C15 -> 15246 | F15: ='INPUT - DATA'!$C$165 -> 394 | G15: ='INPUT - DATA'!C169 -> 0 | H15: 0 | I15: 0 | J15: 0
A16: ='T1 Placetype Assumptions'!A20 -> Community Commercial/Office | B16: Mixed Use | C16: Non-Residential (Office) | D16: ='T5 Dev Prog'!B16 -> 0 | E16: ='T5 Dev Prog'!C16 -> 7623 | F16: ='INPUT - DATA'!$C$165 -> 394 | G16: ='INPUT - DATA'!C170 -> 0 | H16: 0 | I16: 0 | J16: 0
A17: ='T1 Placetype Assumptions'!A21 -> Community Commercial | B17: Mixed Use | C17: Non-Residential (Commercial) | D17: ='T5 Dev Prog'!B17 -> 0 | E17: ='T5 Dev Prog'!C17 -> 0 | F17: ='INPUT - DATA'!$C$165 -> 394 | G17: ='INPUT - DATA'!C170 -> 0 | H17: 0 | I17: 0 | J17: 0
A18: ='T1 Placetype Assumptions'!A22 -> Community Commercial/High Density Residential | B18: Mixed Use | C18: Non-Residential (Commercial) | D18: ='T5 Dev Prog'!B18 -> 22.5 | E18: ='T5 Dev Prog'!C18 -> 8755.56 | F18: ='INPUT - DATA'!$C$165 -> 394 | G18: ='INPUT - DATA'!C170 -> 0 | H18: 8865 | I18: 0 | J18: 8865
A19: ='T1 Placetype Assumptions'!A23 -> Downtown | B19: Mixed Use | C19: Non-Residential (Commercial) | D19: ='T5 Dev Prog'!B19 -> 22.5 | E19: ='T5 Dev Prog'!C19 -> 49005 | F19: ='INPUT - DATA'!$C$165 -> 394 | G19: ='INPUT - DATA'!C170 -> 0 | H19: 8865 | I19: 0 | J19: 8865
A20: ='T1 Placetype Assumptions'!A24 -> Heavy Commercial | B20: Mixed Use | C20: Non-Residential (Heavy Commercial) | D20: ='T5 Dev Prog'!B20 -> 0 | E20: ='T5 Dev Prog'!C20 -> 0 | F20: ='INPUT - DATA'!$C$165 -> 394 | G20: ='INPUT - DATA'!C171 -> 0 | H20: 0 | I20: 0 | J20: 0
A21: ='T1 Placetype Assumptions'!A25 -> Highway Commercial | B21: Mixed Use | C21: Non-Residential (Commercial) | D21: ='T5 Dev Prog'!B21 -> 0 | E21: ='T5 Dev Prog'!C21 -> 0 | F21: ='INPUT - DATA'!$C$165 -> 394 | G21: ='INPUT - DATA'!C170 -> 0 | H21: 0 | I21: 0 | J21: 0
A22: ='T1 Placetype Assumptions'!A26 -> Neighborhood Center | B22: Mixed Use | C22: Non-Residential (Commercial) | D22: ='T5 Dev Prog'!B22 -> 22.5 | E22: ='T5 Dev Prog'!C22 -> 5717.25 | F22: ='INPUT - DATA'!$C$165 -> 394 | G22: ='INPUT - DATA'!C170 -> 0 | H22: 8865 | I22: 0 | J22: 8865
A23: ='T1 Placetype Assumptions'!A27 -> Industrial | B23: Mixed Use | C23: Non-Residential (Industrial) | D23: ='T5 Dev Prog'!B23 -> 0 | E23: ='T5 Dev Prog'!C23 -> 522.72 | F23: ='INPUT - DATA'!$C$165 -> 394 | G23: ='INPUT - DATA'!C172 -> 0 | H23: 0 | I23: 0 | J23: 0

Sheet Incremental Value
L2: Jurisdiction | M2: Increase in Land Value
C3: Values | L3: ='INPUT - DATA'!B4 -> Turlock | M3: =VLOOKUP(L3,$L$5:$M$14,2,FALSE) -> 0.102932181
B4: City | C4: Sum of Current Mar Value | D4: Sum of AcresGIS Acres | E4: Land Value per Acre
B5: Ceres | L5: Ceres | M5: =I6 -> 0.2271542977 | O5: 1.5
B6: Within City | C6: 641049427 | D6: 4021.872574 | E6: =C6/D6 -> 159390.7851 | F6: =E6/E7 -> 6.603440988 | H6: =E6/$O$5 -> 106260.5234 | I6: =E7/H6 -> 0.2271542977 | L6: Hughson | M6: =I9 -> 0.117324537
B7: Adjacent | C7: 30406713 | D7: 1259.727373 | E7: =C7/D7 -> 24137.53456 | F7: =E7/E6 -> 0.1514361985 | L7: Modesto | M7: =I12 -> 0.1878540223
B8: Hughson | L8: Newman | M8: =I15 -> 0.09346206992
B9: Within City | C9: 80107042 | D9: 725.6073527 | E9: =C9/D9 -> 110399.9866 | F9: =E9/E10 -> 12.78504939 | H9: =E9/$O$5 -> 73599.99105 | I9: =E10/H9 -> 0.117324537 | L9: Oakdale | M9: =I18 -> 0.06600423097
B10: Adjacent | C10: 8101376 | D10: 938.1929789 | E10: =C10/D10 -> 8635.084873 | F10: =E10/E9 -> 0.078216358 | L10: Patterson | M10: =I21 -> 0.1100962637
B11: Modesto | L11: Riverbank | M11: =I24 -> 0.1177049035
B12: Within City | C12: 3457305443 | D12: 16721.52694 | E12: =C12/D12 -> 206757.7593 | F12: =E12/E13 -> 7.984923514 | H12: =E12/$O$5 -> 137838.5062 | I12: =E13/H12 -> 0.1878540223 | L12: Turlock | M12: =I27 -> 0.102932181
B13: Adjacent | C13: 168034293 | D13: 6489.434697 | E13: =C13/D13 -> 25893.51782 | F13: =E13/E12 -> 0.1252360149 | L13: Waterford | M13: =I30 -> 0.1324313391
B14: Newman | L14: Countywide | M14: =I35 -> 0.1294849239
B15: Within City | C15: 110265435 | D15: 800.344785 | E15: =C15/D15 -> 137772.4164 | F15: =E15/E16 -> 16.04929145 | H15: =E15/$O$5 -> 91848.27761 | I15: =E16/H15 -> 0.09346206992
B16: Adjacent | C16: 11749167 | D16: 1368.676041 | E16: =C16/D16 -> 8584.330144 | F16: =E16/E15 -> 0.06230804661
B17: Oakdale
B18: Within City | C18: 406612972 | D18: 2547.939263 | E18: =C18/D18 -> 159585.0333 | F18: =E18/E19 -> 22.72581588 | H18: =E18/$O$5 -> 106390.0222 | I18: =E19/H18 -> 0.06600423097
B19: Adjacent | C19: 21117514 | D19: 3007.254033 | E19: =C19/D19 -> 7022.191597 | F19: =E19/E18 -> 0.04400282065
B20: Patterson
B21: Within City | C21: 314310645 | D21: 2714.738509 | E21: =C21/D21 -> 115779.3445 | F21: =E21/E22 -> 13.62444056 | H21: =E21/$O$5 -> 77186.22964 | I21: =E22/H21 -> 0.1100962637
B22: Adjacent | C22: 19414726 | D22: 2284.64569 | E22: =C22/D22 -> 8497.915491 | F22: =E22/E21 -> 0.07339750911
B23: Riverbank
B24: Within City | C24: 343403418 | D24: 1643.1153 | E24: =C24/D24 -> 208995.3261 | F24: =E24/E25 -> 12.74373416 | H24: =E24/$O$5 -> 139330.2174 | I24: =E25/H24 -> 0.1177049035
B25: Adjacent | C25: 19371227 | D25: 1181.183196 | E25: =C25/D25 -> 16399.8498 | F25: =E25/E24 -> 0.0784699357
B26: Turlock
B27: Within City | C27: 1306312167 | D27: 7156.403123 | E27: =C27/D27 -> 182537.5324 | F27: =E27/E28 -> 14.57270201 | H27: =E27/$O$5 -> 121691.6883 | I27: =E28/H27 -> 0.102932181
B28: Adjacent | C28: 36700339 | D28: 2929.934993 | E28: =C28/D28 -> 12525.99088 | F28: =E28/E27 -> 0.06862145397
B29: Waterford
B30: Within City | C30: 94761766 | D30: 1080.739807 | E30: =C30/D30 -> 87682.31295 | F30: =E30/E31 -> 11.32662412 | H30: =E30/$O$5 -> 58454.8753 | I30: =E31/H30 -> 0.1324313391
B31: Adjacent | C31: 11491838 | D31: 1484.492426 | E31: =C31/D31 -> 7741.257414 | F31: =E31/E30 -> 0.08828755942
B34: Countywide
B35: Within Cities | C35: 6754128315 | D35: 37412.28766 | E35: =C35/D35 -> 180532.3528 | F35: =E35/E36 -> 11.58436021 | H35: =E35/$O$5 -> 120354.9019 | I35: =E36/H35 -> 0.1294849239
B36: Adjacent | C36: 326387193 | D36: 20943.54143 | E36: =C36/D36 -> 15584.14531 | F36: =E36/E35 -> 0.08632328261

Sheet TURLOCK SPECIFIC INPUT (hidden)
B3: Roadway Infrastructure O&M Costs per Acre Data
B4: Annual Street Repairs Budget | C4: 1391173
B5: Annual Street Sweeping Budget | C5: 252083
B6: Annual Streetlighting Budget | C6: 107545
B7: Total | C7: =SUM(C4:C6) -> 1750801
B8: Roadway Infrastructure O&M Costs per Acre of Urban Area | C8: =IFERROR(C7/'INPUT - DATA'!$C$55,0) -> 209.6792776
B9: Roadway Infrastructure O&M Costs per Acre of Total City Area | C9: =IFERROR(C7/'INPUT - DATA'!$C$54,0) -> 119.5241021
B12: Expenditure Data for Baseline Year | C12: ='INPUT - DATA'!B8 -> 2010
B13: Item | C13: Amount
B14: Police | C14: 17431009
B15: Fire | C15: 7780558
B16: Animal Services & Control | C16: 412620
B17: Neighborhood Services | C17: 440524
B18: Subtotal Public Saftey | C18: =SUM(C14:C17) -> 26064711
B19: Community Development | C19: 789978
B20: Subtotal Community Development | C20: =SUM(C19) -> 789978
B21: Public Facilites | C21: 357879
B22: Park Maintenance and Recreation | C22: =1388321+1532081 -> 2920402
B23: Subtotal Parks, Rec. & Facilities | C23: =SUM(C21:C22) -> 3278281
B24: Administration | C24: 3869228
B25: Subtotal Administration | C25: =SUM(C24) -> 3869228
B26: Total Expenses | C26: =SUM(C18,C20,C23,C25) -> 34002198
B29: Revenue Data for Baseline Year | C29: ='INPUT - DATA'!B8 -> 2010
B30: Item | C30: Amount
B31: Property Tax | C31: 4171000
B32: Sales Tax | C32: 10691000
B33: Property Transfer Tax | C33: 175000
B34: Vehicle License Fee ( Property Tax In-lieu of VLF) | C34: 5260000
B35: Fees & Charges for Service | C35: 1375630
B36: License, Permits & Franchises | C36: 3811240
B37: Fines, Forfeitures & Penalties | C37: 477500
B38: Transient Occupancy Tax | C38: 350000
B39: Use of Money & Property | C39: 1390574
B40: Reimb. for Administrative Services | C40: 5539317
B41: Total General Fund Revenues | C41: =SUM(C31:C40) -> 33241261

Sheet T122 GF Analysis (hidden)
A1: Table 14
A2: General Fund Impact Analysis by Type
A3: ='T1 Placetype Assumptions'!A3 -> StanCOG Fiscal Model
B4: Total Revenue | C4: Total Expenses | D4: Net Revenues
A7: ='T1 Placetype Assumptions'!A11 -> Rural Residential | B7: ='REVENUE DETAIL'!C117 -> 178.8832288 | C7: ='EXPENSE DETAIL'!C6 -> 497.1725329 | D7: =B7-C7 -> -318.2893041
A8: ='T1 Placetype Assumptions'!A12 -> Very Low Density Residential | B8: ='REVENUE DETAIL'!C118 -> 572.4263321 | C8: ='EXPENSE DETAIL'!C7 -> 1590.952105 | D8: -1018.525773
A9: ='T1 Placetype Assumptions'!A13 -> Low Density Residential | B9: ='REVENUE DETAIL'!C119 -> 1788.832288 | C9: ='EXPENSE DETAIL'!C8 -> 4971.725329 | D9: -3182.893041
A10: ='T1 Placetype Assumptions'!A14 -> Low-Medium Density Residential | B10: ='REVENUE DETAIL'!C120 -> 2050.608678 | C10: ='EXPENSE DETAIL'!C9 -> 6658.560708 | D10: -4607.95203
A11: ='T1 Placetype Assumptions'!A15 -> Medium Density Residential | B11: ='REVENUE DETAIL'!C121 -> 2782.076126 | C11: ='EXPENSE DETAIL'!C10 -> 8789.300135 | D11: -6007.224008
A12: ='T1 Placetype Assumptions'!A16 -> High Density Residential | B12: ='REVENUE DETAIL'!C122 -> 3662.364841 | C12: ='EXPENSE DETAIL'!C11 -> 10958.36073 | D12: -7295.995889
A13: ='T1 Placetype Assumptions'!A17 -> High Density Residential/Office | B13: ='REVENUE DETAIL'!C123 -> 4745.899329 | C13: ='EXPENSE DETAIL'!C12 -> 9511.647634 | D13: -4765.748305
A14: ='T1 Placetype Assumptions'!A18 -> Office | B14: ='REVENUE DETAIL'!C124 -> 5604.345314 | C14: ='EXPENSE DETAIL'!C13 -> 9114.829769 | D14: -3510.484455
A15: ='T1 Placetype Assumptions'!A19 -> Business Park | B15: ='REVENUE DETAIL'!C125 -> 5604.345314 | C15: ='EXPENSE DETAIL'!C14 -> 9114.829769 | D15: -3510.484455
A16: ='T1 Placetype Assumptions'!A20 -> Community Commercial/Office | B16: ='REVENUE DETAIL'!C126 -> 16922.68765 | C16: ='EXPENSE DETAIL'!C15 -> 6451.947631 | D16: 10470.74002
A17: ='T1 Placetype Assumptions'!A21 -> Community Commercial | B17: ='REVENUE DETAIL'!C127 -> 19138.15878 | C17: ='EXPENSE DETAIL'!C16 -> 3906.355615 | D17: 15231.80316
A18: ='T1 Placetype Assumptions'!A22 -> Community Commercial/High Density Residential | B18: ='REVENUE DETAIL'!C128 -> 20665.78448 | C18: ='EXPENSE DETAIL'!C17 -> 11026.78175 | D18: 9639.002733
A19: ='T1 Placetype Assumptions'!A23 -> Downtown | B19: ='REVENUE DETAIL'!C129 -> 108827.8866 | C19: ='EXPENSE DETAIL'!C18 -> 44216.39638 | D19: 64611.49022
A20: ='T1 Placetype Assumptions'!A24 -> Heavy Commercial | B20: ='REVENUE DETAIL'!C130 -> 26793.42229 | C20: ='EXPENSE DETAIL'!C19 -> 5468.897862 | D20: 21324.52443
A21: ='T1 Placetype Assumptions'!A25 -> Highway Commercial | B21: ='REVENUE DETAIL'!C131 -> 26793.42229 | C21: ='EXPENSE DETAIL'!C20 -> 5468.897862 | D21: 21324.52443
A22: ='T1 Placetype Assumptions'!A26 -> Neighborhood Center | B22: ='REVENUE DETAIL'!C132 -> 13121.02619 | C22: ='EXPENSE DETAIL'!C21 -> 8565.128591 | D22: 4555.897596
A23: ='T1 Placetype Assumptions'!A27 -> Industrial | B23: ='REVENUE DETAIL'!C133 -> 1018.952634 | C23: ='EXPENSE DETAIL'!C22 -> 406.260984 | D23: 612.6916505
A27: Source: AECOM 2013
